Workbook

Sheet Sheet47 (hidden)
A1: ABM | B1: A\C No. | C1: Dealer | D1: Post Code | E1: Column1 | F1: <ID> | G1: Quantity per package
A2: Colin Ferguson | B2: 28400592 | C2: ALEX MATHER LTD | D2: G84 7DG | E2: 1 | F2: 501840664 | G2: 30 | J2: Colin_Ferguson | K2: Francesca_Bosley | L2: Graeme_Simpson | M2: James_Etoe | N2: James_Woodbridge | O2: Joe_Walsh | P2: Stephen_Irvine
A3: Colin Ferguson | B3: 28400701 | C3: ALEX MCDOUGALL (MOWERS) LTD | D3: G74 5NR | E3: 1 | F3: 501840672 | G3: 30 | J3: ALEX MATHER LTD | K3: Winchester Garden Machinery Ltd - Arb | L3: RAMAGE DIY & EQUIPMENT HIRE | M3: RADMORE & TUCKER LIMITED | N3: Ernest Doe & Sons Ltd - Braintree | O3: D WILLIAMS & SON | P3: A MCILRATH & SON
A4: Colin Ferguson | B4: 28400713 | C4: SILVERBANK FOREST & GARDEN | D4: AB31 5YR | E4: 1 | F4: 501841468 | G4: 30 | J4: ALEX MCDOUGALL (MOWERS) LTD | K4: Winchester Garden Machinery Ltd - Liss | L4: Lloyd Limited - Alnwick | M4: CREWKERNE HORTICULTURAL | N4: Ernest Doe & Sons Ltd - Dartford | O4: J AND J FARM SERVICES | P4: LAIRD GRASS MACHINERY
A5: Colin Ferguson | B5: 28400721 | C5: JOHN TYRE & SONS | D5: PA23 8BP | E5: 1 | F5: 501841472 | G5: 30 | J5: SILVERBANK FOREST & GARDEN | K5: Winchester Garden Machinery Ltd - Winchester HO | L5: Lloyd Limited - Bishop Auckland | M5: DEVON GARDEN MACHINERY | N5: Ernest Doe & Sons Ltd - Esher | O5: CHELFORD FARM SUPPLIES LTD
A6: Colin Ferguson | B6: 28400735 | C6: THULECRAFT LTD | D6: ZE1 0LX | E6: 1 | F6: 501841484 | G6: 30 | J6: JOHN TYRE & SONS | K6: Winchester Garden Machinery Ltd - Windlesham | L6: Lloyd Limited - Carlisle | M6: WILLIS & GRABHAM | N6: Ernest Doe & Sons Ltd - Fulbourne | O6: MANSEL J GRIFFITHS & SON
A7: Colin Ferguson | B7: 28400766 | C7: WESTBANK AG ENGS INC LANARK C SAW S | D7: ML11 8NL | E7: 1 | F7: 501841492 | G7: 30 | J7: THULECRAFT LTD | K7: S P G (POWER MACHINE SERVICES) LTD | L7: Lloyd Limited - Dumfries | M7: GEORGE CARR & SONS (SAWS) LTD | N7: Ernest Doe & Sons Ltd - Littelport | O7: MORGANS MACHINERY
A8: Colin Ferguson | B8: 28400801 | C8: J MITCHELL & CO | D8: PH2 6HT | E8: 1 | F8: 501843104 | G8: 30 | J8: WESTBANK AG ENGS INC LANARK C SAW S | K8: SAWS & MOWERS | L8: Lloyd Limited - Kelso | M8: CHELTENHAM GARDEN MACHINERY | N8: Ernest Doe & Sons Ltd - Marlesford | O8: TFM Farm & Country Superstore Ltd - Bridgenorth
A9: Colin Ferguson | B9: 28400824 | C9: TURF AND TIMBER | D9: DD1 4JQ | E9: 1 | F9: 501843124 | G9: 30 | J9: J MITCHELL & CO | K9: D C BURGOYNE & SONS | L9: Lloyd Limited - Penrith | M9: A G EDWARDS & SONS | N9: Ernest Doe & Sons Ltd - North Walsham | O9: TFM Farm & Country Superstore Ltd - Bromsgrove
A10: Colin Ferguson | B10: 28400923 | C10: PEARSONS OF DUNS T/A BORDER CHAINSAW | D10: TD4 6BZ | E10: 1 | F10: 501843184 | G10: 30 | J10: TURF AND TIMBER | K10: SALISBURY GARDEN MACHINERY LTD | L10: Lloyd Limited - Throckley Head Office | M10: GWILLIAMS OF EDINGTON LTD | N10: Ernest Doe & Sons Ltd - Ongar | O10: TFM Farm & Country Superstore Ltd - Ludlow
A11: Colin Ferguson | B11: 28400933 | C11: ROBERT DYKES JNR | D11: FK8 3PJ | E11: 1 | F11: 501843192 | G11: 30 | J11: PEARSONS OF DUNS T/A BORDER CHAINSAW | K11: A J TROALIC & SONS LTD | L11: MIKE BARNES CHAINSAWS | M11: C.R. WILLCOCKS & COMPANY LIMITED | N11: Ernest Doe & Sons Ltd - Rochford | O11: TFM Farm & Country Superstore Ltd - Newport
A12: Colin Ferguson | B12: 28403870 | C12: R & L MILLER LTD | D12: KA24 4HB | E12: 1 | F12: 501844058 | G12: 30 | J12: ROBERT DYKES JNR | K12: HAMPSHIRE GARDEN MACHINERY LTD | L12: CHARLES H HILL LIMITED | M12: BARTLETTS DORSET LTD | N12: Ernest Doe & Sons Ltd - Stevenage | O12: TFM Farm & Country Superstore Ltd - Penkridge
A13: Colin Ferguson | B13: 28403921 | C13: BUCHAN SAW & TOOL SERVICES | D13: AB42 4JL | E13: 1 | F13: 501844060 | G13: 30 | J13: R & L MILLER LTD | K13: PENN LAWN MOWERS LTD | L13: AMBLESIDE FOREST & GARDEN | M13: Lister Wilder Ltd - Ashford | N13: Ernest Doe & Sons Ltd - Sudbury | O13: TFM Farm & Country Superstore Ltd - Stableford
A14: Colin Ferguson | B14: 28404270 | C14: TOM HOLLIDAY | D14: KA19 8EX | E14: 1 | F14: 501844064 | G14: 30 | J14: BUCHAN SAW & TOOL SERVICES | K14: LEIGH PARK GARDEN MACHINERY LIMITED | L14: SOUTH LINCS PLANT HIRE & SALES LTD | M14: Lister Wilder Ltd - Guildford | N14: Ernest Doe & Sons Ltd - Ulting Head Office | O14: CHESHIRE TURF MACHINERY LTD
A15: Colin Ferguson | B15: 28404355 | C15: STRATHBOGIE FOREST & GARDEN LTD | D15: AB54 4UQ | E15: 1 | F15: 501844068 | G15: 30 | J15: TOM HOLLIDAY | K15: E O CULVERWELL LTD - HO | L15: J Carr & Son Ltd | M15: Lister Wilder Ltd - Reading | N15: Ernest Doe & Sons Ltd - Wymodham | O15: R MASSEY & SON (WOODVILLE) LTD
A16: Colin Ferguson | B16: 28404801 | C16: BURNSIDE GARDEN MACHINERY | D16: G65 9EE | E16: 1 | F16: 501959245 | G16: 30 | J16: STRATHBOGIE FOREST & GARDEN LTD | K16: J L & D M HARRIS | L16: SIMON WINSTANLEY (MACHINERY) | M16: GRAHAMS GARDEN MACHINERY LTD | N16: Ernest Doe & Sons Ltd - Colchester | O16: L & M YOUNG
A17: Colin Ferguson | B17: 28404948 | C17: J FRIER | D17: PA31 8RR | E17: 1 | F17: 501959252 | G17: 30 | J17: BURNSIDE GARDEN MACHINERY | K17: T/A CURTIS & SHAW | L17: P S MARSDEN (LAWNMOWER SERVICES) LT | M17: ANDREW VANSTONE | N17: Ernest Doe Power - Albourne | O17: T/A A M GARDEN SERVICES
A18: Colin Ferguson | B18: 28405060 | C18: JCC GROUP LTD | D18: FK21 8UW | E18: 1 | F18: 501959256 | G18: 30 | J18: J FRIER | K18: LONGMOOR FARM ENTERPRISES LTD | L18: HARLAND (GARDEN MACHINERY) LIMITED | M18: O H E HORTICULTURAL LTD | N18: Ernest Doe Power - Fakenham | O18: T/A MYRDDIN GARDEN MACHINERY
A19: Colin Ferguson | B19: 28405060 | C19: JCC Group Ltd - Stirling | D19: FK8 3PS | E19: 2 | F19: 501980203 | G19: 1 | J19: JCC GROUP LTD | K19: Tallis Amos Group Ltd - Crudwell | L19: ROBERT H CRAWFORD AND SON | M19: K J STONEMAN & CO LTD | N19: Ernest Doe Power - Framlingham | O19: NEWINGTON GARAGE SERVICES
A20: Colin Ferguson | B20: 28411312 | C20: MacGregor Forest & Groundcare - Aberdeen | D20: AB12 3LE | E20: 7 | F20: 502512701 | G20: 100 | J20: JCC Group Ltd - Stirling | K20: Tallis Amos Group Ltd - Evesham | L20: J TODD & SON (SUMMERBRIDGE) LTD | M20: Ron Smith & Co Ltd - Herefordshire | N20: Ernest Doe Power - Ringmer | O20: IEUAN EVANS & SONS LIMTED
A21: Colin Ferguson | B21: 28411312 | C21: MacGregor Forest & Groundcare - Elgin | D21: IV30 6AF | E21: 2 | F21: 503300322 | G21: 1 | J21: MacGregor Forest & Groundcare - Aberdeen | K21: Tallis Amos Group Ltd - Leominster HO | L21: F G ADAMSON & SON LTD | M21: Ron Smith & Co Ltd (HO) - Worcestershire | N21: BRADSTOCK POWER TOOLS | O21: CAMBRIAN POWER TOOLS(MACHINES ONLY)
A22: Colin Ferguson | B22: 28411312 | C22: MacGregor Forest & Groundcare - Inverness HO | D22: IV1 1SN | E22: 1 | F22: 503305701 | G22: 1 | J22: MacGregor Forest & Groundcare - Elgin | K22: Tallis Amos Group Ltd - Narbeth | L22: DICK LEIGH (CHAINSAW SPECIALIST) | M22: D S BENNETT UK LTD | N22: STUART J DAWS & CO. LTD | O22: Teme Valley Tractors Ltd (HO) - Knighton
A23: Colin Ferguson | B23: 28411312 | C23: MacGregor Forest & Groundcare - Kirkwall | D23: KW15 1FL | E23: 8 | F23: 503306001 | G23: 1 | J23: MacGregor Forest & Groundcare - Inverness HO | K23: PALLISERS OF HEREFORD LTD | L23: C T HAYTON LIMITED | M23: NAILSWORTH GARDEN MACHINERY | N23: W J GREEN LIMITED | O23: BUXTONS LIMITED
A24: Colin Ferguson | B24: 28411312 | C24: MacGregor Forest & Groundcare - Portree | D24: IV51 9HD | E24: 3 | F24: 503306401 | G24: 1 | J24: MacGregor Forest & Groundcare - Kirkwall | K24: KALEHURST GARDEN MACHINERY LTD | L24: ROBSON & COWAN | M24: Riverlea Ltd - Cowbridge | N24: THETFORD GARDEN & LEISURE CENTRE | O24: L & S ENGINEERS
A25: Colin Ferguson | B25: 28411312 | C25: MacGregor Forest & Groundcare - Stornoway | D25: HS1 2RA | E25: 5 | F25: 503308801 | G25: 1 | J25: MacGregor Forest & Groundcare - Portree | K25: HEREFORD MOWER SERVICES LTD | L25: RODGER BENTLEY (POWER EQUIP) LTD | M25: Riverlea Ltd (HO) - Whitland | N25: L C GREEN & SON (BECCLES) LTD | O25: EIFIONYDD ENGINEERING
A26: Colin Ferguson | B26: 28411618 | C26: HENRY SHEACH LAWNMOWER SERVICES LTD | D26: KY1 3EZ | E26: 1 | F26: 503976401 | G26: 1 | J26: MacGregor Forest & Groundcare - Stornoway | K26: D M CHAINSAWS LIMITED | L26: H PIGNEY & SONS | M26: M N R MOWERS LTD | N26: COLLINGS BROTHERS OF ABBOTSLEY LTD | O26: BRIAN JONES
A27: Colin Ferguson | B27: 28412211 | C27: GAMMIES GROUNDCARE LTD | D27: DD8 3BT | E27: 1 | F27: 504981692 | G27: 1 | J27: HENRY SHEACH LAWNMOWER SERVICES LTD | K27: SIMS GARDEN MACHINERY LTD | L27: GREEN STRIPE GARDEN MACHINERY | M27: FRANCIS THOMAS MOBILE SERVICING LTD | N27: STUART BROWN LANDSCAPE & ARBORIST S | O27: FRANK SUTTON - Raglan
A28: Colin Ferguson | B28: 28412688 | C28: LIVINGSTON GARDEN MACHINERY | D28: EH52 6PA | E28: 1 | F28: 505132803 | G28: 1 | J28: GAMMIES GROUNDCARE LTD | K28: GLOBAL PLANT SALES LTD | L28: DAVID DIXON GARDEN MACHINERY | M28: DMP Garden Machinery | N28: G & J Peck Ltd | O28: A & B PLANT TOOL HIRE
A29: Colin Ferguson | B29: 28412772 | C29: BRYAN JARDINE FOREST & GARDEN | D29: DG5 4AX | E29: 1 | F29: 505665256 | G29: 1 | J29: LIVINGSTON GARDEN MACHINERY | K29: OFFENHAM HORTICULTURAL MACH SPEC LI | L29: J C POWERCO LTD | M29: MINCOST LTD | N29: AT Oliver / Oliver Landpower Ltd - Kings Langley | O29: WORLD OF POWER.CO.UK.LTD
A30: Colin Ferguson | B30: 28412825 | C30: GALLOWAY HIRE TOOLS | D30: DG1 3PH | E30: 1 | F30: 505665304 | G30: 1 | J30: BRYAN JARDINE FOREST & GARDEN | K30: GRASSBOX | L30: Sam Turner & Sons Ltd - Northallerton HO | M30: DC GARDEN MACHINERY | N30: AT Oliver / Oliver Landpower Ltd - Tingewick | O30: STAFFORDSHIRE FARM SUPPLIES LTD
A31: Colin Ferguson | B31: 28413403 | C31: WILLIAM YOUNG (KILMARNOCK) LTD | D31: KA1 2QA | E31: 1 | F31: 505665325 | G31: 1 | J31: GALLOWAY HIRE TOOLS | K31: Horace Fuller Ltd (Redhill) | L31: Sam Turner & Sons Ltd - Piercebridge | M31: READ AGRISERVICES | N31: AT Oliver / Oliver Landpower Ltd (Head Office) - Luton | O31: ACE FARM SUPPLIES
A32: Colin Ferguson | B32: 28413496 | C32: WEST COAST TOOL & PLANT HIRE | D32: PA30 8EU | E32: 1 | F32: 505665348 | G32: 1 | J32: WILLIAM YOUNG (KILMARNOCK) LTD | K32: Horace Fuller Ltd HO (Horsham) | L32: Sam Turner & Sons Ltd - Stokesley | M32: J GLIDDON & SONS LTD | N32: BRI-AG AGRI & HORT MACHINERY | O32: HUGHIE WILLETT MACHINERY
A33: Colin Ferguson | B33: 28413605 | C33: J B W SMITH (AGRICULTURAL DIV) LTD | D33: KY15 4AW | E33: 1 | F33: 505665360 | G33: 1 | J33: WEST COAST TOOL & PLANT HIRE | K33: Horace Fuller Ltd t/a Ray Foster Garden & Forest Machinery | L33: M.E. WILLIS LTD | M33: WESTON GARDEN MACHINERY | N33: GARDEN MACHINES (NORTHAMPTON) LTD | O33: T S H GARDEN MACHINERY
A34: Colin Ferguson | B34: 28413633 | C34: CASTLE DOUGLAS SMALL ENGINE CLINIC | D34: DG7 1EL | E34: 1 | F34: 505694704 | G34: 1 | J34: J B W SMITH (AGRICULTURAL DIV) LTD | K34: CARTERS (SWANWICK) LTD | L34: Torne Valley Limited - Bakewell | M34: ABA GROUNDCARE | N34: MOWER PLANT SERVICES | O34: Denbigh Plant Services - HO Denbigh
A35: Colin Ferguson | B35: 28413738 | C35: FORTH GRASS MACHINERY LIMITED | D35: KY11 9JW | E35: 1 | F35: 505694730 | G35: 1 | J35: CASTLE DOUGLAS SMALL ENGINE CLINIC | K35: THE JERSEY FARMERS (TRADING) UNION | L35: Torne Valley Limited - Doncaster HO | M35: ABA GROUNDCARE Tiverton Branch | N35: A PAMPHILON & SONS | O35: Denbigh Plant Services - Mochdre
A36: Colin Ferguson | B36: 28413822 | C36: CS EQUIPMENT LIMITED | D36: KA11 4HP | E36: 1 | F36: 505694746 | G36: 1 | J36: FORTH GRASS MACHINERY LIMITED | K36: Haynes Agricultural Ltd - Ashford | L36: Torne Valley Limited - Epworth | M36: TORRINGTON GARDEN MACHINERY | N36: GARDEN DISCOUNT CENTRE LTD | O36: CHESTER SMALL PLANT
A37: Colin Ferguson | B37: 28414236 | C37: BASICALLY TOOL HIRE LIMITED | D37: EH22 3LH | E37: 1 | F37: 505697810 | G37: 1 | J37: CS EQUIPMENT LIMITED | K37: Haynes Agricultural Ltd - Birchington | L37: THOMAS & HOUGH LTD T/A | M37: J Hayes Group Limited | N37: MARK WEATHERHEAD LTD | O37: D H JONES LTD
A38: Colin Ferguson | B38: 28414414 | C38: R C DALGLIESH LTD | D38: DG11 1BL | E38: 1 | F38: 505698109 | G38: 1 | J38: BASICALLY TOOL HIRE LIMITED | K38: Haynes Agricultural Ltd - Borough Green | L38: GARDNER ENGINEERING SERVICES LTD | M38: PLYMOUTH GARDEN MACHINERY LTD | N38: SHARNFORD HORTICULTURAL LTD | O38: THE LAWNMOWER COMPANY
A39: Colin Ferguson | B39: 28414465 | C39: Daniel Ross (Eng) Ltd T/A: R&R Machinery Lanark | D39: ML11 7DZ | E39: 1 | F39: 505698161 | G39: 1 | J39: R C DALGLIESH LTD | K39: Haynes Agricultural Ltd - Horsham | L39: LYONS OF GAINSBOROUGH LTD | M39: HIRE CENTRES SOUTH WEST LTD | N39: F R JONES & SON | O39: TREBOR JONES & SON
A40: Colin Ferguson | B40: 28414487 | C40: AT Best Handlers Ltd | D40: EH33 1RD | E40: 2 | F40: 505698181 | G40: 1 | J40: Daniel Ross (Eng) Ltd T/A: R&R Machinery Lanark | K40: Haynes Agricultural Ltd - Uckfield - HO | L40: Gibson's Garden Machinery Ltd (GGM Groundscare) - Colne | M40: Andrew Symons Ltd - H/O Holsworthy branch | N40: SEVENOAKS MOWERS LIMITED | O40: MARKET DRAYTON MOWERS LIMITED
A41: Colin Ferguson | B41: 28414511 | C41: Calido Fuels Ltd T/A Calido Logs & Stove | D41: FK7 7NP | E41: 1 | F41: 505699012 | G41: 1 | J41: AT Best Handlers Ltd | K41: David Hall t/a Halls of Bromyard | L41: Gibson's Garden Machinery Ltd (GGM Groundscare) - Haydock | M41: Andrew Symons Ltd - Crediton branch | N41: LAWN-BOY FARM SERVICES | O41: P R THOMAS AGRICULTURE LTD
A42: Colin Ferguson | B42: 28414839 | C42: HAMILTON BROS (UK) LTD - Argyll | D42: PA28 6LU | E42: 3 | F42: 505891640 | G42: 1 | J42: Calido Fuels Ltd T/A Calido Logs & Stove | K42: HONEY BROTHERS LTD | L42: HOPKINSON & SONS LTD | M42: Andrew Symons Ltd - South Molton Branch | N42: LAMBERHURST ENGINEERING LTD | O42: P & H LAWNMOWERS LIMITED
A43: Colin Ferguson | B43: 28414839 | C43: HAMILTON BROS (UK) Ltd - Ayrshire | D43: KA5 5PR | E43: 2 | F43: 522914102 | G43: 1 | J43: HAMILTON BROS (UK) LTD - Argyll | K43: GROUNDSERV | L43: RUFF LEA FARM LTD T/A REDBLADE MOWE | M43: GREENKEEPERS LAWN CARE LTD | N43: RTC PLANT SERVICES LTD | O43: ANGLESEY MOWERS
A44: Colin Ferguson | B44: 28414839 | C44: Hamilton Bros (UK) Ltd - Perth (was Reekie Limited Perth 28414376) | D44: PH1 3EE | E44: 4 | F44: 529280801 | G44: 1 | J44: HAMILTON BROS (UK) Ltd - Ayrshire | K44: AUTOBOTICS | L44: CARRS BILLINGTON AGRICULTURE | M44: LEE HOLMES GARDEN MACHINERY | N44: RES TRACTORS LTD | O44: CAERFAGU PRODUCTS LTD
A45: Colin Ferguson | B45: 28414839 | C45: HAMILTON BROS (UK) Ltd - Renfrewshire HO | D45: PA7 5AP | E45: 1 | F45: 529318801 | G45: 1 | J45: Hamilton Bros (UK) Ltd - Perth (was Reekie Limited Perth 28414376) | K45: AMP GROUNDCARE MACH SERV LTD | L45: JON HODGKINSON | M45: Gartell & Sons T/A Landpower Machinery | N45: WA THORPE & SONS LTD | O45: SPA ENGINEERING & GROUNDCARE MACH L
A46: Colin Ferguson | B46: 28414853 | C46: Tullibardine Smiddy Ltd | D46: PH3 1LA | E46: 1 | F46: 529340632 | G46: 1 | J46: HAMILTON BROS (UK) Ltd - Renfrewshire HO | K46: ROMWY POWER GARDEN MACHINERY LTD | L46: ACE FIXINGS CUMBRIA LTD | M46: Revill Mowers Ltd | N46: Albany Farm & Garden Machinery Ltd | O46: AYRE MOWERS LTD
A47: Francesca Bosley | B47: 28400505 | C47: Winchester Garden Machinery Ltd - Arb | D47: SO21 1HF | E47: 1 | F47: 529340660 | G47: 1 | J47: Tullibardine Smiddy Ltd | K47: POWELLS FOREST & GARDEN EQUIP LTD | L47: A W SMITH (FARM MACHINERY) LTD | M47: Chandlers (Farm Equipment) Ltd - Bristol | N47: GAYWAYS LTD | O47: OWEN ATVS & GARDEN MACHINERY LTD
A48: Francesca Bosley | B48: 28400505 | C48: Winchester Garden Machinery Ltd - Liss | D48: GU33 6LJ | E48: 506 | F48: 529340668 | G48: 1 | K48: FN PILE & SONS | L48: JOHN CORNTHWAITE(FARM MACHINERY)LTD | M48: Chandlers (Farm Equipment) Ltd - Cirencester | N48: PLATTS HORTICULTURE LLP | O48: FOREST PARK & GARDEN
A49: Francesca Bosley | B49: 28400505 | C49: Winchester Garden Machinery Ltd - Winchester HO | D49: SO22 5DL | E49: 504 | F49: 529340760 | G49: 1 | K49: TUDOR (UK) LIMITED | L49: CLARKE & PULMAN LTD - HO | M49: Chandlers (Farm Equipment) Ltd - Cosby | N49: HALLS POWER EQUIPMENT LTD | O49: B&B Buxton Tractors - Buxton HO
A50: Francesca Bosley | B50: 28400505 | C50: Winchester Garden Machinery Ltd - Windlesham | D50: GU20 6LQ | E50: 507 | F50: 529340768 | G50: 1 | K50: LEDBURY GARDEN MACHINERY | L50: AWS LANDSCAPES LIMITED | M50: Chandlers (Farm Equipment) Ltd - Devizes | N50: ENDURA GROUP T/A LANDSCAPE SUPPLY | O50: B&B Tractors - Barnsley
A51: Francesca Bosley | B51: 28400524 | C51: S P G (POWER MACHINE SERVICES) LTD | D51: SO41 8PA | E51: 1 | F51: 529459701 | G51: 1 | K51: BOB RICHARDSON TOOL & FASTENERS LTD | L51: MILL GARAGE & GARDEN MACHINERY | M51: Chandlers (Farm Equipment) Ltd - HO Grantham | N51: Abrey & Son Limited T/A Abrey Agricultural | O51: B&B Tractors - Mansfield
A52: Francesca Bosley | B52: 28400585 | C52: SAWS & MOWERS | D52: WR9 0NX | E52: 1 | F52: 529515842 | G52: 6 | K52: KING & STEVENS LIMITED | L52: FENTONS OF BOURNE LTD | M52: Chandlers (Farm Equipment) Ltd - Horncastle | N52: Godfreys (Sevenoaks) Ltd - Sevenoaks | O52: B&B Tractors - Tutbury
A53: Francesca Bosley | B53: 28400705 | C53: D C BURGOYNE & SONS | D53: B93 0AU | E53: 1 | F53: 529515846 | G53: 6 | K53: MELKSHAM GROUNDCARE MACHINERY LTD | L53: CANAL HEAD GARDEN MACHINERY | M53: Chandlers (Farm Equipment) Ltd - Shefford | N53: Agwood Ltd | O53: Broadfield Mowers Ltd
A54: Francesca Bosley | B54: 28400740 | C54: SALISBURY GARDEN MACHINERY LTD | D54: SP2 7QA | E54: 1 | F54: 529515850 | G54: 6 | K54: TOAD HALL GARDEN & MACHINERY CENTRE | L54: GARLICK GARDEN MACHINERY | M54: Chandlers (Farm Equipment) Ltd - Southam | N54: Agwood Ltd - Linton | O54: AGRI POWER SERVICES
A55: Francesca Bosley | B55: 28400791 | C55: A J TROALIC & SONS LTD | D55: GY2 4RA | E55: 1 | F55: 529515854 | G55: 6 | K55: RT Machinery Limited | L55: SPALDINGS LIMITED | M55: Chandlers (Farm Equipment) Ltd - Spalding | N55: Ben Burgess & Co Ltd - Aylsham | O55: GLAN THOMAS LTD
A56: Francesca Bosley | B56: 28400826 | C56: HAMPSHIRE GARDEN MACHINERY LTD | D56: SO51 9BN | E56: 1 | F56: 529515858 | G56: 6 | K56: HUNTS ENGINEERING LIMITED | L56: Balmers GM Limited - Burnley HO | M56: Chandlers (Farm Equipment) Ltd - Spilsby | N56: Ben Burgess & Co Ltd - Beeston | O56: TOM'S MOWERS & GARDEN SUPPLIES
A57: Francesca Bosley | B57: 28400839 | C57: PENN LAWN MOWERS LTD | D57: BH24 3SG | E57: 1 | F57: 529515862 | G57: 6 | K57: AUTOLAWN | L57: Balmers GM Limited - Wakefield | M57: Chandlers (Farm Equipment) Ltd - Stamford | N57: Ben Burgess & Co Ltd - Coates | O57: SKYLAND EQUIPMENT LTD
A58: Francesca Bosley | B58: 28400849 | C58: LEIGH PARK GARDEN MACHINERY LIMITED | D58: BA14 9NJ | E58: 1 | F58: 529515946 | G58: 6 | K58: ANDOVER GARDEN MACHINERY LTD | L58: Ripon Farm Services Ltd - Brigg | M58: Chandlers (Farm Equipment) Ltd - Wallingford | N58: Ben Burgess & Co Ltd - Ellington | O58: SADLER AGRICULTURAL SUPPLIES LTD
A59: Francesca Bosley | B59: 28400853 | C59: E O CULVERWELL LTD - HO | D59: TN32 5DG | E59: 1 | F59: 529515950 | G59: 6 | K59: HUGH PAGE (SUSSEX) LTD | L59: Ripon Farm Services Ltd - Darrington | M59: COUNTRY LIFE STORES | N59: Ben Burgess & Co Ltd - Holbeach | O59: P R ROBERTS
A60: Francesca Bosley | B60: 28400862 | C60: J L & D M HARRIS | D60: HR9 6NH | E60: 1 | F60: 529515954 | G60: 6 | K60: FAROL LIMITED - Hinkley Branch | L60: Ripon Farm Services Ltd - HO Ripon | N60: Ben Burgess & Co Ltd - Kings Lynn | O60: ARB AND GROUNDS EQUIPMENT LTD
A61: Francesca Bosley | B61: 28403029 | C61: T/A CURTIS & SHAW | D61: BN27 4JE | E61: 1 | F61: 529515958 | G61: 6 | K61: Farol Ltd - Midhurst Branch | L61: Ripon Farm Services Ltd - Keighley | N61: Ben Burgess & Co Ltd - Newmarket | O61: JOHN BOWNES LIMITED
A62: Francesca Bosley | B62: 28403111 | C62: LONGMOOR FARM ENTERPRISES LTD | D62: HP18 0RH | E62: 1 | F62: 529516146 | G62: 10 | K62: Farol Ltd - Milton Commons Branch - HO | L62: Ripon Farm Services Ltd - Leyburn | N62: Ben Burgess & Co Ltd - Oakham | O62: Northern Tool Hire Ltd
A63: Francesca Bosley | B63: 28403668 | C63: Tallis Amos Group Ltd - Crudwell | D63: SN16 9SN | E63: 6 | F63: 529516150 | G63: 10 | K63: Farol Ltd - Shefford Woodlands | L63: Ripon Farm Services Ltd - Louth | N63: Ben Burgess & Co Ltd - Old Leake | O63: OAKLEYS GROUP LIMITED
A64: Francesca Bosley | B64: 28403668 | C64: Tallis Amos Group Ltd - Evesham | D64: WR11 2QT | E64: 2 | F64: 529516154 | G64: 10 | K64: Farol Ltd - Twyford | L64: Ripon Farm Services Ltd - Malton | N64: Ben Burgess & Co Ltd - Swineshead | O64: QUALTEX UK LIMITED
A65: Francesca Bosley | B65: 28403668 | C65: Tallis Amos Group Ltd - Leominster HO | D65: HR6 0QB | E65: 1 | F65: 529516158 | G65: 10 | K65: Mid Hants Mowers | L65: Ripon Farm Services Ltd - Market Weighton | N65: Ben Burgess & Co Ltd HO | O65: CRYTEC LIMITED
A66: Francesca Bosley | B66: 28403668 | C66: Tallis Amos Group Ltd - Narbeth | D66: SA67 7ES | E66: 4 | F66: 529516162 | G66: 10 | K66: Acacia Groundcare Equipment Rental Ltd | L66: Ripon Farm Services Ltd - Ottringham | N66: Russells (Kirbymoorside) Ltd - Malton HO | O66: Hales Sawmills Limited - Market Drayton
A67: Francesca Bosley | B67: 28403673 | C67: PALLISERS OF HEREFORD LTD | D67: HR1 3SX | E67: 1 | F67: 529516246 | G67: 8 | K67: Hunt Forest Group Ltd - Ringwood | L67: Ripon Farm Services Ltd - Retford | N67: Russells (Kirbymoorside) Ltd - Darley Dale | O67: Hales Sawmills Limited - Shrewsbury
A68: Francesca Bosley | B68: 28403723 | C68: KALEHURST GARDEN MACHINERY LTD | D68: RG18 9TG | E68: 1 | F68: 529516250 | G68: 8 | K68: Hunt Forest Group Ltd - Sparkford | L68: Ripon Farm Services Ltd - Stockton | N68: Russells (Kirbymoorside) Ltd - Harby
A69: Francesca Bosley | B69: 28404263 | C69: HEREFORD MOWER SERVICES LTD | D69: HR4 9QJ | E69: 1 | F69: 529516254 | G69: 8 | K69: T.H. WHITE | L69: Ripon Farm Services Ltd - Tadcaster | N69: Russells (Kirbymoorside) Ltd - Boroughbridge
A70: Francesca Bosley | B70: 28404646 | C70: D M CHAINSAWS LIMITED | D70: BN18 0AS | E70: 1 | F70: 529516258 | G70: 8 | L70: HENTON & CHATTELL LTD | N70: Russells (Kirbymoorside) Ltd - Eggborough
A71: Francesca Bosley | B71: 28404770 | C71: SIMS GARDEN MACHINERY LTD | D71: CV37 0AW | E71: 1 | F71: 529516445 | G71: 5 | N71: Russells (Kirbymoorside) Ltd - Leyburn
A72: Francesca Bosley | B72: 28404871 | C72: GLOBAL PLANT SALES LTD | D72: B14 4RS | E72: 1 | F72: 529516446 | G72: 5 | N72: Russells (Kirbymoorside) Ltd - Gilberdyke
A73: Francesca Bosley | B73: 28404934 | C73: OFFENHAM HORTICULTURAL MACH SPEC LI | D73: WR10 2TA | E73: 1 | F73: 529516447 | G73: 5 | N73: Russells (Kirbymoorside) Ltd - Rotherham
A74: Francesca Bosley | B74: 28410621 | C74: GRASSBOX | D74: SL7 3ND | E74: 1 | F74: 529516449 | G74: 5 | N74: Russells (Kirbymoorside) Ltd - Cubley, Sudbury
A75: Francesca Bosley | B75: 28411422 | C75: Horace Fuller Ltd (Redhill) | D75: RH1 5DY | E75: 13376 | F75: 529516450 | G75: 5 | N75: Russells (Kirbymoorside) Ltd - Rothwell
A76: Francesca Bosley | B76: 28411422 | C76: Horace Fuller Ltd HO (Horsham) | D76: RH12 1BY | E76: 2 | F76: 529516451 | G76: 5 | N76: Russells (Kirbymoorside) Ltd - Tuxford
A77: Francesca Bosley | B77: 28411422 | C77: Horace Fuller Ltd t/a Ray Foster Garden & Forest Machinery | D77: RH10 4PY | E77: 2 | F77: 529516453 | G77: 5
A78: Francesca Bosley | B78: 28411450 | C78: CARTERS (SWANWICK) LTD | D78: SO31 1BD | E78: 1 | F78: 529516454 | G78: 5
A79: Francesca Bosley | B79: 28411603 | C79: THE JERSEY FARMERS (TRADING) UNION | D79: JE2 7JQ | E79: 1 | F79: 529516455 | G79: 5
A80: Francesca Bosley | B80: 28411817 | C80: Haynes Agricultural Ltd - Ashford | D80: TN26 1JJ | E80: 2 | F80: 529516457 | G80: 5
A81: Francesca Bosley | B81: 28411817 | C81: Haynes Agricultural Ltd - Birchington | D81: CT7 0NJ | E81: 5 | F81: 529516458 | G81: 5
A82: Francesca Bosley | B82: 28411817 | C82: Haynes Agricultural Ltd - Borough Green | D82: TN15 8LW | E82: 4 | F82: 529516459 | G82: 5
A83: Francesca Bosley | B83: 28411817 | C83: Haynes Agricultural Ltd - Horsham | D83: RH12 3PW | E83: 8 | F83: 529516461 | G83: 5
A84: Francesca Bosley | B84: 28411817 | C84: Haynes Agricultural Ltd - Uckfield - HO | D84: TN22 5RB | E84: 1 | F84: 529516462 | G84: 5
A85: Francesca Bosley | B85: 28412162 | C85: David Hall t/a Halls of Bromyard | D85: HR7 4LL | E85: 1 | F85: 529518146 | G85: 8
A86: Francesca Bosley | B86: 28412659 | C86: HONEY BROTHERS LTD | D86: GU3 1JR | E86: 1 | F86: 529518150 | G86: 8
A87: Francesca Bosley | B87: 28412824 | C87: GROUNDSERV | D87: SM1 2PS | E87: 1 | F87: 529518154 | G87: 8
A88: Francesca Bosley | B88: 28413566 | C88: AUTOBOTICS | D88: WR11 4SN | E88: 1 | F88: 529518158 | G88: 8
A89: Francesca Bosley | B89: 28413709 | C89: AMP GROUNDCARE MACH SERV LTD | D89: BN5 9XR | E89: 1 | F89: 529518162 | G89: 8
A90: Francesca Bosley | B90: 28413719 | C90: ROMWY POWER GARDEN MACHINERY LTD | D90: SP5 2BG | E90: 1 | F90: 529518346 | G90: 6
A91: Francesca Bosley | B91: 28413735 | C91: POWELLS FOREST & GARDEN EQUIP LTD | D91: HR2 9DH | E91: 1 | F91: 529518350 | G91: 6
A92: Francesca Bosley | B92: 28413827 | C92: FN PILE & SONS | D92: OX17 1JL | E92: 1 | F92: 529518354 | G92: 6
A93: Francesca Bosley | B93: 28413862 | C93: TUDOR (UK) LIMITED | D93: CV3 4FR | E93: 1 | F93: 529518358 | G93: 6
A94: Francesca Bosley | B94: 28413936 | C94: LEDBURY GARDEN MACHINERY | D94: HR8 2DJ | E94: 1 | F94: 529518362 | G94: 6
A95: Francesca Bosley | B95: 28413954 | C95: BOB RICHARDSON TOOL & FASTENERS LTD | D95: DY2 0RL | E95: 1 | F95: 529518546 | G95: 5
A96: Francesca Bosley | B96: 28414011 | C96: KING & STEVENS LIMITED | D96: RH13 8LY | E96: 1 | F96: 529518548 | G96: 5
A97: Francesca Bosley | B97: 28414017 | C97: MELKSHAM GROUNDCARE MACHINERY LTD | D97: SN12 6RF | E97: 1 | F97: 529518550 | G97: 5
A98: Francesca Bosley | B98: 28414042 | C98: TOAD HALL GARDEN & MACHINERY CENTRE | D98: RG9 3AG | E98: 1 | F98: 529518552 | G98: 5
A99: Francesca Bosley | B99: 28414050 | C99: RT Machinery Limited | D99: HP18 0DS | E99: 1 | F99: 529518554 | G99: 5
A100: Francesca Bosley | B100: 28414060 | C100: HUNTS ENGINEERING LIMITED | D100: CV36 4HT | E100: 1 | F100: 529518556 | G100: 5
A101: Francesca Bosley | B101: 28414061 | C101: AUTOLAWN | D101: SL6 2LJ | E101: 1 | F101: 529518558 | G101: 5
A102: Francesca Bosley | B102: 28414083 | C102: ANDOVER GARDEN MACHINERY LTD | D102: SP11 7DN | E102: 1 | F102: 529518560 | G102: 5
A103: Francesca Bosley | B103: 28414296 | C103: HUGH PAGE (SUSSEX) LTD | D103: TN21 8DH | E103: 1 | F103: 529518562 | G103: 5
A104: Francesca Bosley | B104: 28414346 | C104: FAROL LIMITED - Hinkley Branch | D104: LE10 0NB | E104: 2 | F104: 529518646 | G104: 5
A105: Francesca Bosley | B105: 28414346 | C105: Farol Ltd - Midhurst Branch | D105: GU29 9XY | E105: 5 | F105: 529518648 | G105: 5
A106: Francesca Bosley | B106: 28414346 | C106: Farol Ltd - Milton Commons Branch - HO | D106: OX9 2NZ | E106: 1 | F106: 529518650 | G106: 5
A107: Francesca Bosley | B107: 28414346 | C107: Farol Ltd - Shefford Woodlands | D107: RG17 7BP | E107: 4 | F107: 529518652 | G107: 5
A108: Francesca Bosley | B108: 28414346 | C108: Farol Ltd - Twyford | D108: RG10 9EQ | E108: 3 | F108: 529518654 | G108: 5
A109: Francesca Bosley | B109: 28414475 | C109: Mid Hants Mowers | D109: GU34 3HD | E109: 1 | F109: 529518656 | G109: 5
A110: Francesca Bosley | B110: 28414486 | C110: Acacia Groundcare Equipment Rental Ltd | D110: RG26 5QW | E110: 1 | F110: 529518658 | G110: 5
A111: Francesca Bosley | B111: 28414548 | C111: Hunt Forest Group Ltd - Ringwood | D111: BH24 3PE | E111: 2 | F111: 529518660 | G111: 5
A112: Francesca Bosley | B112: 28414548 | C112: Hunt Forest Group Ltd - Sparkford | D112: BA22 7LH | E112: 3 | F112: 529518662 | G112: 5
A113: Francesca Bosley | B113: 28414589 | C113: T.H. WHITE | D113: CV34 5JB | E113: 1 | F113: 529518846 | G113: 5
A114: Graeme Simpson | B114: 28400567 | C114: RAMAGE DIY & EQUIPMENT HIRE | D114: L40 0SA | E114: 1 | F114: 529518850 | G114: 5
A115: Graeme Simpson | B115: 28400568 | C115: Lloyd Limited - Alnwick | D115: NE66 2PF | E115: 11781 | F115: 529518854 | G115: 5
A116: Graeme Simpson | B116: 28400568 | C116: Lloyd Limited - Bishop Auckland | D116: DL14 9AX | E116: 11782 | F116: 529518858 | G116: 5
A117: Graeme Simpson | B117: 28400568 | C117: Lloyd Limited - Carlisle | D117: CA3 0EF | E117: 1 | F117: 529518862 | G117: 5
A118: Graeme Simpson | B118: 28400568 | C118: Lloyd Limited - Dumfries | D118: DG1 3SJ | E118: 2 | F118: 529518944 | G118: 1
A119: Graeme Simpson | B119: 28400568 | C119: Lloyd Limited - Kelso | D119: TD5 8BQ | E119: 3495 | F119: 529518946 | G119: 1
A120: Graeme Simpson | B120: 28400568 | C120: Lloyd Limited - Penrith | D120: CA11 9FW | E120: 3393 | F120: 529518948 | G120: 1
A121: Graeme Simpson | B121: 28400568 | C121: Lloyd Limited - Throckley Head Office | D121: NE15 9EP | E121: 5030 | F121: 529518950 | G121: 1
A122: Graeme Simpson | B122: 28400580 | C122: MIKE BARNES CHAINSAWS | D122: DB20 6RY | E122: 1 | F122: 529518952 | G122: 1
A123: Graeme Simpson | B123: 28400618 | C123: CHARLES H HILL LIMITED | D123: LN10 5HH | E123: 1 | F123: 529518954 | G123: 1
A124: Graeme Simpson | B124: 28400651 | C124: AMBLESIDE FOREST & GARDEN | D124: LA22 0EB | E124: 1 | F124: 529518956 | G124: 1
A125: Graeme Simpson | B125: 28400658 | C125: SOUTH LINCS PLANT HIRE & SALES LTD | D125: PE11 3YR | E125: 1 | F125: 529518958 | G125: 1
A126: Graeme Simpson | B126: 28400690 | C126: J Carr & Son Ltd | D126: PE21 9BN | E126: 1 | F126: 529518960 | G126: 1
A127: Graeme Simpson | B127: 28400704 | C127: SIMON WINSTANLEY (MACHINERY) | D127: DL8 5QA | E127: 1 | F127: 529518962 | G127: 1
A128: Graeme Simpson | B128: 28400706 | C128: P S MARSDEN (LAWNMOWER SERVICES) LT | D128: NG4 2JX | E128: 1 | F128: 529518964 | G128: 1
A129: Graeme Simpson | B129: 28400734 | C129: HARLAND (GARDEN MACHINERY) LIMITED | D129: YO26 9TT | E129: 1 | F129: 529520101 | G129: 1
A130: Graeme Simpson | B130: 28400814 | C130: ROBERT H CRAWFORD AND SON | D130: PE22 7DU | E130: 1 | F130: 529880001 | G130: 1
A131: Graeme Simpson | B131: 28400887 | C131: J TODD & SON (SUMMERBRIDGE) LTD | D131: HG3 4JN | E131: 1 | F131: 529880002 | G131: 1
A132: Graeme Simpson | B132: 28400890 | C132: F G ADAMSON & SON LTD | D132: HU14 3QZ | E132: 1 | F132: 529880003 | G132: 1
A133: Graeme Simpson | B133: 28400909 | C133: DICK LEIGH (CHAINSAW SPECIALIST) | D133: BB7 9AQ | E133: 1 | F133: 529880107 | G133: 1
A134: Graeme Simpson | B134: 28400925 | C134: C T HAYTON LIMITED | D134: LA9 6EX | E134: 1 | F134: 529880108 | G134: 1
A135: Graeme Simpson | B135: 28400931 | C135: ROBSON & COWAN | D135: NE61 4DT | E135: 1 | F135: 529880109 | G135: 1
A136: Graeme Simpson | B136: 28402987 | C136: RODGER BENTLEY (POWER EQUIP) LTD | D136: YO25 6PS | E136: 1 | F136: 529880110 | G136: 1
A137: Graeme Simpson | B137: 28403161 | C137: H PIGNEY & SONS | D137: CA16 6QR | E137: 1 | F137: 529880207 | G137: 1
A138: Graeme Simpson | B138: 28403660 | C138: GREEN STRIPE GARDEN MACHINERY | D138: LN8 3LY | E138: 1 | F138: 529880208 | G138: 1
A139: Graeme Simpson | B139: 28404407 | C139: DAVID DIXON GARDEN MACHINERY | D139: NE46 4TU | E139: 1 | F139: 529880209 | G139: 1
A140: Graeme Simpson | B140: 28404703 | C140: J C POWERCO LTD | D140: WF7 7HY | E140: 1 | F140: 529880210 | G140: 1
A141: Graeme Simpson | B141: 28404962 | C141: Sam Turner & Sons Ltd - Northallerton HO | D141: DL6 2XB | E141: 1 | F141: 529880307 | G141: 1
A142: Graeme Simpson | B142: 28404962 | C142: Sam Turner & Sons Ltd - Piercebridge | D142: DL2 3TS | E142: 2 | F142: 529880308 | G142: 1
A143: Graeme Simpson | B143: 28404962 | C143: Sam Turner & Sons Ltd - Stokesley | D143: TS9 5PT | E143: 4963 | F143: 529880309 | G143: 1
A144: Graeme Simpson | B144: 28411390 | C144: M.E. WILLIS LTD | D144: YO61 3HT | E144: 1 | F144: 529880310 | G144: 1
A145: Graeme Simpson | B145: 28411457 | C145: Torne Valley Limited - Bakewell | D145: DE45 1AW | E145: 12425 | F145: 529880312 | G145: 1
A146: Graeme Simpson | B146: 28411457 | C146: Torne Valley Limited - Doncaster HO | D146: DN11 9EX | E146: 1 | F146: 529880408 | G146: 1
A147: Graeme Simpson | B147: 28411457 | C147: Torne Valley Limited - Epworth | D147: DN9 1JU | E147: 12048 | F147: 529880409 | G147: 1
A148: Graeme Simpson | B148: 28411621 | C148: THOMAS & HOUGH LTD T/A | D148: L40 8LB | E148: 1 | F148: 529880410 | G148: 1
A149: Graeme Simpson | B149: 28411936 | C149: GARDNER ENGINEERING SERVICES LTD | D149: YO11 3UT | E149: 1 | F149: 529880412 | G149: 1
A150: Graeme Simpson | B150: 28412127 | C150: LYONS OF GAINSBOROUGH LTD | D150: DN21 2AJ | E150: 1 | F150: 529880501 | G150: 1
A151: Graeme Simpson | B151: 28412527 | C151: Gibson's Garden Machinery Ltd (GGM Groundscare) - Colne | D151: BB8 8LJ | E151: 1 | F151: 529920960 | G151: 1
A152: Graeme Simpson | B152: 28412527 | C152: Gibson's Garden Machinery Ltd (GGM Groundscare) - Haydock | D152: WA11 9XQ | E152: 2 | F152: 529920968 | G152: 1
A153: Graeme Simpson | B153: 28412550 | C153: HOPKINSON & SONS LTD | D153: YO18 7JW | E153: 1 | F153: 529921060 | G153: 1
A154: Graeme Simpson | B154: 28412930 | C154: RUFF LEA FARM LTD T/A REDBLADE MOWE | D154: L40 1UJ | E154: 1 | F154: 529921068 | G154: 1
A155: Graeme Simpson | B155: 28412994 | C155: CARRS BILLINGTON AGRICULTURE | D155: DL16 7NL | E155: 1 | F155: 529937101 | G155: 1
A156: Graeme Simpson | B156: 28413629 | C156: JON HODGKINSON | D156: NG19 OEQ | E156: 1 | F156: 531009248 | G156: 12
A157: Graeme Simpson | B157: 28413631 | C157: ACE FIXINGS CUMBRIA LTD | D157: CA11 9BF | E157: 1 | F157: 531080401 | G157: 1
A158: Graeme Simpson | B158: 28413636 | C158: A W SMITH (FARM MACHINERY) LTD | D158: LN11 0HH | E158: 1 | F158: 531080402 | G158: 1
A159: Graeme Simpson | B159: 28413691 | C159: JOHN CORNTHWAITE(FARM MACHINERY)LTD | D159: PR3 0LT | E159: 1 | F159: 531080403 | G159: 1
A160: Graeme Simpson | B160: 28413692 | C160: CLARKE & PULMAN LTD - HO | D160: L40 8JS | E160: 1 | F160: 531116466 | G160: 1
A161: Graeme Simpson | B161: 28413818 | C161: AWS LANDSCAPES LIMITED | D161: DN1 3TA | E161: 1 | F161: 531116476 | G161: 1
A162: Graeme Simpson | B162: 28413860 | C162: MILL GARAGE & GARDEN MACHINERY | D162: CA20 1DN | E162: 1 | F162: 531300872 | G162: 4
A163: Graeme Simpson | B163: 28413916 | C163: FENTONS OF BOURNE LTD | D163: PE10 0EN | E163: 1 | F163: 531311701 | G163: 1
A164: Graeme Simpson | B164: 28413999 | C164: CANAL HEAD GARDEN MACHINERY | D164: LA12 7JZ | E164: 1 | F164: 534098601 | G164: 1
A165: Graeme Simpson | B165: 28414006 | C165: GARLICK GARDEN MACHINERY | D165: PR4 5ZE | E165: 1 | F165: 534098701 | G165: 1
A166: Graeme Simpson | B166: 28414028 | C166: SPALDINGS LIMITED | D166: LN6 3XJ | E166: 1 | F166: 534098702 | G166: 1
A167: Graeme Simpson | B167: 28414358 | C167: Balmers GM Limited - Burnley HO | D167: BB11 5PF | E167: 1 | F167: 534098711 | G167: 1
A168: Graeme Simpson | B168: 28414358 | C168: Balmers GM Limited - Wakefield | D168: WF2 7AL | E168: 2 | F168: 534098712 | G168: 1
A169: Graeme Simpson | B169: 28414541 | C169: Ripon Farm Services Ltd - Brigg | D169: DN20 9EY | E169: 2 | F169: 534098801 | G169: 1
A170: Graeme Simpson | B170: 28414541 | C170: Ripon Farm Services Ltd - Darrington | D170: WF8 3BW | E170: 3 | F170: 534098802 | G170: 1
A171: Graeme Simpson | B171: 28414541 | C171: Ripon Farm Services Ltd - HO Ripon | D171: HG4 1TT | E171: 1 | F171: 534098811 | G171: 1
A172: Graeme Simpson | B172: 28414541 | C172: Ripon Farm Services Ltd - Keighley | D172: BD20 7BX | E172: 4 | F172: 534098812 | G172: 1
A173: Graeme Simpson | B173: 28414541 | C173: Ripon Farm Services Ltd - Leyburn | D173: DL8 5DP | E173: 5 | F173: 534098901 | G173: 1
A174: Graeme Simpson | B174: 28414541 | C174: Ripon Farm Services Ltd - Louth | D174: LN11 0WA | E174: 6 | F174: 534099201 | G174: 1
A175: Graeme Simpson | B175: 28414541 | C175: Ripon Farm Services Ltd - Malton | D175: YO17 6AP | E175: 14 | F175: 534099701 | G175: 1
A176: Graeme Simpson | B176: 28414541 | C176: Ripon Farm Services Ltd - Market Weighton | D176: YO43 3EW | E176: 8 | F176: 534099801 | G176: 1
A177: Graeme Simpson | B177: 28414541 | C177: Ripon Farm Services Ltd - Ottringham | D177: HU12 0BJ | E177: 9 | F177: 534099802 | G177: 1
A178: Graeme Simpson | B178: 28414541 | C178: Ripon Farm Services Ltd - Retford | D178: DN22 9EA | E178: 10 | F178: 534099901 | G178: 1
A179: Graeme Simpson | B179: 28414541 | C179: Ripon Farm Services Ltd - Stockton | D179: TS21 1EB | E179: 11 | F179: 534099902 | G179: 1
A180: Graeme Simpson | B180: 28414541 | C180: Ripon Farm Services Ltd - Tadcaster | D180: LS24 8EB | E180: 12 | F180: 534100801 | G180: 1
A181: Graeme Simpson | B181: 28511600 | C181: HENTON & CHATTELL LTD | D181: NG2 3HW | F181: 534101801 | G181: 1
A182: James Etoe | B182: 28400500 | C182: RADMORE & TUCKER LIMITED | D182: EX2 9RY | E182: 1 | F182: 534971901 | G182: 1
A183: James Etoe | B183: 28400509 | C183: CREWKERNE HORTICULTURAL | D183: TA18 7AW | E183: 1 | F183: 535129002 | G183: 1
A184: James Etoe | B184: 28400535 | C184: DEVON GARDEN MACHINERY | D184: TQ2 7HX | E184: 1 | F184: 535560001 | G184: 1
A185: James Etoe | B185: 28400630 | C185: WILLIS & GRABHAM | D185: TA21 0RL | E185: 1 | F185: 536176301 | G185: 1
A186: James Etoe | B186: 28400663 | C186: GEORGE CARR & SONS (SAWS) LTD | D186: BS3 1EW | E186: 1 | F186: 536326201 | G186: 1
A187: James Etoe | B187: 28400758 | C187: CHELTENHAM GARDEN MACHINERY | D187: GL50 3HU | E187: 1 | F187: 536655701 | G187: 1
A188: James Etoe | B188: 28400822 | C188: A G EDWARDS & SONS | D188: BH21 5HY | E188: 1 | F188: 536661801 | G188: 1
A189: James Etoe | B189: 28400842 | C189: GWILLIAMS OF EDINGTON LTD | D189: TA7 9JN | E189: 1 | F189: 536664101 | G189: 1
A190: James Etoe | B190: 28403233 | C190: C.R. WILLCOCKS & COMPANY LIMITED | D190: TQ12 6RW | E190: 1 | F190: 536825401 | G190: 1
A191: James Etoe | B191: 28403639 | C191: BARTLETTS DORSET LTD | D191: DT6 3EX | E191: 1 | F191: 536849201 | G191: 1
A192: James Etoe | B192: 28404219 | C192: Lister Wilder Ltd - Ashford | D192: TN24 8DH | E192: 8 | F192: 536911832 | G192: 1
A193: James Etoe | B193: 28404219 | C193: Lister Wilder Ltd - Guildford | D193: GU23 6PF | E193: 2 | F193: 536912801 | G193: 1
A194: James Etoe | B194: 28404219 | C194: Lister Wilder Ltd - Reading | D194: RG7 1HR | E194: 1 | F194: 536913101 | G194: 1
A195: James Etoe | B195: 28404517 | C195: GRAHAMS GARDEN MACHINERY LTD | D195: TR2 4HD | E195: 1 | F195: 536913201 | G195: 1
A196: James Etoe | B196: 28404761 | C196: ANDREW VANSTONE | D196: PL16 0JP | E196: 1 | F196: 536913501 | G196: 1
A197: James Etoe | B197: 28404802 | C197: O H E HORTICULTURAL LTD | D197: DT28BY | E197: 1 | F197: 536913601 | G197: 1
A198: James Etoe | B198: 28405095 | C198: K J STONEMAN & CO LTD | D198: EX17 5NW | E198: 1 | F198: 536913901 | G198: 1
A199: James Etoe | B199: 28411098 | C199: Ron Smith & Co Ltd - Herefordshire | D199: HR1 2UA | E199: 3 | F199: 536930901 | G199: 1
A200: James Etoe | B200: 28411098 | C200: Ron Smith & Co Ltd (HO) - Worcestershire | D200: WR5 1HF | E200: 1 | F200: 536944801 | G200: 1
... 655 more rows

Sheet Summary
E2: Dealer Name | F2: Winchester Garden Machinery Ltd - Arb
E3: Post Code | F3: =_xlfn.XLOOKUP($F$2,Sheet47!$C:$C,Sheet47!D:D) -> SO21 1HF | H3: =_xlfn.XLOOKUP($F$2,Sheet47!$C:$C,Sheet47!E:E) -> 1
E4: Account Number | F4: =_xlfn.XLOOKUP(F2,Sheet47!C2:C671,Sheet47!B2:B671) -> 28400505
E5: Order Number
E6: Project Code | F6: PSO2024
E7: Order Date
E8: ABM | F8: Francesca_Bosley
E9: PSO minimum 40% of turnover | G9: 0.02 | H9: AM Specialist? | I9: 0.02
F11: Order Summary | L11: Discounts
C12: Product Group | F12: 2024 Qty Ordered (Machine units only) | H12: Total Value Ordered (Machine units & attachments) | L12: Dealer Discount Achieved On Invoice 2024 | O12: Level Achieved
B13: Machinery | C13: Domestic Automower® (100 to 400-series) | F13: =SUM('Automower®'!AA13:AA26) -> 39 | H13: =SUM('Automower®'!AI13:AI26) -> 70481.8329 | L13: =(_xlfn.XLOOKUP($O$13,$J$49:$N$49,$J$52:$N$52))+G9+I9 -> 0.21 | O13: GOLD
C14: Pro Automower® (500-series) | F14: =SUM('Automower®'!AA28:AA39) -> 2 | H14: =SUM('Automower®'!AI28:AI39) -> 7688.0114 | L14: =(_xlfn.XLOOKUP($O$13,$J$49:$N$49,$J$70:$N$70))+G9+I9 -> 0.21
C15: Battery - Hand Held | F15: =SUM('Battery - Hand Held'!AA13:AA83) -> 37 | H15: =SUM('Battery - Hand Held'!AI13:AI83) -> 12094.306 | L15: =(_xlfn.XLOOKUP($O$13,$J$49:$N$49,$J$55:$N$55))+G9 -> 0.3
C16: Battery - Lawn | F16: =SUM('Battery - Lawn'!AA13:AA45) -> 0 | H16: =SUM('Battery - Lawn'!AI13:AI45) -> 0 | L16: =(_xlfn.XLOOKUP($O$13,$J$49:$N$49,$J$56:$N$56))+G9 -> 0.3
C17: Batteries & Chargers | F17: =SUM('Batteries & Chargers'!T13:T42) -> 97 | H17: =SUM('Batteries & Chargers'!AB13:AB42) -> 12054.98 | L17: =(_xlfn.XLOOKUP($O$13,$J$49:$N$49,$J$57:$N$57))+G9 -> 0.3
C18: Tractors | F18: =SUM('Tractor Rider & Zero Turn'!AA13:AA36) -> 0 | H18: =SUM('Tractor Rider & Zero Turn'!AI13:AI36) -> 0 | L18: =(_xlfn.XLOOKUP($O$13,$J$49:$N$49,$J$59:$N$59))+G9 -> 0.3
C19: Riders | F19: =SUM('Tractor Rider & Zero Turn'!AA38:AA89) -> 27 | H19: =SUM('Tractor Rider & Zero Turn'!AI38:AI89) -> 70686.049 | L19: =(_xlfn.XLOOKUP($O$13,$J$49:$N$49,$J$58:$N$58))+G9 -> 0.3
C20: Pro Riders & Zero Turns (500-series) | F20: =SUM('Tractor Rider & Zero Turn'!AA91:AA120) -> 0 | H20: =SUM('Tractor Rider & Zero Turn'!AI91:AI120) -> 0 | L20: =(_xlfn.XLOOKUP($O$13,$J$49:$N$49,$J$72:$N$72))+G9 -> 0.32
C21: Tillers | F21: =SUM(Tillers!AA13:AA16) -> 1 | H21: =SUM(Tillers!AI13:AI16) -> 124.0395 | L21: =(_xlfn.XLOOKUP($O$13,$J$49:$N$49,$J$61:$N$61))+G9 -> 0.35
C22: Chainsaws & Polesaws | F22: =SUM('Chainsaws & Polesaws'!AA13:AA59) -> 369 | H22: =SUM('Chainsaws & Polesaws'!AI13:AI59) -> 126280.2791 | L22: =(_xlfn.XLOOKUP($O$13,$J$49:$N$49,$J$62:$N$62))+G9 -> 0.35
C23: Trimmers & Brush Cutters | F23: =SUM('Trimmers & Brush Cutters'!AA13:AA28) -> 32 | H23: =SUM('Trimmers & Brush Cutters'!AI13:AI28) -> 11284.56992 | L23: =(_xlfn.XLOOKUP($O$13,$J$49:$N$49,$J$63:$N$63))+G9 -> 0.35
C24: Combi Tools | F24: =SUM('Combi Tools'!AA13:AA31) -> 0 | H24: =SUM('Combi Tools'!AI13:AI31) -> 0 | L24: =(_xlfn.XLOOKUP($O$13,$J$49:$N$49,$J$64:$N$64))+G9 -> 0.35
C25: Hedge Trimmers | F25: =SUM('Hedge Trimmers'!AA13:AA22) -> 24 | H25: =SUM('Hedge Trimmers'!AI13:AI22) -> 7343.68752 | L25: =(_xlfn.XLOOKUP($O$13,$J$49:$N$49,$J$65:$N$65))+G9 -> 0.35
C26: Blowers | F26: =SUM(Blowers!AA13:AA19) -> 22 | H26: =SUM(Blowers!AI13:AI19) -> 6540.60576 | L26: =(_xlfn.XLOOKUP($O$13,$J$49:$N$49,$J$66:$N$66))+G9 -> 0.35
C27: Pressure Washers | F27: =SUM('Pressure Washers'!AA13:AA33) -> 10 | H27: =SUM('Pressure Washers'!AI13:AI33) -> 659.7123 | L27: =(_xlfn.XLOOKUP($O$13,$J$49:$N$49,$J$67:$N$67))+G9 -> 0.35
C28: Walk Behind Mowers | F28: =SUM('Walk Behinds'!AA13:AA38) -> 21 | H28: =SUM('Walk Behinds'!AI13:AI38) -> 8931.31096 | L28: =(_xlfn.XLOOKUP($O$13,$J$49:$N$49,$J$60:$N$60))+G9 -> 0.35
C29: Husqvarna Aspire® | F29: =SUM(Aspire!AA13:AA30) -> 80 | H29: =SUM(Aspire!AI13:AI30) -> 12059.3864 | L29: Mixed
B31: Accessories | C31: Chainsaw & Brushcutter cutting accessories | F31: =SUM(Bars!T13:T90,Chains!T13:T87,'Trimmer Heads'!T13:T85) -> 158 | H31: =SUM(Bars!AB13:AB90,Chains!AB13:AB87,'Trimmer Heads'!AB13:AB85) -> 2677.5956 | L31: =(_xlfn.XLOOKUP($O$31,$J$49:$N$49,$J$76:$N$76))+G9 -> 0.54 | O31: GOLD
C32: All other accessories | F32: =SUM('Arborist Accessories'!T13:T100,'Filing Equipment'!T13:T100,'Xplorer Leisurewear'!T13:T100,'Forestry Tools'!T13:T96,'Oil & Lubricants'!T13:T100,'Tool Belts'!T13:T100,Footwear!T13:T100,'Head Protection'!T13:T100,Trousers!T13:T150,Jackets!T13:T99,Gloves!T13:T100,'T-Shirts'!T13:T100) -> 904 | H32: =SUM('Arborist Accessories'!AB13:AB100,'Filing Equipment'!AB13:AB100,'Xplorer Leisurewear'!AB13:AB100,'Forestry Tools'!AB13:AB96,'Oil & Lubricants'!AB13:AB100,'Tool Belts'!AB13:AB100,Footwear!AB13:AB100,'Head Protection'!AB13:AB100,Trousers!AB13:AB150,Jackets!AB13:AB99,Gloves!AB13:AB100,'T-Shirts'!AB13:AB100) -> 36083.125 | L32: =(_xlfn.XLOOKUP($O$31,$J$49:$N$49,$J$77:$N$77))+G9 -> 0.5
C33: Power Fuel | F33: =SUM(Fuel!T13:T100) -> 72 | H33: =SUM(Fuel!AB13:AB100) -> 869.0976 | L33: =(_xlfn.XLOOKUP($O$31,$J$49:$N$49,$J$78:$N$78))+G9 -> 0.37
C34: Automower Accessories (wire, connectors, etc.) | F34: =SUM('Automower Accessories'!T13:T100) -> 71 | H34: =SUM('Automower Accessories'!AB13:AB100) -> 1195.2194 | L34: =(_xlfn.XLOOKUP($O$31,$J$49:$N$49,$J$80:$N$80))+G9+I9 -> 0.57
C35: Automower Consumables & Spare Parts (blades) | F35: =SUM('Automower Spares'!T13:T100) -> 0 | H35: =SUM('Automower Spares'!AB13:AB100) -> 0 | L35: =(_xlfn.XLOOKUP($O$31,$J$49:$N$49,$J$81:$N$81))+G9+I9 -> 0.49
H36: TOTAL: | I36: =SUM(H13:H35) -> 387053.8083
F38: Total
F39: January | G39: February | H39: March | I39: April | J39: May | K39: June | N39: Total
E40: Machinery | F40: =SUM('Automower®'!AC13:AC100,Aspire!AC13:AC100,'Battery - Hand Held'!AC13:AC100,'Battery - Lawn'!AC13:AC100,'Tractor Rider & Zero Turn'!AC13:AC150,Tillers!AC13:AC100,'Chainsaws & Polesaws'!AC13:AC99,'Trimmers & Brush Cutters'!AC13:AC100,'Combi Tools'!AC13:AC100,'Hedge Trimmers'!AC13:AC100,Blowers!AC13:AC100,'Pressure Washers'!AC13:AC100,'Walk Behinds'!AC13:AC100) -> 60648.7912 | G40: =SUM('Automower®'!AD13:AD39,Aspire!AD13:AD100,'Battery - Hand Held'!AD13:AD83,'Battery - Lawn'!AD13:AD45,'Tractor Rider & Zero Turn'!AD13:AD120,Tillers!AD13:AD16,'Chainsaws & Polesaws'!AD13:AD59,'Trimmers & Brush Cutters'!AD13:AD28,'Combi Tools'!AD13:AD31,'Hedge Trimmers'!AD13:AD22,Blowers!AD13:AD19,'Pressure Washers'!AD13:AD33,'Walk Behinds'!AD13:AD38) -> 59665.11842 | H40: =SUM('Automower®'!AE13:AE39,Aspire!AE13:AE100,'Battery - Hand Held'!AE13:AE83,'Battery - Lawn'!AE13:AE45,'Tractor Rider & Zero Turn'!AE13:AE120,Tillers!AE13:AE16,'Chainsaws & Polesaws'!AE13:AE59,'Trimmers & Brush Cutters'!AE13:AE28,'Combi Tools'!AE13:AE31,'Hedge Trimmers'!AE13:AE22,Blowers!AE13:AE19,'Pressure Washers'!AE13:AE33,'Walk Behinds'!AE13:AE38) -> 71862.0879 | I40: =SUM('Automower®'!AF13:AF39,Aspire!AF13:AF100,'Battery - Hand Held'!AF13:AF83,'Battery - Lawn'!AF13:AF45,'Tractor Rider & Zero Turn'!AF13:AF120,Tillers!AF13:AF16,'Chainsaws & Polesaws'!AF13:AF59,'Trimmers & Brush Cutters'!AF13:AF28,'Combi Tools'!AF13:AF31,'Hedge Trimmers'!AF13:AF22,Blowers!AF13:AF19,'Pressure Washers'!AF13:AF33,'Walk Behinds'!AF13:AF38) -> 60862.67348 | J40: =SUM('Automower®'!AG13:AG39,Aspire!AG13:AG100,'Battery - Hand Held'!AG13:AG83,'Battery - Lawn'!AG13:AG45,'Tractor Rider & Zero Turn'!AG13:AG120,Tillers!AG13:AG16,'Chainsaws & Polesaws'!AG13:AG59,'Trimmers & Brush Cutters'!AG13:AG28,'Combi Tools'!AG13:AG31,'Hedge Trimmers'!AG13:AG22,Blowers!AG13:AG19,'Pressure Washers'!AG13:AG33,'Walk Behinds'!AG13:AG38) -> 44576.06846 | K40: =SUM('Automower®'!AH13:AH39,Aspire!AH13:AH100,'Battery - Hand Held'!AH13:AH83,'Battery - Lawn'!AH13:AH45,'Tractor Rider & Zero Turn'!AH13:AH120,Tillers!AH13:AH16,'Chainsaws & Polesaws'!AH13:AH59,'Trimmers & Brush Cutters'!AH13:AH28,'Combi Tools'!AH13:AH31,'Hedge Trimmers'!AH13:AH22,Blowers!AH13:AH19,'Pressure Washers'!AH13:AH33,'Walk Behinds'!AH13:AH38) -> 36559.05126 | N40: =SUM(F40:M40) -> 334173.7907
E41: Machinery Pallet Quantities | F41: =SUM('Automower®'!N13:N39,Aspire!N13:N30,'Battery - Hand Held'!N13:N83,'Battery - Lawn'!N13:N45,'Tractor Rider & Zero Turn'!N13:N120,Tillers!N13:N16,'Chainsaws & Polesaws'!N13:N59,'Trimmers & Brush Cutters'!N13:N27,'Combi Tools'!N13:N31,'Hedge Trimmers'!N13:N22,Blowers!N13:N19,'Pressure Washers'!N13:N33,'Walk Behinds'!N13:N38) -> 9.750833333 | G41: =SUM('Automower®'!O13:O39,Aspire!O13:O30,'Battery - Hand Held'!O13:O83,'Battery - Lawn'!O13:O45,'Tractor Rider & Zero Turn'!O13:O120,Tillers!O13:O16,'Chainsaws & Polesaws'!O13:O59,'Trimmers & Brush Cutters'!O13:O27,'Combi Tools'!O13:O31,'Hedge Trimmers'!O13:O22,Blowers!O13:O19,'Pressure Washers'!O13:O33,'Walk Behinds'!O13:O38) -> 9.355833333 | H41: =SUM('Automower®'!P13:P39,Aspire!P13:P30,'Battery - Hand Held'!P13:P83,'Battery - Lawn'!P13:P45,'Tractor Rider & Zero Turn'!P13:P120,Tillers!P13:P16,'Chainsaws & Polesaws'!P13:P59,'Trimmers & Brush Cutters'!P13:P27,'Combi Tools'!P13:P31,'Hedge Trimmers'!P13:P22,Blowers!P13:P19,'Pressure Washers'!P13:P33,'Walk Behinds'!P13:P38) -> 10.54333333 | I41: =SUM('Automower®'!Q13:Q39,Aspire!Q13:Q30,'Battery - Hand Held'!Q13:Q83,'Battery - Lawn'!Q13:Q45,'Tractor Rider & Zero Turn'!Q13:Q120,Tillers!Q13:Q16,'Chainsaws & Polesaws'!Q13:Q59,'Trimmers & Brush Cutters'!Q13:Q27,'Combi Tools'!Q13:Q31,'Hedge Trimmers'!Q13:Q22,Blowers!Q13:Q19,'Pressure Washers'!Q13:Q33,'Walk Behinds'!Q13:Q38) -> 7.394722222 | J41: =SUM('Automower®'!R13:R39,Aspire!R13:R30,'Battery - Hand Held'!R13:R83,'Battery - Lawn'!R13:R45,'Tractor Rider & Zero Turn'!R13:R120,Tillers!R13:R16,'Chainsaws & Polesaws'!R13:R59,'Trimmers & Brush Cutters'!R13:R27,'Combi Tools'!R13:R31,'Hedge Trimmers'!R13:R22,Blowers!R13:R19,'Pressure Washers'!R13:R33,'Walk Behinds'!R13:R38) -> 4.969722222 | K41: =SUM('Automower®'!S13:S39,Aspire!S13:S30,'Battery - Hand Held'!S13:S83,'Battery - Lawn'!S13:S45,'Tractor Rider & Zero Turn'!S13:S120,Tillers!S13:S16,'Chainsaws & Polesaws'!S13:S59,'Trimmers & Brush Cutters'!S13:S27,'Combi Tools'!S13:S31,'Hedge Trimmers'!S13:S22,Blowers!S13:S19,'Pressure Washers'!S13:S33,'Walk Behinds'!S13:S38) -> 4.611944444 | N41: =SUM(F41:M41) -> 46.62638889
E42: Accessories | F42: =SUM('Arborist Accessories'!V13:V100,'Automower Accessories'!V13:V100,'Automower Spares'!V13:V100,Bars!V13:V150,Chains!V13:V150,'Filing Equipment'!V13:V100,'Xplorer Leisurewear'!V13:V100,'Forestry Tools'!V13:V96,Fuel!V13:V100,'Trimmer Heads'!V13:V100,'Batteries & Chargers'!V13:V100,'Oil & Lubricants'!V13:V100,'Tool Belts'!V13:V100,Footwear!V13:V100,'Head Protection'!V13:V100,Trousers!V13:V150,Jackets!V13:V99,Gloves!V13:V100,'T-Shirts'!V13:V100) -> 14261.5498 | G42: =SUM('Arborist Accessories'!W13:W45,'Automower Accessories'!W13:W50,'Automower Spares'!W13:W23,Bars!W13:W90,Chains!W13:W87,'Filing Equipment'!W13:W35,'Xplorer Leisurewear'!W13:W18,'Forestry Tools'!W13:W54,Fuel!W13:W18,'Trimmer Heads'!W13:W85,'Batteries & Chargers'!W13:W42,'Oil & Lubricants'!W13:W56,'Tool Belts'!W13:W28,Footwear!W13:W81,'Head Protection'!W13:W41,Trousers!W13:W107,Jackets!W13:W73,Gloves!W13:W58,'T-Shirts'!W13:W40) -> 6661.3904 | H42: =SUM('Arborist Accessories'!X13:X45,'Automower Accessories'!X13:X50,'Automower Spares'!X13:X23,Bars!X13:X90,Chains!X13:X87,'Filing Equipment'!X13:X35,'Xplorer Leisurewear'!X13:X18,'Forestry Tools'!X13:X54,Fuel!X13:X18,'Trimmer Heads'!X13:X85,'Batteries & Chargers'!X13:X42,'Oil & Lubricants'!X13:X56,'Tool Belts'!X13:X28,Footwear!X13:X81,'Head Protection'!X13:X41,Trousers!X13:X107,Jackets!X13:X73,Gloves!X13:X58,'T-Shirts'!X13:X40) -> 10940.877 | I42: =SUM('Arborist Accessories'!Y13:Y45,'Automower Accessories'!Y13:Y50,'Automower Spares'!Y13:Y23,Bars!Y13:Y90,Chains!Y13:Y87,'Filing Equipment'!Y13:Y35,'Xplorer Leisurewear'!Y13:Y18,'Forestry Tools'!Y13:Y54,Fuel!Y13:Y18,'Trimmer Heads'!Y13:Y85,'Batteries & Chargers'!Y13:Y42,'Oil & Lubricants'!Y13:Y56,'Tool Belts'!Y13:Y28,Footwear!Y13:Y81,'Head Protection'!Y13:Y41,Trousers!Y13:Y107,Jackets!Y13:Y73,Gloves!Y13:Y58,'T-Shirts'!Y13:Y40) -> 8506.6588 | J42: =SUM('Arborist Accessories'!Z13:Z45,'Automower Accessories'!Z13:Z50,'Automower Spares'!Z13:Z23,Bars!Z13:Z90,Chains!Z13:Z87,'Filing Equipment'!Z13:Z35,'Xplorer Leisurewear'!Z13:Z18,'Forestry Tools'!Z13:Z54,Fuel!Z13:Z18,'Trimmer Heads'!Z13:Z85,'Batteries & Chargers'!Z13:Z42,'Oil & Lubricants'!Z13:Z56,'Tool Belts'!Z13:Z28,Footwear!Z13:Z81,'Head Protection'!Z13:Z41,Trousers!Z13:Z107,Jackets!Z13:Z73,Gloves!Z13:Z58,'T-Shirts'!Z13:Z40) -> 6365.922 | K42: =SUM('Arborist Accessories'!AA13:AA45,'Automower Accessories'!AA13:AA50,'Automower Spares'!AA13:AA23,Bars!AA13:AA90,Chains!AA13:AA87,'Filing Equipment'!AA13:AA35,'Xplorer Leisurewear'!AA13:AA18,'Forestry Tools'!AA13:AA54,Fuel!AA13:AA18,'Trimmer Heads'!AA13:AA85,'Batteries & Chargers'!AA13:AA42,'Oil & Lubricants'!AA13:AA56,'Tool Belts'!AA13:AA28,Footwear!AA13:AA81,'Head Protection'!AA13:AA41,Trousers!AA13:AA107,Jackets!AA13:AA73,Gloves!AA13:AA58,'T-Shirts'!AA13:AA40) -> 6143.6196 | N42: =SUM(F42:M42) -> 52880.0176
E43: Total Value | F43: =F40+F42 -> 74910.341 | G43: 66326.50882 | H43: 82802.9649 | I43: 69369.33228 | J43: 50941.99046 | K43: 42702.67086 | N43: =N42+N40 -> 387053.8083
H45: PSO % of Turnover | J45: =IFERROR((N43/J46),"") -> 0.4176523114
H46: Previous 12 Months Sales Net | J46: 926736.9
D49: Product Categories | J49: BRONZE | L49: SILVER | N49: GOLD
J50: On Invoice | L50: On Invoice | N50: On Invoice
C51: Machinery | I51: Minimum Qty
D52: 1 | E52: Domestic Automower® (100 to 400-series) | I52: See Table | J52: 0.1 | L52: 0.15 | N52: 0.17
J53: 0 Units | L53: 15 Units | N53: 35 Units
D54: 1AA | E54: Automower® installation rebate (off invoice rebate) | J54: 0.15 | L54: 0.15 | N54: 0.17
D55: 2 | E55: Battery - Hand Held | I55: 12 | J55: 0.23 | L55: 0.26 | N55: 0.28
D56: 3 | E56: Battery - Lawn | I56: 5 | J56: 0.23 | L56: 0.26 | N56: 0.28
D57: 4 | E57: Battery - Batteries & Chargers | I57: 10 | J57: 0.23 | L57: 0.26 | N57: 0.28
D58: 5 | E58: Domestic Riders / ZTR (100 to 400-series) | I58: 5 | J58: 0.23 | L58: 0.26 | N58: 0.28
D59: 6 | E59: Tractors | I59: 2 | J59: 0.23 | L59: 0.26 | N59: 0.28
D60: 7 | E60: Walk Behind Mowers | I60: 5 | J60: 0.28 | L60: 0.31 | N60: 0.33
D61: 8 | E61: Tillers | I61: 1 | J61: 0.28 | L61: 0.31 | N61: 0.33
D62: 9 | E62: Chainsaws & Polesaws | I62: 10 | J62: 0.28 | L62: 0.31 | N62: 0.33
D63: 10 | E63: Trimmers & Brushcutters | I63: 5 | J63: 0.28 | L63: 0.31 | N63: 0.33
D64: 11 | E64: Combi (engine units) | I64: 1 | J64: 0.28 | L64: 0.31 | N64: 0.33
D65: 12 | E65: Hedgetrimmers & Pole Hedgetrimmers | I65: 4 | J65: 0.28 | L65: 0.31 | N65: 0.33
D66: 13 | E66: Blowers | I66: 4 | J66: 0.28 | L66: 0.31 | N66: 0.33
D67: 14 | E67: Pressure Washers | I67: 4 | J67: 0.28 | L67: 0.31 | N67: 0.33
E69: Pro Lawn (SELDIS Level 3 dealers only)
D70: 16 | E70: Automower 500-series | I70: 6 | J70: 0 | L70: 0.15 | N70: 0.17
D71: 16AA | E71: Automower® installation rebate (off invoice rebate) | J71: 0 | L71: 0.15 | N71: 0.17
D72: 17 | E72: Riders & Zero Turns 500-series | I72: 2 | J72: 0 | L72: 0.3 | N72: 0.3
D73: 18 | E73: Ceora | J73: 0 | L73: 0 | N73: =15%+G9 -> 0.17
C75: Accessories | J75: On Invoice | L75: On Invoice | N75: On Invoice
D76: 1A | E76: Chainsaw & Brushcutter cutting accessories | J76: 0.42 | L76: 0.47 | N76: 0.52
D77: 2A | E77: All other accessories | J77: 0.38 | L77: 0.43 | N77: 0.48
D78: 2B | E78: Power Fuel | J78: 0.33 | L78: 0.34 | N78: 0.35
D79: 3A | E79: Automower machine accessories (body kits, etc.) | J79: 0.25 | L79: 0.3 | N79: 0.37
D80: 3B | E80: Automower accessories (wire, connectors, etc.) | J80: 0.38 | L80: 0.43 | N80: 0.53
D81: 3C | E81: Automower consumables & spare parts (blades) | J81: 0.35 | L81: 0.38 | N81: 0.45
D82: 4A | E82: Spare Parts | J82: 0.35 | L82: 0.38 | N82: 0.4
D84: ACCESSORIES - PSO qualification criteria to achieve Gold, Silver or Bronze terms
E85: Category | H85: TOTAL ORDERED | J85: BRONZE | L85: SILVER | N85: GOLD
E86: Chainsaw & Brushcutter cutting accessories | H86: =H31 -> 2677.5956 | J86: 800 | L86: 1500 | N86: 2500
E87: All other accessories | H87: =H32 -> 36083.125 | J87: 800 | L87: 1500 | N87: 2500
E88: Power Fuel | H88: =H33 -> 869.0976 | J88: 800 | L88: 1500 | N88: 2500
E89: Automower Accessories | H89: =H34 -> 1195.2194 | J89: 0 | L89: 800 | N89: 1600
E90: Total Minimum PSO | H90: =SUM(H86:H89) -> 40825.0376 | J90: =SUM(J86:J89) -> 2400 | L90: =SUM(L86:L89) -> 5300 | N90: =SUM(N86:N89) -> 9100
C93: Machinery - PSO qualification criteria to achieve Gold, Silver or Bronze terms
F94: Level | G94: Range Criteria | I94: PSO Criteria | L94: PSO @ 40% of LY
F95: Bronze | G95: Minimum of 6 product categories | I95: PSO minimum 25% of turnover | L95: 40% = Terms + 2%
F96: Silver | G96: Minimum of 10 product categories | I96: PSO minimum 25% of turnover | L96: 40% = Terms + 2%
F97: Gold | G97: Minimum of 13 product categories | I97: PSO minimum 25% of turnover | L97: 40% = Terms + 2%
I98: Turnover in previous 12 months trading
F99: Mandatory Category | G99: Bronze | H99: Silver | I99: Gold
F100: Automower | H100: ✔ | I100: ✔
F101: Battery | G101: ✔ | H101: ✔ | I101: ✔
F102: Rider | H102: ✔ | I102: ✔
C104: PSO Delivery Month Phasing
F105: JAN | G105: FEB | H105: MAR | I105: APR | J105: MAY | K105: JUN
F106: 0.1 | G106: 0.25 | H106: 0.25 | I106: 0.25 | J106: 0.1 | K106: 0.05
C109: Business Development Rebates
G110: Rebate % | H110: Criteria
G111: 0.01 | H111: Achieve growth target between 5% to 9.9%
G112: 0.02 | H112: Achieve growth target between 10% to 14.9%
G113: 0.03 | H113: Achieve growth target between 15% +
H115: See Terms & Conditions for more information
D118: Terms & Conditions
D120: Pre Season Orders (PSO);
D121: All PSOs must be submitted by 30th November 2023
D122: PSO will be at 2024 prices, effective Jan 1st 2024.
D123: Once placed the composition of PSOs may not be cancelled or amended.
D125: Payment;
D126: Payment to terms is mandatory.
D127: Payment must be received and cleared, not sent, by the date given.
D129: Retrospective Business Growth Rebates;
D130: Turnover is calculated as net sales of Husqvarna Forest & Garden branded products only. Sales of Husqvarna Construction and Consumer Brands products are excluded.
D131: Minimum annual sales for Gold dealers of £150,000 to qualify
D132: Minimum annual sales for Silver dealers of £75,000 to qualify
D133: Minimum annual sales for Bronze dealers of £35,000 to qualify
D134: All Rebates are subject to maintaining the agreed PSO range of categories and models throughout 2023 (ABM audited)
D135: All rebates are subject to dealers maintaining Husqvarna Shop 2.0 in-store displays, as agreed with the ABM
D136: All Rebates are subject to payment having been received to terms throughout 2023
D137: All Rebates are subject to having taken full delivery of the agreed PSO, within the specified dates
D139: Commercial Terms;
D140: The 2024 commercial terms will apply until the date of introduction of 2025 commercial terms
D142: Disclaimer;
D143: Husqvarna reserve the right to change or modify commercial terms with 1 month's written notice
D144: Husqvarna reserve the right to change or modify prices and product specifications without prior notice
C148: FOR HUSQVARNA USE ONLY PLEASE DO NOT CLICK

Sheet Pricing (hidden)
A1: 967662103 | B1: 2407.5
A2: 967650203 | B2: 3865.83
A3: 970468203 | B3: 749.17
A4: 970651703 | B4: 4465.83
A5: 970656303 | B5: 2407.5
A6: 970656503 | B6: 3865.83
A7: 970656703 | B7: 4865.83
A8: 970717803 | B8: 3165.83
A9: 970468103 | B9: 2249.17
A10: 970549001 | B10: 12874.17
A11: 970467901 | B11: 16249.17
A12: 970468001 | B12: 6915.83
A13: 970614401 | B13: 7499.17
A14: 529318901 | B14: 1207.5
A15: 535423101 | B15: 365.83
A16: 970663303 | B16: 332.5
A17: 967645403 | B17: 665.83
A18: 970568503 | B18: 815.83
A19: 967645446 | B19: 749.17
A20: 970568546 | B20: 899.17
A21: 967974003 | B21: 1082.5
A22: 970663403 | B22: 1082.5
A23: 967974046 | B23: 1165.83
A24: 967672903 | B24: 1249.17
A25: 970526703 | B25: 1415.83
A26: 970654103 | B26: 1665.83
A27: 970526746 | B27: 1499.17
A28: 967673003 | B28: 1499.17
A29: 970526803 | B29: 1582.5
A30: 970456203 | B30: 1582.5
A31: 970526846 | B31: 1749.17
A32: 970456246 | B32: 1749.17
A33: 970654403 | B33: 1999.17
A34: 970471703 | B34: 1915.83
A35: 970471746 | B35: 2040.83
A36: 970535103 | B36: 2332.5
A37: 967852803 | B37: 2749.17
A38: 970535203 | B38: 2915.83
A39: 967853003 | B39: 3415.83
A40: 970535303 | B40: 3999.17
A41: 967853303 | B41: 4165.83
A42: 970663201 | B42: 249.17
A43: 535545301 | B43: 249.17
A44: 546258201 | B44: 249.17
A45: 970620405 | B45: 190.83
A46: 967976102 | B46: 249.17
A47: 967976101 | B47: 124.99
A48: 967991001 | B48: 274.17
A49: 967915503 | B49: 415.83
A50: 967941406 | B50: 415.83
A51: 967796202 | B51: 332.5
A52: 970620402 | B52: 108.33
A53: 970649805 | B53: 265.83
A54: 970649802 | B54: 182.5
A55: 967915402 | B55: 265.83
A56: 967796203 | B56: 499.17
A57: 967976103 | B57: 249.17
A58: 970656101 | B58: 332.5
A59: 967681103 | B59: 582.5
A60: 967098201 | B60: 190.83
A61: 970547502 | B61: 207.5
A62: 970547503 | B62: 215.83
A63: 970601101 | B63: 290.83
A64: 967098202 | B64: 290.83
A65: 970718014 | B65: 332.5
A66: 967893814 | B66: 432.5
A67: 967893912 | B67: 432.5
A68: 967864014 | B68: 607.5
A69: 967864016 | B69: 615.83
A70: 967863712 | B70: 590.83
A71: 967863714 | B71: 599.17
A72: 970718214 | B72: 332.5
A73: 970572312 | B73: 624.17
A74: 970568112 | B74: 649.17
A75: 970568114 | B75: 657.5
A76: 970568116 | B76: 665.83
A77: 970572316 | B77: 640.83
A78: 970572314 | B78: 632.5
A79: 970572514 | B79: 615.83
A80: 970572516 | B80: 624.17
A81: 970718216 | B81: 340.83
A82: 970547505 | B82: 332.5
A83: 970547512 | B83: 332.5
A84: 970547513 | B84: 340.83
A85: 967864214 | B85: 415.83
A86: 970601103 | B86: 499.17
A87: 970601108 | B87: 499.17
A88: 970572912 | B88: 649.17
A89: 970572914 | B89: 657.5
A90: 970572916 | B90: 665.83
A91: 970647013 | B91: 649.17
A92: 970647015 | B92: 657.5
A93: 970647113 | B93: 665.83
A94: 970647115 | B94: 690.83
A95: 970515902 | B95: 190.83
A96: 970515905 | B96: 274.17
A97: 970515907 | B97: 274.17
A98: 529351902 | B98: 99.99
A99: 970515901 | B99: 190.83
A100: 970515904 | B100: 274.17
A101: 970515908 | B101: 274.17
A102: 970515903 | B102: 249.17
A103: 970515906 | B103: 365.83
A104: 970515909 | B104: 365.83
A105: 529351901 | B105: 99.99
A106: 970466002 | B106: 482.5
A107: 970716603 | B107: 108.33
A108: 970620302 | B108: 116.66
A109: 970716606 | B109: 149.99
A110: 967915605 | B110: 432.5
A111: 967915703 | B111: 474.17
A112: 967915813 | B112: 399.17
A113: 967971203 | B113: 482.5
A114: 970466102 | B114: 524.17
A115: 970466202 | B115: 482.5
A116: 970716703 | B116: 149.99
A117: 970620305 | B117: 166.66
A118: 970536501 | B118: 190.83
A119: 970536603 | B119: 207.5
A120: 970716706 | B120: 232.5
A121: 967098302 | B121: 232.5
A122: 970536502 | B122: 249.17
A123: 970536503 | B123: 249.17
A124: 970536505 | B124: 274.17
A125: 970466401 | B125: 315.83
A126: 970536102 | B126: 399.17
A127: 970705103 | B127: 457.5
A128: 970704903 | B128: 499.17
A129: 970705003 | B129: 499.17
A130: 967957201 | B130: 349.17
A131: 967850101 | B131: 357.5
A132: 967850103 | B132: 357.5
A133: 970500906 | B133: 415.83
A134: 970500901 | B134: 265.83
A135: 970500904 | B135: 374.17
A136: 970541801 | B136: 357.5
A137: 970541804 | B137: 457.5
A138: 970541901 | B138: 457.5
A139: 970541902 | B139: 540.83
A140: 970541903 | B140: 624.17
A141: 970541806 | B141: 499.17
A142: 967862103 | B142: 332.5
A143: 970542001 | B143: 499.17
A144: 967862301 | B144: 624.17
A145: 967862001 | B145: 665.83
A146: 970482301 | B146: 582.5
A147: 970482401 | B147: 790.83
A148: 967977301 | B148: 949.17
A149: 970525701 | B149: 1249.17
A150: 970541906 | B150: 582.5
A151: 970648203 | B151: 457.5
A152: 970648305 | B152: 290.83
A153: 970648301 | B153: 232.5
A154: 970648201 | B154: 349.17
A155: 970626001 | B155: 1182.5
A156: 967099201 | B156: 374.17
A157: 967628405 | B157: 457.5
A158: 970500902 | B158: 332.5
A159: 967628401 | B159: 365.83
A160: 970500903 | B160: 407.5
A161: 970722401 | B161: 499.17
A162: 970712501
A163: 970722601 | B163: 582.5
A164: 531223201 | B164: 37.49
A165: 599831201 | B165: 29.16
A166: 589222701 | B166: 29.16
A167: 590790901 | B167: 41.66
A168: 595001101 | B168: 41.66
A169: 597413701 | B169: 47.49
A170: 597848701 | B170: 47.49
A171: 970621302 | B171: 99.99
A172: 970621306 | B172: 141.66
A173: 970621402 | B173: 149.99
A174: 970621406 | B174: 232.5
A175: 967884711 | B175: 499.17
A176: 967884811 | B176: 582.5
A177: 970621403 | B177: 149.99
A178: 970621303 | B178: 99.99
A179: 970649901 | B179: 5624.17
A180: 970650001 | B180: 1082.5
A181: 970650101 | B181: 1165.83
A182: 967848201 | B182: 4832.5
A183: 537548002 | B183: 224.17
A184: 595308601 | B184: 190.83
A185: 970728702 | B185: 4832.5
A186: 967922201 | B186: 332.5
A187: 967922203 | B187: 415.83
A188: 970551602 | B188: 390.83
A189: 970620202 | B189: 108.33
A190: 970531201 | B190: 149.99
A191: 970620205 | B191: 149.99
A192: 970620208 | B192: 166.66
A193: 967098801 | B193: 166.66
A194: 970536001 | B194: 190.83
A195: 970531202 | B195: 207.5
A196: 970531204 | B196: 207.5
A197: 967098802 | B197: 232.5
A198: 967915911 | B198: 232.5
A199: 970536002 | B199: 249.17
A200: 970536006 | B200: 249.17
... 2067 more rows

Sheet FG Master Data
C1: PSO JAN FG | D1: PSO JAN TRA | F1: PSO FEB FG | G1: PSO FEB TRA | I1: PSO MAR FG | J1: PSO MAR TRA | L1: PSO APR FG | M1: PSO APR TRA | O1: PSO MAY FG | P1: PSO MAY TRA | R1: PSO JUN FG | S1: PSO JUN TRA
A2: Product Group | B2: Part Number | C2: Delivery date | D2: Delivery week | E2: Qty | F2: Delivery date2 | G2: Delivery week3 | H2: Qty4 | I2: Delivery date5 | J2: Delivery week6 | K2: Qty7 | L2: Delivery date8 | M2: Delivery week9 | N2: Qty10 | O2: Delivery date11 | P2: Delivery week12 | Q2: Qty13 | R2: Delivery date14 | S2: Delivery week15 | T2: Qty16 | U2: Price | AF2: BNPF
A3: Aspire Accessory | B3: 536661801 | C3: 20240103 | D3: 2401 | E3: =_xlfn.XLOOKUP(B3,Aspire!$F$13:$F$30,Aspire!U13:U30) -> 0 | F3: 20240201 | G3: 2405 | H3: =_xlfn.XLOOKUP(B3,Aspire!$F$13:$F$30,Aspire!V13:V30) -> 0 | I3: 20240301 | J3: 2409 | K3: =_xlfn.XLOOKUP(B3,Aspire!$F$13:$F$30,Aspire!W13:W30) -> 0 | L3: 20240402 | M3: 2414 | N3: =_xlfn.XLOOKUP(B3,Aspire!$F$13:$F$30,Aspire!X13:X30) -> 0 | O3: 20240501 | P3: 2418 | Q3: =_xlfn.XLOOKUP(B3,Aspire!$F$13:$F$30,Aspire!Y13:Y30) -> 0 | R3: 20240603 | S3: 2423 | T3: =_xlfn.XLOOKUP(B3,Aspire!$F$13:$F$30,Aspire!Z13:Z30) -> 0 | U3: =_xlfn.XLOOKUP(B3,Aspire!$F$13:$F$30,Aspire!$L$13:$L$30) -> 53.6636
A4: Automower 500-series | B4: 970651703 | C4: 20240103 | D4: 2401 | E4: =_xlfn.XLOOKUP(B4,'Automower®'!$F$28:$F$39,'Automower®'!$U$28:$U$39) -> 0 | F4: 20240201 | G4: 2405 | H4: =_xlfn.XLOOKUP(B4,'Automower®'!$F$28:$F$39,'Automower®'!$V$28:$V$39) -> 0 | I4: 20240301 | J4: 2409 | K4: =_xlfn.XLOOKUP(B4,'Automower®'!$F$28:$F$39,'Automower®'!$W$28:$W$39) -> 0 | L4: 20240402 | M4: 2414 | N4: =_xlfn.XLOOKUP(B4,'Automower®'!$F$28:$F$39,'Automower®'!$X$28:$X$39) -> 0 | O4: 20240501 | P4: 2418 | Q4: =_xlfn.XLOOKUP(B4,'Automower®'!$F$28:$F$39,'Automower®'!$Y$28:$Y$39) -> 0 | R4: 20240603 | S4: 2423 | T4: =_xlfn.XLOOKUP(B4,'Automower®'!$F$28:$F$39,'Automower®'!$Z$28:$Z$39) -> 0 | U4: =_xlfn.XLOOKUP(B4,'Automower®'!$F$28:$F$39,'Automower®'!$L$28:$L$39) -> 3528.0057 | AF4: 1 for each month
A5: Automower 500-series | B5: 970656703 | C5: 20240103 | D5: 2401 | E5: =_xlfn.XLOOKUP(B5,'Automower®'!$F$28:$F$39,'Automower®'!$U$28:$U$39) -> 0 | F5: 20240201 | G5: 2405 | H5: =_xlfn.XLOOKUP(B5,'Automower®'!$F$28:$F$39,'Automower®'!$V$28:$V$39) -> 1 | I5: 20240301 | J5: 2409 | K5: =_xlfn.XLOOKUP(B5,'Automower®'!$F$28:$F$39,'Automower®'!$W$28:$W$39) -> 0 | L5: 20240402 | M5: 2414 | N5: =_xlfn.XLOOKUP(B5,'Automower®'!$F$28:$F$39,'Automower®'!$X$28:$X$39) -> 1 | O5: 20240501 | P5: 2418 | Q5: =_xlfn.XLOOKUP(B5,'Automower®'!$F$28:$F$39,'Automower®'!$Y$28:$Y$39) -> 0 | R5: 20240603 | S5: 2423 | T5: =_xlfn.XLOOKUP(B5,'Automower®'!$F$28:$F$39,'Automower®'!$Z$28:$Z$39) -> 0 | U5: =_xlfn.XLOOKUP(B5,'Automower®'!$F$28:$F$39,'Automower®'!$L$28:$L$39) -> 3844.0057 | AF5: separate for accessories
A6: Automower 500-series | B6: 970656503 | C6: 20240103 | D6: 2401 | E6: =_xlfn.XLOOKUP(B6,'Automower®'!$F$28:$F$39,'Automower®'!$U$28:$U$39) -> 0 | F6: 20240201 | G6: 2405 | H6: =_xlfn.XLOOKUP(B6,'Automower®'!$F$28:$F$39,'Automower®'!$V$28:$V$39) -> 0 | I6: 20240301 | J6: 2409 | K6: =_xlfn.XLOOKUP(B6,'Automower®'!$F$28:$F$39,'Automower®'!$W$28:$W$39) -> 0 | L6: 20240402 | M6: 2414 | N6: =_xlfn.XLOOKUP(B6,'Automower®'!$F$28:$F$39,'Automower®'!$X$28:$X$39) -> 0 | O6: 20240501 | P6: 2418 | Q6: =_xlfn.XLOOKUP(B6,'Automower®'!$F$28:$F$39,'Automower®'!$Y$28:$Y$39) -> 0 | R6: 20240603 | S6: 2423 | T6: =_xlfn.XLOOKUP(B6,'Automower®'!$F$28:$F$39,'Automower®'!$Z$28:$Z$39) -> 0 | U6: =_xlfn.XLOOKUP(B6,'Automower®'!$F$28:$F$39,'Automower®'!$L$28:$L$39) -> 3054.0057 | AF6: Tractors separate
A7: Automower 500-series | B7: 970656303 | C7: 20240103 | D7: 2401 | E7: =_xlfn.XLOOKUP(B7,'Automower®'!$F$28:$F$39,'Automower®'!$U$28:$U$39) -> 0 | F7: 20240201 | G7: 2405 | H7: =_xlfn.XLOOKUP(B7,'Automower®'!$F$28:$F$39,'Automower®'!$V$28:$V$39) -> 0 | I7: 20240301 | J7: 2409 | K7: =_xlfn.XLOOKUP(B7,'Automower®'!$F$28:$F$39,'Automower®'!$W$28:$W$39) -> 0 | L7: 20240402 | M7: 2414 | N7: =_xlfn.XLOOKUP(B7,'Automower®'!$F$28:$F$39,'Automower®'!$X$28:$X$39) -> 0 | O7: 20240501 | P7: 2418 | Q7: =_xlfn.XLOOKUP(B7,'Automower®'!$F$28:$F$39,'Automower®'!$Y$28:$Y$39) -> 0 | R7: 20240603 | S7: 2423 | T7: =_xlfn.XLOOKUP(B7,'Automower®'!$F$28:$F$39,'Automower®'!$Z$28:$Z$39) -> 0 | U7: =_xlfn.XLOOKUP(B7,'Automower®'!$F$28:$F$39,'Automower®'!$L$28:$L$39) -> 1901.925
A8: Automower 500-series | B8: 970468203 | C8: 20240103 | D8: 2401 | E8: =_xlfn.XLOOKUP(B8,'Automower®'!$F$28:$F$39,'Automower®'!$U$28:$U$39) -> 0 | F8: 20240201 | G8: 2405 | H8: =_xlfn.XLOOKUP(B8,'Automower®'!$F$28:$F$39,'Automower®'!$V$28:$V$39) -> 0 | I8: 20240301 | J8: 2409 | K8: =_xlfn.XLOOKUP(B8,'Automower®'!$F$28:$F$39,'Automower®'!$W$28:$W$39) -> 0 | L8: 20240402 | M8: 2414 | N8: =_xlfn.XLOOKUP(B8,'Automower®'!$F$28:$F$39,'Automower®'!$X$28:$X$39) -> 0 | O8: 20240501 | P8: 2418 | Q8: =_xlfn.XLOOKUP(B8,'Automower®'!$F$28:$F$39,'Automower®'!$Y$28:$Y$39) -> 0 | R8: 20240603 | S8: 2423 | T8: =_xlfn.XLOOKUP(B8,'Automower®'!$F$28:$F$39,'Automower®'!$Z$28:$Z$39) -> 0 | U8: =_xlfn.XLOOKUP(B8,'Automower®'!$F$28:$F$39,'Automower®'!$L$28:$L$39) -> 591.8443
A9: Automower 500-series | B9: 970614401 | C9: 20240103 | D9: 2401 | E9: =_xlfn.XLOOKUP(B9,'Automower®'!$F$28:$F$39,'Automower®'!$U$28:$U$39) -> 0 | F9: 20240201 | G9: 2405 | H9: =_xlfn.XLOOKUP(B9,'Automower®'!$F$28:$F$39,'Automower®'!$V$28:$V$39) -> 0 | I9: 20240301 | J9: 2409 | K9: =_xlfn.XLOOKUP(B9,'Automower®'!$F$28:$F$39,'Automower®'!$W$28:$W$39) -> 0 | L9: 20240402 | M9: 2414 | N9: =_xlfn.XLOOKUP(B9,'Automower®'!$F$28:$F$39,'Automower®'!$X$28:$X$39) -> 0 | O9: 20240501 | P9: 2418 | Q9: =_xlfn.XLOOKUP(B9,'Automower®'!$F$28:$F$39,'Automower®'!$Y$28:$Y$39) -> 0 | R9: 20240603 | S9: 2423 | T9: =_xlfn.XLOOKUP(B9,'Automower®'!$F$28:$F$39,'Automower®'!$Z$28:$Z$39) -> 0 | U9: =_xlfn.XLOOKUP(B9,'Automower®'!$F$28:$F$39,'Automower®'!$L$28:$L$39) -> 6224.3111
A10: Automower 500-series | B10: 970468103 | C10: 20240103 | D10: 2401 | E10: =_xlfn.XLOOKUP(B10,'Automower®'!$F$28:$F$39,'Automower®'!$U$28:$U$39) -> 0 | F10: 20240201 | G10: 2405 | H10: =_xlfn.XLOOKUP(B10,'Automower®'!$F$28:$F$39,'Automower®'!$V$28:$V$39) -> 0 | I10: 20240301 | J10: 2409 | K10: =_xlfn.XLOOKUP(B10,'Automower®'!$F$28:$F$39,'Automower®'!$W$28:$W$39) -> 0 | L10: 20240402 | M10: 2414 | N10: =_xlfn.XLOOKUP(B10,'Automower®'!$F$28:$F$39,'Automower®'!$X$28:$X$39) -> 0 | O10: 20240501 | P10: 2418 | Q10: =_xlfn.XLOOKUP(B10,'Automower®'!$F$28:$F$39,'Automower®'!$Y$28:$Y$39) -> 0 | R10: 20240603 | S10: 2423 | T10: =_xlfn.XLOOKUP(B10,'Automower®'!$F$28:$F$39,'Automower®'!$Z$28:$Z$39) -> 0 | U10: =_xlfn.XLOOKUP(B10,'Automower®'!$F$28:$F$39,'Automower®'!$L$28:$L$39) -> 1866.8111
A11: Automower 500-series | B11: 970549001 | C11: 20240103 | D11: 2401 | E11: =_xlfn.XLOOKUP(B11,'Automower®'!$F$28:$F$39,'Automower®'!$U$28:$U$39) -> 0 | F11: 20240201 | G11: 2405 | H11: =_xlfn.XLOOKUP(B11,'Automower®'!$F$28:$F$39,'Automower®'!$V$28:$V$39) -> 0 | I11: 20240301 | J11: 2409 | K11: =_xlfn.XLOOKUP(B11,'Automower®'!$F$28:$F$39,'Automower®'!$W$28:$W$39) -> 0 | L11: 20240402 | M11: 2414 | N11: =_xlfn.XLOOKUP(B11,'Automower®'!$F$28:$F$39,'Automower®'!$X$28:$X$39) -> 0 | O11: 20240501 | P11: 2418 | Q11: =_xlfn.XLOOKUP(B11,'Automower®'!$F$28:$F$39,'Automower®'!$Y$28:$Y$39) -> 0 | R11: 20240603 | S11: 2423 | T11: =_xlfn.XLOOKUP(B11,'Automower®'!$F$28:$F$39,'Automower®'!$Z$28:$Z$39) -> 0 | U11: =_xlfn.XLOOKUP(B11,'Automower®'!$F$28:$F$39,'Automower®'!$L$28:$L$39) -> 10685.5611
A12: Automower 500-series | B12: 970467901 | C12: 20240103 | D12: 2401 | E12: =_xlfn.XLOOKUP(B12,'Automower®'!$F$28:$F$39,'Automower®'!$U$28:$U$39) -> 0 | F12: 20240201 | G12: 2405 | H12: =_xlfn.XLOOKUP(B12,'Automower®'!$F$28:$F$39,'Automower®'!$V$28:$V$39) -> 0 | I12: 20240301 | J12: 2409 | K12: =_xlfn.XLOOKUP(B12,'Automower®'!$F$28:$F$39,'Automower®'!$W$28:$W$39) -> 0 | L12: 20240402 | M12: 2414 | N12: =_xlfn.XLOOKUP(B12,'Automower®'!$F$28:$F$39,'Automower®'!$X$28:$X$39) -> 0 | O12: 20240501 | P12: 2418 | Q12: =_xlfn.XLOOKUP(B12,'Automower®'!$F$28:$F$39,'Automower®'!$Y$28:$Y$39) -> 0 | R12: 20240603 | S12: 2423 | T12: =_xlfn.XLOOKUP(B12,'Automower®'!$F$28:$F$39,'Automower®'!$Z$28:$Z$39) -> 0 | U12: =_xlfn.XLOOKUP(B12,'Automower®'!$F$28:$F$39,'Automower®'!$L$28:$L$39) -> 13486.8111
A13: Automower 500-series | B13: 970468001 | C13: 20240103 | D13: 2401 | E13: =_xlfn.XLOOKUP(B13,'Automower®'!$F$28:$F$39,'Automower®'!$U$28:$U$39) -> 0 | F13: 20240201 | G13: 2405 | H13: =_xlfn.XLOOKUP(B13,'Automower®'!$F$28:$F$39,'Automower®'!$V$28:$V$39) -> 0 | I13: 20240301 | J13: 2409 | K13: =_xlfn.XLOOKUP(B13,'Automower®'!$F$28:$F$39,'Automower®'!$W$28:$W$39) -> 0 | L13: 20240402 | M13: 2414 | N13: =_xlfn.XLOOKUP(B13,'Automower®'!$F$28:$F$39,'Automower®'!$X$28:$X$39) -> 0 | O13: 20240501 | P13: 2418 | Q13: =_xlfn.XLOOKUP(B13,'Automower®'!$F$28:$F$39,'Automower®'!$Y$28:$Y$39) -> 0 | R13: 20240603 | S13: 2423 | T13: =_xlfn.XLOOKUP(B13,'Automower®'!$F$28:$F$39,'Automower®'!$Z$28:$Z$39) -> 0 | U13: =_xlfn.XLOOKUP(B13,'Automower®'!$F$28:$F$39,'Automower®'!$L$28:$L$39) -> 5740.1389
A14: Automower Accessory | B14: 967972301 | C14: 20240103 | D14: 2401 | E14: =_xlfn.XLOOKUP(B14,'Automower Accessories'!$F$13:$F$50,'Automower Accessories'!$N$13:$N$50) -> 1 | F14: 20240201 | G14: 2405 | H14: =_xlfn.XLOOKUP(B14,'Automower Accessories'!$F$13:$F$50,'Automower Accessories'!$O$13:$O$50) -> 2 | I14: 20240301 | J14: 2409 | K14: =_xlfn.XLOOKUP(B14,'Automower Accessories'!$F$13:$F$50,'Automower Accessories'!$P$13:$P$50) -> 1 | L14: 20240402 | M14: 2414 | N14: =_xlfn.XLOOKUP(B14,'Automower Accessories'!$F$13:$F$50,'Automower Accessories'!$Q$13:$Q$50) -> 0 | O14: 20240501 | P14: 2418 | Q14: =_xlfn.XLOOKUP(B14,'Automower Accessories'!$F$13:$F$50,'Automower Accessories'!$R$13:$R$50) -> 0 | R14: 20240603 | S14: 2423 | T14: =_xlfn.XLOOKUP(B14,'Automower Accessories'!$F$13:$F$50,'Automower Accessories'!$S$13:$S$50) -> 0 | U14: =_xlfn.XLOOKUP(B14,'Automower Accessories'!$F$13:$F$50,'Automower Accessories'!$L$13:$L$50) -> 89.225
A15: Automower Accessory | B15: 967972201 | C15: 20240103 | D15: 2401 | E15: =_xlfn.XLOOKUP(B15,'Automower Accessories'!$F$13:$F$50,'Automower Accessories'!$N$13:$N$50) -> 1 | F15: 20240201 | G15: 2405 | H15: =_xlfn.XLOOKUP(B15,'Automower Accessories'!$F$13:$F$50,'Automower Accessories'!$O$13:$O$50) -> 2 | I15: 20240301 | J15: 2409 | K15: =_xlfn.XLOOKUP(B15,'Automower Accessories'!$F$13:$F$50,'Automower Accessories'!$P$13:$P$50) -> 0 | L15: 20240402 | M15: 2414 | N15: =_xlfn.XLOOKUP(B15,'Automower Accessories'!$F$13:$F$50,'Automower Accessories'!$Q$13:$Q$50) -> 0 | O15: 20240501 | P15: 2418 | Q15: =_xlfn.XLOOKUP(B15,'Automower Accessories'!$F$13:$F$50,'Automower Accessories'!$R$13:$R$50) -> 0 | R15: 20240603 | S15: 2423 | T15: =_xlfn.XLOOKUP(B15,'Automower Accessories'!$F$13:$F$50,'Automower Accessories'!$S$13:$S$50) -> 0 | U15: =_xlfn.XLOOKUP(B15,'Automower Accessories'!$F$13:$F$50,'Automower Accessories'!$L$13:$L$50) -> 57.3319
A16: Automower Accessory | B16: 967972101 | C16: 20240103 | D16: 2401 | E16: =_xlfn.XLOOKUP(B16,'Automower Accessories'!$F$13:$F$50,'Automower Accessories'!$N$13:$N$50) -> 1 | F16: 20240201 | G16: 2405 | H16: =_xlfn.XLOOKUP(B16,'Automower Accessories'!$F$13:$F$50,'Automower Accessories'!$O$13:$O$50) -> 4 | I16: 20240301 | J16: 2409 | K16: =_xlfn.XLOOKUP(B16,'Automower Accessories'!$F$13:$F$50,'Automower Accessories'!$P$13:$P$50) -> 2 | L16: 20240402 | M16: 2414 | N16: =_xlfn.XLOOKUP(B16,'Automower Accessories'!$F$13:$F$50,'Automower Accessories'!$Q$13:$Q$50) -> 0 | O16: 20240501 | P16: 2418 | Q16: =_xlfn.XLOOKUP(B16,'Automower Accessories'!$F$13:$F$50,'Automower Accessories'!$R$13:$R$50) -> 0 | R16: 20240603 | S16: 2423 | T16: =_xlfn.XLOOKUP(B16,'Automower Accessories'!$F$13:$F$50,'Automower Accessories'!$S$13:$S$50) -> 0 | U16: =_xlfn.XLOOKUP(B16,'Automower Accessories'!$F$13:$F$50,'Automower Accessories'!$L$13:$L$50) -> 35.8319
A17: Automower Accessory | B17: 597635301 | C17: 20240103 | D17: 2401 | E17: =_xlfn.XLOOKUP(B17,'Automower Accessories'!$F$13:$F$50,'Automower Accessories'!$N$13:$N$50) -> 0 | F17: 20240201 | G17: 2405 | H17: =_xlfn.XLOOKUP(B17,'Automower Accessories'!$F$13:$F$50,'Automower Accessories'!$O$13:$O$50) -> 0 | I17: 20240301 | J17: 2409 | K17: =_xlfn.XLOOKUP(B17,'Automower Accessories'!$F$13:$F$50,'Automower Accessories'!$P$13:$P$50) -> 0 | L17: 20240402 | M17: 2414 | N17: =_xlfn.XLOOKUP(B17,'Automower Accessories'!$F$13:$F$50,'Automower Accessories'!$Q$13:$Q$50) -> 0 | O17: 20240501 | P17: 2418 | Q17: =_xlfn.XLOOKUP(B17,'Automower Accessories'!$F$13:$F$50,'Automower Accessories'!$R$13:$R$50) -> 0 | R17: 20240603 | S17: 2423 | T17: =_xlfn.XLOOKUP(B17,'Automower Accessories'!$F$13:$F$50,'Automower Accessories'!$S$13:$S$50) -> 0 | U17: =_xlfn.XLOOKUP(B17,'Automower Accessories'!$F$13:$F$50,'Automower Accessories'!$L$13:$L$50) -> 78.475
A18: Automower Accessory | B18: 587236101 | C18: 20240103 | D18: 2401 | E18: =_xlfn.XLOOKUP(B18,'Automower Accessories'!$F$13:$F$50,'Automower Accessories'!$N$13:$N$50) -> 0 | F18: 20240201 | G18: 2405 | H18: =_xlfn.XLOOKUP(B18,'Automower Accessories'!$F$13:$F$50,'Automower Accessories'!$O$13:$O$50) -> 0 | I18: 20240301 | J18: 2409 | K18: =_xlfn.XLOOKUP(B18,'Automower Accessories'!$F$13:$F$50,'Automower Accessories'!$P$13:$P$50) -> 0 | L18: 20240402 | M18: 2414 | N18: =_xlfn.XLOOKUP(B18,'Automower Accessories'!$F$13:$F$50,'Automower Accessories'!$Q$13:$Q$50) -> 0 | O18: 20240501 | P18: 2418 | Q18: =_xlfn.XLOOKUP(B18,'Automower Accessories'!$F$13:$F$50,'Automower Accessories'!$R$13:$R$50) -> 0 | R18: 20240603 | S18: 2423 | T18: =_xlfn.XLOOKUP(B18,'Automower Accessories'!$F$13:$F$50,'Automower Accessories'!$S$13:$S$50) -> 0 | U18: =_xlfn.XLOOKUP(B18,'Automower Accessories'!$F$13:$F$50,'Automower Accessories'!$L$13:$L$50) -> 71.6638
A19: Automower Accessory | B19: 585019401 | C19: 20240103 | D19: 2401 | E19: =_xlfn.XLOOKUP(B19,'Automower Accessories'!$F$13:$F$50,'Automower Accessories'!$N$13:$N$50) -> 0 | F19: 20240201 | G19: 2405 | H19: =_xlfn.XLOOKUP(B19,'Automower Accessories'!$F$13:$F$50,'Automower Accessories'!$O$13:$O$50) -> 0 | I19: 20240301 | J19: 2409 | K19: =_xlfn.XLOOKUP(B19,'Automower Accessories'!$F$13:$F$50,'Automower Accessories'!$P$13:$P$50) -> 0 | L19: 20240402 | M19: 2414 | N19: =_xlfn.XLOOKUP(B19,'Automower Accessories'!$F$13:$F$50,'Automower Accessories'!$Q$13:$Q$50) -> 0 | O19: 20240501 | P19: 2418 | Q19: =_xlfn.XLOOKUP(B19,'Automower Accessories'!$F$13:$F$50,'Automower Accessories'!$R$13:$R$50) -> 0 | R19: 20240603 | S19: 2423 | T19: =_xlfn.XLOOKUP(B19,'Automower Accessories'!$F$13:$F$50,'Automower Accessories'!$S$13:$S$50) -> 0 | U19: =_xlfn.XLOOKUP(B19,'Automower Accessories'!$F$13:$F$50,'Automower Accessories'!$L$13:$L$50) -> 71.6638
A20: Automower Accessory | B20: 536664101 | C20: 20240103 | D20: 2401 | E20: =_xlfn.XLOOKUP(B20,'Automower Accessories'!$F$13:$F$50,'Automower Accessories'!$N$13:$N$50) -> 0 | F20: 20240201 | G20: 2405 | H20: =_xlfn.XLOOKUP(B20,'Automower Accessories'!$F$13:$F$50,'Automower Accessories'!$O$13:$O$50) -> 0 | I20: 20240301 | J20: 2409 | K20: =_xlfn.XLOOKUP(B20,'Automower Accessories'!$F$13:$F$50,'Automower Accessories'!$P$13:$P$50) -> 0 | L20: 20240402 | M20: 2414 | N20: =_xlfn.XLOOKUP(B20,'Automower Accessories'!$F$13:$F$50,'Automower Accessories'!$Q$13:$Q$50) -> 0 | O20: 20240501 | P20: 2418 | Q20: =_xlfn.XLOOKUP(B20,'Automower Accessories'!$F$13:$F$50,'Automower Accessories'!$R$13:$R$50) -> 0 | R20: 20240603 | S20: 2423 | T20: =_xlfn.XLOOKUP(B20,'Automower Accessories'!$F$13:$F$50,'Automower Accessories'!$S$13:$S$50) -> 0 | U20: =_xlfn.XLOOKUP(B20,'Automower Accessories'!$F$13:$F$50,'Automower Accessories'!$L$13:$L$50) -> 71.6638
A21: Battery - Batteries & Chargers | B21: 598828801 | C21: 20240103 | D21: 2401 | E21: =_xlfn.XLOOKUP(B21,'Batteries & Chargers'!$F$13:$F$42,'Batteries & Chargers'!N13:N42) -> 0 | F21: 20240201 | G21: 2405 | H21: =_xlfn.XLOOKUP(B21,'Batteries & Chargers'!$F$13:$F$42,'Batteries & Chargers'!$O$13:$O$42) -> 0 | I21: 20240301 | J21: 2409 | K21: =_xlfn.XLOOKUP(B21,'Batteries & Chargers'!$F$13:$F$42,'Batteries & Chargers'!$P$13:$P$42) -> 0 | L21: 20240402 | M21: 2414 | N21: =_xlfn.XLOOKUP(B21,'Batteries & Chargers'!$F$13:$F$42,'Batteries & Chargers'!Q13:Q42) -> 0 | O21: 20240501 | P21: 2418 | Q21: =_xlfn.XLOOKUP(B21,'Batteries & Chargers'!$F$13:$F$42,'Batteries & Chargers'!$R$13:$R$42) -> 0 | R21: 20240603 | S21: 2423 | T21: =_xlfn.XLOOKUP(B21,'Batteries & Chargers'!$F$13:$F$42,'Batteries & Chargers'!$S$13:$S$42) -> 0 | U21: =_xlfn.XLOOKUP(B21,'Batteries & Chargers'!$F$13:$F$42,'Batteries & Chargers'!$L$13:$L$42) -> 52.493
A22: Battery - Batteries & Chargers | B22: 582909001 | C22: 20240103 | D22: 2401 | E22: =_xlfn.XLOOKUP(B22,'Batteries & Chargers'!$F$13:$F$42,'Batteries & Chargers'!$N$13:$N$42) -> 0 | F22: 20240201 | G22: 2405 | H22: =_xlfn.XLOOKUP(B22,'Batteries & Chargers'!$F$13:$F$42,'Batteries & Chargers'!$O$13:$O$42) -> 0 | I22: 20240301 | J22: 2409 | K22: =_xlfn.XLOOKUP(B22,'Batteries & Chargers'!$F$13:$F$42,'Batteries & Chargers'!$P$13:$P$42) -> 0 | L22: 20240402 | M22: 2414 | N22: =_xlfn.XLOOKUP(B22,'Batteries & Chargers'!$F$13:$F$42,'Batteries & Chargers'!$Q$13:$Q$42) -> 0 | O22: 20240501 | P22: 2418 | Q22: =_xlfn.XLOOKUP(B22,'Batteries & Chargers'!$F$13:$F$42,'Batteries & Chargers'!$R$13:$R$42) -> 0 | R22: 20240603 | S22: 2423 | T22: =_xlfn.XLOOKUP(B22,'Batteries & Chargers'!$F$13:$F$42,'Batteries & Chargers'!$S$13:$S$42) -> 0 | U22: =_xlfn.XLOOKUP(B22,'Batteries & Chargers'!$F$13:$F$42,'Batteries & Chargers'!$L$13:$L$42) -> 64.162
A23: Battery - Batteries & Chargers | B23: 590776703 | C23: 20240103 | D23: 2401 | E23: =_xlfn.XLOOKUP(B23,'Batteries & Chargers'!$F$13:$F$42,'Batteries & Chargers'!$N$13:$N$42) -> 0 | F23: 20240201 | G23: 2405 | H23: =_xlfn.XLOOKUP(B23,'Batteries & Chargers'!$F$13:$F$42,'Batteries & Chargers'!$O$13:$O$42) -> 0 | I23: 20240301 | J23: 2409 | K23: =_xlfn.XLOOKUP(B23,'Batteries & Chargers'!$F$13:$F$42,'Batteries & Chargers'!$P$13:$P$42) -> 0 | L23: 20240402 | M23: 2414 | N23: =_xlfn.XLOOKUP(B23,'Batteries & Chargers'!$F$13:$F$42,'Batteries & Chargers'!$Q$13:$Q$42) -> 0 | O23: 20240501 | P23: 2418 | Q23: =_xlfn.XLOOKUP(B23,'Batteries & Chargers'!$F$13:$F$42,'Batteries & Chargers'!$R$13:$R$42) -> 0 | R23: 20240603 | S23: 2423 | T23: =_xlfn.XLOOKUP(B23,'Batteries & Chargers'!$F$13:$F$42,'Batteries & Chargers'!$S$13:$S$42) -> 0 | U23: =_xlfn.XLOOKUP(B23,'Batteries & Chargers'!$F$13:$F$42,'Batteries & Chargers'!$L$13:$L$42) -> 104.993
A24: Battery - Batteries & Chargers | B24: 596252901 | C24: 20240103 | D24: 2401 | E24: =_xlfn.XLOOKUP(B24,'Batteries & Chargers'!$F$13:$F$42,'Batteries & Chargers'!$N$13:$N$42) -> 0 | F24: 20240201 | G24: 2405 | H24: =_xlfn.XLOOKUP(B24,'Batteries & Chargers'!$F$13:$F$42,'Batteries & Chargers'!$O$13:$O$42) -> 0 | I24: 20240301 | J24: 2409 | K24: =_xlfn.XLOOKUP(B24,'Batteries & Chargers'!$F$13:$F$42,'Batteries & Chargers'!$P$13:$P$42) -> 0 | L24: 20240402 | M24: 2414 | N24: =_xlfn.XLOOKUP(B24,'Batteries & Chargers'!$F$13:$F$42,'Batteries & Chargers'!$Q$13:$Q$42) -> 0 | O24: 20240501 | P24: 2418 | Q24: =_xlfn.XLOOKUP(B24,'Batteries & Chargers'!$F$13:$F$42,'Batteries & Chargers'!$R$13:$R$42) -> 0 | R24: 20240603 | S24: 2423 | T24: =_xlfn.XLOOKUP(B24,'Batteries & Chargers'!$F$13:$F$42,'Batteries & Chargers'!$S$13:$S$42) -> 0 | U24: =_xlfn.XLOOKUP(B24,'Batteries & Chargers'!$F$13:$F$42,'Batteries & Chargers'!$L$13:$L$42) -> 8.162
A25: Battery - Batteries & Chargers | B25: 582780501 | C25: 20240103 | D25: 2401 | E25: =_xlfn.XLOOKUP(B25,'Batteries & Chargers'!$F$13:$F$42,'Batteries & Chargers'!$N$13:$N$42) -> 0 | F25: 20240201 | G25: 2405 | H25: =_xlfn.XLOOKUP(B25,'Batteries & Chargers'!$F$13:$F$42,'Batteries & Chargers'!$O$13:$O$42) -> 0 | I25: 20240301 | J25: 2409 | K25: =_xlfn.XLOOKUP(B25,'Batteries & Chargers'!$F$13:$F$42,'Batteries & Chargers'!$P$13:$P$42) -> 0 | L25: 20240402 | M25: 2414 | N25: =_xlfn.XLOOKUP(B25,'Batteries & Chargers'!$F$13:$F$42,'Batteries & Chargers'!$Q$13:$Q$42) -> 0 | O25: 20240501 | P25: 2418 | Q25: =_xlfn.XLOOKUP(B25,'Batteries & Chargers'!$F$13:$F$42,'Batteries & Chargers'!$R$13:$R$42) -> 0 | R25: 20240603 | S25: 2423 | T25: =_xlfn.XLOOKUP(B25,'Batteries & Chargers'!$F$13:$F$42,'Batteries & Chargers'!$S$13:$S$42) -> 0 | U25: =_xlfn.XLOOKUP(B25,'Batteries & Chargers'!$F$13:$F$42,'Batteries & Chargers'!$L$13:$L$42) -> 116.662
A26: Battery - Batteries & Chargers | B26: 590776702 | C26: 20240103 | D26: 2401 | E26: =_xlfn.XLOOKUP(B26,'Batteries & Chargers'!$F$13:$F$42,'Batteries & Chargers'!$N$13:$N$42) -> 0 | F26: 20240201 | G26: 2405 | H26: =_xlfn.XLOOKUP(B26,'Batteries & Chargers'!$F$13:$F$42,'Batteries & Chargers'!$O$13:$O$42) -> 0 | I26: 20240301 | J26: 2409 | K26: =_xlfn.XLOOKUP(B26,'Batteries & Chargers'!$F$13:$F$42,'Batteries & Chargers'!$P$13:$P$42) -> 0 | L26: 20240402 | M26: 2414 | N26: =_xlfn.XLOOKUP(B26,'Batteries & Chargers'!$F$13:$F$42,'Batteries & Chargers'!$Q$13:$Q$42) -> 0 | O26: 20240501 | P26: 2418 | Q26: =_xlfn.XLOOKUP(B26,'Batteries & Chargers'!$F$13:$F$42,'Batteries & Chargers'!$R$13:$R$42) -> 0 | R26: 20240603 | S26: 2423 | T26: =_xlfn.XLOOKUP(B26,'Batteries & Chargers'!$F$13:$F$42,'Batteries & Chargers'!$S$13:$S$42) -> 0 | U26: =_xlfn.XLOOKUP(B26,'Batteries & Chargers'!$F$13:$F$42,'Batteries & Chargers'!$L$13:$L$42) -> 104.993
A27: Battery - Batteries & Chargers | B27: 967071901 | C27: 20240103 | D27: 2401 | E27: =_xlfn.XLOOKUP(B27,'Batteries & Chargers'!$F$13:$F$42,'Batteries & Chargers'!$N$13:$N$42) -> 0 | F27: 20240201 | G27: 2405 | H27: =_xlfn.XLOOKUP(B27,'Batteries & Chargers'!$F$13:$F$42,'Batteries & Chargers'!$O$13:$O$42) -> 0 | I27: 20240301 | J27: 2409 | K27: =_xlfn.XLOOKUP(B27,'Batteries & Chargers'!$F$13:$F$42,'Batteries & Chargers'!$P$13:$P$42) -> 0 | L27: 20240402 | M27: 2414 | N27: =_xlfn.XLOOKUP(B27,'Batteries & Chargers'!$F$13:$F$42,'Batteries & Chargers'!$Q$13:$Q$42) -> 0 | O27: 20240501 | P27: 2418 | Q27: =_xlfn.XLOOKUP(B27,'Batteries & Chargers'!$F$13:$F$42,'Batteries & Chargers'!$R$13:$R$42) -> 0 | R27: 20240603 | S27: 2423 | T27: =_xlfn.XLOOKUP(B27,'Batteries & Chargers'!$F$13:$F$42,'Batteries & Chargers'!$S$13:$S$42) -> 0 | U27: =_xlfn.XLOOKUP(B27,'Batteries & Chargers'!$F$13:$F$42,'Batteries & Chargers'!$L$13:$L$42) -> 232.75
A28: Battery - Batteries & Chargers | B28: 967091901 | C28: 20240103 | D28: 2401 | E28: =_xlfn.XLOOKUP(B28,'Batteries & Chargers'!$F$13:$F$42,'Batteries & Chargers'!$N$13:$N$42) -> 0 | F28: 20240201 | G28: 2405 | H28: =_xlfn.XLOOKUP(B28,'Batteries & Chargers'!$F$13:$F$42,'Batteries & Chargers'!$O$13:$O$42) -> 0 | I28: 20240301 | J28: 2409 | K28: =_xlfn.XLOOKUP(B28,'Batteries & Chargers'!$F$13:$F$42,'Batteries & Chargers'!$P$13:$P$42) -> 0 | L28: 20240402 | M28: 2414 | N28: =_xlfn.XLOOKUP(B28,'Batteries & Chargers'!$F$13:$F$42,'Batteries & Chargers'!$Q$13:$Q$42) -> 0 | O28: 20240501 | P28: 2418 | Q28: =_xlfn.XLOOKUP(B28,'Batteries & Chargers'!$F$13:$F$42,'Batteries & Chargers'!$R$13:$R$42) -> 0 | R28: 20240603 | S28: 2423 | T28: =_xlfn.XLOOKUP(B28,'Batteries & Chargers'!$F$13:$F$42,'Batteries & Chargers'!$S$13:$S$42) -> 0 | U28: =_xlfn.XLOOKUP(B28,'Batteries & Chargers'!$F$13:$F$42,'Batteries & Chargers'!$L$13:$L$42) -> 139.419
A29: Battery - Batteries & Chargers | B29: 970448901 | C29: 20240103 | D29: 2401 | E29: =_xlfn.XLOOKUP(B29,'Batteries & Chargers'!$F$13:$F$42,'Batteries & Chargers'!$N$13:$N$42) -> 10 | F29: 20240201 | G29: 2405 | H29: =_xlfn.XLOOKUP(B29,'Batteries & Chargers'!$F$13:$F$42,'Batteries & Chargers'!$O$13:$O$42) -> 0 | I29: 20240301 | J29: 2409 | K29: =_xlfn.XLOOKUP(B29,'Batteries & Chargers'!$F$13:$F$42,'Batteries & Chargers'!$P$13:$P$42) -> 10 | L29: 20240402 | M29: 2414 | N29: =_xlfn.XLOOKUP(B29,'Batteries & Chargers'!$F$13:$F$42,'Batteries & Chargers'!$Q$13:$Q$42) -> 0 | O29: 20240501 | P29: 2418 | Q29: =_xlfn.XLOOKUP(B29,'Batteries & Chargers'!$F$13:$F$42,'Batteries & Chargers'!$R$13:$R$42) -> 0 | R29: 20240603 | S29: 2423 | T29: =_xlfn.XLOOKUP(B29,'Batteries & Chargers'!$F$13:$F$42,'Batteries & Chargers'!$S$13:$S$42) -> 0 | U29: =_xlfn.XLOOKUP(B29,'Batteries & Chargers'!$F$13:$F$42,'Batteries & Chargers'!$L$13:$L$42) -> 151.081
A30: Battery - Batteries & Chargers | B30: 590777201 | C30: 20240103 | D30: 2401 | E30: =_xlfn.XLOOKUP(B30,'Batteries & Chargers'!$F$13:$F$42,'Batteries & Chargers'!$N$13:$N$42) -> 0 | F30: 20240201 | G30: 2405 | H30: =_xlfn.XLOOKUP(B30,'Batteries & Chargers'!$F$13:$F$42,'Batteries & Chargers'!$O$13:$O$42) -> 0 | I30: 20240301 | J30: 2409 | K30: =_xlfn.XLOOKUP(B30,'Batteries & Chargers'!$F$13:$F$42,'Batteries & Chargers'!$P$13:$P$42) -> 0 | L30: 20240402 | M30: 2414 | N30: =_xlfn.XLOOKUP(B30,'Batteries & Chargers'!$F$13:$F$42,'Batteries & Chargers'!$Q$13:$Q$42) -> 0 | O30: 20240501 | P30: 2418 | Q30: =_xlfn.XLOOKUP(B30,'Batteries & Chargers'!$F$13:$F$42,'Batteries & Chargers'!$R$13:$R$42) -> 0 | R30: 20240603 | S30: 2423 | T30: =_xlfn.XLOOKUP(B30,'Batteries & Chargers'!$F$13:$F$42,'Batteries & Chargers'!$S$13:$S$42) -> 0 | U30: =_xlfn.XLOOKUP(B30,'Batteries & Chargers'!$F$13:$F$42,'Batteries & Chargers'!$L$13:$L$42) -> 13.993
A31: Battery - Batteries & Chargers | B31: 587834001 | C31: 20240103 | D31: 2401 | E31: =_xlfn.XLOOKUP(B31,'Batteries & Chargers'!$F$13:$F$42,'Batteries & Chargers'!$N$13:$N$42) -> 0 | F31: 20240201 | G31: 2405 | H31: =_xlfn.XLOOKUP(B31,'Batteries & Chargers'!$F$13:$F$42,'Batteries & Chargers'!$O$13:$O$42) -> 0 | I31: 20240301 | J31: 2409 | K31: =_xlfn.XLOOKUP(B31,'Batteries & Chargers'!$F$13:$F$42,'Batteries & Chargers'!$P$13:$P$42) -> 0 | L31: 20240402 | M31: 2414 | N31: =_xlfn.XLOOKUP(B31,'Batteries & Chargers'!$F$13:$F$42,'Batteries & Chargers'!$Q$13:$Q$42) -> 0 | O31: 20240501 | P31: 2418 | Q31: =_xlfn.XLOOKUP(B31,'Batteries & Chargers'!$F$13:$F$42,'Batteries & Chargers'!$R$13:$R$42) -> 0 | R31: 20240603 | S31: 2423 | T31: =_xlfn.XLOOKUP(B31,'Batteries & Chargers'!$F$13:$F$42,'Batteries & Chargers'!$S$13:$S$42) -> 0 | U31: =_xlfn.XLOOKUP(B31,'Batteries & Chargers'!$F$13:$F$42,'Batteries & Chargers'!$L$13:$L$42) -> 15.162
A32: Battery - Batteries & Chargers | B32: 579822201 | C32: 20240103 | D32: 2401 | E32: =_xlfn.XLOOKUP(B32,'Batteries & Chargers'!$F$13:$F$42,'Batteries & Chargers'!$N$13:$N$42) -> 0 | F32: 20240201 | G32: 2405 | H32: =_xlfn.XLOOKUP(B32,'Batteries & Chargers'!$F$13:$F$42,'Batteries & Chargers'!$O$13:$O$42) -> 0 | I32: 20240301 | J32: 2409 | K32: =_xlfn.XLOOKUP(B32,'Batteries & Chargers'!$F$13:$F$42,'Batteries & Chargers'!$P$13:$P$42) -> 0 | L32: 20240402 | M32: 2414 | N32: =_xlfn.XLOOKUP(B32,'Batteries & Chargers'!$F$13:$F$42,'Batteries & Chargers'!$Q$13:$Q$42) -> 0 | O32: 20240501 | P32: 2418 | Q32: =_xlfn.XLOOKUP(B32,'Batteries & Chargers'!$F$13:$F$42,'Batteries & Chargers'!$R$13:$R$42) -> 0 | R32: 20240603 | S32: 2423 | T32: =_xlfn.XLOOKUP(B32,'Batteries & Chargers'!$F$13:$F$42,'Batteries & Chargers'!$S$13:$S$42) -> 0 | U32: =_xlfn.XLOOKUP(B32,'Batteries & Chargers'!$F$13:$F$42,'Batteries & Chargers'!$L$13:$L$42) -> 757.75
A33: Battery - Batteries & Chargers | B33: 967093201 | C33: 20240103 | D33: 2401 | E33: =_xlfn.XLOOKUP(B33,'Batteries & Chargers'!$F$13:$F$42,'Batteries & Chargers'!$N$13:$N$42) -> 0 | F33: 20240201 | G33: 2405 | H33: =_xlfn.XLOOKUP(B33,'Batteries & Chargers'!$F$13:$F$42,'Batteries & Chargers'!$O$13:$O$42) -> 0 | I33: 20240301 | J33: 2409 | K33: =_xlfn.XLOOKUP(B33,'Batteries & Chargers'!$F$13:$F$42,'Batteries & Chargers'!$P$13:$P$42) -> 0 | L33: 20240402 | M33: 2414 | N33: =_xlfn.XLOOKUP(B33,'Batteries & Chargers'!$F$13:$F$42,'Batteries & Chargers'!$Q$13:$Q$42) -> 0 | O33: 20240501 | P33: 2418 | Q33: =_xlfn.XLOOKUP(B33,'Batteries & Chargers'!$F$13:$F$42,'Batteries & Chargers'!$R$13:$R$42) -> 0 | R33: 20240603 | S33: 2423 | T33: =_xlfn.XLOOKUP(B33,'Batteries & Chargers'!$F$13:$F$42,'Batteries & Chargers'!$S$13:$S$42) -> 0 | U33: =_xlfn.XLOOKUP(B33,'Batteries & Chargers'!$F$13:$F$42,'Batteries & Chargers'!$L$13:$L$42) -> 816.081
A34: Battery - Batteries & Chargers | B34: 970601002 | C34: 20240103 | D34: 2401 | E34: =_xlfn.XLOOKUP(B34,'Batteries & Chargers'!$F$13:$F$42,'Batteries & Chargers'!$N$13:$N$42) -> 0 | F34: 20240201 | G34: 2405 | H34: =_xlfn.XLOOKUP(B34,'Batteries & Chargers'!$F$13:$F$42,'Batteries & Chargers'!$O$13:$O$42) -> 0 | I34: 20240301 | J34: 2409 | K34: =_xlfn.XLOOKUP(B34,'Batteries & Chargers'!$F$13:$F$42,'Batteries & Chargers'!$P$13:$P$42) -> 0 | L34: 20240402 | M34: 2414 | N34: =_xlfn.XLOOKUP(B34,'Batteries & Chargers'!$F$13:$F$42,'Batteries & Chargers'!$Q$13:$Q$42) -> 0 | O34: 20240501 | P34: 2418 | Q34: =_xlfn.XLOOKUP(B34,'Batteries & Chargers'!$F$13:$F$42,'Batteries & Chargers'!$R$13:$R$42) -> 0 | R34: 20240603 | S34: 2423 | T34: =_xlfn.XLOOKUP(B34,'Batteries & Chargers'!$F$13:$F$42,'Batteries & Chargers'!$S$13:$S$42) -> 0 | U34: =_xlfn.XLOOKUP(B34,'Batteries & Chargers'!$F$13:$F$42,'Batteries & Chargers'!$L$13:$L$42) -> 29.162
A35: Battery - Batteries & Chargers | B35: 970487802 | C35: 20240103 | D35: 2401 | E35: =_xlfn.XLOOKUP(B35,'Batteries & Chargers'!$F$13:$F$42,'Batteries & Chargers'!$N$13:$N$42) -> 0 | F35: 20240201 | G35: 2405 | H35: =_xlfn.XLOOKUP(B35,'Batteries & Chargers'!$F$13:$F$42,'Batteries & Chargers'!$O$13:$O$42) -> 0 | I35: 20240301 | J35: 2409 | K35: =_xlfn.XLOOKUP(B35,'Batteries & Chargers'!$F$13:$F$42,'Batteries & Chargers'!$P$13:$P$42) -> 0 | L35: 20240402 | M35: 2414 | N35: =_xlfn.XLOOKUP(B35,'Batteries & Chargers'!$F$13:$F$42,'Batteries & Chargers'!$Q$13:$Q$42) -> 0 | O35: 20240501 | P35: 2418 | Q35: =_xlfn.XLOOKUP(B35,'Batteries & Chargers'!$F$13:$F$42,'Batteries & Chargers'!$R$13:$R$42) -> 0 | R35: 20240603 | S35: 2423 | T35: =_xlfn.XLOOKUP(B35,'Batteries & Chargers'!$F$13:$F$42,'Batteries & Chargers'!$S$13:$S$42) -> 0 | U35: =_xlfn.XLOOKUP(B35,'Batteries & Chargers'!$F$13:$F$42,'Batteries & Chargers'!$L$13:$L$42) -> 32.081
A36: Battery - Batteries & Chargers | B36: 970522202 | C36: 20240103 | D36: 2401 | E36: =_xlfn.XLOOKUP(B36,'Batteries & Chargers'!$F$13:$F$42,'Batteries & Chargers'!$N$13:$N$42) -> 10 | F36: 20240201 | G36: 2405 | H36: =_xlfn.XLOOKUP(B36,'Batteries & Chargers'!$F$13:$F$42,'Batteries & Chargers'!$O$13:$O$42) -> 6 | I36: 20240301 | J36: 2409 | K36: =_xlfn.XLOOKUP(B36,'Batteries & Chargers'!$F$13:$F$42,'Batteries & Chargers'!$P$13:$P$42) -> 6 | L36: 20240402 | M36: 2414 | N36: =_xlfn.XLOOKUP(B36,'Batteries & Chargers'!$F$13:$F$42,'Batteries & Chargers'!$Q$13:$Q$42) -> 6 | O36: 20240501 | P36: 2418 | Q36: =_xlfn.XLOOKUP(B36,'Batteries & Chargers'!$F$13:$F$42,'Batteries & Chargers'!$R$13:$R$42) -> 6 | R36: 20240603 | S36: 2423 | T36: =_xlfn.XLOOKUP(B36,'Batteries & Chargers'!$F$13:$F$42,'Batteries & Chargers'!$S$13:$S$42) -> 6 | U36: =_xlfn.XLOOKUP(B36,'Batteries & Chargers'!$F$13:$F$42,'Batteries & Chargers'!$L$13:$L$42) -> 75.831
A37: Battery - Batteries & Chargers | B37: 967970102 | C37: 20240103 | D37: 2401 | E37: =_xlfn.XLOOKUP(B37,'Batteries & Chargers'!$F$13:$F$42,'Batteries & Chargers'!$N$13:$N$42) -> 0 | F37: 20240201 | G37: 2405 | H37: =_xlfn.XLOOKUP(B37,'Batteries & Chargers'!$F$13:$F$42,'Batteries & Chargers'!$O$13:$O$42) -> 0 | I37: 20240301 | J37: 2409 | K37: =_xlfn.XLOOKUP(B37,'Batteries & Chargers'!$F$13:$F$42,'Batteries & Chargers'!$P$13:$P$42) -> 0 | L37: 20240402 | M37: 2414 | N37: =_xlfn.XLOOKUP(B37,'Batteries & Chargers'!$F$13:$F$42,'Batteries & Chargers'!$Q$13:$Q$42) -> 0 | O37: 20240501 | P37: 2418 | Q37: =_xlfn.XLOOKUP(B37,'Batteries & Chargers'!$F$13:$F$42,'Batteries & Chargers'!$R$13:$R$42) -> 0 | R37: 20240603 | S37: 2423 | T37: =_xlfn.XLOOKUP(B37,'Batteries & Chargers'!$F$13:$F$42,'Batteries & Chargers'!$S$13:$S$42) -> 0 | U37: =_xlfn.XLOOKUP(B37,'Batteries & Chargers'!$F$13:$F$42,'Batteries & Chargers'!$L$13:$L$42) -> 52.493
A38: Battery - Batteries & Chargers | B38: 970449502 | C38: 20240103 | D38: 2401 | E38: =_xlfn.XLOOKUP(B38,'Batteries & Chargers'!$F$13:$F$42,'Batteries & Chargers'!$N$13:$N$42) -> 3 | F38: 20240201 | G38: 2405 | H38: =_xlfn.XLOOKUP(B38,'Batteries & Chargers'!$F$13:$F$42,'Batteries & Chargers'!$O$13:$O$42) -> 2 | I38: 20240301 | J38: 2409 | K38: =_xlfn.XLOOKUP(B38,'Batteries & Chargers'!$F$13:$F$42,'Batteries & Chargers'!$P$13:$P$42) -> 2 | L38: 20240402 | M38: 2414 | N38: =_xlfn.XLOOKUP(B38,'Batteries & Chargers'!$F$13:$F$42,'Batteries & Chargers'!$Q$13:$Q$42) -> 2 | O38: 20240501 | P38: 2418 | Q38: =_xlfn.XLOOKUP(B38,'Batteries & Chargers'!$F$13:$F$42,'Batteries & Chargers'!$R$13:$R$42) -> 2 | R38: 20240603 | S38: 2423 | T38: =_xlfn.XLOOKUP(B38,'Batteries & Chargers'!$F$13:$F$42,'Batteries & Chargers'!$S$13:$S$42) -> 2 | U38: =_xlfn.XLOOKUP(B38,'Batteries & Chargers'!$F$13:$F$42,'Batteries & Chargers'!$L$13:$L$42) -> 99.162
A39: Battery - Batteries & Chargers | B39: 967628301 | C39: 20240103 | D39: 2401 | E39: =_xlfn.XLOOKUP(B39,'Batteries & Chargers'!$F$13:$F$42,'Batteries & Chargers'!$N$13:$N$42) -> 0 | F39: 20240201 | G39: 2405 | H39: =_xlfn.XLOOKUP(B39,'Batteries & Chargers'!$F$13:$F$42,'Batteries & Chargers'!$O$13:$O$42) -> 0 | I39: 20240301 | J39: 2409 | K39: =_xlfn.XLOOKUP(B39,'Batteries & Chargers'!$F$13:$F$42,'Batteries & Chargers'!$P$13:$P$42) -> 0 | L39: 20240402 | M39: 2414 | N39: =_xlfn.XLOOKUP(B39,'Batteries & Chargers'!$F$13:$F$42,'Batteries & Chargers'!$Q$13:$Q$42) -> 0 | O39: 20240501 | P39: 2418 | Q39: =_xlfn.XLOOKUP(B39,'Batteries & Chargers'!$F$13:$F$42,'Batteries & Chargers'!$R$13:$R$42) -> 0 | R39: 20240603 | S39: 2423 | T39: =_xlfn.XLOOKUP(B39,'Batteries & Chargers'!$F$13:$F$42,'Batteries & Chargers'!$S$13:$S$42) -> 0 | U39: =_xlfn.XLOOKUP(B39,'Batteries & Chargers'!$F$13:$F$42,'Batteries & Chargers'!$L$13:$L$42) -> 52.493 | AB39: 967976102
A40: Battery - Batteries & Chargers | B40: 967628502 | C40: 20240103 | D40: 2401 | E40: =_xlfn.XLOOKUP(B40,'Batteries & Chargers'!$F$13:$F$42,'Batteries & Chargers'!$N$13:$N$42) -> 0 | F40: 20240201 | G40: 2405 | H40: =_xlfn.XLOOKUP(B40,'Batteries & Chargers'!$F$13:$F$42,'Batteries & Chargers'!$O$13:$O$42) -> 0 | I40: 20240301 | J40: 2409 | K40: =_xlfn.XLOOKUP(B40,'Batteries & Chargers'!$F$13:$F$42,'Batteries & Chargers'!$P$13:$P$42) -> 0 | L40: 20240402 | M40: 2414 | N40: =_xlfn.XLOOKUP(B40,'Batteries & Chargers'!$F$13:$F$42,'Batteries & Chargers'!$Q$13:$Q$42) -> 0 | O40: 20240501 | P40: 2418 | Q40: =_xlfn.XLOOKUP(B40,'Batteries & Chargers'!$F$13:$F$42,'Batteries & Chargers'!$R$13:$R$42) -> 0 | R40: 20240603 | S40: 2423 | T40: =_xlfn.XLOOKUP(B40,'Batteries & Chargers'!$F$13:$F$42,'Batteries & Chargers'!$S$13:$S$42) -> 0 | U40: =_xlfn.XLOOKUP(B40,'Batteries & Chargers'!$F$13:$F$42,'Batteries & Chargers'!$L$13:$L$42) -> 133.581 | AB40: 967976103
A41: Battery - Batteries & Chargers | B41: 970607701 | C41: 20240103 | D41: 2401 | E41: =_xlfn.XLOOKUP(B41,'Batteries & Chargers'!$F$13:$F$42,'Batteries & Chargers'!$N$13:$N$42) -> 0 | F41: 20240201 | G41: 2405 | H41: =_xlfn.XLOOKUP(B41,'Batteries & Chargers'!$F$13:$F$42,'Batteries & Chargers'!$O$13:$O$42) -> 0 | I41: 20240301 | J41: 2409 | K41: =_xlfn.XLOOKUP(B41,'Batteries & Chargers'!$F$13:$F$42,'Batteries & Chargers'!$P$13:$P$42) -> 0 | L41: 20240402 | M41: 2414 | N41: =_xlfn.XLOOKUP(B41,'Batteries & Chargers'!$F$13:$F$42,'Batteries & Chargers'!$Q$13:$Q$42) -> 2 | O41: 20240501 | P41: 2418 | Q41: =_xlfn.XLOOKUP(B41,'Batteries & Chargers'!$F$13:$F$42,'Batteries & Chargers'!$R$13:$R$42) -> 2 | R41: 20240603 | S41: 2423 | T41: =_xlfn.XLOOKUP(B41,'Batteries & Chargers'!$F$13:$F$42,'Batteries & Chargers'!$S$13:$S$42) -> 2 | U41: =_xlfn.XLOOKUP(B41,'Batteries & Chargers'!$F$13:$F$42,'Batteries & Chargers'!$L$13:$L$42) -> 244.419 | AB41: 970649802
A42: Battery - Batteries & Chargers | B42: 970607901 | C42: 20240103 | D42: 2401 | E42: =_xlfn.XLOOKUP(B42,'Batteries & Chargers'!$F$13:$F$42,'Batteries & Chargers'!$N$13:$N$42) -> 0 | F42: 20240201 | G42: 2405 | H42: =_xlfn.XLOOKUP(B42,'Batteries & Chargers'!$F$13:$F$42,'Batteries & Chargers'!$O$13:$O$42) -> 0 | I42: 20240301 | J42: 2409 | K42: =_xlfn.XLOOKUP(B42,'Batteries & Chargers'!$F$13:$F$42,'Batteries & Chargers'!$P$13:$P$42) -> 0 | L42: 20240402 | M42: 2414 | N42: =_xlfn.XLOOKUP(B42,'Batteries & Chargers'!$F$13:$F$42,'Batteries & Chargers'!$Q$13:$Q$42) -> 0 | O42: 20240501 | P42: 2418 | Q42: =_xlfn.XLOOKUP(B42,'Batteries & Chargers'!$F$13:$F$42,'Batteries & Chargers'!$R$13:$R$42) -> 0 | R42: 20240603 | S42: 2423 | T42: =_xlfn.XLOOKUP(B42,'Batteries & Chargers'!$F$13:$F$42,'Batteries & Chargers'!$S$13:$S$42) -> 0 | U42: =_xlfn.XLOOKUP(B42,'Batteries & Chargers'!$F$13:$F$42,'Batteries & Chargers'!$L$13:$L$42) -> 121.919 | AB42: 970649805
A43: Battery - Batteries & Chargers | B43: 970607801 | C43: 20240103 | D43: 2401 | E43: =_xlfn.XLOOKUP(B43,'Batteries & Chargers'!$F$13:$F$42,'Batteries & Chargers'!$N$13:$N$42) -> 0 | F43: 20240201 | G43: 2405 | H43: =_xlfn.XLOOKUP(B43,'Batteries & Chargers'!$F$13:$F$42,'Batteries & Chargers'!$O$13:$O$42) -> 0 | I43: 20240301 | J43: 2409 | K43: =_xlfn.XLOOKUP(B43,'Batteries & Chargers'!$F$13:$F$42,'Batteries & Chargers'!$P$13:$P$42) -> 0 | L43: 20240402 | M43: 2414 | N43: =_xlfn.XLOOKUP(B43,'Batteries & Chargers'!$F$13:$F$42,'Batteries & Chargers'!$Q$13:$Q$42) -> 6 | O43: 20240501 | P43: 2418 | Q43: =_xlfn.XLOOKUP(B43,'Batteries & Chargers'!$F$13:$F$42,'Batteries & Chargers'!$R$13:$R$42) -> 6 | R43: 20240603 | S43: 2423 | T43: =_xlfn.XLOOKUP(B43,'Batteries & Chargers'!$F$13:$F$42,'Batteries & Chargers'!$S$13:$S$42) -> 6 | U43: =_xlfn.XLOOKUP(B43,'Batteries & Chargers'!$F$13:$F$42,'Batteries & Chargers'!$L$13:$L$42) -> 180.25 | AB43: 967991001
A44: Battery - Batteries & Chargers | B44: 970600801 | C44: 20240103 | D44: 2401 | E44: =_xlfn.XLOOKUP(B44,'Batteries & Chargers'!$F$13:$F$42,'Batteries & Chargers'!$N$13:$N$42) -> 0 | F44: 20240201 | G44: 2405 | H44: =_xlfn.XLOOKUP(B44,'Batteries & Chargers'!$F$13:$F$42,'Batteries & Chargers'!$O$13:$O$42) -> 0 | I44: 20240301 | J44: 2409 | K44: =_xlfn.XLOOKUP(B44,'Batteries & Chargers'!$F$13:$F$42,'Batteries & Chargers'!$P$13:$P$42) -> 0 | L44: 20240402 | M44: 2414 | N44: =_xlfn.XLOOKUP(B44,'Batteries & Chargers'!$F$13:$F$42,'Batteries & Chargers'!$Q$13:$Q$42) -> 0 | O44: 20240501 | P44: 2418 | Q44: =_xlfn.XLOOKUP(B44,'Batteries & Chargers'!$F$13:$F$42,'Batteries & Chargers'!$R$13:$R$42) -> 0 | R44: 20240603 | S44: 2423 | T44: =_xlfn.XLOOKUP(B44,'Batteries & Chargers'!$F$13:$F$42,'Batteries & Chargers'!$S$13:$S$42) -> 0 | U44: =_xlfn.XLOOKUP(B44,'Batteries & Chargers'!$F$13:$F$42,'Batteries & Chargers'!$L$13:$L$42) -> 43.743 | AB44: 967796203
A45: Battery - Batteries & Chargers | B45: 970600901 | C45: 20240103 | D45: 2401 | E45: =_xlfn.XLOOKUP(B45,'Batteries & Chargers'!$F$13:$F$42,'Batteries & Chargers'!$N$13:$N$42) -> 0 | F45: 20240201 | G45: 2405 | H45: =_xlfn.XLOOKUP(B45,'Batteries & Chargers'!$F$13:$F$42,'Batteries & Chargers'!$O$13:$O$42) -> 0 | I45: 20240301 | J45: 2409 | K45: =_xlfn.XLOOKUP(B45,'Batteries & Chargers'!$F$13:$F$42,'Batteries & Chargers'!$P$13:$P$42) -> 0 | L45: 20240402 | M45: 2414 | N45: =_xlfn.XLOOKUP(B45,'Batteries & Chargers'!$F$13:$F$42,'Batteries & Chargers'!$Q$13:$Q$42) -> 0 | O45: 20240501 | P45: 2418 | Q45: =_xlfn.XLOOKUP(B45,'Batteries & Chargers'!$F$13:$F$42,'Batteries & Chargers'!$R$13:$R$42) -> 0 | R45: 20240603 | S45: 2423 | T45: =_xlfn.XLOOKUP(B45,'Batteries & Chargers'!$F$13:$F$42,'Batteries & Chargers'!$S$13:$S$42) -> 0 | U45: =_xlfn.XLOOKUP(B45,'Batteries & Chargers'!$F$13:$F$42,'Batteries & Chargers'!$L$13:$L$42) -> 58.331 | AB45: 967915503
A46: Battery - Batteries & Chargers | B46: 536144302 | C46: 20240103 | D46: 2401 | E46: =_xlfn.XLOOKUP(B46,'Batteries & Chargers'!$F$13:$F$42,'Batteries & Chargers'!$N$13:$N$42) -> 0 | F46: 20240201 | G46: 2405 | H46: =_xlfn.XLOOKUP(B46,'Batteries & Chargers'!$F$13:$F$42,'Batteries & Chargers'!$O$13:$O$42) -> 0 | I46: 20240301 | J46: 2409 | K46: =_xlfn.XLOOKUP(B46,'Batteries & Chargers'!$F$13:$F$42,'Batteries & Chargers'!$P$13:$P$42) -> 0 | L46: 20240402 | M46: 2414 | N46: =_xlfn.XLOOKUP(B46,'Batteries & Chargers'!$F$13:$F$42,'Batteries & Chargers'!$Q$13:$Q$42) -> 0 | O46: 20240501 | P46: 2418 | Q46: =_xlfn.XLOOKUP(B46,'Batteries & Chargers'!$F$13:$F$42,'Batteries & Chargers'!$R$13:$R$42) -> 0 | R46: 20240603 | S46: 2423 | T46: =_xlfn.XLOOKUP(B46,'Batteries & Chargers'!$F$13:$F$42,'Batteries & Chargers'!$S$13:$S$42) -> 0 | U46: =_xlfn.XLOOKUP(B46,'Batteries & Chargers'!$F$13:$F$42,'Batteries & Chargers'!$L$13:$L$42) -> 64.162 | AB46: 967941406
A47: Battery - Batteries & Chargers | B47: 970621902 | C47: 20240103 | D47: 2401 | E47: =_xlfn.XLOOKUP(B47,'Batteries & Chargers'!$F$13:$F$42,'Batteries & Chargers'!$N$13:$N$42) -> 0 | F47: 20240201 | G47: 2405 | H47: =_xlfn.XLOOKUP(B47,'Batteries & Chargers'!$F$13:$F$42,'Batteries & Chargers'!$O$13:$O$42) -> 0 | I47: 20240301 | J47: 2409 | K47: =_xlfn.XLOOKUP(B47,'Batteries & Chargers'!$F$13:$F$42,'Batteries & Chargers'!$P$13:$P$42) -> 0 | L47: 20240402 | M47: 2414 | N47: =_xlfn.XLOOKUP(B47,'Batteries & Chargers'!$F$13:$F$42,'Batteries & Chargers'!$Q$13:$Q$42) -> 0 | O47: 20240501 | P47: 2418 | Q47: =_xlfn.XLOOKUP(B47,'Batteries & Chargers'!$F$13:$F$42,'Batteries & Chargers'!$R$13:$R$42) -> 0 | R47: 20240603 | S47: 2423 | T47: =_xlfn.XLOOKUP(B47,'Batteries & Chargers'!$F$13:$F$42,'Batteries & Chargers'!$S$13:$S$42) -> 0 | U47: =_xlfn.XLOOKUP(B47,'Batteries & Chargers'!$F$13:$F$42,'Batteries & Chargers'!$L$13:$L$42) -> 261.919 | AB47: 970572514
A48: Battery - Batteries & Chargers | B48: 970457101 | C48: 20240103 | D48: 2401 | E48: =_xlfn.XLOOKUP(B48,'Batteries & Chargers'!$F$13:$F$42,'Batteries & Chargers'!$N$13:$N$42) -> 0 | F48: 20240201 | G48: 2405 | H48: =_xlfn.XLOOKUP(B48,'Batteries & Chargers'!$F$13:$F$42,'Batteries & Chargers'!$O$13:$O$42) -> 0 | I48: 20240301 | J48: 2409 | K48: =_xlfn.XLOOKUP(B48,'Batteries & Chargers'!$F$13:$F$42,'Batteries & Chargers'!$P$13:$P$42) -> 0 | L48: 20240402 | M48: 2414 | N48: =_xlfn.XLOOKUP(B48,'Batteries & Chargers'!$F$13:$F$42,'Batteries & Chargers'!$Q$13:$Q$42) -> 0 | O48: 20240501 | P48: 2418 | Q48: =_xlfn.XLOOKUP(B48,'Batteries & Chargers'!$F$13:$F$42,'Batteries & Chargers'!$R$13:$R$42) -> 0 | R48: 20240603 | S48: 2423 | T48: =_xlfn.XLOOKUP(B48,'Batteries & Chargers'!$F$13:$F$42,'Batteries & Chargers'!$S$13:$S$42) -> 0 | U48: =_xlfn.XLOOKUP(B48,'Batteries & Chargers'!$F$13:$F$42,'Batteries & Chargers'!$L$13:$L$42) -> 58.331 | AB48: 970572516
A49: Battery - Batteries & Chargers | B49: 970457201 | C49: 20240103 | D49: 2401 | E49: =_xlfn.XLOOKUP(B49,'Batteries & Chargers'!$F$13:$F$42,'Batteries & Chargers'!$N$13:$N$42) -> 0 | F49: 20240201 | G49: 2405 | H49: =_xlfn.XLOOKUP(B49,'Batteries & Chargers'!$F$13:$F$42,'Batteries & Chargers'!$O$13:$O$42) -> 0 | I49: 20240301 | J49: 2409 | K49: =_xlfn.XLOOKUP(B49,'Batteries & Chargers'!$F$13:$F$42,'Batteries & Chargers'!$P$13:$P$42) -> 0 | L49: 20240402 | M49: 2414 | N49: =_xlfn.XLOOKUP(B49,'Batteries & Chargers'!$F$13:$F$42,'Batteries & Chargers'!$Q$13:$Q$42) -> 0 | O49: 20240501 | P49: 2418 | Q49: =_xlfn.XLOOKUP(B49,'Batteries & Chargers'!$F$13:$F$42,'Batteries & Chargers'!$R$13:$R$42) -> 0 | R49: 20240603 | S49: 2423 | T49: =_xlfn.XLOOKUP(B49,'Batteries & Chargers'!$F$13:$F$42,'Batteries & Chargers'!$S$13:$S$42) -> 0 | U49: =_xlfn.XLOOKUP(B49,'Batteries & Chargers'!$F$13:$F$42,'Batteries & Chargers'!$L$13:$L$42) -> 87.493 | AB49: 970568112
A50: Battery - Batteries & Chargers | B50: 967937701 | C50: 20240103 | D50: 2401 | E50: =_xlfn.XLOOKUP(B50,'Batteries & Chargers'!$F$13:$F$42,'Batteries & Chargers'!$N$13:$N$42) -> 0 | F50: 20240201 | G50: 2405 | H50: =_xlfn.XLOOKUP(B50,'Batteries & Chargers'!$F$13:$F$42,'Batteries & Chargers'!$O$13:$O$42) -> 0 | I50: 20240301 | J50: 2409 | K50: =_xlfn.XLOOKUP(B50,'Batteries & Chargers'!$F$13:$F$42,'Batteries & Chargers'!$P$13:$P$42) -> 0 | L50: 20240402 | M50: 2414 | N50: =_xlfn.XLOOKUP(B50,'Batteries & Chargers'!$F$13:$F$42,'Batteries & Chargers'!$Q$13:$Q$42) -> 0 | O50: 20240501 | P50: 2418 | Q50: =_xlfn.XLOOKUP(B50,'Batteries & Chargers'!$F$13:$F$42,'Batteries & Chargers'!$R$13:$R$42) -> 0 | R50: 20240603 | S50: 2423 | T50: =_xlfn.XLOOKUP(B50,'Batteries & Chargers'!$F$13:$F$42,'Batteries & Chargers'!$S$13:$S$42) -> 0 | U50: =_xlfn.XLOOKUP(B50,'Batteries & Chargers'!$F$13:$F$42,'Batteries & Chargers'!$L$13:$L$42) -> 162.75 | AB50: 970568114
A51: Battery - Hand Held | B51: 967976101 | C51: 20240103 | D51: 2401 | E51: =_xlfn.XLOOKUP(B51,'Battery - Hand Held'!$F$13:$F$83,'Battery - Hand Held'!U13:U83) -> 0 | F51: 20240201 | G51: 2405 | H51: =_xlfn.XLOOKUP(B51,'Battery - Hand Held'!$F$13:$F$83,'Battery - Hand Held'!$V$13:$V$83) -> 0 | I51: 20240301 | J51: 2409 | K51: =_xlfn.XLOOKUP(B51,'Battery - Hand Held'!$F$13:$F$83,'Battery - Hand Held'!$W$13:$W$83) -> 0 | L51: 20240402 | M51: 2414 | N51: =_xlfn.XLOOKUP(B51,'Battery - Hand Held'!$F$13:$F$83,'Battery - Hand Held'!X13:X83) -> 0 | O51: 20240501 | P51: 2418 | Q51: =_xlfn.XLOOKUP(B51,'Battery - Hand Held'!$F$13:$F$83,'Battery - Hand Held'!$Y$13:$Y$83) -> 0 | R51: 20240603 | S51: 2423 | T51: =_xlfn.XLOOKUP(B51,'Battery - Hand Held'!$F$13:$F$83,'Battery - Hand Held'!$Z$13:$Z$83) -> 0 | U51: =_xlfn.XLOOKUP(B51,'Battery - Hand Held'!$F$13:$F$83,'Battery - Hand Held'!$L$13:$L$83) -> 87.493 | AB51: 970568116
A52: Battery - Hand Held | B52: 967976103 | C52: 20240103 | D52: 2401 | E52: =_xlfn.XLOOKUP(B52,'Battery - Hand Held'!$F$13:$F$83,'Battery - Hand Held'!$U$13:$U$83) -> 0 | F52: 20240201 | G52: 2405 | H52: =_xlfn.XLOOKUP(B52,'Battery - Hand Held'!$F$13:$F$83,'Battery - Hand Held'!$V$13:$V$83) -> 0 | I52: 20240301 | J52: 2409 | K52: =_xlfn.XLOOKUP(B52,'Battery - Hand Held'!$F$13:$F$83,'Battery - Hand Held'!$W$13:$W$83) -> 0 | L52: 20240402 | M52: 2414 | N52: =_xlfn.XLOOKUP(B52,'Battery - Hand Held'!$F$13:$F$83,'Battery - Hand Held'!$X$13:$X$83) -> 0 | O52: 20240501 | P52: 2418 | Q52: =_xlfn.XLOOKUP(B52,'Battery - Hand Held'!$F$13:$F$83,'Battery - Hand Held'!$Y$13:$Y$83) -> 0 | R52: 20240603 | S52: 2423 | T52: =_xlfn.XLOOKUP(B52,'Battery - Hand Held'!$F$13:$F$83,'Battery - Hand Held'!$Z$13:$Z$83) -> 0 | U52: =_xlfn.XLOOKUP(B52,'Battery - Hand Held'!$F$13:$F$83,'Battery - Hand Held'!$L$13:$L$83) -> 174.419 | AB52: 970572316
A53: Battery - Hand Held | B53: 970649802 | C53: 20240103 | D53: 2401 | E53: =_xlfn.XLOOKUP(B53,'Battery - Hand Held'!$F$13:$F$83,'Battery - Hand Held'!$U$13:$U$83) -> 0 | F53: 20240201 | G53: 2405 | H53: =_xlfn.XLOOKUP(B53,'Battery - Hand Held'!$F$13:$F$83,'Battery - Hand Held'!$V$13:$V$83) -> 0 | I53: 20240301 | J53: 2409 | K53: =_xlfn.XLOOKUP(B53,'Battery - Hand Held'!$F$13:$F$83,'Battery - Hand Held'!$W$13:$W$83) -> 0 | L53: 20240402 | M53: 2414 | N53: =_xlfn.XLOOKUP(B53,'Battery - Hand Held'!$F$13:$F$83,'Battery - Hand Held'!$X$13:$X$83) -> 0 | O53: 20240501 | P53: 2418 | Q53: =_xlfn.XLOOKUP(B53,'Battery - Hand Held'!$F$13:$F$83,'Battery - Hand Held'!$Y$13:$Y$83) -> 0 | R53: 20240603 | S53: 2423 | T53: =_xlfn.XLOOKUP(B53,'Battery - Hand Held'!$F$13:$F$83,'Battery - Hand Held'!$Z$13:$Z$83) -> 0 | U53: =_xlfn.XLOOKUP(B53,'Battery - Hand Held'!$F$13:$F$83,'Battery - Hand Held'!$L$13:$L$83) -> 127.75 | AB53: 970547505
A54: Battery - Hand Held | B54: 970649805 | C54: 20240103 | D54: 2401 | E54: =_xlfn.XLOOKUP(B54,'Battery - Hand Held'!$F$13:$F$83,'Battery - Hand Held'!$U$13:$U$83) -> 0 | F54: 20240201 | G54: 2405 | H54: =_xlfn.XLOOKUP(B54,'Battery - Hand Held'!$F$13:$F$83,'Battery - Hand Held'!$V$13:$V$83) -> 0 | I54: 20240301 | J54: 2409 | K54: =_xlfn.XLOOKUP(B54,'Battery - Hand Held'!$F$13:$F$83,'Battery - Hand Held'!$W$13:$W$83) -> 0 | L54: 20240402 | M54: 2414 | N54: =_xlfn.XLOOKUP(B54,'Battery - Hand Held'!$F$13:$F$83,'Battery - Hand Held'!$X$13:$X$83) -> 0 | O54: 20240501 | P54: 2418 | Q54: =_xlfn.XLOOKUP(B54,'Battery - Hand Held'!$F$13:$F$83,'Battery - Hand Held'!$Y$13:$Y$83) -> 0 | R54: 20240603 | S54: 2423 | T54: =_xlfn.XLOOKUP(B54,'Battery - Hand Held'!$F$13:$F$83,'Battery - Hand Held'!$Z$13:$Z$83) -> 0 | U54: =_xlfn.XLOOKUP(B54,'Battery - Hand Held'!$F$13:$F$83,'Battery - Hand Held'!$L$13:$L$83) -> 186.081 | AB54: 970547502
A55: Battery - Hand Held | B55: 967991001 | C55: 20240103 | D55: 2401 | E55: =_xlfn.XLOOKUP(B55,'Battery - Hand Held'!$F$13:$F$83,'Battery - Hand Held'!$U$13:$U$83) -> 0 | F55: 20240201 | G55: 2405 | H55: =_xlfn.XLOOKUP(B55,'Battery - Hand Held'!$F$13:$F$83,'Battery - Hand Held'!$V$13:$V$83) -> 0 | I55: 20240301 | J55: 2409 | K55: =_xlfn.XLOOKUP(B55,'Battery - Hand Held'!$F$13:$F$83,'Battery - Hand Held'!$W$13:$W$83) -> 0 | L55: 20240402 | M55: 2414 | N55: =_xlfn.XLOOKUP(B55,'Battery - Hand Held'!$F$13:$F$83,'Battery - Hand Held'!$X$13:$X$83) -> 0 | O55: 20240501 | P55: 2418 | Q55: =_xlfn.XLOOKUP(B55,'Battery - Hand Held'!$F$13:$F$83,'Battery - Hand Held'!$Y$13:$Y$83) -> 0 | R55: 20240603 | S55: 2423 | T55: =_xlfn.XLOOKUP(B55,'Battery - Hand Held'!$F$13:$F$83,'Battery - Hand Held'!$Z$13:$Z$83) -> 0 | U55: =_xlfn.XLOOKUP(B55,'Battery - Hand Held'!$F$13:$F$83,'Battery - Hand Held'!$L$13:$L$83) -> 191.919 | AB55: 970547503
A56: Battery - Hand Held | B56: 967796203 | C56: 20240103 | D56: 2401 | E56: =_xlfn.XLOOKUP(B56,'Battery - Hand Held'!$F$13:$F$83,'Battery - Hand Held'!$U$13:$U$83) -> 0 | F56: 20240201 | G56: 2405 | H56: =_xlfn.XLOOKUP(B56,'Battery - Hand Held'!$F$13:$F$83,'Battery - Hand Held'!$V$13:$V$83) -> 0 | I56: 20240301 | J56: 2409 | K56: =_xlfn.XLOOKUP(B56,'Battery - Hand Held'!$F$13:$F$83,'Battery - Hand Held'!$W$13:$W$83) -> 0 | L56: 20240402 | M56: 2414 | N56: =_xlfn.XLOOKUP(B56,'Battery - Hand Held'!$F$13:$F$83,'Battery - Hand Held'!$X$13:$X$83) -> 0 | O56: 20240501 | P56: 2418 | Q56: =_xlfn.XLOOKUP(B56,'Battery - Hand Held'!$F$13:$F$83,'Battery - Hand Held'!$Y$13:$Y$83) -> 0 | R56: 20240603 | S56: 2423 | T56: =_xlfn.XLOOKUP(B56,'Battery - Hand Held'!$F$13:$F$83,'Battery - Hand Held'!$Z$13:$Z$83) -> 0 | U56: =_xlfn.XLOOKUP(B56,'Battery - Hand Held'!$F$13:$F$83,'Battery - Hand Held'!$L$13:$L$83) -> 349.419 | AB56: 970547512
A57: Battery - Hand Held | B57: 967915503 | C57: 20240103 | D57: 2401 | E57: =_xlfn.XLOOKUP(B57,'Battery - Hand Held'!$F$13:$F$83,'Battery - Hand Held'!$U$13:$U$83) -> 0 | F57: 20240201 | G57: 2405 | H57: =_xlfn.XLOOKUP(B57,'Battery - Hand Held'!$F$13:$F$83,'Battery - Hand Held'!$V$13:$V$83) -> 0 | I57: 20240301 | J57: 2409 | K57: =_xlfn.XLOOKUP(B57,'Battery - Hand Held'!$F$13:$F$83,'Battery - Hand Held'!$W$13:$W$83) -> 0 | L57: 20240402 | M57: 2414 | N57: =_xlfn.XLOOKUP(B57,'Battery - Hand Held'!$F$13:$F$83,'Battery - Hand Held'!$X$13:$X$83) -> 0 | O57: 20240501 | P57: 2418 | Q57: =_xlfn.XLOOKUP(B57,'Battery - Hand Held'!$F$13:$F$83,'Battery - Hand Held'!$Y$13:$Y$83) -> 0 | R57: 20240603 | S57: 2423 | T57: =_xlfn.XLOOKUP(B57,'Battery - Hand Held'!$F$13:$F$83,'Battery - Hand Held'!$Z$13:$Z$83) -> 0 | U57: =_xlfn.XLOOKUP(B57,'Battery - Hand Held'!$F$13:$F$83,'Battery - Hand Held'!$L$13:$L$83) -> 291.081 | AB57: 970547513
A58: Battery - Hand Held | B58: 967941406 | C58: 20240103 | D58: 2401 | E58: =_xlfn.XLOOKUP(B58,'Battery - Hand Held'!$F$13:$F$83,'Battery - Hand Held'!$U$13:$U$83) -> 0 | F58: 20240201 | G58: 2405 | H58: =_xlfn.XLOOKUP(B58,'Battery - Hand Held'!$F$13:$F$83,'Battery - Hand Held'!$V$13:$V$83) -> 0 | I58: 20240301 | J58: 2409 | K58: =_xlfn.XLOOKUP(B58,'Battery - Hand Held'!$F$13:$F$83,'Battery - Hand Held'!$W$13:$W$83) -> 0 | L58: 20240402 | M58: 2414 | N58: =_xlfn.XLOOKUP(B58,'Battery - Hand Held'!$F$13:$F$83,'Battery - Hand Held'!$X$13:$X$83) -> 0 | O58: 20240501 | P58: 2418 | Q58: =_xlfn.XLOOKUP(B58,'Battery - Hand Held'!$F$13:$F$83,'Battery - Hand Held'!$Y$13:$Y$83) -> 0 | R58: 20240603 | S58: 2423 | T58: =_xlfn.XLOOKUP(B58,'Battery - Hand Held'!$F$13:$F$83,'Battery - Hand Held'!$Z$13:$Z$83) -> 0 | U58: =_xlfn.XLOOKUP(B58,'Battery - Hand Held'!$F$13:$F$83,'Battery - Hand Held'!$L$13:$L$83) -> 291.081 | AB58: 970601103
A59: Battery - Hand Held | B59: 967681103 | C59: 20240103 | D59: 2401 | E59: =_xlfn.XLOOKUP(B59,'Battery - Hand Held'!$F$13:$F$83,'Battery - Hand Held'!$U$13:$U$83) -> 0 | F59: 20240201 | G59: 2405 | H59: =_xlfn.XLOOKUP(B59,'Battery - Hand Held'!$F$13:$F$83,'Battery - Hand Held'!$V$13:$V$83) -> 0 | I59: 20240301 | J59: 2409 | K59: =_xlfn.XLOOKUP(B59,'Battery - Hand Held'!$F$13:$F$83,'Battery - Hand Held'!$W$13:$W$83) -> 0 | L59: 20240402 | M59: 2414 | N59: =_xlfn.XLOOKUP(B59,'Battery - Hand Held'!$F$13:$F$83,'Battery - Hand Held'!$X$13:$X$83) -> 0 | O59: 20240501 | P59: 2418 | Q59: =_xlfn.XLOOKUP(B59,'Battery - Hand Held'!$F$13:$F$83,'Battery - Hand Held'!$Y$13:$Y$83) -> 0 | R59: 20240603 | S59: 2423 | T59: =_xlfn.XLOOKUP(B59,'Battery - Hand Held'!$F$13:$F$83,'Battery - Hand Held'!$Z$13:$Z$83) -> 0 | U59: =_xlfn.XLOOKUP(B59,'Battery - Hand Held'!$F$13:$F$83,'Battery - Hand Held'!$L$13:$L$83) -> 407.75 | AB59: 967864016
A60: Battery - Hand Held | B60: 529351901 | C60: 20240103 | D60: 2401 | E60: =_xlfn.XLOOKUP(B60,'Battery - Hand Held'!$F$13:$F$83,'Battery - Hand Held'!$U$13:$U$83) -> 0 | F60: 20240201 | G60: 2405 | H60: =_xlfn.XLOOKUP(B60,'Battery - Hand Held'!$F$13:$F$83,'Battery - Hand Held'!$V$13:$V$83) -> 0 | I60: 20240301 | J60: 2409 | K60: =_xlfn.XLOOKUP(B60,'Battery - Hand Held'!$F$13:$F$83,'Battery - Hand Held'!$W$13:$W$83) -> 0 | L60: 20240402 | M60: 2414 | N60: =_xlfn.XLOOKUP(B60,'Battery - Hand Held'!$F$13:$F$83,'Battery - Hand Held'!$X$13:$X$83) -> 0 | O60: 20240501 | P60: 2418 | Q60: =_xlfn.XLOOKUP(B60,'Battery - Hand Held'!$F$13:$F$83,'Battery - Hand Held'!$Y$13:$Y$83) -> 0 | R60: 20240603 | S60: 2423 | T60: =_xlfn.XLOOKUP(B60,'Battery - Hand Held'!$F$13:$F$83,'Battery - Hand Held'!$Z$13:$Z$83) -> 0 | U60: =_xlfn.XLOOKUP(B60,'Battery - Hand Held'!$F$13:$F$83,'Battery - Hand Held'!$L$13:$L$83) -> 69.993
A61: Battery - Hand Held | B61: 970515903 | C61: 20240103 | D61: 2401 | E61: =_xlfn.XLOOKUP(B61,'Battery - Hand Held'!$F$13:$F$83,'Battery - Hand Held'!$U$13:$U$83) -> 0 | F61: 20240201 | G61: 2405 | H61: =_xlfn.XLOOKUP(B61,'Battery - Hand Held'!$F$13:$F$83,'Battery - Hand Held'!$V$13:$V$83) -> 0 | I61: 20240301 | J61: 2409 | K61: =_xlfn.XLOOKUP(B61,'Battery - Hand Held'!$F$13:$F$83,'Battery - Hand Held'!$W$13:$W$83) -> 0 | L61: 20240402 | M61: 2414 | N61: =_xlfn.XLOOKUP(B61,'Battery - Hand Held'!$F$13:$F$83,'Battery - Hand Held'!$X$13:$X$83) -> 0 | O61: 20240501 | P61: 2418 | Q61: =_xlfn.XLOOKUP(B61,'Battery - Hand Held'!$F$13:$F$83,'Battery - Hand Held'!$Y$13:$Y$83) -> 0 | R61: 20240603 | S61: 2423 | T61: =_xlfn.XLOOKUP(B61,'Battery - Hand Held'!$F$13:$F$83,'Battery - Hand Held'!$Z$13:$Z$83) -> 0 | U61: =_xlfn.XLOOKUP(B61,'Battery - Hand Held'!$F$13:$F$83,'Battery - Hand Held'!$L$13:$L$83) -> 174.419
A62: Battery - Hand Held | B62: 970515909 | C62: 20240103 | D62: 2401 | E62: =_xlfn.XLOOKUP(B62,'Battery - Hand Held'!$F$13:$F$83,'Battery - Hand Held'!$U$13:$U$83) -> 0 | F62: 20240201 | G62: 2405 | H62: =_xlfn.XLOOKUP(B62,'Battery - Hand Held'!$F$13:$F$83,'Battery - Hand Held'!$V$13:$V$83) -> 0 | I62: 20240301 | J62: 2409 | K62: =_xlfn.XLOOKUP(B62,'Battery - Hand Held'!$F$13:$F$83,'Battery - Hand Held'!$W$13:$W$83) -> 0 | L62: 20240402 | M62: 2414 | N62: =_xlfn.XLOOKUP(B62,'Battery - Hand Held'!$F$13:$F$83,'Battery - Hand Held'!$X$13:$X$83) -> 0 | O62: 20240501 | P62: 2418 | Q62: =_xlfn.XLOOKUP(B62,'Battery - Hand Held'!$F$13:$F$83,'Battery - Hand Held'!$Y$13:$Y$83) -> 0 | R62: 20240603 | S62: 2423 | T62: =_xlfn.XLOOKUP(B62,'Battery - Hand Held'!$F$13:$F$83,'Battery - Hand Held'!$Z$13:$Z$83) -> 0 | U62: =_xlfn.XLOOKUP(B62,'Battery - Hand Held'!$F$13:$F$83,'Battery - Hand Held'!$L$13:$L$83) -> 256.081
A63: Battery - Hand Held | B63: 967850103 | C63: 20240103 | D63: 2401 | E63: =_xlfn.XLOOKUP(B63,'Battery - Hand Held'!$F$13:$F$83,'Battery - Hand Held'!$U$13:$U$83) -> 0 | F63: 20240201 | G63: 2405 | H63: =_xlfn.XLOOKUP(B63,'Battery - Hand Held'!$F$13:$F$83,'Battery - Hand Held'!$V$13:$V$83) -> 0 | I63: 20240301 | J63: 2409 | K63: =_xlfn.XLOOKUP(B63,'Battery - Hand Held'!$F$13:$F$83,'Battery - Hand Held'!$W$13:$W$83) -> 0 | L63: 20240402 | M63: 2414 | N63: =_xlfn.XLOOKUP(B63,'Battery - Hand Held'!$F$13:$F$83,'Battery - Hand Held'!$X$13:$X$83) -> 0 | O63: 20240501 | P63: 2418 | Q63: =_xlfn.XLOOKUP(B63,'Battery - Hand Held'!$F$13:$F$83,'Battery - Hand Held'!$Y$13:$Y$83) -> 0 | R63: 20240603 | S63: 2423 | T63: =_xlfn.XLOOKUP(B63,'Battery - Hand Held'!$F$13:$F$83,'Battery - Hand Held'!$Z$13:$Z$83) -> 0 | U63: =_xlfn.XLOOKUP(B63,'Battery - Hand Held'!$F$13:$F$83,'Battery - Hand Held'!$L$13:$L$83) -> 250.25
A64: Battery - Hand Held | B64: 970515901 | C64: 20240103 | D64: 2401 | E64: =_xlfn.XLOOKUP(B64,'Battery - Hand Held'!$F$13:$F$83,'Battery - Hand Held'!$U$13:$U$83) -> 0 | F64: 20240201 | G64: 2405 | H64: =_xlfn.XLOOKUP(B64,'Battery - Hand Held'!$F$13:$F$83,'Battery - Hand Held'!$V$13:$V$83) -> 0 | I64: 20240301 | J64: 2409 | K64: =_xlfn.XLOOKUP(B64,'Battery - Hand Held'!$F$13:$F$83,'Battery - Hand Held'!$W$13:$W$83) -> 0 | L64: 20240402 | M64: 2414 | N64: =_xlfn.XLOOKUP(B64,'Battery - Hand Held'!$F$13:$F$83,'Battery - Hand Held'!$X$13:$X$83) -> 0 | O64: 20240501 | P64: 2418 | Q64: =_xlfn.XLOOKUP(B64,'Battery - Hand Held'!$F$13:$F$83,'Battery - Hand Held'!$Y$13:$Y$83) -> 0 | R64: 20240603 | S64: 2423 | T64: =_xlfn.XLOOKUP(B64,'Battery - Hand Held'!$F$13:$F$83,'Battery - Hand Held'!$Z$13:$Z$83) -> 0 | U64: =_xlfn.XLOOKUP(B64,'Battery - Hand Held'!$F$13:$F$83,'Battery - Hand Held'!$L$13:$L$83) -> 133.581
A65: Battery - Hand Held | B65: 970572516 | C65: 20240103 | D65: 2401 | E65: =_xlfn.XLOOKUP(B65,'Battery - Hand Held'!$F$13:$F$83,'Battery - Hand Held'!$U$13:$U$83) -> 0 | F65: 20240201 | G65: 2405 | H65: =_xlfn.XLOOKUP(B65,'Battery - Hand Held'!$F$13:$F$83,'Battery - Hand Held'!$V$13:$V$83) -> 0 | I65: 20240301 | J65: 2409 | K65: =_xlfn.XLOOKUP(B65,'Battery - Hand Held'!$F$13:$F$83,'Battery - Hand Held'!$W$13:$W$83) -> 0 | L65: 20240402 | M65: 2414 | N65: =_xlfn.XLOOKUP(B65,'Battery - Hand Held'!$F$13:$F$83,'Battery - Hand Held'!$X$13:$X$83) -> 0 | O65: 20240501 | P65: 2418 | Q65: =_xlfn.XLOOKUP(B65,'Battery - Hand Held'!$F$13:$F$83,'Battery - Hand Held'!$Y$13:$Y$83) -> 0 | R65: 20240603 | S65: 2423 | T65: =_xlfn.XLOOKUP(B65,'Battery - Hand Held'!$F$13:$F$83,'Battery - Hand Held'!$Z$13:$Z$83) -> 0 | U65: =_xlfn.XLOOKUP(B65,'Battery - Hand Held'!$F$13:$F$83,'Battery - Hand Held'!$L$13:$L$83) -> 436.919 | AB65: 967863714
A66: Battery - Hand Held | B66: 970568112 | C66: 20240103 | D66: 2401 | E66: =_xlfn.XLOOKUP(B66,'Battery - Hand Held'!$F$13:$F$83,'Battery - Hand Held'!$U$13:$U$83) -> 0 | F66: 20240201 | G66: 2405 | H66: =_xlfn.XLOOKUP(B66,'Battery - Hand Held'!$F$13:$F$83,'Battery - Hand Held'!$V$13:$V$83) -> 0 | I66: 20240301 | J66: 2409 | K66: =_xlfn.XLOOKUP(B66,'Battery - Hand Held'!$F$13:$F$83,'Battery - Hand Held'!$W$13:$W$83) -> 0 | L66: 20240402 | M66: 2414 | N66: =_xlfn.XLOOKUP(B66,'Battery - Hand Held'!$F$13:$F$83,'Battery - Hand Held'!$X$13:$X$83) -> 0 | O66: 20240501 | P66: 2418 | Q66: =_xlfn.XLOOKUP(B66,'Battery - Hand Held'!$F$13:$F$83,'Battery - Hand Held'!$Y$13:$Y$83) -> 0 | R66: 20240603 | S66: 2423 | T66: =_xlfn.XLOOKUP(B66,'Battery - Hand Held'!$F$13:$F$83,'Battery - Hand Held'!$Z$13:$Z$83) -> 0 | U66: =_xlfn.XLOOKUP(B66,'Battery - Hand Held'!$F$13:$F$83,'Battery - Hand Held'!$L$13:$L$83) -> 454.419 | AB66: 970647113
A67: Battery - Hand Held | B67: 970568114 | C67: 20240103 | D67: 2401 | E67: =_xlfn.XLOOKUP(B67,'Battery - Hand Held'!$F$13:$F$83,'Battery - Hand Held'!$U$13:$U$83) -> 0 | F67: 20240201 | G67: 2405 | H67: =_xlfn.XLOOKUP(B67,'Battery - Hand Held'!$F$13:$F$83,'Battery - Hand Held'!$V$13:$V$83) -> 0 | I67: 20240301 | J67: 2409 | K67: =_xlfn.XLOOKUP(B67,'Battery - Hand Held'!$F$13:$F$83,'Battery - Hand Held'!$W$13:$W$83) -> 0 | L67: 20240402 | M67: 2414 | N67: =_xlfn.XLOOKUP(B67,'Battery - Hand Held'!$F$13:$F$83,'Battery - Hand Held'!$X$13:$X$83) -> 0 | O67: 20240501 | P67: 2418 | Q67: =_xlfn.XLOOKUP(B67,'Battery - Hand Held'!$F$13:$F$83,'Battery - Hand Held'!$Y$13:$Y$83) -> 0 | R67: 20240603 | S67: 2423 | T67: =_xlfn.XLOOKUP(B67,'Battery - Hand Held'!$F$13:$F$83,'Battery - Hand Held'!$Z$13:$Z$83) -> 0 | U67: =_xlfn.XLOOKUP(B67,'Battery - Hand Held'!$F$13:$F$83,'Battery - Hand Held'!$L$13:$L$83) -> 460.25 | AB67: 970647013
A68: Battery - Hand Held | B68: 970568116 | C68: 20240103 | D68: 2401 | E68: =_xlfn.XLOOKUP(B68,'Battery - Hand Held'!$F$13:$F$83,'Battery - Hand Held'!$U$13:$U$83) -> 0 | F68: 20240201 | G68: 2405 | H68: =_xlfn.XLOOKUP(B68,'Battery - Hand Held'!$F$13:$F$83,'Battery - Hand Held'!$V$13:$V$83) -> 0 | I68: 20240301 | J68: 2409 | K68: =_xlfn.XLOOKUP(B68,'Battery - Hand Held'!$F$13:$F$83,'Battery - Hand Held'!$W$13:$W$83) -> 0 | L68: 20240402 | M68: 2414 | N68: =_xlfn.XLOOKUP(B68,'Battery - Hand Held'!$F$13:$F$83,'Battery - Hand Held'!$X$13:$X$83) -> 0 | O68: 20240501 | P68: 2418 | Q68: =_xlfn.XLOOKUP(B68,'Battery - Hand Held'!$F$13:$F$83,'Battery - Hand Held'!$Y$13:$Y$83) -> 0 | R68: 20240603 | S68: 2423 | T68: =_xlfn.XLOOKUP(B68,'Battery - Hand Held'!$F$13:$F$83,'Battery - Hand Held'!$Z$13:$Z$83) -> 0 | U68: =_xlfn.XLOOKUP(B68,'Battery - Hand Held'!$F$13:$F$83,'Battery - Hand Held'!$L$13:$L$83) -> 466.081 | AB68: 970647015
A69: Battery - Hand Held | B69: 970572316 | C69: 20240103 | D69: 2401 | E69: =_xlfn.XLOOKUP(B69,'Battery - Hand Held'!$F$13:$F$83,'Battery - Hand Held'!$U$13:$U$83) -> 0 | F69: 20240201 | G69: 2405 | H69: =_xlfn.XLOOKUP(B69,'Battery - Hand Held'!$F$13:$F$83,'Battery - Hand Held'!$V$13:$V$83) -> 0 | I69: 20240301 | J69: 2409 | K69: =_xlfn.XLOOKUP(B69,'Battery - Hand Held'!$F$13:$F$83,'Battery - Hand Held'!$W$13:$W$83) -> 0 | L69: 20240402 | M69: 2414 | N69: =_xlfn.XLOOKUP(B69,'Battery - Hand Held'!$F$13:$F$83,'Battery - Hand Held'!$X$13:$X$83) -> 0 | O69: 20240501 | P69: 2418 | Q69: =_xlfn.XLOOKUP(B69,'Battery - Hand Held'!$F$13:$F$83,'Battery - Hand Held'!$Y$13:$Y$83) -> 0 | R69: 20240603 | S69: 2423 | T69: =_xlfn.XLOOKUP(B69,'Battery - Hand Held'!$F$13:$F$83,'Battery - Hand Held'!$Z$13:$Z$83) -> 0 | U69: =_xlfn.XLOOKUP(B69,'Battery - Hand Held'!$F$13:$F$83,'Battery - Hand Held'!$L$13:$L$83) -> 448.581 | AB69: 970646812
A70: Battery - Hand Held | B70: 970572314 | C70: 20240103 | D70: 2401 | E70: =_xlfn.XLOOKUP(B70,'Battery - Hand Held'!$F$13:$F$83,'Battery - Hand Held'!$U$13:$U$83) -> 0 | F70: 20240201 | G70: 2405 | H70: =_xlfn.XLOOKUP(B70,'Battery - Hand Held'!$F$13:$F$83,'Battery - Hand Held'!$V$13:$V$83) -> 0 | I70: 20240301 | J70: 2409 | K70: =_xlfn.XLOOKUP(B70,'Battery - Hand Held'!$F$13:$F$83,'Battery - Hand Held'!$W$13:$W$83) -> 0 | L70: 20240402 | M70: 2414 | N70: =_xlfn.XLOOKUP(B70,'Battery - Hand Held'!$F$13:$F$83,'Battery - Hand Held'!$X$13:$X$83) -> 0 | O70: 20240501 | P70: 2418 | Q70: =_xlfn.XLOOKUP(B70,'Battery - Hand Held'!$F$13:$F$83,'Battery - Hand Held'!$Y$13:$Y$83) -> 0 | R70: 20240603 | S70: 2423 | T70: =_xlfn.XLOOKUP(B70,'Battery - Hand Held'!$F$13:$F$83,'Battery - Hand Held'!$Z$13:$Z$83) -> 0 | U70: =_xlfn.XLOOKUP(B70,'Battery - Hand Held'!$F$13:$F$83,'Battery - Hand Held'!$L$13:$L$83) -> 442.75 | AB70: 970646814
A71: Battery - Hand Held | B71: 970547502 | C71: 20240103 | D71: 2401 | E71: =_xlfn.XLOOKUP(B71,'Battery - Hand Held'!$F$13:$F$83,'Battery - Hand Held'!$U$13:$U$83) -> 0 | F71: 20240201 | G71: 2405 | H71: =_xlfn.XLOOKUP(B71,'Battery - Hand Held'!$F$13:$F$83,'Battery - Hand Held'!$V$13:$V$83) -> 0 | I71: 20240301 | J71: 2409 | K71: =_xlfn.XLOOKUP(B71,'Battery - Hand Held'!$F$13:$F$83,'Battery - Hand Held'!$W$13:$W$83) -> 0 | L71: 20240402 | M71: 2414 | N71: =_xlfn.XLOOKUP(B71,'Battery - Hand Held'!$F$13:$F$83,'Battery - Hand Held'!$X$13:$X$83) -> 0 | O71: 20240501 | P71: 2418 | Q71: =_xlfn.XLOOKUP(B71,'Battery - Hand Held'!$F$13:$F$83,'Battery - Hand Held'!$Y$13:$Y$83) -> 0 | R71: 20240603 | S71: 2423 | T71: =_xlfn.XLOOKUP(B71,'Battery - Hand Held'!$F$13:$F$83,'Battery - Hand Held'!$Z$13:$Z$83) -> 0 | U71: =_xlfn.XLOOKUP(B71,'Battery - Hand Held'!$F$13:$F$83,'Battery - Hand Held'!$L$13:$L$83) -> 145.25 | AB71: 970646914
A72: Battery - Hand Held | B72: 970547503 | C72: 20240103 | D72: 2401 | E72: =_xlfn.XLOOKUP(B72,'Battery - Hand Held'!$F$13:$F$83,'Battery - Hand Held'!$U$13:$U$83) -> 0 | F72: 20240201 | G72: 2405 | H72: =_xlfn.XLOOKUP(B72,'Battery - Hand Held'!$F$13:$F$83,'Battery - Hand Held'!$V$13:$V$83) -> 0 | I72: 20240301 | J72: 2409 | K72: =_xlfn.XLOOKUP(B72,'Battery - Hand Held'!$F$13:$F$83,'Battery - Hand Held'!$W$13:$W$83) -> 0 | L72: 20240402 | M72: 2414 | N72: =_xlfn.XLOOKUP(B72,'Battery - Hand Held'!$F$13:$F$83,'Battery - Hand Held'!$X$13:$X$83) -> 0 | O72: 20240501 | P72: 2418 | Q72: =_xlfn.XLOOKUP(B72,'Battery - Hand Held'!$F$13:$F$83,'Battery - Hand Held'!$Y$13:$Y$83) -> 0 | R72: 20240603 | S72: 2423 | T72: =_xlfn.XLOOKUP(B72,'Battery - Hand Held'!$F$13:$F$83,'Battery - Hand Held'!$Z$13:$Z$83) -> 0 | U72: =_xlfn.XLOOKUP(B72,'Battery - Hand Held'!$F$13:$F$83,'Battery - Hand Held'!$L$13:$L$83) -> 151.081 | AB72: 970566801
A73: Battery - Hand Held | B73: 970547512 | C73: 20240103 | D73: 2401 | E73: =_xlfn.XLOOKUP(B73,'Battery - Hand Held'!$F$13:$F$83,'Battery - Hand Held'!$U$13:$U$83) -> 0 | F73: 20240201 | G73: 2405 | H73: =_xlfn.XLOOKUP(B73,'Battery - Hand Held'!$F$13:$F$83,'Battery - Hand Held'!$V$13:$V$83) -> 0 | I73: 20240301 | J73: 2409 | K73: =_xlfn.XLOOKUP(B73,'Battery - Hand Held'!$F$13:$F$83,'Battery - Hand Held'!$W$13:$W$83) -> 0 | L73: 20240402 | M73: 2414 | N73: =_xlfn.XLOOKUP(B73,'Battery - Hand Held'!$F$13:$F$83,'Battery - Hand Held'!$X$13:$X$83) -> 0 | O73: 20240501 | P73: 2418 | Q73: =_xlfn.XLOOKUP(B73,'Battery - Hand Held'!$F$13:$F$83,'Battery - Hand Held'!$Y$13:$Y$83) -> 0 | R73: 20240603 | S73: 2423 | T73: =_xlfn.XLOOKUP(B73,'Battery - Hand Held'!$F$13:$F$83,'Battery - Hand Held'!$Z$13:$Z$83) -> 0 | U73: =_xlfn.XLOOKUP(B73,'Battery - Hand Held'!$F$13:$F$83,'Battery - Hand Held'!$L$13:$L$83) -> 232.75 | AB73: 970551602
A74: Battery - Hand Held | B74: 970547513 | C74: 20240103 | D74: 2401 | E74: =_xlfn.XLOOKUP(B74,'Battery - Hand Held'!$F$13:$F$83,'Battery - Hand Held'!$U$13:$U$83) -> 0 | F74: 20240201 | G74: 2405 | H74: =_xlfn.XLOOKUP(B74,'Battery - Hand Held'!$F$13:$F$83,'Battery - Hand Held'!$V$13:$V$83) -> 0 | I74: 20240301 | J74: 2409 | K74: =_xlfn.XLOOKUP(B74,'Battery - Hand Held'!$F$13:$F$83,'Battery - Hand Held'!$W$13:$W$83) -> 0 | L74: 20240402 | M74: 2414 | N74: =_xlfn.XLOOKUP(B74,'Battery - Hand Held'!$F$13:$F$83,'Battery - Hand Held'!$X$13:$X$83) -> 0 | O74: 20240501 | P74: 2418 | Q74: =_xlfn.XLOOKUP(B74,'Battery - Hand Held'!$F$13:$F$83,'Battery - Hand Held'!$Y$13:$Y$83) -> 0 | R74: 20240603 | S74: 2423 | T74: =_xlfn.XLOOKUP(B74,'Battery - Hand Held'!$F$13:$F$83,'Battery - Hand Held'!$Z$13:$Z$83) -> 0 | U74: =_xlfn.XLOOKUP(B74,'Battery - Hand Held'!$F$13:$F$83,'Battery - Hand Held'!$L$13:$L$83) -> 238.581 | AB74: 970531202
A75: Battery - Hand Held | B75: 970601108 | C75: 20240103 | D75: 2401 | E75: =_xlfn.XLOOKUP(B75,'Battery - Hand Held'!$F$13:$F$83,'Battery - Hand Held'!$U$13:$U$83) -> 0 | F75: 20240201 | G75: 2405 | H75: =_xlfn.XLOOKUP(B75,'Battery - Hand Held'!$F$13:$F$83,'Battery - Hand Held'!$V$13:$V$83) -> 0 | I75: 20240301 | J75: 2409 | K75: =_xlfn.XLOOKUP(B75,'Battery - Hand Held'!$F$13:$F$83,'Battery - Hand Held'!$W$13:$W$83) -> 0 | L75: 20240402 | M75: 2414 | N75: =_xlfn.XLOOKUP(B75,'Battery - Hand Held'!$F$13:$F$83,'Battery - Hand Held'!$X$13:$X$83) -> 0 | O75: 20240501 | P75: 2418 | Q75: =_xlfn.XLOOKUP(B75,'Battery - Hand Held'!$F$13:$F$83,'Battery - Hand Held'!$Y$13:$Y$83) -> 0 | R75: 20240603 | S75: 2423 | T75: =_xlfn.XLOOKUP(B75,'Battery - Hand Held'!$F$13:$F$83,'Battery - Hand Held'!$Z$13:$Z$83) -> 0 | U75: =_xlfn.XLOOKUP(B75,'Battery - Hand Held'!$F$13:$F$83,'Battery - Hand Held'!$L$13:$L$83) -> 349.419 | AB75: 970531201
A76: Battery - Hand Held | B76: 970601101 | C76: 20240103 | D76: 2401 | E76: =_xlfn.XLOOKUP(B76,'Battery - Hand Held'!$F$13:$F$83,'Battery - Hand Held'!$U$13:$U$83) -> 0 | F76: 20240201 | G76: 2405 | H76: =_xlfn.XLOOKUP(B76,'Battery - Hand Held'!$F$13:$F$83,'Battery - Hand Held'!$V$13:$V$83) -> 0 | I76: 20240301 | J76: 2409 | K76: =_xlfn.XLOOKUP(B76,'Battery - Hand Held'!$F$13:$F$83,'Battery - Hand Held'!$W$13:$W$83) -> 0 | L76: 20240402 | M76: 2414 | N76: =_xlfn.XLOOKUP(B76,'Battery - Hand Held'!$F$13:$F$83,'Battery - Hand Held'!$X$13:$X$83) -> 0 | O76: 20240501 | P76: 2418 | Q76: =_xlfn.XLOOKUP(B76,'Battery - Hand Held'!$F$13:$F$83,'Battery - Hand Held'!$Y$13:$Y$83) -> 0 | R76: 20240603 | S76: 2423 | T76: =_xlfn.XLOOKUP(B76,'Battery - Hand Held'!$F$13:$F$83,'Battery - Hand Held'!$Z$13:$Z$83) -> 0 | U76: =_xlfn.XLOOKUP(B76,'Battery - Hand Held'!$F$13:$F$83,'Battery - Hand Held'!$L$13:$L$83) -> 203.581 | AB76: 970531204
A77: Battery - Hand Held | B77: 970572312 | C77: 20240103 | D77: 2401 | E77: =_xlfn.XLOOKUP(B77,'Battery - Hand Held'!$F$13:$F$83,'Battery - Hand Held'!$U$13:$U$83) -> 2 | F77: 20240201 | G77: 2405 | H77: =_xlfn.XLOOKUP(B77,'Battery - Hand Held'!$F$13:$F$83,'Battery - Hand Held'!$V$13:$V$83) -> 0 | I77: 20240301 | J77: 2409 | K77: =_xlfn.XLOOKUP(B77,'Battery - Hand Held'!$F$13:$F$83,'Battery - Hand Held'!$W$13:$W$83) -> 2 | L77: 20240402 | M77: 2414 | N77: =_xlfn.XLOOKUP(B77,'Battery - Hand Held'!$F$13:$F$83,'Battery - Hand Held'!$X$13:$X$83) -> 0 | O77: 20240501 | P77: 2418 | Q77: =_xlfn.XLOOKUP(B77,'Battery - Hand Held'!$F$13:$F$83,'Battery - Hand Held'!$Y$13:$Y$83) -> 2 | R77: 20240603 | S77: 2423 | T77: =_xlfn.XLOOKUP(B77,'Battery - Hand Held'!$F$13:$F$83,'Battery - Hand Held'!$Z$13:$Z$83) -> 0 | U77: =_xlfn.XLOOKUP(B77,'Battery - Hand Held'!$F$13:$F$83,'Battery - Hand Held'!$L$13:$L$83) -> 436.919 | AB77: 970536101
A78: Battery - Hand Held | B78: 970647113 | C78: 20240103 | D78: 2401 | E78: =_xlfn.XLOOKUP(B78,'Battery - Hand Held'!$F$13:$F$83,'Battery - Hand Held'!$U$13:$U$83) -> 0 | F78: 20240201 | G78: 2405 | H78: =_xlfn.XLOOKUP(B78,'Battery - Hand Held'!$F$13:$F$83,'Battery - Hand Held'!$V$13:$V$83) -> 0 | I78: 20240301 | J78: 2409 | K78: =_xlfn.XLOOKUP(B78,'Battery - Hand Held'!$F$13:$F$83,'Battery - Hand Held'!$W$13:$W$83) -> 0 | L78: 20240402 | M78: 2414 | N78: =_xlfn.XLOOKUP(B78,'Battery - Hand Held'!$F$13:$F$83,'Battery - Hand Held'!$X$13:$X$83) -> 0 | O78: 20240501 | P78: 2418 | Q78: =_xlfn.XLOOKUP(B78,'Battery - Hand Held'!$F$13:$F$83,'Battery - Hand Held'!$Y$13:$Y$83) -> 0 | R78: 20240603 | S78: 2423 | T78: =_xlfn.XLOOKUP(B78,'Battery - Hand Held'!$F$13:$F$83,'Battery - Hand Held'!$Z$13:$Z$83) -> 0 | U78: =_xlfn.XLOOKUP(B78,'Battery - Hand Held'!$F$13:$F$83,'Battery - Hand Held'!$L$13:$L$83) -> 466.081 | AB78: 970536003
A79: Battery - Hand Held | B79: 970647013 | C79: 20240103 | D79: 2401 | E79: =_xlfn.XLOOKUP(B79,'Battery - Hand Held'!$F$13:$F$83,'Battery - Hand Held'!$U$13:$U$83) -> 0 | F79: 20240201 | G79: 2405 | H79: =_xlfn.XLOOKUP(B79,'Battery - Hand Held'!$F$13:$F$83,'Battery - Hand Held'!$V$13:$V$83) -> 0 | I79: 20240301 | J79: 2409 | K79: =_xlfn.XLOOKUP(B79,'Battery - Hand Held'!$F$13:$F$83,'Battery - Hand Held'!$W$13:$W$83) -> 0 | L79: 20240402 | M79: 2414 | N79: =_xlfn.XLOOKUP(B79,'Battery - Hand Held'!$F$13:$F$83,'Battery - Hand Held'!$X$13:$X$83) -> 0 | O79: 20240501 | P79: 2418 | Q79: =_xlfn.XLOOKUP(B79,'Battery - Hand Held'!$F$13:$F$83,'Battery - Hand Held'!$Y$13:$Y$83) -> 0 | R79: 20240603 | S79: 2423 | T79: =_xlfn.XLOOKUP(B79,'Battery - Hand Held'!$F$13:$F$83,'Battery - Hand Held'!$Z$13:$Z$83) -> 0 | U79: =_xlfn.XLOOKUP(B79,'Battery - Hand Held'!$F$13:$F$83,'Battery - Hand Held'!$L$13:$L$83) -> 454.419 | AB79: 970536002
A80: Battery - Hand Held | B80: 970647015 | C80: 20240103 | D80: 2401 | E80: =_xlfn.XLOOKUP(B80,'Battery - Hand Held'!$F$13:$F$83,'Battery - Hand Held'!$U$13:$U$83) -> 0 | F80: 20240201 | G80: 2405 | H80: =_xlfn.XLOOKUP(B80,'Battery - Hand Held'!$F$13:$F$83,'Battery - Hand Held'!$V$13:$V$83) -> 0 | I80: 20240301 | J80: 2409 | K80: =_xlfn.XLOOKUP(B80,'Battery - Hand Held'!$F$13:$F$83,'Battery - Hand Held'!$W$13:$W$83) -> 0 | L80: 20240402 | M80: 2414 | N80: =_xlfn.XLOOKUP(B80,'Battery - Hand Held'!$F$13:$F$83,'Battery - Hand Held'!$X$13:$X$83) -> 0 | O80: 20240501 | P80: 2418 | Q80: =_xlfn.XLOOKUP(B80,'Battery - Hand Held'!$F$13:$F$83,'Battery - Hand Held'!$Y$13:$Y$83) -> 0 | R80: 20240603 | S80: 2423 | T80: =_xlfn.XLOOKUP(B80,'Battery - Hand Held'!$F$13:$F$83,'Battery - Hand Held'!$Z$13:$Z$83) -> 0 | U80: =_xlfn.XLOOKUP(B80,'Battery - Hand Held'!$F$13:$F$83,'Battery - Hand Held'!$L$13:$L$83) -> 460.25 | AB80: 970536006
A81: Battery - Hand Held | B81: 970646812 | C81: 20240103 | D81: 2401 | E81: =_xlfn.XLOOKUP(B81,'Battery - Hand Held'!$F$13:$F$83,'Battery - Hand Held'!$U$13:$U$83) -> 0 | F81: 20240201 | G81: 2405 | H81: =_xlfn.XLOOKUP(B81,'Battery - Hand Held'!$F$13:$F$83,'Battery - Hand Held'!$V$13:$V$83) -> 0 | I81: 20240301 | J81: 2409 | K81: =_xlfn.XLOOKUP(B81,'Battery - Hand Held'!$F$13:$F$83,'Battery - Hand Held'!$W$13:$W$83) -> 0 | L81: 20240402 | M81: 2414 | N81: =_xlfn.XLOOKUP(B81,'Battery - Hand Held'!$F$13:$F$83,'Battery - Hand Held'!$X$13:$X$83) -> 0 | O81: 20240501 | P81: 2418 | Q81: =_xlfn.XLOOKUP(B81,'Battery - Hand Held'!$F$13:$F$83,'Battery - Hand Held'!$Y$13:$Y$83) -> 0 | R81: 20240603 | S81: 2423 | T81: =_xlfn.XLOOKUP(B81,'Battery - Hand Held'!$F$13:$F$83,'Battery - Hand Held'!$Z$13:$Z$83) -> 0 | U81: =_xlfn.XLOOKUP(B81,'Battery - Hand Held'!$F$13:$F$83,'Battery - Hand Held'!$L$13:$L$83) -> 454.419 | AB81: 970566901
A82: Battery - Hand Held | B82: 970646814 | C82: 20240103 | D82: 2401 | E82: =_xlfn.XLOOKUP(B82,'Battery - Hand Held'!$F$13:$F$83,'Battery - Hand Held'!$U$13:$U$83) -> 0 | F82: 20240201 | G82: 2405 | H82: =_xlfn.XLOOKUP(B82,'Battery - Hand Held'!$F$13:$F$83,'Battery - Hand Held'!$V$13:$V$83) -> 0 | I82: 20240301 | J82: 2409 | K82: =_xlfn.XLOOKUP(B82,'Battery - Hand Held'!$F$13:$F$83,'Battery - Hand Held'!$W$13:$W$83) -> 0 | L82: 20240402 | M82: 2414 | N82: =_xlfn.XLOOKUP(B82,'Battery - Hand Held'!$F$13:$F$83,'Battery - Hand Held'!$X$13:$X$83) -> 0 | O82: 20240501 | P82: 2418 | Q82: =_xlfn.XLOOKUP(B82,'Battery - Hand Held'!$F$13:$F$83,'Battery - Hand Held'!$Y$13:$Y$83) -> 0 | R82: 20240603 | S82: 2423 | T82: =_xlfn.XLOOKUP(B82,'Battery - Hand Held'!$F$13:$F$83,'Battery - Hand Held'!$Z$13:$Z$83) -> 0 | U82: =_xlfn.XLOOKUP(B82,'Battery - Hand Held'!$F$13:$F$83,'Battery - Hand Held'!$L$13:$L$83) -> 460.25 | AB82: 970567001
A83: Battery - Hand Held | B83: 970646914 | C83: 20240103 | D83: 2401 | E83: =_xlfn.XLOOKUP(B83,'Battery - Hand Held'!$F$13:$F$83,'Battery - Hand Held'!$U$13:$U$83) -> 0 | F83: 20240201 | G83: 2405 | H83: =_xlfn.XLOOKUP(B83,'Battery - Hand Held'!$F$13:$F$83,'Battery - Hand Held'!$V$13:$V$83) -> 0 | I83: 20240301 | J83: 2409 | K83: =_xlfn.XLOOKUP(B83,'Battery - Hand Held'!$F$13:$F$83,'Battery - Hand Held'!$W$13:$W$83) -> 0 | L83: 20240402 | M83: 2414 | N83: =_xlfn.XLOOKUP(B83,'Battery - Hand Held'!$F$13:$F$83,'Battery - Hand Held'!$X$13:$X$83) -> 0 | O83: 20240501 | P83: 2418 | Q83: =_xlfn.XLOOKUP(B83,'Battery - Hand Held'!$F$13:$F$83,'Battery - Hand Held'!$Y$13:$Y$83) -> 0 | R83: 20240603 | S83: 2423 | T83: =_xlfn.XLOOKUP(B83,'Battery - Hand Held'!$F$13:$F$83,'Battery - Hand Held'!$Z$13:$Z$83) -> 0 | U83: =_xlfn.XLOOKUP(B83,'Battery - Hand Held'!$F$13:$F$83,'Battery - Hand Held'!$L$13:$L$83) -> 489.419 | AB83: 970551401
A84: Battery - Hand Held | B84: 970566801 | C84: 20240103 | D84: 2401 | E84: =_xlfn.XLOOKUP(B84,'Battery - Hand Held'!$F$13:$F$83,'Battery - Hand Held'!$U$13:$U$83) -> 0 | F84: 20240201 | G84: 2405 | H84: =_xlfn.XLOOKUP(B84,'Battery - Hand Held'!$F$13:$F$83,'Battery - Hand Held'!$V$13:$V$83) -> 0 | I84: 20240301 | J84: 2409 | K84: =_xlfn.XLOOKUP(B84,'Battery - Hand Held'!$F$13:$F$83,'Battery - Hand Held'!$W$13:$W$83) -> 0 | L84: 20240402 | M84: 2414 | N84: =_xlfn.XLOOKUP(B84,'Battery - Hand Held'!$F$13:$F$83,'Battery - Hand Held'!$X$13:$X$83) -> 0 | O84: 20240501 | P84: 2418 | Q84: =_xlfn.XLOOKUP(B84,'Battery - Hand Held'!$F$13:$F$83,'Battery - Hand Held'!$Y$13:$Y$83) -> 0 | R84: 20240603 | S84: 2423 | T84: =_xlfn.XLOOKUP(B84,'Battery - Hand Held'!$F$13:$F$83,'Battery - Hand Held'!$Z$13:$Z$83) -> 0 | U84: =_xlfn.XLOOKUP(B84,'Battery - Hand Held'!$F$13:$F$83,'Battery - Hand Held'!$L$13:$L$83) -> 203.581 | AB84: 967916113
A85: Battery - Hand Held | B85: 970551602 | C85: 20240103 | D85: 2401 | E85: =_xlfn.XLOOKUP(B85,'Battery - Hand Held'!$F$13:$F$83,'Battery - Hand Held'!$U$13:$U$83) -> 0 | F85: 20240201 | G85: 2405 | H85: =_xlfn.XLOOKUP(B85,'Battery - Hand Held'!$F$13:$F$83,'Battery - Hand Held'!$V$13:$V$83) -> 0 | I85: 20240301 | J85: 2409 | K85: =_xlfn.XLOOKUP(B85,'Battery - Hand Held'!$F$13:$F$83,'Battery - Hand Held'!$W$13:$W$83) -> 0 | L85: 20240402 | M85: 2414 | N85: =_xlfn.XLOOKUP(B85,'Battery - Hand Held'!$F$13:$F$83,'Battery - Hand Held'!$X$13:$X$83) -> 0 | O85: 20240501 | P85: 2418 | Q85: =_xlfn.XLOOKUP(B85,'Battery - Hand Held'!$F$13:$F$83,'Battery - Hand Held'!$Y$13:$Y$83) -> 0 | R85: 20240603 | S85: 2423 | T85: =_xlfn.XLOOKUP(B85,'Battery - Hand Held'!$F$13:$F$83,'Battery - Hand Held'!$Z$13:$Z$83) -> 0 | U85: =_xlfn.XLOOKUP(B85,'Battery - Hand Held'!$F$13:$F$83,'Battery - Hand Held'!$L$13:$L$83) -> 273.581 | AB85: 967916203
A86: Battery - Hand Held | B86: 970551501 | C86: 20240103 | D86: 2401 | E86: =_xlfn.XLOOKUP(B86,'Battery - Hand Held'!$F$13:$F$83,'Battery - Hand Held'!$U$13:$U$83) -> 0 | F86: 20240201 | G86: 2405 | H86: =_xlfn.XLOOKUP(B86,'Battery - Hand Held'!$F$13:$F$83,'Battery - Hand Held'!$V$13:$V$83) -> 0 | I86: 20240301 | J86: 2409 | K86: =_xlfn.XLOOKUP(B86,'Battery - Hand Held'!$F$13:$F$83,'Battery - Hand Held'!$W$13:$W$83) -> 0 | L86: 20240402 | M86: 2414 | N86: =_xlfn.XLOOKUP(B86,'Battery - Hand Held'!$F$13:$F$83,'Battery - Hand Held'!$X$13:$X$83) -> 0 | O86: 20240501 | P86: 2418 | Q86: =_xlfn.XLOOKUP(B86,'Battery - Hand Held'!$F$13:$F$83,'Battery - Hand Held'!$Y$13:$Y$83) -> 0 | R86: 20240603 | S86: 2423 | T86: =_xlfn.XLOOKUP(B86,'Battery - Hand Held'!$F$13:$F$83,'Battery - Hand Held'!$Z$13:$Z$83) -> 0 | U86: =_xlfn.XLOOKUP(B86,'Battery - Hand Held'!$F$13:$F$83,'Battery - Hand Held'!$L$13:$L$83) -> 261.919 | AB86: 967850504
A87: Battery - Hand Held | B87: 970531201 | C87: 20240103 | D87: 2401 | E87: =_xlfn.XLOOKUP(B87,'Battery - Hand Held'!$F$13:$F$83,'Battery - Hand Held'!$U$13:$U$83) -> 0 | F87: 20240201 | G87: 2405 | H87: =_xlfn.XLOOKUP(B87,'Battery - Hand Held'!$F$13:$F$83,'Battery - Hand Held'!$V$13:$V$83) -> 0 | I87: 20240301 | J87: 2409 | K87: =_xlfn.XLOOKUP(B87,'Battery - Hand Held'!$F$13:$F$83,'Battery - Hand Held'!$W$13:$W$83) -> 0 | L87: 20240402 | M87: 2414 | N87: =_xlfn.XLOOKUP(B87,'Battery - Hand Held'!$F$13:$F$83,'Battery - Hand Held'!$X$13:$X$83) -> 0 | O87: 20240501 | P87: 2418 | Q87: =_xlfn.XLOOKUP(B87,'Battery - Hand Held'!$F$13:$F$83,'Battery - Hand Held'!$Y$13:$Y$83) -> 0 | R87: 20240603 | S87: 2423 | T87: =_xlfn.XLOOKUP(B87,'Battery - Hand Held'!$F$13:$F$83,'Battery - Hand Held'!$Z$13:$Z$83) -> 0 | U87: =_xlfn.XLOOKUP(B87,'Battery - Hand Held'!$F$13:$F$83,'Battery - Hand Held'!$L$13:$L$83) -> 104.993 | AB87: 967850605
A88: Battery - Hand Held | B88: 970531204 | C88: 20240103 | D88: 2401 | E88: =_xlfn.XLOOKUP(B88,'Battery - Hand Held'!$F$13:$F$83,'Battery - Hand Held'!$U$13:$U$83) -> 0 | F88: 20240201 | G88: 2405 | H88: =_xlfn.XLOOKUP(B88,'Battery - Hand Held'!$F$13:$F$83,'Battery - Hand Held'!$V$13:$V$83) -> 0 | I88: 20240301 | J88: 2409 | K88: =_xlfn.XLOOKUP(B88,'Battery - Hand Held'!$F$13:$F$83,'Battery - Hand Held'!$W$13:$W$83) -> 0 | L88: 20240402 | M88: 2414 | N88: =_xlfn.XLOOKUP(B88,'Battery - Hand Held'!$F$13:$F$83,'Battery - Hand Held'!$X$13:$X$83) -> 0 | O88: 20240501 | P88: 2418 | Q88: =_xlfn.XLOOKUP(B88,'Battery - Hand Held'!$F$13:$F$83,'Battery - Hand Held'!$Y$13:$Y$83) -> 0 | R88: 20240603 | S88: 2423 | T88: =_xlfn.XLOOKUP(B88,'Battery - Hand Held'!$F$13:$F$83,'Battery - Hand Held'!$Z$13:$Z$83) -> 0 | U88: =_xlfn.XLOOKUP(B88,'Battery - Hand Held'!$F$13:$F$83,'Battery - Hand Held'!$L$13:$L$83) -> 145.25 | AB88: 967850607
A89: Battery - Hand Held | B89: 970536101 | C89: 20240103 | D89: 2401 | E89: =_xlfn.XLOOKUP(B89,'Battery - Hand Held'!$F$13:$F$83,'Battery - Hand Held'!$U$13:$U$83) -> 0 | F89: 20240201 | G89: 2405 | H89: =_xlfn.XLOOKUP(B89,'Battery - Hand Held'!$F$13:$F$83,'Battery - Hand Held'!$V$13:$V$83) -> 0 | I89: 20240301 | J89: 2409 | K89: =_xlfn.XLOOKUP(B89,'Battery - Hand Held'!$F$13:$F$83,'Battery - Hand Held'!$W$13:$W$83) -> 0 | L89: 20240402 | M89: 2414 | N89: =_xlfn.XLOOKUP(B89,'Battery - Hand Held'!$F$13:$F$83,'Battery - Hand Held'!$X$13:$X$83) -> 0 | O89: 20240501 | P89: 2418 | Q89: =_xlfn.XLOOKUP(B89,'Battery - Hand Held'!$F$13:$F$83,'Battery - Hand Held'!$Y$13:$Y$83) -> 0 | R89: 20240603 | S89: 2423 | T89: =_xlfn.XLOOKUP(B89,'Battery - Hand Held'!$F$13:$F$83,'Battery - Hand Held'!$Z$13:$Z$83) -> 0 | U89: =_xlfn.XLOOKUP(B89,'Battery - Hand Held'!$F$13:$F$83,'Battery - Hand Held'!$L$13:$L$83) -> 279.419 | AB89: 970536502
A90: Battery - Hand Held | B90: 970536003 | C90: 20240103 | D90: 2401 | E90: =_xlfn.XLOOKUP(B90,'Battery - Hand Held'!$F$13:$F$83,'Battery - Hand Held'!$U$13:$U$83) -> 0 | F90: 20240201 | G90: 2405 | H90: =_xlfn.XLOOKUP(B90,'Battery - Hand Held'!$F$13:$F$83,'Battery - Hand Held'!$V$13:$V$83) -> 0 | I90: 20240301 | J90: 2409 | K90: =_xlfn.XLOOKUP(B90,'Battery - Hand Held'!$F$13:$F$83,'Battery - Hand Held'!$W$13:$W$83) -> 0 | L90: 20240402 | M90: 2414 | N90: =_xlfn.XLOOKUP(B90,'Battery - Hand Held'!$F$13:$F$83,'Battery - Hand Held'!$X$13:$X$83) -> 0 | O90: 20240501 | P90: 2418 | Q90: =_xlfn.XLOOKUP(B90,'Battery - Hand Held'!$F$13:$F$83,'Battery - Hand Held'!$Y$13:$Y$83) -> 0 | R90: 20240603 | S90: 2423 | T90: =_xlfn.XLOOKUP(B90,'Battery - Hand Held'!$F$13:$F$83,'Battery - Hand Held'!$Z$13:$Z$83) -> 0 | U90: =_xlfn.XLOOKUP(B90,'Battery - Hand Held'!$F$13:$F$83,'Battery - Hand Held'!$L$13:$L$83) -> 191.919 | AB90: 970536503
A91: Battery - Hand Held | B91: 970536002 | C91: 20240103 | D91: 2401 | E91: =_xlfn.XLOOKUP(B91,'Battery - Hand Held'!$F$13:$F$83,'Battery - Hand Held'!$U$13:$U$83) -> 0 | F91: 20240201 | G91: 2405 | H91: =_xlfn.XLOOKUP(B91,'Battery - Hand Held'!$F$13:$F$83,'Battery - Hand Held'!$V$13:$V$83) -> 0 | I91: 20240301 | J91: 2409 | K91: =_xlfn.XLOOKUP(B91,'Battery - Hand Held'!$F$13:$F$83,'Battery - Hand Held'!$W$13:$W$83) -> 0 | L91: 20240402 | M91: 2414 | N91: =_xlfn.XLOOKUP(B91,'Battery - Hand Held'!$F$13:$F$83,'Battery - Hand Held'!$X$13:$X$83) -> 0 | O91: 20240501 | P91: 2418 | Q91: =_xlfn.XLOOKUP(B91,'Battery - Hand Held'!$F$13:$F$83,'Battery - Hand Held'!$Y$13:$Y$83) -> 0 | R91: 20240603 | S91: 2423 | T91: =_xlfn.XLOOKUP(B91,'Battery - Hand Held'!$F$13:$F$83,'Battery - Hand Held'!$Z$13:$Z$83) -> 0 | U91: =_xlfn.XLOOKUP(B91,'Battery - Hand Held'!$F$13:$F$83,'Battery - Hand Held'!$L$13:$L$83) -> 174.419 | AB91: 970536505
A92: Battery - Hand Held | B92: 970536001 | C92: 20240103 | D92: 2401 | E92: =_xlfn.XLOOKUP(B92,'Battery - Hand Held'!$F$13:$F$83,'Battery - Hand Held'!$U$13:$U$83) -> 0 | F92: 20240201 | G92: 2405 | H92: =_xlfn.XLOOKUP(B92,'Battery - Hand Held'!$F$13:$F$83,'Battery - Hand Held'!$V$13:$V$83) -> 0 | I92: 20240301 | J92: 2409 | K92: =_xlfn.XLOOKUP(B92,'Battery - Hand Held'!$F$13:$F$83,'Battery - Hand Held'!$W$13:$W$83) -> 0 | L92: 20240402 | M92: 2414 | N92: =_xlfn.XLOOKUP(B92,'Battery - Hand Held'!$F$13:$F$83,'Battery - Hand Held'!$X$13:$X$83) -> 0 | O92: 20240501 | P92: 2418 | Q92: =_xlfn.XLOOKUP(B92,'Battery - Hand Held'!$F$13:$F$83,'Battery - Hand Held'!$Y$13:$Y$83) -> 0 | R92: 20240603 | S92: 2423 | T92: =_xlfn.XLOOKUP(B92,'Battery - Hand Held'!$F$13:$F$83,'Battery - Hand Held'!$Z$13:$Z$83) -> 0 | U92: =_xlfn.XLOOKUP(B92,'Battery - Hand Held'!$F$13:$F$83,'Battery - Hand Held'!$L$13:$L$83) -> 133.581 | AB92: 970536102
A93: Battery - Hand Held | B93: 970566901 | C93: 20240103 | D93: 2401 | E93: =_xlfn.XLOOKUP(B93,'Battery - Hand Held'!$F$13:$F$83,'Battery - Hand Held'!$U$13:$U$83) -> 0 | F93: 20240201 | G93: 2405 | H93: =_xlfn.XLOOKUP(B93,'Battery - Hand Held'!$F$13:$F$83,'Battery - Hand Held'!$V$13:$V$83) -> 0 | I93: 20240301 | J93: 2409 | K93: =_xlfn.XLOOKUP(B93,'Battery - Hand Held'!$F$13:$F$83,'Battery - Hand Held'!$W$13:$W$83) -> 0 | L93: 20240402 | M93: 2414 | N93: =_xlfn.XLOOKUP(B93,'Battery - Hand Held'!$F$13:$F$83,'Battery - Hand Held'!$X$13:$X$83) -> 0 | O93: 20240501 | P93: 2418 | Q93: =_xlfn.XLOOKUP(B93,'Battery - Hand Held'!$F$13:$F$83,'Battery - Hand Held'!$Y$13:$Y$83) -> 0 | R93: 20240603 | S93: 2423 | T93: =_xlfn.XLOOKUP(B93,'Battery - Hand Held'!$F$13:$F$83,'Battery - Hand Held'!$Z$13:$Z$83) -> 0 | U93: =_xlfn.XLOOKUP(B93,'Battery - Hand Held'!$F$13:$F$83,'Battery - Hand Held'!$L$13:$L$83) -> 232.75 | AB93: 970466401
A94: Battery - Hand Held | B94: 970567001 | C94: 20240103 | D94: 2401 | E94: =_xlfn.XLOOKUP(B94,'Battery - Hand Held'!$F$13:$F$83,'Battery - Hand Held'!$U$13:$U$83) -> 0 | F94: 20240201 | G94: 2405 | H94: =_xlfn.XLOOKUP(B94,'Battery - Hand Held'!$F$13:$F$83,'Battery - Hand Held'!$V$13:$V$83) -> 0 | I94: 20240301 | J94: 2409 | K94: =_xlfn.XLOOKUP(B94,'Battery - Hand Held'!$F$13:$F$83,'Battery - Hand Held'!$W$13:$W$83) -> 0 | L94: 20240402 | M94: 2414 | N94: =_xlfn.XLOOKUP(B94,'Battery - Hand Held'!$F$13:$F$83,'Battery - Hand Held'!$X$13:$X$83) -> 0 | O94: 20240501 | P94: 2418 | Q94: =_xlfn.XLOOKUP(B94,'Battery - Hand Held'!$F$13:$F$83,'Battery - Hand Held'!$Y$13:$Y$83) -> 0 | R94: 20240603 | S94: 2423 | T94: =_xlfn.XLOOKUP(B94,'Battery - Hand Held'!$F$13:$F$83,'Battery - Hand Held'!$Z$13:$Z$83) -> 0 | U94: =_xlfn.XLOOKUP(B94,'Battery - Hand Held'!$F$13:$F$83,'Battery - Hand Held'!$L$13:$L$83) -> 232.75 | AB94: 967915813
A95: Battery - Hand Held | B95: 970551401 | C95: 20240103 | D95: 2401 | E95: =_xlfn.XLOOKUP(B95,'Battery - Hand Held'!$F$13:$F$83,'Battery - Hand Held'!$U$13:$U$83) -> 0 | F95: 20240201 | G95: 2405 | H95: =_xlfn.XLOOKUP(B95,'Battery - Hand Held'!$F$13:$F$83,'Battery - Hand Held'!$V$13:$V$83) -> 0 | I95: 20240301 | J95: 2409 | K95: =_xlfn.XLOOKUP(B95,'Battery - Hand Held'!$F$13:$F$83,'Battery - Hand Held'!$W$13:$W$83) -> 0 | L95: 20240402 | M95: 2414 | N95: =_xlfn.XLOOKUP(B95,'Battery - Hand Held'!$F$13:$F$83,'Battery - Hand Held'!$X$13:$X$83) -> 0 | O95: 20240501 | P95: 2418 | Q95: =_xlfn.XLOOKUP(B95,'Battery - Hand Held'!$F$13:$F$83,'Battery - Hand Held'!$Y$13:$Y$83) -> 0 | R95: 20240603 | S95: 2423 | T95: =_xlfn.XLOOKUP(B95,'Battery - Hand Held'!$F$13:$F$83,'Battery - Hand Held'!$Z$13:$Z$83) -> 0 | U95: =_xlfn.XLOOKUP(B95,'Battery - Hand Held'!$F$13:$F$83,'Battery - Hand Held'!$L$13:$L$83) -> 302.75 | AB95: 967971203
A96: Battery - Hand Held | B96: 967916113 | C96: 20240103 | D96: 2401 | E96: =_xlfn.XLOOKUP(B96,'Battery - Hand Held'!$F$13:$F$83,'Battery - Hand Held'!$U$13:$U$83) -> 0 | F96: 20240201 | G96: 2405 | H96: =_xlfn.XLOOKUP(B96,'Battery - Hand Held'!$F$13:$F$83,'Battery - Hand Held'!$V$13:$V$83) -> 0 | I96: 20240301 | J96: 2409 | K96: =_xlfn.XLOOKUP(B96,'Battery - Hand Held'!$F$13:$F$83,'Battery - Hand Held'!$W$13:$W$83) -> 2 | L96: 20240402 | M96: 2414 | N96: =_xlfn.XLOOKUP(B96,'Battery - Hand Held'!$F$13:$F$83,'Battery - Hand Held'!$X$13:$X$83) -> 0 | O96: 20240501 | P96: 2418 | Q96: =_xlfn.XLOOKUP(B96,'Battery - Hand Held'!$F$13:$F$83,'Battery - Hand Held'!$Y$13:$Y$83) -> 0 | R96: 20240603 | S96: 2423 | T96: =_xlfn.XLOOKUP(B96,'Battery - Hand Held'!$F$13:$F$83,'Battery - Hand Held'!$Z$13:$Z$83) -> 0 | U96: =_xlfn.XLOOKUP(B96,'Battery - Hand Held'!$F$13:$F$83,'Battery - Hand Held'!$L$13:$L$83) -> 238.581 | AB96: 970466002
A97: Battery - Hand Held | B97: 967916203 | C97: 20240103 | D97: 2401 | E97: =_xlfn.XLOOKUP(B97,'Battery - Hand Held'!$F$13:$F$83,'Battery - Hand Held'!$U$13:$U$83) -> 1 | F97: 20240201 | G97: 2405 | H97: =_xlfn.XLOOKUP(B97,'Battery - Hand Held'!$F$13:$F$83,'Battery - Hand Held'!$V$13:$V$83) -> 0 | I97: 20240301 | J97: 2409 | K97: =_xlfn.XLOOKUP(B97,'Battery - Hand Held'!$F$13:$F$83,'Battery - Hand Held'!$W$13:$W$83) -> 2 | L97: 20240402 | M97: 2414 | N97: =_xlfn.XLOOKUP(B97,'Battery - Hand Held'!$F$13:$F$83,'Battery - Hand Held'!$X$13:$X$83) -> 0 | O97: 20240501 | P97: 2418 | Q97: =_xlfn.XLOOKUP(B97,'Battery - Hand Held'!$F$13:$F$83,'Battery - Hand Held'!$Y$13:$Y$83) -> 0 | R97: 20240603 | S97: 2423 | T97: =_xlfn.XLOOKUP(B97,'Battery - Hand Held'!$F$13:$F$83,'Battery - Hand Held'!$Z$13:$Z$83) -> 0 | U97: =_xlfn.XLOOKUP(B97,'Battery - Hand Held'!$F$13:$F$83,'Battery - Hand Held'!$L$13:$L$83) -> 261.919 | AB97: 970466102
A98: Battery - Hand Held | B98: 967850504 | C98: 20240103 | D98: 2401 | E98: =_xlfn.XLOOKUP(B98,'Battery - Hand Held'!$F$13:$F$83,'Battery - Hand Held'!$U$13:$U$83) -> 0 | F98: 20240201 | G98: 2405 | H98: =_xlfn.XLOOKUP(B98,'Battery - Hand Held'!$F$13:$F$83,'Battery - Hand Held'!$V$13:$V$83) -> 0 | I98: 20240301 | J98: 2409 | K98: =_xlfn.XLOOKUP(B98,'Battery - Hand Held'!$F$13:$F$83,'Battery - Hand Held'!$W$13:$W$83) -> 0 | L98: 20240402 | M98: 2414 | N98: =_xlfn.XLOOKUP(B98,'Battery - Hand Held'!$F$13:$F$83,'Battery - Hand Held'!$X$13:$X$83) -> 0 | O98: 20240501 | P98: 2418 | Q98: =_xlfn.XLOOKUP(B98,'Battery - Hand Held'!$F$13:$F$83,'Battery - Hand Held'!$Y$13:$Y$83) -> 0 | R98: 20240603 | S98: 2423 | T98: =_xlfn.XLOOKUP(B98,'Battery - Hand Held'!$F$13:$F$83,'Battery - Hand Held'!$Z$13:$Z$83) -> 0 | U98: =_xlfn.XLOOKUP(B98,'Battery - Hand Held'!$F$13:$F$83,'Battery - Hand Held'!$L$13:$L$83) -> 407.75 | AB98: 970466202
A99: Battery - Hand Held | B99: 967850605 | C99: 20240103 | D99: 2401 | E99: =_xlfn.XLOOKUP(B99,'Battery - Hand Held'!$F$13:$F$83,'Battery - Hand Held'!$U$13:$U$83) -> 0 | F99: 20240201 | G99: 2405 | H99: =_xlfn.XLOOKUP(B99,'Battery - Hand Held'!$F$13:$F$83,'Battery - Hand Held'!$V$13:$V$83) -> 0 | I99: 20240301 | J99: 2409 | K99: =_xlfn.XLOOKUP(B99,'Battery - Hand Held'!$F$13:$F$83,'Battery - Hand Held'!$W$13:$W$83) -> 0 | L99: 20240402 | M99: 2414 | N99: =_xlfn.XLOOKUP(B99,'Battery - Hand Held'!$F$13:$F$83,'Battery - Hand Held'!$X$13:$X$83) -> 0 | O99: 20240501 | P99: 2418 | Q99: =_xlfn.XLOOKUP(B99,'Battery - Hand Held'!$F$13:$F$83,'Battery - Hand Held'!$Y$13:$Y$83) -> 0 | R99: 20240603 | S99: 2423 | T99: =_xlfn.XLOOKUP(B99,'Battery - Hand Held'!$F$13:$F$83,'Battery - Hand Held'!$Z$13:$Z$83) -> 0 | U99: =_xlfn.XLOOKUP(B99,'Battery - Hand Held'!$F$13:$F$83,'Battery - Hand Held'!$L$13:$L$83) -> 378.581 | AB99: 967884711
A100: Battery - Hand Held | B100: 967850607 | C100: 20240103 | D100: 2401 | E100: =_xlfn.XLOOKUP(B100,'Battery - Hand Held'!$F$13:$F$83,'Battery - Hand Held'!$U$13:$U$83) -> 0 | F100: 20240201 | G100: 2405 | H100: =_xlfn.XLOOKUP(B100,'Battery - Hand Held'!$F$13:$F$83,'Battery - Hand Held'!$V$13:$V$83) -> 0 | I100: 20240301 | J100: 2409 | K100: =_xlfn.XLOOKUP(B100,'Battery - Hand Held'!$F$13:$F$83,'Battery - Hand Held'!$W$13:$W$83) -> 1 | L100: 20240402 | M100: 2414 | N100: =_xlfn.XLOOKUP(B100,'Battery - Hand Held'!$F$13:$F$83,'Battery - Hand Held'!$X$13:$X$83) -> 0 | O100: 20240501 | P100: 2418 | Q100: =_xlfn.XLOOKUP(B100,'Battery - Hand Held'!$F$13:$F$83,'Battery - Hand Held'!$Y$13:$Y$83) -> 0 | R100: 20240603 | S100: 2423 | T100: =_xlfn.XLOOKUP(B100,'Battery - Hand Held'!$F$13:$F$83,'Battery - Hand Held'!$Z$13:$Z$83) -> 0 | U100: =_xlfn.XLOOKUP(B100,'Battery - Hand Held'!$F$13:$F$83,'Battery - Hand Held'!$L$13:$L$83) -> 436.919 | AB100: 967884811
A101: Battery - Hand Held | B101: 970536502 | C101: 20240103 | D101: 2401 | E101: =_xlfn.XLOOKUP(B101,'Battery - Hand Held'!$F$13:$F$83,'Battery - Hand Held'!$U$13:$U$83) -> 0 | F101: 20240201 | G101: 2405 | H101: =_xlfn.XLOOKUP(B101,'Battery - Hand Held'!$F$13:$F$83,'Battery - Hand Held'!$V$13:$V$83) -> 0 | I101: 20240301 | J101: 2409 | K101: =_xlfn.XLOOKUP(B101,'Battery - Hand Held'!$F$13:$F$83,'Battery - Hand Held'!$W$13:$W$83) -> 0 | L101: 20240402 | M101: 2414 | N101: =_xlfn.XLOOKUP(B101,'Battery - Hand Held'!$F$13:$F$83,'Battery - Hand Held'!$X$13:$X$83) -> 0 | O101: 20240501 | P101: 2418 | Q101: =_xlfn.XLOOKUP(B101,'Battery - Hand Held'!$F$13:$F$83,'Battery - Hand Held'!$Y$13:$Y$83) -> 0 | R101: 20240603 | S101: 2423 | T101: =_xlfn.XLOOKUP(B101,'Battery - Hand Held'!$F$13:$F$83,'Battery - Hand Held'!$Z$13:$Z$83) -> 0 | U101: =_xlfn.XLOOKUP(B101,'Battery - Hand Held'!$F$13:$F$83,'Battery - Hand Held'!$L$13:$L$83) -> 174.419 | AB101: 970515905
A102: Battery - Hand Held | B102: 970536501 | C102: 20240103 | D102: 2401 | E102: =_xlfn.XLOOKUP(B102,'Battery - Hand Held'!$F$13:$F$83,'Battery - Hand Held'!$U$13:$U$83) -> 0 | F102: 20240201 | G102: 2405 | H102: =_xlfn.XLOOKUP(B102,'Battery - Hand Held'!$F$13:$F$83,'Battery - Hand Held'!$V$13:$V$83) -> 0 | I102: 20240301 | J102: 2409 | K102: =_xlfn.XLOOKUP(B102,'Battery - Hand Held'!$F$13:$F$83,'Battery - Hand Held'!$W$13:$W$83) -> 0 | L102: 20240402 | M102: 2414 | N102: =_xlfn.XLOOKUP(B102,'Battery - Hand Held'!$F$13:$F$83,'Battery - Hand Held'!$X$13:$X$83) -> 0 | O102: 20240501 | P102: 2418 | Q102: =_xlfn.XLOOKUP(B102,'Battery - Hand Held'!$F$13:$F$83,'Battery - Hand Held'!$Y$13:$Y$83) -> 0 | R102: 20240603 | S102: 2423 | T102: =_xlfn.XLOOKUP(B102,'Battery - Hand Held'!$F$13:$F$83,'Battery - Hand Held'!$Z$13:$Z$83) -> 0 | U102: =_xlfn.XLOOKUP(B102,'Battery - Hand Held'!$F$13:$F$83,'Battery - Hand Held'!$L$13:$L$83) -> 133.581 | AB102: 970515902
A103: Battery - Hand Held | B103: 970536505 | C103: 20240103 | D103: 2401 | E103: =_xlfn.XLOOKUP(B103,'Battery - Hand Held'!$F$13:$F$83,'Battery - Hand Held'!$U$13:$U$83) -> 0 | F103: 20240201 | G103: 2405 | H103: =_xlfn.XLOOKUP(B103,'Battery - Hand Held'!$F$13:$F$83,'Battery - Hand Held'!$V$13:$V$83) -> 0 | I103: 20240301 | J103: 2409 | K103: =_xlfn.XLOOKUP(B103,'Battery - Hand Held'!$F$13:$F$83,'Battery - Hand Held'!$W$13:$W$83) -> 0 | L103: 20240402 | M103: 2414 | N103: =_xlfn.XLOOKUP(B103,'Battery - Hand Held'!$F$13:$F$83,'Battery - Hand Held'!$X$13:$X$83) -> 0 | O103: 20240501 | P103: 2418 | Q103: =_xlfn.XLOOKUP(B103,'Battery - Hand Held'!$F$13:$F$83,'Battery - Hand Held'!$Y$13:$Y$83) -> 0 | R103: 20240603 | S103: 2423 | T103: =_xlfn.XLOOKUP(B103,'Battery - Hand Held'!$F$13:$F$83,'Battery - Hand Held'!$Z$13:$Z$83) -> 0 | U103: =_xlfn.XLOOKUP(B103,'Battery - Hand Held'!$F$13:$F$83,'Battery - Hand Held'!$L$13:$L$83) -> 191.919 | AB103: 970515908
A104: Battery - Hand Held | B104: 970536603 | C104: 20240103 | D104: 2401 | E104: =_xlfn.XLOOKUP(B104,'Battery - Hand Held'!$F$13:$F$83,'Battery - Hand Held'!$U$13:$U$83) -> 0 | F104: 20240201 | G104: 2405 | H104: =_xlfn.XLOOKUP(B104,'Battery - Hand Held'!$F$13:$F$83,'Battery - Hand Held'!$V$13:$V$83) -> 0 | I104: 20240301 | J104: 2409 | K104: =_xlfn.XLOOKUP(B104,'Battery - Hand Held'!$F$13:$F$83,'Battery - Hand Held'!$W$13:$W$83) -> 0 | L104: 20240402 | M104: 2414 | N104: =_xlfn.XLOOKUP(B104,'Battery - Hand Held'!$F$13:$F$83,'Battery - Hand Held'!$X$13:$X$83) -> 0 | O104: 20240501 | P104: 2418 | Q104: =_xlfn.XLOOKUP(B104,'Battery - Hand Held'!$F$13:$F$83,'Battery - Hand Held'!$Y$13:$Y$83) -> 0 | R104: 20240603 | S104: 2423 | T104: =_xlfn.XLOOKUP(B104,'Battery - Hand Held'!$F$13:$F$83,'Battery - Hand Held'!$Z$13:$Z$83) -> 0 | U104: =_xlfn.XLOOKUP(B104,'Battery - Hand Held'!$F$13:$F$83,'Battery - Hand Held'!$L$13:$L$83) -> 145.25 | AB104: 970515906
A105: Battery - Hand Held | B105: 970466401 | C105: 20240103 | D105: 2401 | E105: =_xlfn.XLOOKUP(B105,'Battery - Hand Held'!$F$13:$F$83,'Battery - Hand Held'!$U$13:$U$83) -> 0 | F105: 20240201 | G105: 2405 | H105: =_xlfn.XLOOKUP(B105,'Battery - Hand Held'!$F$13:$F$83,'Battery - Hand Held'!$V$13:$V$83) -> 0 | I105: 20240301 | J105: 2409 | K105: =_xlfn.XLOOKUP(B105,'Battery - Hand Held'!$F$13:$F$83,'Battery - Hand Held'!$W$13:$W$83) -> 0 | L105: 20240402 | M105: 2414 | N105: =_xlfn.XLOOKUP(B105,'Battery - Hand Held'!$F$13:$F$83,'Battery - Hand Held'!$X$13:$X$83) -> 0 | O105: 20240501 | P105: 2418 | Q105: =_xlfn.XLOOKUP(B105,'Battery - Hand Held'!$F$13:$F$83,'Battery - Hand Held'!$Y$13:$Y$83) -> 0 | R105: 20240603 | S105: 2423 | T105: =_xlfn.XLOOKUP(B105,'Battery - Hand Held'!$F$13:$F$83,'Battery - Hand Held'!$Z$13:$Z$83) -> 0 | U105: =_xlfn.XLOOKUP(B105,'Battery - Hand Held'!$F$13:$F$83,'Battery - Hand Held'!$L$13:$L$83) -> 221.081 | AB105: 970515903
A106: Battery - Hand Held | B106: 967915813 | C106: 20240103 | D106: 2401 | E106: =_xlfn.XLOOKUP(B106,'Battery - Hand Held'!$F$13:$F$83,'Battery - Hand Held'!$U$13:$U$83) -> 3 | F106: 20240201 | G106: 2405 | H106: =_xlfn.XLOOKUP(B106,'Battery - Hand Held'!$F$13:$F$83,'Battery - Hand Held'!$V$13:$V$83) -> 2 | I106: 20240301 | J106: 2409 | K106: =_xlfn.XLOOKUP(B106,'Battery - Hand Held'!$F$13:$F$83,'Battery - Hand Held'!$W$13:$W$83) -> 2 | L106: 20240402 | M106: 2414 | N106: =_xlfn.XLOOKUP(B106,'Battery - Hand Held'!$F$13:$F$83,'Battery - Hand Held'!$X$13:$X$83) -> 2 | O106: 20240501 | P106: 2418 | Q106: =_xlfn.XLOOKUP(B106,'Battery - Hand Held'!$F$13:$F$83,'Battery - Hand Held'!$Y$13:$Y$83) -> 2 | R106: 20240603 | S106: 2423 | T106: =_xlfn.XLOOKUP(B106,'Battery - Hand Held'!$F$13:$F$83,'Battery - Hand Held'!$Z$13:$Z$83) -> 2 | U106: =_xlfn.XLOOKUP(B106,'Battery - Hand Held'!$F$13:$F$83,'Battery - Hand Held'!$L$13:$L$83) -> 279.419 | AB106: 529351901
A107: Battery - Hand Held | B107: 967971203 | C107: 20240103 | D107: 2401 | E107: =_xlfn.XLOOKUP(B107,'Battery - Hand Held'!$F$13:$F$83,'Battery - Hand Held'!$U$13:$U$83) -> 1 | F107: 20240201 | G107: 2405 | H107: =_xlfn.XLOOKUP(B107,'Battery - Hand Held'!$F$13:$F$83,'Battery - Hand Held'!$V$13:$V$83) -> 0 | I107: 20240301 | J107: 2409 | K107: =_xlfn.XLOOKUP(B107,'Battery - Hand Held'!$F$13:$F$83,'Battery - Hand Held'!$W$13:$W$83) -> 1 | L107: 20240402 | M107: 2414 | N107: =_xlfn.XLOOKUP(B107,'Battery - Hand Held'!$F$13:$F$83,'Battery - Hand Held'!$X$13:$X$83) -> 0 | O107: 20240501 | P107: 2418 | Q107: =_xlfn.XLOOKUP(B107,'Battery - Hand Held'!$F$13:$F$83,'Battery - Hand Held'!$Y$13:$Y$83) -> 1 | R107: 20240603 | S107: 2423 | T107: =_xlfn.XLOOKUP(B107,'Battery - Hand Held'!$F$13:$F$83,'Battery - Hand Held'!$Z$13:$Z$83) -> 0 | U107: =_xlfn.XLOOKUP(B107,'Battery - Hand Held'!$F$13:$F$83,'Battery - Hand Held'!$L$13:$L$83) -> 337.75
A108: Battery - Hand Held | B108: 970466002 | C108: 20240103 | D108: 2401 | E108: =_xlfn.XLOOKUP(B108,'Battery - Hand Held'!$F$13:$F$83,'Battery - Hand Held'!$U$13:$U$83) -> 2 | F108: 20240201 | G108: 2405 | H108: =_xlfn.XLOOKUP(B108,'Battery - Hand Held'!$F$13:$F$83,'Battery - Hand Held'!$V$13:$V$83) -> 0 | I108: 20240301 | J108: 2409 | K108: =_xlfn.XLOOKUP(B108,'Battery - Hand Held'!$F$13:$F$83,'Battery - Hand Held'!$W$13:$W$83) -> 2 | L108: 20240402 | M108: 2414 | N108: =_xlfn.XLOOKUP(B108,'Battery - Hand Held'!$F$13:$F$83,'Battery - Hand Held'!$X$13:$X$83) -> 0 | O108: 20240501 | P108: 2418 | Q108: =_xlfn.XLOOKUP(B108,'Battery - Hand Held'!$F$13:$F$83,'Battery - Hand Held'!$Y$13:$Y$83) -> 2 | R108: 20240603 | S108: 2423 | T108: =_xlfn.XLOOKUP(B108,'Battery - Hand Held'!$F$13:$F$83,'Battery - Hand Held'!$Z$13:$Z$83) -> 0 | U108: =_xlfn.XLOOKUP(B108,'Battery - Hand Held'!$F$13:$F$83,'Battery - Hand Held'!$L$13:$L$83) -> 337.75
A109: Battery - Hand Held | B109: 970466102 | C109: 20240103 | D109: 2401 | E109: =_xlfn.XLOOKUP(B109,'Battery - Hand Held'!$F$13:$F$83,'Battery - Hand Held'!$U$13:$U$83) -> 1 | F109: 20240201 | G109: 2405 | H109: =_xlfn.XLOOKUP(B109,'Battery - Hand Held'!$F$13:$F$83,'Battery - Hand Held'!$V$13:$V$83) -> 0 | I109: 20240301 | J109: 2409 | K109: =_xlfn.XLOOKUP(B109,'Battery - Hand Held'!$F$13:$F$83,'Battery - Hand Held'!$W$13:$W$83) -> 1 | L109: 20240402 | M109: 2414 | N109: =_xlfn.XLOOKUP(B109,'Battery - Hand Held'!$F$13:$F$83,'Battery - Hand Held'!$X$13:$X$83) -> 0 | O109: 20240501 | P109: 2418 | Q109: =_xlfn.XLOOKUP(B109,'Battery - Hand Held'!$F$13:$F$83,'Battery - Hand Held'!$Y$13:$Y$83) -> 1 | R109: 20240603 | S109: 2423 | T109: =_xlfn.XLOOKUP(B109,'Battery - Hand Held'!$F$13:$F$83,'Battery - Hand Held'!$Z$13:$Z$83) -> 0 | U109: =_xlfn.XLOOKUP(B109,'Battery - Hand Held'!$F$13:$F$83,'Battery - Hand Held'!$L$13:$L$83) -> 366.919
A110: Battery - Hand Held | B110: 970466202 | C110: 20240103 | D110: 2401 | E110: =_xlfn.XLOOKUP(B110,'Battery - Hand Held'!$F$13:$F$83,'Battery - Hand Held'!$U$13:$U$83) -> 0 | F110: 20240201 | G110: 2405 | H110: =_xlfn.XLOOKUP(B110,'Battery - Hand Held'!$F$13:$F$83,'Battery - Hand Held'!$V$13:$V$83) -> 0 | I110: 20240301 | J110: 2409 | K110: =_xlfn.XLOOKUP(B110,'Battery - Hand Held'!$F$13:$F$83,'Battery - Hand Held'!$W$13:$W$83) -> 0 | L110: 20240402 | M110: 2414 | N110: =_xlfn.XLOOKUP(B110,'Battery - Hand Held'!$F$13:$F$83,'Battery - Hand Held'!$X$13:$X$83) -> 0 | O110: 20240501 | P110: 2418 | Q110: =_xlfn.XLOOKUP(B110,'Battery - Hand Held'!$F$13:$F$83,'Battery - Hand Held'!$Y$13:$Y$83) -> 0 | R110: 20240603 | S110: 2423 | T110: =_xlfn.XLOOKUP(B110,'Battery - Hand Held'!$F$13:$F$83,'Battery - Hand Held'!$Z$13:$Z$83) -> 0 | U110: =_xlfn.XLOOKUP(B110,'Battery - Hand Held'!$F$13:$F$83,'Battery - Hand Held'!$L$13:$L$83) -> 337.75
A111: Battery - Hand Held | B111: 967884711 | C111: 20240103 | D111: 2401 | E111: =_xlfn.XLOOKUP(B111,'Battery - Hand Held'!$F$13:$F$83,'Battery - Hand Held'!$U$13:$U$83) -> 0 | F111: 20240201 | G111: 2405 | H111: =_xlfn.XLOOKUP(B111,'Battery - Hand Held'!$F$13:$F$83,'Battery - Hand Held'!$V$13:$V$83) -> 0 | I111: 20240301 | J111: 2409 | K111: =_xlfn.XLOOKUP(B111,'Battery - Hand Held'!$F$13:$F$83,'Battery - Hand Held'!$W$13:$W$83) -> 0 | L111: 20240402 | M111: 2414 | N111: =_xlfn.XLOOKUP(B111,'Battery - Hand Held'!$F$13:$F$83,'Battery - Hand Held'!$X$13:$X$83) -> 0 | O111: 20240501 | P111: 2418 | Q111: =_xlfn.XLOOKUP(B111,'Battery - Hand Held'!$F$13:$F$83,'Battery - Hand Held'!$Y$13:$Y$83) -> 0 | R111: 20240603 | S111: 2423 | T111: =_xlfn.XLOOKUP(B111,'Battery - Hand Held'!$F$13:$F$83,'Battery - Hand Held'!$Z$13:$Z$83) -> 0 | U111: =_xlfn.XLOOKUP(B111,'Battery - Hand Held'!$F$13:$F$83,'Battery - Hand Held'!$L$13:$L$83) -> 349.419
A112: Battery - Hand Held | B112: 967884811 | C112: 20240103 | D112: 2401 | E112: =_xlfn.XLOOKUP(B112,'Battery - Hand Held'!$F$13:$F$83,'Battery - Hand Held'!$U$13:$U$83) -> 0 | F112: 20240201 | G112: 2405 | H112: =_xlfn.XLOOKUP(B112,'Battery - Hand Held'!$F$13:$F$83,'Battery - Hand Held'!$V$13:$V$83) -> 0 | I112: 20240301 | J112: 2409 | K112: =_xlfn.XLOOKUP(B112,'Battery - Hand Held'!$F$13:$F$83,'Battery - Hand Held'!$W$13:$W$83) -> 0 | L112: 20240402 | M112: 2414 | N112: =_xlfn.XLOOKUP(B112,'Battery - Hand Held'!$F$13:$F$83,'Battery - Hand Held'!$X$13:$X$83) -> 0 | O112: 20240501 | P112: 2418 | Q112: =_xlfn.XLOOKUP(B112,'Battery - Hand Held'!$F$13:$F$83,'Battery - Hand Held'!$Y$13:$Y$83) -> 0 | R112: 20240603 | S112: 2423 | T112: =_xlfn.XLOOKUP(B112,'Battery - Hand Held'!$F$13:$F$83,'Battery - Hand Held'!$Z$13:$Z$83) -> 0 | U112: =_xlfn.XLOOKUP(B112,'Battery - Hand Held'!$F$13:$F$83,'Battery - Hand Held'!$L$13:$L$83) -> 407.75
A113: Battery - Hand Held | B113: 970515907 | C113: 20240103 | D113: 2401 | E113: =_xlfn.XLOOKUP(B113,'Battery - Hand Held'!$F$13:$F$83,'Battery - Hand Held'!$U$13:$U$83) -> 0 | F113: 20240201 | G113: 2405 | H113: =_xlfn.XLOOKUP(B113,'Battery - Hand Held'!$F$13:$F$83,'Battery - Hand Held'!$V$13:$V$83) -> 0 | I113: 20240301 | J113: 2409 | K113: =_xlfn.XLOOKUP(B113,'Battery - Hand Held'!$F$13:$F$83,'Battery - Hand Held'!$W$13:$W$83) -> 0 | L113: 20240402 | M113: 2414 | N113: =_xlfn.XLOOKUP(B113,'Battery - Hand Held'!$F$13:$F$83,'Battery - Hand Held'!$X$13:$X$83) -> 0 | O113: 20240501 | P113: 2418 | Q113: =_xlfn.XLOOKUP(B113,'Battery - Hand Held'!$F$13:$F$83,'Battery - Hand Held'!$Y$13:$Y$83) -> 0 | R113: 20240603 | S113: 2423 | T113: =_xlfn.XLOOKUP(B113,'Battery - Hand Held'!$F$13:$F$83,'Battery - Hand Held'!$Z$13:$Z$83) -> 0 | U113: =_xlfn.XLOOKUP(B113,'Battery - Hand Held'!$F$13:$F$83,'Battery - Hand Held'!$L$13:$L$83) -> 191.919
A114: Battery - Hand Held | B114: 970515902 | C114: 20240103 | D114: 2401 | E114: =_xlfn.XLOOKUP(B114,'Battery - Hand Held'!$F$13:$F$83,'Battery - Hand Held'!$U$13:$U$83) -> 0 | F114: 20240201 | G114: 2405 | H114: =_xlfn.XLOOKUP(B114,'Battery - Hand Held'!$F$13:$F$83,'Battery - Hand Held'!$V$13:$V$83) -> 0 | I114: 20240301 | J114: 2409 | K114: =_xlfn.XLOOKUP(B114,'Battery - Hand Held'!$F$13:$F$83,'Battery - Hand Held'!$W$13:$W$83) -> 0 | L114: 20240402 | M114: 2414 | N114: =_xlfn.XLOOKUP(B114,'Battery - Hand Held'!$F$13:$F$83,'Battery - Hand Held'!$X$13:$X$83) -> 0 | O114: 20240501 | P114: 2418 | Q114: =_xlfn.XLOOKUP(B114,'Battery - Hand Held'!$F$13:$F$83,'Battery - Hand Held'!$Y$13:$Y$83) -> 0 | R114: 20240603 | S114: 2423 | T114: =_xlfn.XLOOKUP(B114,'Battery - Hand Held'!$F$13:$F$83,'Battery - Hand Held'!$Z$13:$Z$83) -> 0 | U114: =_xlfn.XLOOKUP(B114,'Battery - Hand Held'!$F$13:$F$83,'Battery - Hand Held'!$L$13:$L$83) -> 133.581
A115: Battery - Hand Held | B115: 529351902 | C115: 20240103 | D115: 2401 | E115: =_xlfn.XLOOKUP(B115,'Battery - Hand Held'!$F$13:$F$83,'Battery - Hand Held'!$U$13:$U$83) -> 0 | F115: 20240201 | G115: 2405 | H115: =_xlfn.XLOOKUP(B115,'Battery - Hand Held'!$F$13:$F$83,'Battery - Hand Held'!$V$13:$V$83) -> 0 | I115: 20240301 | J115: 2409 | K115: =_xlfn.XLOOKUP(B115,'Battery - Hand Held'!$F$13:$F$83,'Battery - Hand Held'!$W$13:$W$83) -> 0 | L115: 20240402 | M115: 2414 | N115: =_xlfn.XLOOKUP(B115,'Battery - Hand Held'!$F$13:$F$83,'Battery - Hand Held'!$X$13:$X$83) -> 0 | O115: 20240501 | P115: 2418 | Q115: =_xlfn.XLOOKUP(B115,'Battery - Hand Held'!$F$13:$F$83,'Battery - Hand Held'!$Y$13:$Y$83) -> 0 | R115: 20240603 | S115: 2423 | T115: =_xlfn.XLOOKUP(B115,'Battery - Hand Held'!$F$13:$F$83,'Battery - Hand Held'!$Z$13:$Z$83) -> 0 | U115: =_xlfn.XLOOKUP(B115,'Battery - Hand Held'!$F$13:$F$83,'Battery - Hand Held'!$L$13:$L$83) -> 69.993
A116: Battery - Hand Held | B116: 970515904 | C116: 20240103 | D116: 2401 | E116: =_xlfn.XLOOKUP(B116,'Battery - Hand Held'!$F$13:$F$83,'Battery - Hand Held'!$U$13:$U$83) -> 0 | F116: 20240201 | G116: 2405 | H116: =_xlfn.XLOOKUP(B116,'Battery - Hand Held'!$F$13:$F$83,'Battery - Hand Held'!$V$13:$V$83) -> 0 | I116: 20240301 | J116: 2409 | K116: =_xlfn.XLOOKUP(B116,'Battery - Hand Held'!$F$13:$F$83,'Battery - Hand Held'!$W$13:$W$83) -> 0 | L116: 20240402 | M116: 2414 | N116: =_xlfn.XLOOKUP(B116,'Battery - Hand Held'!$F$13:$F$83,'Battery - Hand Held'!$X$13:$X$83) -> 0 | O116: 20240501 | P116: 2418 | Q116: =_xlfn.XLOOKUP(B116,'Battery - Hand Held'!$F$13:$F$83,'Battery - Hand Held'!$Y$13:$Y$83) -> 0 | R116: 20240603 | S116: 2423 | T116: =_xlfn.XLOOKUP(B116,'Battery - Hand Held'!$F$13:$F$83,'Battery - Hand Held'!$Z$13:$Z$83) -> 0 | U116: =_xlfn.XLOOKUP(B116,'Battery - Hand Held'!$F$13:$F$83,'Battery - Hand Held'!$L$13:$L$83) -> 191.919
A117: Battery - Lawn | B117: 970648203 | C117: 20240103 | D117: 2401 | E117: =_xlfn.XLOOKUP(B117,'Battery - Lawn'!$F$13:$F$45,'Battery - Lawn'!$U$13:$U$45) -> 0 | F117: 20240201 | G117: 2405 | H117: =_xlfn.XLOOKUP(B117,'Battery - Lawn'!$F$20:$F$45,'Battery - Lawn'!$V$20:$V$45) -> 0 | I117: 20240301 | J117: 2409 | K117: =_xlfn.XLOOKUP(B117,'Battery - Lawn'!$F$20:$F$45,'Battery - Lawn'!$W$20:$W$45) -> 0 | L117: 20240402 | M117: 2414 | N117: =_xlfn.XLOOKUP(B117,'Battery - Lawn'!$F$20:$F$45,'Battery - Lawn'!$X$20:$X$45) -> 0 | O117: 20240501 | P117: 2418 | Q117: =_xlfn.XLOOKUP(B117,'Battery - Lawn'!$F$20:$F$45,'Battery - Lawn'!$Y$20:$Y$45) -> 0 | R117: 20240603 | S117: 2423 | T117: =_xlfn.XLOOKUP(B117,'Battery - Lawn'!$F$20:$F$45,'Battery - Lawn'!$Z$20:$Z$45) -> 0 | U117: =_xlfn.XLOOKUP(B117,'Battery - Lawn'!$F$20:$F$45,'Battery - Lawn'!$L$20:$L$45) -> 320.25
A118: Battery - Lawn | B118: 970648201 | C118: 20240103 | D118: 2401 | E118: =_xlfn.XLOOKUP(B118,'Battery - Lawn'!$F$13:$F$45,'Battery - Lawn'!$U$13:$U$45) -> 0 | F118: 20240201 | G118: 2405 | H118: =_xlfn.XLOOKUP(B118,'Battery - Lawn'!$F$13:$F$45,'Battery - Lawn'!$V$13:$V$45) -> 0 | I118: 20240301 | J118: 2409 | K118: =_xlfn.XLOOKUP(B118,'Battery - Lawn'!$F$13:$F$45,'Battery - Lawn'!$W$13:$W$45) -> 0 | L118: 20240402 | M118: 2414 | N118: =_xlfn.XLOOKUP(B118,'Battery - Lawn'!$F$13:$F$45,'Battery - Lawn'!$X$13:$X$45) -> 0 | O118: 20240501 | P118: 2418 | Q118: =_xlfn.XLOOKUP(B118,'Battery - Lawn'!$F$13:$F$45,'Battery - Lawn'!$Y$13:$Y$45) -> 0 | R118: 20240603 | S118: 2423 | T118: =_xlfn.XLOOKUP(B118,'Battery - Lawn'!$F$13:$F$45,'Battery - Lawn'!$Z$13:$Z$45) -> 0 | U118: =_xlfn.XLOOKUP(B118,'Battery - Lawn'!$F$13:$F$45,'Battery - Lawn'!$L$13:$L$45) -> 244.419
A119: Battery - Lawn | B119: 970626001 | C119: 20240103 | D119: 2401 | E119: =_xlfn.XLOOKUP(B119,'Battery - Lawn'!$F$13:$F$45,'Battery - Lawn'!$U$13:$U$45) -> 0 | F119: 20240201 | G119: 2405 | H119: =_xlfn.XLOOKUP(B119,'Battery - Lawn'!$F$13:$F$45,'Battery - Lawn'!$V$13:$V$45) -> 0 | I119: 20240301 | J119: 2409 | K119: =_xlfn.XLOOKUP(B119,'Battery - Lawn'!$F$13:$F$45,'Battery - Lawn'!$W$13:$W$45) -> 0 | L119: 20240402 | M119: 2414 | N119: =_xlfn.XLOOKUP(B119,'Battery - Lawn'!$F$13:$F$45,'Battery - Lawn'!$X$13:$X$45) -> 0 | O119: 20240501 | P119: 2418 | Q119: =_xlfn.XLOOKUP(B119,'Battery - Lawn'!$F$13:$F$45,'Battery - Lawn'!$Y$13:$Y$45) -> 0 | R119: 20240603 | S119: 2423 | T119: =_xlfn.XLOOKUP(B119,'Battery - Lawn'!$F$13:$F$45,'Battery - Lawn'!$Z$13:$Z$45) -> 0 | U119: =_xlfn.XLOOKUP(B119,'Battery - Lawn'!$F$20:$F$45,'Battery - Lawn'!$L$20:$L$45) -> 827.75
A120: Battery - Lawn | B120: 970541801 | C120: 20240103 | D120: 2401 | E120: =_xlfn.XLOOKUP(B120,'Battery - Lawn'!$F$13:$F$45,'Battery - Lawn'!$U$13:$U$45) -> 0 | F120: 20240201 | G120: 2405 | H120: =_xlfn.XLOOKUP(B120,'Battery - Lawn'!$F$13:$F$45,'Battery - Lawn'!$V$13:$V$45) -> 0 | I120: 20240301 | J120: 2409 | K120: =_xlfn.XLOOKUP(B120,'Battery - Lawn'!$F$13:$F$45,'Battery - Lawn'!$W$13:$W$45) -> 0 | L120: 20240402 | M120: 2414 | N120: =_xlfn.XLOOKUP(B120,'Battery - Lawn'!$F$13:$F$45,'Battery - Lawn'!$X$13:$X$45) -> 0 | O120: 20240501 | P120: 2418 | Q120: =_xlfn.XLOOKUP(B120,'Battery - Lawn'!$F$13:$F$45,'Battery - Lawn'!$Y$13:$Y$45) -> 0 | R120: 20240603 | S120: 2423 | T120: =_xlfn.XLOOKUP(B120,'Battery - Lawn'!$F$13:$F$45,'Battery - Lawn'!$Z$13:$Z$45) -> 0 | U120: =_xlfn.XLOOKUP(B120,'Battery - Lawn'!$F$13:$F$45,'Battery - Lawn'!$L$13:$L$45) -> 250.25
A121: Battery - Lawn | B121: 970541901 | C121: 20240103 | D121: 2401 | E121: =_xlfn.XLOOKUP(B121,'Battery - Lawn'!$F$13:$F$45,'Battery - Lawn'!$U$13:$U$45) -> 0 | F121: 20240201 | G121: 2405 | H121: =_xlfn.XLOOKUP(B121,'Battery - Lawn'!$F$13:$F$45,'Battery - Lawn'!$V$13:$V$45) -> 0 | I121: 20240301 | J121: 2409 | K121: =_xlfn.XLOOKUP(B121,'Battery - Lawn'!$F$13:$F$45,'Battery - Lawn'!$W$13:$W$45) -> 0 | L121: 20240402 | M121: 2414 | N121: =_xlfn.XLOOKUP(B121,'Battery - Lawn'!$F$13:$F$45,'Battery - Lawn'!$X$13:$X$45) -> 0 | O121: 20240501 | P121: 2418 | Q121: =_xlfn.XLOOKUP(B121,'Battery - Lawn'!$F$13:$F$45,'Battery - Lawn'!$Y$13:$Y$45) -> 0 | R121: 20240603 | S121: 2423 | T121: =_xlfn.XLOOKUP(B121,'Battery - Lawn'!$F$13:$F$45,'Battery - Lawn'!$Z$13:$Z$45) -> 0 | U121: =_xlfn.XLOOKUP(B121,'Battery - Lawn'!$F$13:$F$45,'Battery - Lawn'!$L$13:$L$45) -> 320.25
A122: Battery - Lawn | B122: 531223201 | C122: 20240103 | D122: 2401 | E122: =_xlfn.XLOOKUP(B122,'Battery - Lawn'!$F$13:$F$45,'Battery - Lawn'!$U$13:$U$45) -> 0 | F122: 20240201 | G122: 2405 | H122: =_xlfn.XLOOKUP(B122,'Battery - Lawn'!$F$13:$F$45,'Battery - Lawn'!$V$13:$V$45) -> 0 | I122: 20240301 | J122: 2409 | K122: =_xlfn.XLOOKUP(B122,'Battery - Lawn'!$F$13:$F$45,'Battery - Lawn'!$W$13:$W$45) -> 0 | L122: 20240402 | M122: 2414 | N122: =_xlfn.XLOOKUP(B122,'Battery - Lawn'!$F$13:$F$45,'Battery - Lawn'!$X$13:$X$45) -> 0 | O122: 20240501 | P122: 2418 | Q122: =_xlfn.XLOOKUP(B122,'Battery - Lawn'!$F$13:$F$45,'Battery - Lawn'!$Y$13:$Y$45) -> 0 | R122: 20240603 | S122: 2423 | T122: =_xlfn.XLOOKUP(B122,'Battery - Lawn'!$F$13:$F$45,'Battery - Lawn'!$Z$13:$Z$45) -> 0 | U122: =_xlfn.XLOOKUP(B122,'Battery - Lawn'!$F$13:$F$45,'Battery - Lawn'!$L$13:$L$45) -> 26.243
A123: Battery - Lawn | B123: 970542001 | C123: 20240103 | D123: 2401 | E123: =_xlfn.XLOOKUP(B123,'Battery - Lawn'!$F$13:$F$45,'Battery - Lawn'!$U$13:$U$45) -> 0 | F123: 20240201 | G123: 2405 | H123: =_xlfn.XLOOKUP(B123,'Battery - Lawn'!$F$13:$F$45,'Battery - Lawn'!$V$13:$V$45) -> 0 | I123: 20240301 | J123: 2409 | K123: =_xlfn.XLOOKUP(B123,'Battery - Lawn'!$F$13:$F$45,'Battery - Lawn'!$W$13:$W$45) -> 0 | L123: 20240402 | M123: 2414 | N123: =_xlfn.XLOOKUP(B123,'Battery - Lawn'!$F$13:$F$45,'Battery - Lawn'!$X$13:$X$45) -> 0 | O123: 20240501 | P123: 2418 | Q123: =_xlfn.XLOOKUP(B123,'Battery - Lawn'!$F$13:$F$45,'Battery - Lawn'!$Y$13:$Y$45) -> 0 | R123: 20240603 | S123: 2423 | T123: =_xlfn.XLOOKUP(B123,'Battery - Lawn'!$F$13:$F$45,'Battery - Lawn'!$Z$13:$Z$45) -> 0 | U123: =_xlfn.XLOOKUP(B123,'Battery - Lawn'!$F$13:$F$45,'Battery - Lawn'!$L$13:$L$45) -> 349.419
A124: Battery - Lawn | B124: 970525701 | C124: 20240103 | D124: 2401 | E124: =_xlfn.XLOOKUP(B124,'Battery - Lawn'!$F$13:$F$45,'Battery - Lawn'!$U$13:$U$45) -> 0 | F124: 20240201 | G124: 2405 | H124: =_xlfn.XLOOKUP(B124,'Battery - Lawn'!$F$13:$F$45,'Battery - Lawn'!$V$13:$V$45) -> 0 | I124: 20240301 | J124: 2409 | K124: =_xlfn.XLOOKUP(B124,'Battery - Lawn'!$F$13:$F$45,'Battery - Lawn'!$W$13:$W$45) -> 0 | L124: 20240402 | M124: 2414 | N124: =_xlfn.XLOOKUP(B124,'Battery - Lawn'!$F$13:$F$45,'Battery - Lawn'!$X$13:$X$45) -> 0 | O124: 20240501 | P124: 2418 | Q124: =_xlfn.XLOOKUP(B124,'Battery - Lawn'!$F$13:$F$45,'Battery - Lawn'!$Y$13:$Y$45) -> 0 | R124: 20240603 | S124: 2423 | T124: =_xlfn.XLOOKUP(B124,'Battery - Lawn'!$F$13:$F$45,'Battery - Lawn'!$Z$13:$Z$45) -> 0 | U124: =_xlfn.XLOOKUP(B124,'Battery - Lawn'!$F$13:$F$45,'Battery - Lawn'!$L$13:$L$45) -> 874.419
A125: Battery - Lawn | B125: 970648301 | C125: 20240103 | D125: 2401 | E125: =_xlfn.XLOOKUP(B125,Aspire!$F$13:$F$45,Aspire!$U$13:$U$45) -> 0 | F125: 20240201 | G125: 2405 | H125: =_xlfn.XLOOKUP(B125,Aspire!$F$13:$F$45,Aspire!$V$13:$V$45) -> 0 | I125: 20240301 | J125: 2409 | K125: =_xlfn.XLOOKUP(B125,Aspire!$F$13:$F$45,Aspire!$W$13:$W$45) -> 0 | L125: 20240402 | M125: 2414 | N125: =_xlfn.XLOOKUP(B125,Aspire!$F$13:$F$45,Aspire!$X$13:$X$45) -> 0 | O125: 20240501 | P125: 2418 | Q125: =_xlfn.XLOOKUP(B125,Aspire!$F$13:$F$45,Aspire!$Y$13:$Y$45) -> 0 | R125: 20240603 | S125: 2423 | T125: =_xlfn.XLOOKUP(B125,Aspire!$F$13:$F$45,Aspire!$Z$13:$Z$45) -> 0 | U125: =_xlfn.XLOOKUP(B125,Aspire!$F$13:$F$45,Aspire!$L$13:$L$45) -> 162.75
A126: Battery - Lawn | B126: 970648305 | C126: 20240103 | D126: 2401 | E126: =_xlfn.XLOOKUP(B126,Aspire!$F$13:$F$45,Aspire!$U$13:$U$45) -> 0 | F126: 20240201 | G126: 2405 | H126: =_xlfn.XLOOKUP(B126,Aspire!$F$13:$F$45,Aspire!$V$13:$V$45) -> 4 | I126: 20240301 | J126: 2409 | K126: =_xlfn.XLOOKUP(B126,Aspire!$F$13:$F$45,Aspire!$W$13:$W$45) -> 4 | L126: 20240402 | M126: 2414 | N126: =_xlfn.XLOOKUP(B126,Aspire!$F$13:$F$45,Aspire!$X$13:$X$45) -> 4 | O126: 20240501 | P126: 2418 | Q126: =_xlfn.XLOOKUP(B126,Aspire!$F$13:$F$45,Aspire!$Y$13:$Y$45) -> 4 | R126: 20240603 | S126: 2423 | T126: =_xlfn.XLOOKUP(B126,Aspire!$F$13:$F$45,Aspire!$Z$13:$Z$45) -> 0 | U126: =_xlfn.XLOOKUP(B126,Aspire!$F$13:$F$45,Aspire!$L$13:$L$45) -> 203.581
A127: Battery - Hand Held | B127: 970621302 | C127: 20240103 | D127: 2401 | E127: =_xlfn.XLOOKUP(B127,Aspire!$F$13:$F$45,Aspire!$U$13:$U$45) -> 0 | F127: 20240201 | G127: 2405 | H127: =_xlfn.XLOOKUP(B127,Aspire!$F$13:$F$45,Aspire!$V$13:$V$45) -> 0 | I127: 20240301 | J127: 2409 | K127: =_xlfn.XLOOKUP(B127,Aspire!$F$13:$F$45,Aspire!$W$13:$W$45) -> 0 | L127: 20240402 | M127: 2414 | N127: =_xlfn.XLOOKUP(B127,Aspire!$F$13:$F$45,Aspire!$X$13:$X$45) -> 0 | O127: 20240501 | P127: 2418 | Q127: =_xlfn.XLOOKUP(B127,Aspire!$F$13:$F$45,Aspire!$Y$13:$Y$45) -> 0 | R127: 20240603 | S127: 2423 | T127: =_xlfn.XLOOKUP(B127,Aspire!$F$13:$F$45,Aspire!$Z$13:$Z$45) -> 0 | U127: =_xlfn.XLOOKUP(B127,Aspire!$F$13:$F$45,Aspire!$L$13:$L$45) -> 69.993
A128: Battery - Hand Held | B128: 970621306 | C128: 20240103 | D128: 2401 | E128: =_xlfn.XLOOKUP(B128,Aspire!$F$13:$F$45,Aspire!$U$13:$U$45) -> 2 | F128: 20240201 | G128: 2405 | H128: =_xlfn.XLOOKUP(B128,Aspire!$F$13:$F$45,Aspire!$V$13:$V$45) -> 2 | I128: 20240301 | J128: 2409 | K128: =_xlfn.XLOOKUP(B128,Aspire!$F$13:$F$45,Aspire!$W$13:$W$45) -> 2 | L128: 20240402 | M128: 2414 | N128: =_xlfn.XLOOKUP(B128,Aspire!$F$13:$F$45,Aspire!$X$13:$X$45) -> 2 | O128: 20240501 | P128: 2418 | Q128: =_xlfn.XLOOKUP(B128,Aspire!$F$13:$F$45,Aspire!$Y$13:$Y$45) -> 2 | R128: 20240603 | S128: 2423 | T128: =_xlfn.XLOOKUP(B128,Aspire!$F$13:$F$45,Aspire!$Z$13:$Z$45) -> 2 | U128: =_xlfn.XLOOKUP(B128,Aspire!$F$13:$F$45,Aspire!$L$13:$L$45) -> 99.162
A129: Battery - Hand Held | B129: 970621402 | C129: 20240103 | D129: 2401 | E129: =_xlfn.XLOOKUP(B129,Aspire!$F$13:$F$45,Aspire!$U$13:$U$45) -> 0 | F129: 20240201 | G129: 2405 | H129: =_xlfn.XLOOKUP(B129,Aspire!$F$13:$F$45,Aspire!$V$13:$V$45) -> 0 | I129: 20240301 | J129: 2409 | K129: =_xlfn.XLOOKUP(B129,Aspire!$F$13:$F$45,Aspire!$W$13:$W$45) -> 0 | L129: 20240402 | M129: 2414 | N129: =_xlfn.XLOOKUP(B129,Aspire!$F$13:$F$45,Aspire!$X$13:$X$45) -> 0 | O129: 20240501 | P129: 2418 | Q129: =_xlfn.XLOOKUP(B129,Aspire!$F$13:$F$45,Aspire!$Y$13:$Y$45) -> 0 | R129: 20240603 | S129: 2423 | T129: =_xlfn.XLOOKUP(B129,Aspire!$F$13:$F$45,Aspire!$Z$13:$Z$45) -> 0 | U129: =_xlfn.XLOOKUP(B129,Aspire!$F$13:$F$45,Aspire!$L$13:$L$45) -> 104.993
A130: Battery - Hand Held | B130: 970621406 | C130: 20240103 | D130: 2401 | E130: =_xlfn.XLOOKUP(B130,Aspire!$F$13:$F$45,Aspire!$U$13:$U$45) -> 2 | F130: 20240201 | G130: 2405 | H130: =_xlfn.XLOOKUP(B130,Aspire!$F$13:$F$45,Aspire!$V$13:$V$45) -> 2 | I130: 20240301 | J130: 2409 | K130: =_xlfn.XLOOKUP(B130,Aspire!$F$13:$F$45,Aspire!$W$13:$W$45) -> 2 | L130: 20240402 | M130: 2414 | N130: =_xlfn.XLOOKUP(B130,Aspire!$F$13:$F$45,Aspire!$X$13:$X$45) -> 2 | O130: 20240501 | P130: 2418 | Q130: =_xlfn.XLOOKUP(B130,Aspire!$F$13:$F$45,Aspire!$Y$13:$Y$45) -> 2 | R130: 20240603 | S130: 2423 | T130: =_xlfn.XLOOKUP(B130,Aspire!$F$13:$F$45,Aspire!$Z$13:$Z$45) -> 2 | U130: =_xlfn.XLOOKUP(B130,Aspire!$F$13:$F$45,Aspire!$L$13:$L$45) -> 162.75
A131: Battery - Hand Held | B131: 970620402 | C131: 20240103 | D131: 2401 | E131: =_xlfn.XLOOKUP(B131,Aspire!$F$13:$F$45,Aspire!$U$13:$U$45) -> 0 | F131: 20240201 | G131: 2405 | H131: =_xlfn.XLOOKUP(B131,Aspire!$F$13:$F$45,Aspire!$V$13:$V$45) -> 0 | I131: 20240301 | J131: 2409 | K131: =_xlfn.XLOOKUP(B131,Aspire!$F$13:$F$45,Aspire!$W$13:$W$45) -> 0 | L131: 20240402 | M131: 2414 | N131: =_xlfn.XLOOKUP(B131,Aspire!$F$13:$F$45,Aspire!$X$13:$X$45) -> 0 | O131: 20240501 | P131: 2418 | Q131: =_xlfn.XLOOKUP(B131,Aspire!$F$13:$F$45,Aspire!$Y$13:$Y$45) -> 0 | R131: 20240603 | S131: 2423 | T131: =_xlfn.XLOOKUP(B131,Aspire!$F$13:$F$45,Aspire!$Z$13:$Z$45) -> 0 | U131: =_xlfn.XLOOKUP(B131,Aspire!$F$13:$F$45,Aspire!$L$13:$L$45) -> 75.831
A132: Battery - Hand Held | B132: 970620405 | C132: 20240103 | D132: 2401 | E132: =_xlfn.XLOOKUP(B132,Aspire!$F$13:$F$45,Aspire!$U$13:$U$45) -> 2 | F132: 20240201 | G132: 2405 | H132: =_xlfn.XLOOKUP(B132,Aspire!$F$13:$F$45,Aspire!$V$13:$V$45) -> 0 | I132: 20240301 | J132: 2409 | K132: =_xlfn.XLOOKUP(B132,Aspire!$F$13:$F$45,Aspire!$W$13:$W$45) -> 2 | L132: 20240402 | M132: 2414 | N132: =_xlfn.XLOOKUP(B132,Aspire!$F$13:$F$45,Aspire!$X$13:$X$45) -> 0 | O132: 20240501 | P132: 2418 | Q132: =_xlfn.XLOOKUP(B132,Aspire!$F$13:$F$45,Aspire!$Y$13:$Y$45) -> 2 | R132: 20240603 | S132: 2423 | T132: =_xlfn.XLOOKUP(B132,Aspire!$F$13:$F$45,Aspire!$Z$13:$Z$45) -> 2 | U132: =_xlfn.XLOOKUP(B132,Aspire!$F$13:$F$45,Aspire!$L$13:$L$45) -> 133.581
A133: Battery - Hand Held | B133: 970620302 | C133: 20240103 | D133: 2401 | E133: =_xlfn.XLOOKUP(B133,Aspire!$F$13:$F$45,Aspire!$U$13:$U$45) -> 0 | F133: 20240201 | G133: 2405 | H133: =_xlfn.XLOOKUP(B133,Aspire!$F$13:$F$45,Aspire!$V$13:$V$45) -> 0 | I133: 20240301 | J133: 2409 | K133: =_xlfn.XLOOKUP(B133,Aspire!$F$13:$F$45,Aspire!$W$13:$W$45) -> 0 | L133: 20240402 | M133: 2414 | N133: =_xlfn.XLOOKUP(B133,Aspire!$F$13:$F$45,Aspire!$X$13:$X$45) -> 0 | O133: 20240501 | P133: 2418 | Q133: =_xlfn.XLOOKUP(B133,Aspire!$F$13:$F$45,Aspire!$Y$13:$Y$45) -> 0 | R133: 20240603 | S133: 2423 | T133: =_xlfn.XLOOKUP(B133,Aspire!$F$13:$F$45,Aspire!$Z$13:$Z$45) -> 0 | U133: =_xlfn.XLOOKUP(B133,Aspire!$F$13:$F$45,Aspire!$L$13:$L$45) -> 81.662
A134: Battery - Hand Held | B134: 970620305 | C134: 20240103 | D134: 2401 | E134: =_xlfn.XLOOKUP(B134,Aspire!$F$13:$F$45,Aspire!$U$13:$U$45) -> 0 | F134: 20240201 | G134: 2405 | H134: =_xlfn.XLOOKUP(B134,Aspire!$F$13:$F$45,Aspire!$V$13:$V$45) -> 0 | I134: 20240301 | J134: 2409 | K134: =_xlfn.XLOOKUP(B134,Aspire!$F$13:$F$45,Aspire!$W$13:$W$45) -> 2 | L134: 20240402 | M134: 2414 | N134: =_xlfn.XLOOKUP(B134,Aspire!$F$13:$F$45,Aspire!$X$13:$X$45) -> 2 | O134: 20240501 | P134: 2418 | Q134: =_xlfn.XLOOKUP(B134,Aspire!$F$13:$F$45,Aspire!$Y$13:$Y$45) -> 2 | R134: 20240603 | S134: 2423 | T134: =_xlfn.XLOOKUP(B134,Aspire!$F$13:$F$45,Aspire!$Z$13:$Z$45) -> 2 | U134: =_xlfn.XLOOKUP(B134,Aspire!$F$13:$F$45,Aspire!$L$13:$L$45) -> 116.662
A135: Battery - Hand Held | B135: 970620202 | C135: 20240103 | D135: 2401 | E135: =_xlfn.XLOOKUP(B135,Aspire!$F$13:$F$45,Aspire!$U$13:$U$45) -> 0 | F135: 20240201 | G135: 2405 | H135: =_xlfn.XLOOKUP(B135,Aspire!$F$13:$F$45,Aspire!$V$13:$V$45) -> 0 | I135: 20240301 | J135: 2409 | K135: =_xlfn.XLOOKUP(B135,Aspire!$F$13:$F$45,Aspire!$W$13:$W$45) -> 0 | L135: 20240402 | M135: 2414 | N135: =_xlfn.XLOOKUP(B135,Aspire!$F$13:$F$45,Aspire!$X$13:$X$45) -> 0 | O135: 20240501 | P135: 2418 | Q135: =_xlfn.XLOOKUP(B135,Aspire!$F$13:$F$45,Aspire!$Y$13:$Y$45) -> 0 | R135: 20240603 | S135: 2423 | T135: =_xlfn.XLOOKUP(B135,Aspire!$F$13:$F$45,Aspire!$Z$13:$Z$45) -> 0 | U135: =_xlfn.XLOOKUP(B135,Aspire!$F$13:$F$45,Aspire!$L$13:$L$45) -> 75.831
A136: Battery - Hand Held | B136: 970620205 | C136: 20240103 | D136: 2401 | E136: =_xlfn.XLOOKUP(B136,Aspire!$F$13:$F$45,Aspire!$U$13:$U$45) -> 2 | F136: 20240201 | G136: 2405 | H136: =_xlfn.XLOOKUP(B136,Aspire!$F$13:$F$45,Aspire!$V$13:$V$45) -> 3 | I136: 20240301 | J136: 2409 | K136: =_xlfn.XLOOKUP(B136,Aspire!$F$13:$F$45,Aspire!$W$13:$W$45) -> 3 | L136: 20240402 | M136: 2414 | N136: =_xlfn.XLOOKUP(B136,Aspire!$F$13:$F$45,Aspire!$X$13:$X$45) -> 3 | O136: 20240501 | P136: 2418 | Q136: =_xlfn.XLOOKUP(B136,Aspire!$F$13:$F$45,Aspire!$Y$13:$Y$45) -> 3 | R136: 20240603 | S136: 2423 | T136: =_xlfn.XLOOKUP(B136,Aspire!$F$13:$F$45,Aspire!$Z$13:$Z$45) -> 3 | U136: =_xlfn.XLOOKUP(B136,Aspire!$F$13:$F$45,Aspire!$L$13:$L$45) -> 104.993
A137: Battery - Hand Held | B137: 970620208 | C137: 20240103 | D137: 2401 | E137: =_xlfn.XLOOKUP(B137,Aspire!$F$13:$F$45,Aspire!$U$13:$U$45) -> 0 | F137: 20240201 | G137: 2405 | H137: =_xlfn.XLOOKUP(B137,Aspire!$F$13:$F$45,Aspire!$V$13:$V$45) -> 1 | I137: 20240301 | J137: 2409 | K137: =_xlfn.XLOOKUP(B137,Aspire!$F$13:$F$45,Aspire!$W$13:$W$45) -> 1 | L137: 20240402 | M137: 2414 | N137: =_xlfn.XLOOKUP(B137,Aspire!$F$13:$F$45,Aspire!$X$13:$X$45) -> 1 | O137: 20240501 | P137: 2418 | Q137: =_xlfn.XLOOKUP(B137,Aspire!$F$13:$F$45,Aspire!$Y$13:$Y$45) -> 1 | R137: 20240603 | S137: 2423 | T137: =_xlfn.XLOOKUP(B137,Aspire!$F$13:$F$45,Aspire!$Z$13:$Z$45) -> 1 | U137: =_xlfn.XLOOKUP(B137,Aspire!$F$13:$F$45,Aspire!$L$13:$L$45) -> 116.662
A138: Battery - Lawn | B138: 970500904 | C138: 20240103 | D138: 2401 | E138: =_xlfn.XLOOKUP(B138,'Battery - Lawn'!$F$13:$F$45,'Battery - Lawn'!$U$13:$U$45) -> 0 | F138: 20240201 | G138: 2405 | H138: =_xlfn.XLOOKUP(B138,'Battery - Lawn'!$F$13:$F$45,'Battery - Lawn'!$V$13:$V$45) -> 0 | I138: 20240301 | J138: 2409 | K138: =_xlfn.XLOOKUP(B138,'Battery - Lawn'!$F$13:$F$45,'Battery - Lawn'!$W$13:$W$45) -> 0 | L138: 20240402 | M138: 2414 | N138: =_xlfn.XLOOKUP(B138,'Battery - Lawn'!$F$13:$F$45,'Battery - Lawn'!$X$13:$X$45) -> 0 | O138: 20240501 | P138: 2418 | Q138: =_xlfn.XLOOKUP(B138,'Battery - Lawn'!$F$13:$F$45,'Battery - Lawn'!$Y$13:$Y$45) -> 0 | R138: 20240603 | S138: 2423 | T138: =_xlfn.XLOOKUP(B138,'Battery - Lawn'!$F$13:$F$45,'Battery - Lawn'!$Z$13:$Z$45) -> 0 | U138: =_xlfn.XLOOKUP(B138,'Battery - Lawn'!$F$13:$F$45,'Battery - Lawn'!$L$13:$L$45) -> 261.919
A139: Battery - Lawn | B139: 970541804 | C139: 20240103 | D139: 2401 | E139: =_xlfn.XLOOKUP(B139,'Battery - Lawn'!$F$13:$F$45,'Battery - Lawn'!$U$13:$U$45) -> 0 | F139: 20240201 | G139: 2405 | H139: =_xlfn.XLOOKUP(B139,'Battery - Lawn'!$F$13:$F$45,'Battery - Lawn'!$V$13:$V$45) -> 0 | I139: 20240301 | J139: 2409 | K139: =_xlfn.XLOOKUP(B139,'Battery - Lawn'!$F$13:$F$45,'Battery - Lawn'!$W$13:$W$45) -> 0 | L139: 20240402 | M139: 2414 | N139: =_xlfn.XLOOKUP(B139,'Battery - Lawn'!$F$13:$F$45,'Battery - Lawn'!$X$13:$X$45) -> 0 | O139: 20240501 | P139: 2418 | Q139: =_xlfn.XLOOKUP(B139,'Battery - Lawn'!$F$13:$F$45,'Battery - Lawn'!$Y$13:$Y$45) -> 0 | R139: 20240603 | S139: 2423 | T139: =_xlfn.XLOOKUP(B139,'Battery - Lawn'!$F$13:$F$45,'Battery - Lawn'!$Z$13:$Z$45) -> 0 | U139: =_xlfn.XLOOKUP(B139,'Battery - Lawn'!$F$13:$F$45,'Battery - Lawn'!$L$13:$L$45) -> 320.25
A140: Battery - Lawn | B140: 970541902 | C140: 20240103 | D140: 2401 | E140: =_xlfn.XLOOKUP(B140,'Battery - Lawn'!$F$13:$F$45,'Battery - Lawn'!$U$13:$U$45) -> 0 | F140: 20240201 | G140: 2405 | H140: =_xlfn.XLOOKUP(B140,'Battery - Lawn'!$F$13:$F$45,'Battery - Lawn'!$V$13:$V$45) -> 0 | I140: 20240301 | J140: 2409 | K140: =_xlfn.XLOOKUP(B140,'Battery - Lawn'!$F$13:$F$45,'Battery - Lawn'!$W$13:$W$45) -> 0 | L140: 20240402 | M140: 2414 | N140: =_xlfn.XLOOKUP(B140,'Battery - Lawn'!$F$13:$F$45,'Battery - Lawn'!$X$13:$X$45) -> 0 | O140: 20240501 | P140: 2418 | Q140: =_xlfn.XLOOKUP(B140,'Battery - Lawn'!$F$13:$F$45,'Battery - Lawn'!$Y$13:$Y$45) -> 0 | R140: 20240603 | S140: 2423 | T140: =_xlfn.XLOOKUP(B140,'Battery - Lawn'!$F$13:$F$45,'Battery - Lawn'!$Z$13:$Z$45) -> 0 | U140: =_xlfn.XLOOKUP(B140,'Battery - Lawn'!$F$13:$F$45,'Battery - Lawn'!$L$13:$L$45) -> 378.581
A141: Battery - Lawn | B141: 967848201 | C141: 20240103 | D141: 2401 | E141: =_xlfn.XLOOKUP(B141,'Battery - Lawn'!$F$13:$F$45,'Battery - Lawn'!$U$13:$U$45) -> 0 | F141: 20240201 | G141: 2405 | H141: =_xlfn.XLOOKUP(B141,'Battery - Lawn'!$F$13:$F$45,'Battery - Lawn'!$V$13:$V$45) -> 0 | I141: 20240301 | J141: 2409 | K141: =_xlfn.XLOOKUP(B141,'Battery - Lawn'!$F$13:$F$45,'Battery - Lawn'!$W$13:$W$45) -> 0 | L141: 20240402 | M141: 2414 | N141: =_xlfn.XLOOKUP(B141,'Battery - Lawn'!$F$13:$F$45,'Battery - Lawn'!$X$13:$X$45) -> 0 | O141: 20240501 | P141: 2418 | Q141: =_xlfn.XLOOKUP(B141,'Battery - Lawn'!$F$13:$F$45,'Battery - Lawn'!$Y$13:$Y$45) -> 0 | R141: 20240603 | S141: 2423 | T141: =_xlfn.XLOOKUP(B141,'Battery - Lawn'!$F$13:$F$45,'Battery - Lawn'!$Z$13:$Z$45) -> 0 | U141: =_xlfn.XLOOKUP(B141,'Battery - Lawn'!$F$13:$F$45,'Battery - Lawn'!$L$13:$L$45) -> 3382.75
A142: Battery - Lawn | B142: 595308601 | C142: 20240103 | D142: 2401 | E142: =_xlfn.XLOOKUP(B142,'Battery - Lawn'!$F$13:$F$45,'Battery - Lawn'!$U$13:$U$45) -> 0 | F142: 20240201 | G142: 2405 | H142: =_xlfn.XLOOKUP(B142,'Battery - Lawn'!$F$13:$F$45,'Battery - Lawn'!$V$13:$V$45) -> 0 | I142: 20240301 | J142: 2409 | K142: =_xlfn.XLOOKUP(B142,'Battery - Lawn'!$F$13:$F$45,'Battery - Lawn'!$W$13:$W$45) -> 0 | L142: 20240402 | M142: 2414 | N142: =_xlfn.XLOOKUP(B142,'Battery - Lawn'!$F$13:$F$45,'Battery - Lawn'!$X$13:$X$45) -> 0 | O142: 20240501 | P142: 2418 | Q142: =_xlfn.XLOOKUP(B142,'Battery - Lawn'!$F$13:$F$45,'Battery - Lawn'!$Y$13:$Y$45) -> 0 | R142: 20240603 | S142: 2423 | T142: =_xlfn.XLOOKUP(B142,'Battery - Lawn'!$F$13:$F$45,'Battery - Lawn'!$Z$13:$Z$45) -> 0 | U142: =_xlfn.XLOOKUP(B142,'Battery - Lawn'!$F$13:$F$45,'Battery - Lawn'!$L$13:$L$45) -> 133.581
A143: Battery - Lawn | B143: 537548002 | C143: 20240103 | D143: 2401 | E143: =_xlfn.XLOOKUP(B143,'Battery - Lawn'!$F$13:$F$45,'Battery - Lawn'!$U$13:$U$45) -> 0 | F143: 20240201 | G143: 2405 | H143: =_xlfn.XLOOKUP(B143,'Battery - Lawn'!$F$13:$F$45,'Battery - Lawn'!$V$13:$V$45) -> 0 | I143: 20240301 | J143: 2409 | K143: =_xlfn.XLOOKUP(B143,'Battery - Lawn'!$F$13:$F$45,'Battery - Lawn'!$W$13:$W$45) -> 0 | L143: 20240402 | M143: 2414 | N143: =_xlfn.XLOOKUP(B143,'Battery - Lawn'!$F$13:$F$45,'Battery - Lawn'!$X$13:$X$45) -> 0 | O143: 20240501 | P143: 2418 | Q143: =_xlfn.XLOOKUP(B143,'Battery - Lawn'!$F$13:$F$45,'Battery - Lawn'!$Y$13:$Y$45) -> 0 | R143: 20240603 | S143: 2423 | T143: =_xlfn.XLOOKUP(B143,'Battery - Lawn'!$F$13:$F$45,'Battery - Lawn'!$Z$13:$Z$45) -> 0 | U143: =_xlfn.XLOOKUP(B143,'Battery - Lawn'!$F$13:$F$45,'Battery - Lawn'!$L$13:$L$45) -> 156.919
A144: Battery - Lawn | B144: 970500901 | C144: 20240103 | D144: 2401 | E144: =_xlfn.XLOOKUP(B144,'Battery - Lawn'!$F$13:$F$45,'Battery - Lawn'!$U$13:$U$45) -> 0 | F144: 20240201 | G144: 2405 | H144: =_xlfn.XLOOKUP(B144,'Battery - Lawn'!$F$13:$F$45,'Battery - Lawn'!$V$13:$V$45) -> 0 | I144: 20240301 | J144: 2409 | K144: =_xlfn.XLOOKUP(B144,'Battery - Lawn'!$F$13:$F$45,'Battery - Lawn'!$W$13:$W$45) -> 0 | L144: 20240402 | M144: 2414 | N144: =_xlfn.XLOOKUP(B144,'Battery - Lawn'!$F$13:$F$45,'Battery - Lawn'!$X$13:$X$45) -> 0 | O144: 20240501 | P144: 2418 | Q144: =_xlfn.XLOOKUP(B144,'Battery - Lawn'!$F$13:$F$45,'Battery - Lawn'!$Y$13:$Y$45) -> 0 | R144: 20240603 | S144: 2423 | T144: =_xlfn.XLOOKUP(B144,'Battery - Lawn'!$F$13:$F$45,'Battery - Lawn'!$Z$13:$Z$45) -> 0 | U144: =_xlfn.XLOOKUP(B144,'Battery - Lawn'!$F$13:$F$45,'Battery - Lawn'!$L$13:$L$45) -> 186.081
A145: Battery - Lawn | B145: 970482301 | C145: 20240103 | D145: 2401 | E145: =_xlfn.XLOOKUP(B145,'Battery - Lawn'!$F$13:$F$45,'Battery - Lawn'!$U$13:$U$45) -> 0 | F145: 20240201 | G145: 2405 | H145: =_xlfn.XLOOKUP(B145,'Battery - Lawn'!$F$20:$F$45,'Battery - Lawn'!$V$20:$V$45) -> 0 | I145: 20240301 | J145: 2409 | K145: =_xlfn.XLOOKUP(B145,'Battery - Lawn'!$F$13:$F$45,'Battery - Lawn'!$W$13:$W$45) -> 0 | L145: 20240402 | M145: 2414 | N145: =_xlfn.XLOOKUP(B145,'Battery - Lawn'!$F$13:$F$45,'Battery - Lawn'!$X$13:$X$45) -> 0 | O145: 20240501 | P145: 2418 | Q145: =_xlfn.XLOOKUP(B145,'Battery - Lawn'!$F$13:$F$45,'Battery - Lawn'!$Y$13:$Y$45) -> 0 | R145: 20240603 | S145: 2423 | T145: =_xlfn.XLOOKUP(B145,'Battery - Lawn'!$F$13:$F$45,'Battery - Lawn'!$Z$13:$Z$45) -> 0 | U145: =_xlfn.XLOOKUP(B145,'Battery - Lawn'!$F$13:$F$45,'Battery - Lawn'!$L$13:$L$45) -> 407.75
A146: Battery - Lawn | B146: 970482401 | C146: 20240103 | D146: 2401 | E146: =_xlfn.XLOOKUP(B146,'Battery - Lawn'!$F$13:$F$45,'Battery - Lawn'!$U$13:$U$45) -> 0 | F146: 20240201 | G146: 2405 | H146: =_xlfn.XLOOKUP(B146,'Battery - Lawn'!$F$20:$F$45,'Battery - Lawn'!$V$20:$V$45) -> 0 | I146: 20240301 | J146: 2409 | K146: =_xlfn.XLOOKUP(B146,'Battery - Lawn'!$F$13:$F$45,'Battery - Lawn'!$W$13:$W$45) -> 0 | L146: 20240402 | M146: 2414 | N146: =_xlfn.XLOOKUP(B146,'Battery - Lawn'!$F$13:$F$45,'Battery - Lawn'!$X$13:$X$45) -> 0 | O146: 20240501 | P146: 2418 | Q146: =_xlfn.XLOOKUP(B146,'Battery - Lawn'!$F$13:$F$45,'Battery - Lawn'!$Y$13:$Y$45) -> 0 | R146: 20240603 | S146: 2423 | T146: =_xlfn.XLOOKUP(B146,'Battery - Lawn'!$F$13:$F$45,'Battery - Lawn'!$Z$13:$Z$45) -> 0 | U146: =_xlfn.XLOOKUP(B146,'Battery - Lawn'!$F$20:$F$45,'Battery - Lawn'!$L$20:$L$45) -> 553.581
A147: Battery - Lawn | B147: 967977301 | C147: 20240103 | D147: 2401 | E147: =_xlfn.XLOOKUP(B147,'Battery - Lawn'!$F$13:$F$45,'Battery - Lawn'!$U$13:$U$45) -> 0 | F147: 20240201 | G147: 2405 | H147: =_xlfn.XLOOKUP(B147,'Battery - Lawn'!$F$20:$F$45,'Battery - Lawn'!$V$20:$V$45) -> 0 | I147: 20240301 | J147: 2409 | K147: =_xlfn.XLOOKUP(B147,'Battery - Lawn'!$F$20:$F$45,'Battery - Lawn'!$W$20:$W$45) -> 0 | L147: 20240402 | M147: 2414 | N147: =_xlfn.XLOOKUP(B147,'Battery - Lawn'!$F$20:$F$45,'Battery - Lawn'!$X$20:$X$45) -> 0 | O147: 20240501 | P147: 2418 | Q147: =_xlfn.XLOOKUP(B147,'Battery - Lawn'!$F$13:$F$45,'Battery - Lawn'!$Y$13:$Y$45) -> 0 | R147: 20240603 | S147: 2423 | T147: =_xlfn.XLOOKUP(B147,'Battery - Lawn'!$F$13:$F$45,'Battery - Lawn'!$Z$13:$Z$45) -> 0 | U147: =_xlfn.XLOOKUP(B147,'Battery - Lawn'!$F$20:$F$45,'Battery - Lawn'!$L$20:$L$45) -> 664.419
A148: Battery - Lawn | B148: 967862301 | C148: 20240103 | D148: 2401 | E148: =_xlfn.XLOOKUP(B148,'Battery - Lawn'!$F$13:$F$45,'Battery - Lawn'!$U$13:$U$45) -> 0 | F148: 20240201 | G148: 2405 | H148: =_xlfn.XLOOKUP(B148,'Battery - Lawn'!$F$20:$F$45,'Battery - Lawn'!$V$20:$V$45) -> 0 | I148: 20240301 | J148: 2409 | K148: =_xlfn.XLOOKUP(B148,'Battery - Lawn'!$F$20:$F$45,'Battery - Lawn'!$W$20:$W$45) -> 0 | L148: 20240402 | M148: 2414 | N148: =_xlfn.XLOOKUP(B148,'Battery - Lawn'!$F$20:$F$45,'Battery - Lawn'!$X$20:$X$45) -> 0 | O148: 20240501 | P148: 2418 | Q148: =_xlfn.XLOOKUP(B148,'Battery - Lawn'!$F$13:$F$45,'Battery - Lawn'!$Y$13:$Y$45) -> 0 | R148: 20240603 | S148: 2423 | T148: =_xlfn.XLOOKUP(B148,'Battery - Lawn'!$F$13:$F$45,'Battery - Lawn'!$Z$13:$Z$45) -> 0 | U148: =_xlfn.XLOOKUP(B148,'Battery - Lawn'!$F$20:$F$45,'Battery - Lawn'!$L$20:$L$45) -> 436.919
A149: Battery - Lawn | B149: 967862001 | C149: 20240103 | D149: 2401 | E149: =_xlfn.XLOOKUP(B149,'Battery - Lawn'!$F$13:$F$45,'Battery - Lawn'!$U$13:$U$45) -> 0 | F149: 20240201 | G149: 2405 | H149: =_xlfn.XLOOKUP(B149,'Battery - Lawn'!$F$20:$F$45,'Battery - Lawn'!$V$20:$V$45) -> 0 | I149: 20240301 | J149: 2409 | K149: =_xlfn.XLOOKUP(B149,'Battery - Lawn'!$F$20:$F$45,'Battery - Lawn'!$W$20:$W$45) -> 0 | L149: 20240402 | M149: 2414 | N149: =_xlfn.XLOOKUP(B149,'Battery - Lawn'!$F$20:$F$45,'Battery - Lawn'!$X$20:$X$45) -> 0 | O149: 20240501 | P149: 2418 | Q149: =_xlfn.XLOOKUP(B149,'Battery - Lawn'!$F$13:$F$45,'Battery - Lawn'!$Y$13:$Y$45) -> 0 | R149: 20240603 | S149: 2423 | T149: =_xlfn.XLOOKUP(B149,'Battery - Lawn'!$F$20:$F$45,'Battery - Lawn'!$Z$20:$Z$45) -> 0 | U149: =_xlfn.XLOOKUP(B149,'Battery - Lawn'!$F$20:$F$45,'Battery - Lawn'!$L$20:$L$45) -> 466.081
A150: Battery - Lawn | B150: 599831201 | C150: 20240103 | D150: 2401 | E150: =_xlfn.XLOOKUP(B150,'Battery - Lawn'!$F$13:$F$45,'Battery - Lawn'!$U$13:$U$45) -> 0 | F150: 20240201 | G150: 2405 | H150: =_xlfn.XLOOKUP(B150,'Battery - Lawn'!$F$20:$F$45,'Battery - Lawn'!$V$20:$V$45) -> 0 | I150: 20240301 | J150: 2409 | K150: =_xlfn.XLOOKUP(B150,'Battery - Lawn'!$F$20:$F$45,'Battery - Lawn'!$W$20:$W$45) -> 0 | L150: 20240402 | M150: 2414 | N150: =_xlfn.XLOOKUP(B150,'Battery - Lawn'!$F$20:$F$45,'Battery - Lawn'!$X$20:$X$45) -> 0 | O150: 20240501 | P150: 2418 | Q150: =_xlfn.XLOOKUP(B150,'Battery - Lawn'!$F$20:$F$45,'Battery - Lawn'!$Y$20:$Y$45) -> 0 | R150: 20240603 | S150: 2423 | T150: =_xlfn.XLOOKUP(B150,'Battery - Lawn'!$F$20:$F$45,'Battery - Lawn'!$Z$20:$Z$45) -> 0 | U150: =_xlfn.XLOOKUP(B150,'Battery - Lawn'!$F$20:$F$45,'Battery - Lawn'!$L$20:$L$45) -> 20.412
A151: Battery - Lawn | B151: 597848701 | C151: 20240103 | D151: 2401 | E151: =_xlfn.XLOOKUP(B151,'Battery - Lawn'!$F$13:$F$45,'Battery - Lawn'!$U$13:$U$45) -> 0 | F151: 20240201 | G151: 2405 | H151: =_xlfn.XLOOKUP(B151,'Battery - Lawn'!$F$20:$F$45,'Battery - Lawn'!$V$20:$V$45) -> 0 | I151: 20240301 | J151: 2409 | K151: =_xlfn.XLOOKUP(B151,'Battery - Lawn'!$F$20:$F$45,'Battery - Lawn'!$W$20:$W$45) -> 0 | L151: 20240402 | M151: 2414 | N151: =_xlfn.XLOOKUP(B151,'Battery - Lawn'!$F$20:$F$45,'Battery - Lawn'!$X$20:$X$45) -> 0 | O151: 20240501 | P151: 2418 | Q151: =_xlfn.XLOOKUP(B151,'Battery - Lawn'!$F$20:$F$45,'Battery - Lawn'!$Y$20:$Y$45) -> 0 | R151: 20240603 | S151: 2423 | T151: =_xlfn.XLOOKUP(B151,'Battery - Lawn'!$F$20:$F$45,'Battery - Lawn'!$Z$20:$Z$45) -> 0 | U151: =_xlfn.XLOOKUP(B151,'Battery - Lawn'!$F$20:$F$45,'Battery - Lawn'!$L$20:$L$45) -> 33.243
A152: Battery - Lawn | B152: 597413701 | C152: 20240103 | D152: 2401 | E152: =_xlfn.XLOOKUP(B152,'Battery - Lawn'!$F$13:$F$45,'Battery - Lawn'!$U$13:$U$45) -> 0 | F152: 20240201 | G152: 2405 | H152: =_xlfn.XLOOKUP(B152,'Battery - Lawn'!$F$20:$F$45,'Battery - Lawn'!$V$20:$V$45) -> 0 | I152: 20240301 | J152: 2409 | K152: =_xlfn.XLOOKUP(B152,'Battery - Lawn'!$F$20:$F$45,'Battery - Lawn'!$W$20:$W$45) -> 0 | L152: 20240402 | M152: 2414 | N152: =_xlfn.XLOOKUP(B152,'Battery - Lawn'!$F$20:$F$45,'Battery - Lawn'!$X$20:$X$45) -> 0 | O152: 20240501 | P152: 2418 | Q152: =_xlfn.XLOOKUP(B152,'Battery - Lawn'!$F$20:$F$45,'Battery - Lawn'!$Y$20:$Y$45) -> 0 | R152: 20240603 | S152: 2423 | T152: =_xlfn.XLOOKUP(B152,'Battery - Lawn'!$F$20:$F$45,'Battery - Lawn'!$Z$20:$Z$45) -> 0 | U152: =_xlfn.XLOOKUP(B152,'Battery - Lawn'!$F$20:$F$45,'Battery - Lawn'!$L$20:$L$45) -> 33.243
A153: Battery - Lawn | B153: 595001101 | C153: 20240103 | D153: 2401 | E153: =_xlfn.XLOOKUP(B153,'Battery - Lawn'!$F$13:$F$45,'Battery - Lawn'!$U$13:$U$45) -> 0 | F153: 20240201 | G153: 2405 | H153: =_xlfn.XLOOKUP(B153,'Battery - Lawn'!$F$20:$F$45,'Battery - Lawn'!$V$20:$V$45) -> 0 | I153: 20240301 | J153: 2409 | K153: =_xlfn.XLOOKUP(B153,'Battery - Lawn'!$F$20:$F$45,'Battery - Lawn'!$W$20:$W$45) -> 0 | L153: 20240402 | M153: 2414 | N153: =_xlfn.XLOOKUP(B153,'Battery - Lawn'!$F$20:$F$45,'Battery - Lawn'!$X$20:$X$45) -> 0 | O153: 20240501 | P153: 2418 | Q153: =_xlfn.XLOOKUP(B153,'Battery - Lawn'!$F$20:$F$45,'Battery - Lawn'!$Y$20:$Y$45) -> 0 | R153: 20240603 | S153: 2423 | T153: =_xlfn.XLOOKUP(B153,'Battery - Lawn'!$F$20:$F$45,'Battery - Lawn'!$Z$20:$Z$45) -> 0 | U153: =_xlfn.XLOOKUP(B153,'Battery - Lawn'!$F$20:$F$45,'Battery - Lawn'!$L$20:$L$45) -> 29.162
A154: Battery - Lawn | B154: 590790901 | C154: 20240103 | D154: 2401 | E154: =_xlfn.XLOOKUP(B154,'Battery - Lawn'!$F$13:$F$45,'Battery - Lawn'!$U$13:$U$45) -> 0 | F154: 20240201 | G154: 2405 | H154: =_xlfn.XLOOKUP(B154,'Battery - Lawn'!$F$20:$F$45,'Battery - Lawn'!$V$20:$V$45) -> 0 | I154: 20240301 | J154: 2409 | K154: =_xlfn.XLOOKUP(B154,'Battery - Lawn'!$F$20:$F$45,'Battery - Lawn'!$W$20:$W$45) -> 0 | L154: 20240402 | M154: 2414 | N154: =_xlfn.XLOOKUP(B154,'Battery - Lawn'!$F$20:$F$45,'Battery - Lawn'!$X$20:$X$45) -> 0 | O154: 20240501 | P154: 2418 | Q154: =_xlfn.XLOOKUP(B154,'Battery - Lawn'!$F$20:$F$45,'Battery - Lawn'!$Y$20:$Y$45) -> 0 | R154: 20240603 | S154: 2423 | T154: =_xlfn.XLOOKUP(B154,'Battery - Lawn'!$F$20:$F$45,'Battery - Lawn'!$Z$20:$Z$45) -> 0 | U154: =_xlfn.XLOOKUP(B154,'Battery - Lawn'!$F$20:$F$45,'Battery - Lawn'!$L$20:$L$45) -> 29.162
A155: Battery - Lawn | B155: 589222701 | C155: 20240103 | D155: 2401 | E155: =_xlfn.XLOOKUP(B155,'Battery - Lawn'!$F$13:$F$45,'Battery - Lawn'!$U$13:$U$45) -> 0 | F155: 20240201 | G155: 2405 | H155: =_xlfn.XLOOKUP(B155,'Battery - Lawn'!$F$20:$F$45,'Battery - Lawn'!$V$20:$V$45) -> 0 | I155: 20240301 | J155: 2409 | K155: =_xlfn.XLOOKUP(B155,'Battery - Lawn'!$F$20:$F$45,'Battery - Lawn'!$W$20:$W$45) -> 0 | L155: 20240402 | M155: 2414 | N155: =_xlfn.XLOOKUP(B155,'Battery - Lawn'!$F$20:$F$45,'Battery - Lawn'!$X$20:$X$45) -> 0 | O155: 20240501 | P155: 2418 | Q155: =_xlfn.XLOOKUP(B155,'Battery - Lawn'!$F$20:$F$45,'Battery - Lawn'!$Y$20:$Y$45) -> 0 | R155: 20240603 | S155: 2423 | T155: =_xlfn.XLOOKUP(B155,'Battery - Lawn'!$F$20:$F$45,'Battery - Lawn'!$Z$20:$Z$45) -> 0 | U155: =_xlfn.XLOOKUP(B155,'Battery - Lawn'!$F$20:$F$45,'Battery - Lawn'!$L$20:$L$45) -> 20.412
A156: Battery - Lawn | B156: 970649901 | C156: 20240103 | D156: 2401 | E156: =_xlfn.XLOOKUP(B156,'Battery - Lawn'!$F$13:$F$45,'Battery - Lawn'!$U$13:$U$45) -> 0 | F156: 20240201 | G156: 2405 | H156: =_xlfn.XLOOKUP(B156,'Battery - Lawn'!$F$20:$F$45,'Battery - Lawn'!$V$20:$V$45) -> 0 | I156: 20240301 | J156: 2409 | K156: =_xlfn.XLOOKUP(B156,'Battery - Lawn'!$F$20:$F$45,'Battery - Lawn'!$W$20:$W$45) -> 0 | L156: 20240402 | M156: 2414 | N156: =_xlfn.XLOOKUP(B156,'Battery - Lawn'!$F$20:$F$45,'Battery - Lawn'!$X$20:$X$45) -> 0 | O156: 20240501 | P156: 2418 | Q156: =_xlfn.XLOOKUP(B156,'Battery - Lawn'!$F$20:$F$45,'Battery - Lawn'!$Y$20:$Y$45) -> 0 | R156: 20240603 | S156: 2423 | T156: =_xlfn.XLOOKUP(B156,'Battery - Lawn'!$F$20:$F$45,'Battery - Lawn'!$Z$20:$Z$45) -> 0 | U156: =_xlfn.XLOOKUP(B156,'Battery - Lawn'!$F$20:$F$45,'Battery - Lawn'!$L$20:$L$45) -> 3936.919
A157: Battery - Lawn | B157: 970650001 | C157: 20240103 | D157: 2401 | E157: =_xlfn.XLOOKUP(B157,'Battery - Lawn'!$F$13:$F$45,'Battery - Lawn'!$U$13:$U$45) -> 0 | F157: 20240201 | G157: 2405 | H157: =_xlfn.XLOOKUP(B157,'Battery - Lawn'!$F$20:$F$45,'Battery - Lawn'!$V$20:$V$45) -> 0 | I157: 20240301 | J157: 2409 | K157: =_xlfn.XLOOKUP(B157,'Battery - Lawn'!$F$20:$F$45,'Battery - Lawn'!$W$20:$W$45) -> 0 | L157: 20240402 | M157: 2414 | N157: =_xlfn.XLOOKUP(B157,'Battery - Lawn'!$F$20:$F$45,'Battery - Lawn'!$X$20:$X$45) -> 0 | O157: 20240501 | P157: 2418 | Q157: =_xlfn.XLOOKUP(B157,'Battery - Lawn'!$F$20:$F$45,'Battery - Lawn'!$Y$20:$Y$45) -> 0 | R157: 20240603 | S157: 2423 | T157: =_xlfn.XLOOKUP(B157,'Battery - Lawn'!$F$20:$F$45,'Battery - Lawn'!$Z$20:$Z$45) -> 0 | U157: =_xlfn.XLOOKUP(B157,'Battery - Lawn'!$F$20:$F$45,'Battery - Lawn'!$L$20:$L$45) -> 757.75
A158: Battery - Lawn | B158: 970650101 | C158: 20240103 | D158: 2401 | E158: =_xlfn.XLOOKUP(B158,'Battery - Lawn'!$F$13:$F$45,'Battery - Lawn'!$U$13:$U$45) -> 0 | F158: 20240201 | G158: 2405 | H158: =_xlfn.XLOOKUP(B158,'Battery - Lawn'!$F$20:$F$45,'Battery - Lawn'!$V$20:$V$45) -> 0 | I158: 20240301 | J158: 2409 | K158: =_xlfn.XLOOKUP(B158,'Battery - Lawn'!$F$20:$F$45,'Battery - Lawn'!$W$20:$W$45) -> 0 | L158: 20240402 | M158: 2414 | N158: =_xlfn.XLOOKUP(B158,'Battery - Lawn'!$F$20:$F$45,'Battery - Lawn'!$X$20:$X$45) -> 0 | O158: 20240501 | P158: 2418 | Q158: =_xlfn.XLOOKUP(B158,'Battery - Lawn'!$F$20:$F$45,'Battery - Lawn'!$Y$20:$Y$45) -> 0 | R158: 20240603 | S158: 2423 | T158: =_xlfn.XLOOKUP(B158,'Battery - Lawn'!$F$20:$F$45,'Battery - Lawn'!$Z$20:$Z$45) -> 0 | U158: =_xlfn.XLOOKUP(B158,'Battery - Lawn'!$F$20:$F$45,'Battery - Lawn'!$L$20:$L$45) -> 816.081
A159: Battery - Lawn | B159: 967922203 | C159: 20240103 | D159: 2401 | E159: =_xlfn.XLOOKUP(B159,'Battery - Lawn'!$F$13:$F$45,'Battery - Lawn'!$U$13:$U$45) -> 0 | F159: 20240201 | G159: 2405 | H159: =_xlfn.XLOOKUP(B159,'Battery - Lawn'!$F$20:$F$45,'Battery - Lawn'!$V$20:$V$45) -> 0 | I159: 20240301 | J159: 2409 | K159: =_xlfn.XLOOKUP(B159,'Battery - Lawn'!$F$20:$F$45,'Battery - Lawn'!$W$20:$W$45) -> 0 | L159: 20240402 | M159: 2414 | N159: =_xlfn.XLOOKUP(B159,'Battery - Lawn'!$F$20:$F$45,'Battery - Lawn'!$X$20:$X$45) -> 0 | O159: 20240501 | P159: 2418 | Q159: =_xlfn.XLOOKUP(B159,'Battery - Lawn'!$F$20:$F$45,'Battery - Lawn'!$Y$20:$Y$45) -> 0 | R159: 20240603 | S159: 2423 | T159: =_xlfn.XLOOKUP(B159,'Battery - Lawn'!$F$20:$F$45,'Battery - Lawn'!$Z$20:$Z$45) -> 0 | U159: =_xlfn.XLOOKUP(B159,'Battery - Lawn'!$F$20:$F$45,'Battery - Lawn'!$L$20:$L$45) -> 291.081
A160: Battery - Lawn | B160: 967922201 | C160: 20240103 | D160: 2401 | E160: =_xlfn.XLOOKUP(B160,'Battery - Lawn'!$F$13:$F$45,'Battery - Lawn'!$U$13:$U$45) -> 0 | F160: 20240201 | G160: 2405 | H160: =_xlfn.XLOOKUP(B160,'Battery - Lawn'!$F$20:$F$45,'Battery - Lawn'!$V$20:$V$45) -> 0 | I160: 20240301 | J160: 2409 | K160: =_xlfn.XLOOKUP(B160,'Battery - Lawn'!$F$20:$F$45,'Battery - Lawn'!$W$20:$W$45) -> 0 | L160: 20240402 | M160: 2414 | N160: =_xlfn.XLOOKUP(B160,'Battery - Lawn'!$F$20:$F$45,'Battery - Lawn'!$X$20:$X$45) -> 0 | O160: 20240501 | P160: 2418 | Q160: =_xlfn.XLOOKUP(B160,'Battery - Lawn'!$F$20:$F$45,'Battery - Lawn'!$Y$20:$Y$45) -> 0 | R160: 20240603 | S160: 2423 | T160: =_xlfn.XLOOKUP(B160,'Battery - Lawn'!$F$20:$F$45,'Battery - Lawn'!$Z$20:$Z$45) -> 0 | U160: =_xlfn.XLOOKUP(B160,'Battery - Lawn'!$F$20:$F$45,'Battery - Lawn'!$L$20:$L$45) -> 232.75
A161: Blowers | B161: 970466903 | C161: 20240103 | D161: 2401 | E161: =_xlfn.XLOOKUP(B161,Blowers!$F$16:$F$19,Blowers!$U$16:$U$19) -> 0 | F161: 20240201 | G161: 2405 | H161: =_xlfn.XLOOKUP(B161,Blowers!$F$16:$F$19,Blowers!$V$16:$V$19) -> 0 | I161: 20240301 | J161: 2409 | K161: =_xlfn.XLOOKUP(B161,Blowers!$F$16:$F$19,Blowers!$W$16:$W$19) -> 0 | L161: 20240402 | M161: 2414 | N161: =_xlfn.XLOOKUP(B161,Blowers!$F$16:$F$19,Blowers!X16:X19) -> 0 | O161: 20240501 | P161: 2418 | Q161: =_xlfn.XLOOKUP(B161,Blowers!$F$16:$F$19,Blowers!$Y$16:$Y$19) -> 0 | R161: 20240603 | S161: 2423 | T161: =_xlfn.XLOOKUP(B161,Blowers!$F$16:$F$19,Blowers!$Z$16:$Z$19) -> 0 | U161: =_xlfn.XLOOKUP(B161,Blowers!$F$16:$F$19,Blowers!$L$16:$L$19) -> 216.125
A162: Blowers | B162: 967144304 | C162: 20240103 | D162: 2401 | E162: =_xlfn.XLOOKUP(B162,Blowers!$F$16:$F$19,Blowers!$U$16:$U$19) -> 0 | F162: 20240201 | G162: 2405 | H162: =_xlfn.XLOOKUP(B162,Blowers!$F$16:$F$19,Blowers!$V$16:$V$19) -> 0 | I162: 20240301 | J162: 2409 | K162: =_xlfn.XLOOKUP(B162,Blowers!$F$16:$F$19,Blowers!$W$16:$W$19) -> 0 | L162: 20240402 | M162: 2414 | N162: =_xlfn.XLOOKUP(B162,Blowers!$F$16:$F$19,Blowers!$X$16:$X$19) -> 0 | O162: 20240501 | P162: 2418 | Q162: =_xlfn.XLOOKUP(B162,Blowers!$F$16:$F$19,Blowers!$Y$16:$Y$19) -> 0 | R162: 20240603 | S162: 2423 | T162: =_xlfn.XLOOKUP(B162,Blowers!$F$16:$F$19,Blowers!$Z$16:$Z$19) -> 0 | U162: =_xlfn.XLOOKUP(B162,Blowers!$F$16:$F$19,Blowers!$L$16:$L$19) -> 351.5395
A163: Blowers | B163: 966629401 | C163: 20240103 | D163: 2401 | E163: =_xlfn.XLOOKUP(B163,Blowers!$F$16:$F$19,Blowers!$U$16:$U$19) -> 0 | F163: 20240201 | G163: 2405 | H163: =_xlfn.XLOOKUP(B163,Blowers!$F$16:$F$19,Blowers!$V$16:$V$19) -> 0 | I163: 20240301 | J163: 2409 | K163: =_xlfn.XLOOKUP(B163,Blowers!$F$16:$F$19,Blowers!$W$16:$W$19) -> 0 | L163: 20240402 | M163: 2414 | N163: =_xlfn.XLOOKUP(B163,Blowers!$F$16:$F$19,Blowers!$X$16:$X$19) -> 0 | O163: 20240501 | P163: 2418 | Q163: =_xlfn.XLOOKUP(B163,Blowers!$F$16:$F$19,Blowers!$Y$16:$Y$19) -> 0 | R163: 20240603 | S163: 2423 | T163: =_xlfn.XLOOKUP(B163,Blowers!$F$16:$F$19,Blowers!$Z$16:$Z$19) -> 6 | U163: =_xlfn.XLOOKUP(B163,Blowers!$F$16:$F$19,Blowers!$L$16:$L$19) -> 467.48208
A164: Blowers | B164: 966629601 | C164: 20240103 | D164: 2401 | E164: =_xlfn.XLOOKUP(B164,Blowers!$F$16:$F$19,Blowers!$U$16:$U$19) -> 0 | F164: 20240201 | G164: 2405 | H164: =_xlfn.XLOOKUP(B164,Blowers!$F$16:$F$19,Blowers!$V$16:$V$19) -> 0 | I164: 20240301 | J164: 2409 | K164: =_xlfn.XLOOKUP(B164,Blowers!$F$16:$F$19,Blowers!$W$16:$W$19) -> 0 | L164: 20240402 | M164: 2414 | N164: =_xlfn.XLOOKUP(B164,Blowers!$F$16:$F$19,Blowers!$X$16:$X$19) -> 0 | O164: 20240501 | P164: 2418 | Q164: =_xlfn.XLOOKUP(B164,Blowers!$F$16:$F$19,Blowers!$Y$16:$Y$19) -> 0 | R164: 20240603 | S164: 2423 | T164: =_xlfn.XLOOKUP(B164,Blowers!$F$16:$F$19,Blowers!$Z$16:$Z$19) -> 0 | U164: =_xlfn.XLOOKUP(B164,Blowers!$F$16:$F$19,Blowers!$L$16:$L$19) -> 514.0395
A165: Blowers | B165: 967284201 | C165: 20240103 | D165: 2401 | E165: =_xlfn.XLOOKUP(B165,Blowers!$F$13:$F$19,Blowers!$U$13:$U$19) -> 0 | F165: 20240201 | G165: 2405 | H165: =_xlfn.XLOOKUP(B165,Blowers!$F$13:$F$19,Blowers!$V$13:$V$19) -> 0 | I165: 20240301 | J165: 2409 | K165: =_xlfn.XLOOKUP(B165,Blowers!$F$13:$F$19,Blowers!$W$13:$W$19) -> 0 | L165: 20240402 | M165: 2414 | N165: =_xlfn.XLOOKUP(B165,Blowers!$F$13:$F$19,Blowers!$X$13:$X$19) -> 0 | O165: 20240501 | P165: 2418 | Q165: =_xlfn.XLOOKUP(B165,Blowers!$F$13:$F$19,Blowers!$Y$13:$Y$19) -> 0 | R165: 20240603 | S165: 2423 | T165: =_xlfn.XLOOKUP(B165,Blowers!$F$13:$F$19,Blowers!$Z$13:$Z$19) -> 16 | U165: =_xlfn.XLOOKUP(B165,Blowers!$F$13:$F$19,Blowers!$L$13:$L$19) -> 233.48208
A166: Blowers | B166: 952715643 | C166: 20240103 | D166: 2401 | E166: =_xlfn.XLOOKUP(B166,Blowers!$F$13:$F$19,Blowers!$U$13:$U$19) -> 0 | F166: 20240201 | G166: 2405 | H166: =_xlfn.XLOOKUP(B166,Blowers!$F$13:$F$19,Blowers!$V$13:$V$19) -> 0 | I166: 20240301 | J166: 2409 | K166: =_xlfn.XLOOKUP(B166,Blowers!$F$13:$F$19,Blowers!$W$13:$W$19) -> 0 | L166: 20240402 | M166: 2414 | N166: =_xlfn.XLOOKUP(B166,Blowers!$F$13:$F$19,Blowers!$X$13:$X$19) -> 0 | O166: 20240501 | P166: 2418 | Q166: =_xlfn.XLOOKUP(B166,Blowers!$F$13:$F$19,Blowers!$Y$13:$Y$19) -> 0 | R166: 20240603 | S166: 2423 | T166: =_xlfn.XLOOKUP(B166,Blowers!$F$13:$F$19,Blowers!$Z$13:$Z$19) -> 0 | U166: =_xlfn.XLOOKUP(B166,Blowers!$F$13:$F$19,Blowers!$L$13:$L$19) -> 172.7895
A167: Blowers | B167: 952715645 | C167: 20240103 | D167: 2401 | E167: =_xlfn.XLOOKUP(B167,Blowers!$F$13:$F$19,Blowers!$U$13:$U$19) -> 0 | F167: 20240201 | G167: 2405 | H167: =_xlfn.XLOOKUP(B167,Blowers!$F$13:$F$19,Blowers!$V$13:$V$19) -> 0 | I167: 20240301 | J167: 2409 | K167: =_xlfn.XLOOKUP(B167,Blowers!$F$13:$F$19,Blowers!$W$13:$W$19) -> 0 | L167: 20240402 | M167: 2414 | N167: =_xlfn.XLOOKUP(B167,Blowers!$F$13:$F$19,Blowers!$X$13:$X$19) -> 0 | O167: 20240501 | P167: 2418 | Q167: =_xlfn.XLOOKUP(B167,Blowers!$F$13:$F$19,Blowers!$Y$13:$Y$19) -> 0 | R167: 20240603 | S167: 2423 | T167: =_xlfn.XLOOKUP(B167,Blowers!$F$13:$F$19,Blowers!$Z$13:$Z$19) -> 0 | U167: =_xlfn.XLOOKUP(B167,Blowers!$F$13:$F$19,Blowers!$L$13:$L$19) -> 216.125
A168: Chainsaws & Polesaws | B168: 970518212 | C168: 20240103 | D168: 2401 | E168: =_xlfn.XLOOKUP(B168,'Chainsaws & Polesaws'!$F$13:$F$59,'Chainsaws & Polesaws'!$U$13:$U$59) -> 0 | F168: 20240201 | G168: 2405 | H168: =_xlfn.XLOOKUP(B168,'Chainsaws & Polesaws'!$F$13:$F$59,'Chainsaws & Polesaws'!$V$13:$V$59) -> 0 | I168: 20240301 | J168: 2409 | K168: =_xlfn.XLOOKUP(B168,'Chainsaws & Polesaws'!$F$13:$F$59,'Chainsaws & Polesaws'!$W$13:$W$59) -> 0 | L168: 20240402 | M168: 2414 | N168: =_xlfn.XLOOKUP(B168,'Chainsaws & Polesaws'!$F$13:$F$59,'Chainsaws & Polesaws'!$X$13:$X$59) -> 0 | O168: 20240501 | P168: 2418 | Q168: =_xlfn.XLOOKUP(B168,'Chainsaws & Polesaws'!$F$13:$F$59,'Chainsaws & Polesaws'!$Y$13:$Y$59) -> 0 | R168: 20240603 | S168: 2423 | T168: =_xlfn.XLOOKUP(B168,'Chainsaws & Polesaws'!$F$13:$F$59,'Chainsaws & Polesaws'!$Z$13:$Z$59) -> 0 | U168: =_xlfn.XLOOKUP(B168,'Chainsaws & Polesaws'!$F$17:$F$59,'Chainsaws & Polesaws'!$L$17:$L$59) -> 449.0395
A169: Chainsaws & Polesaws | B169: 970518216 | C169: 20240103 | D169: 2401 | E169: =_xlfn.XLOOKUP(B169,'Chainsaws & Polesaws'!$F$13:$F$59,'Chainsaws & Polesaws'!$U$13:$U$59) -> 0 | F169: 20240201 | G169: 2405 | H169: =_xlfn.XLOOKUP(B169,'Chainsaws & Polesaws'!$F$13:$F$59,'Chainsaws & Polesaws'!$V$13:$V$59) -> 0 | I169: 20240301 | J169: 2409 | K169: =_xlfn.XLOOKUP(B169,'Chainsaws & Polesaws'!$F$13:$F$59,'Chainsaws & Polesaws'!$W$13:$W$59) -> 0 | L169: 20240402 | M169: 2414 | N169: =_xlfn.XLOOKUP(B169,'Chainsaws & Polesaws'!$F$13:$F$59,'Chainsaws & Polesaws'!$X$13:$X$59) -> 0 | O169: 20240501 | P169: 2418 | Q169: =_xlfn.XLOOKUP(B169,'Chainsaws & Polesaws'!$F$13:$F$59,'Chainsaws & Polesaws'!$Y$13:$Y$59) -> 0 | R169: 20240603 | S169: 2423 | T169: =_xlfn.XLOOKUP(B169,'Chainsaws & Polesaws'!$F$13:$F$59,'Chainsaws & Polesaws'!$Z$13:$Z$59) -> 0 | U169: =_xlfn.XLOOKUP(B169,'Chainsaws & Polesaws'!$F$17:$F$59,'Chainsaws & Polesaws'!$L$17:$L$59) -> 459.875
A170: Chainsaws & Polesaws | B170: 970657015 | C170: 20240103 | D170: 2401 | E170: =_xlfn.XLOOKUP(B170,'Chainsaws & Polesaws'!$F$13:$F$59,'Chainsaws & Polesaws'!$U$13:$U$59) -> 0 | F170: 20240201 | G170: 2405 | H170: =_xlfn.XLOOKUP(B170,'Chainsaws & Polesaws'!$F$13:$F$59,'Chainsaws & Polesaws'!$V$13:$V$59) -> 0 | I170: 20240301 | J170: 2409 | K170: =_xlfn.XLOOKUP(B170,'Chainsaws & Polesaws'!$F$13:$F$59,'Chainsaws & Polesaws'!$W$13:$W$59) -> 0 | L170: 20240402 | M170: 2414 | N170: =_xlfn.XLOOKUP(B170,'Chainsaws & Polesaws'!$F$13:$F$59,'Chainsaws & Polesaws'!$X$13:$X$59) -> 0 | O170: 20240501 | P170: 2418 | Q170: =_xlfn.XLOOKUP(B170,'Chainsaws & Polesaws'!$F$13:$F$59,'Chainsaws & Polesaws'!$Y$13:$Y$59) -> 0 | R170: 20240603 | S170: 2423 | T170: =_xlfn.XLOOKUP(B170,'Chainsaws & Polesaws'!$F$13:$F$59,'Chainsaws & Polesaws'!$Z$13:$Z$59) -> 0 | U170: =_xlfn.XLOOKUP(B170,'Chainsaws & Polesaws'!$F$17:$F$59,'Chainsaws & Polesaws'!$L$17:$L$59) -> 595.2895
A171: Chainsaws & Polesaws | B171: 970657018 | C171: 20240103 | D171: 2401 | E171: =_xlfn.XLOOKUP(B171,'Chainsaws & Polesaws'!$F$13:$F$59,'Chainsaws & Polesaws'!$U$13:$U$59) -> 0 | F171: 20240201 | G171: 2405 | H171: =_xlfn.XLOOKUP(B171,'Chainsaws & Polesaws'!$F$13:$F$59,'Chainsaws & Polesaws'!$V$13:$V$59) -> 0 | I171: 20240301 | J171: 2409 | K171: =_xlfn.XLOOKUP(B171,'Chainsaws & Polesaws'!$F$13:$F$59,'Chainsaws & Polesaws'!$W$13:$W$59) -> 0 | L171: 20240402 | M171: 2414 | N171: =_xlfn.XLOOKUP(B171,'Chainsaws & Polesaws'!$F$13:$F$59,'Chainsaws & Polesaws'!$X$13:$X$59) -> 0 | O171: 20240501 | P171: 2418 | Q171: =_xlfn.XLOOKUP(B171,'Chainsaws & Polesaws'!$F$13:$F$59,'Chainsaws & Polesaws'!$Y$13:$Y$59) -> 0 | R171: 20240603 | S171: 2423 | T171: =_xlfn.XLOOKUP(B171,'Chainsaws & Polesaws'!$F$13:$F$59,'Chainsaws & Polesaws'!$Z$13:$Z$59) -> 0 | U171: =_xlfn.XLOOKUP(B171,'Chainsaws & Polesaws'!$F$17:$F$59,'Chainsaws & Polesaws'!$L$17:$L$59) -> 600.7105
A172: Chainsaws & Polesaws | B172: 970656915 | C172: 20240103 | D172: 2401 | E172: =_xlfn.XLOOKUP(B172,'Chainsaws & Polesaws'!$F$13:$F$59,'Chainsaws & Polesaws'!$U$13:$U$59) -> 0 | F172: 20240201 | G172: 2405 | H172: =_xlfn.XLOOKUP(B172,'Chainsaws & Polesaws'!$F$13:$F$59,'Chainsaws & Polesaws'!$V$13:$V$59) -> 0 | I172: 20240301 | J172: 2409 | K172: =_xlfn.XLOOKUP(B172,'Chainsaws & Polesaws'!$F$13:$F$59,'Chainsaws & Polesaws'!$W$13:$W$59) -> 0 | L172: 20240402 | M172: 2414 | N172: =_xlfn.XLOOKUP(B172,'Chainsaws & Polesaws'!$F$13:$F$59,'Chainsaws & Polesaws'!$X$13:$X$59) -> 0 | O172: 20240501 | P172: 2418 | Q172: =_xlfn.XLOOKUP(B172,'Chainsaws & Polesaws'!$F$13:$F$59,'Chainsaws & Polesaws'!$Y$13:$Y$59) -> 0 | R172: 20240603 | S172: 2423 | T172: =_xlfn.XLOOKUP(B172,'Chainsaws & Polesaws'!$F$13:$F$59,'Chainsaws & Polesaws'!$Z$13:$Z$59) -> 0 | U172: =_xlfn.XLOOKUP(B172,'Chainsaws & Polesaws'!$F$17:$F$59,'Chainsaws & Polesaws'!$L$17:$L$59) -> 622.375
A173: Chainsaws & Polesaws | B173: 970656918 | C173: 20240103 | D173: 2401 | E173: =_xlfn.XLOOKUP(B173,'Chainsaws & Polesaws'!$F$13:$F$59,'Chainsaws & Polesaws'!$U$13:$U$59) -> 0 | F173: 20240201 | G173: 2405 | H173: =_xlfn.XLOOKUP(B173,'Chainsaws & Polesaws'!$F$13:$F$59,'Chainsaws & Polesaws'!$V$13:$V$59) -> 0 | I173: 20240301 | J173: 2409 | K173: =_xlfn.XLOOKUP(B173,'Chainsaws & Polesaws'!$F$13:$F$59,'Chainsaws & Polesaws'!$W$13:$W$59) -> 0 | L173: 20240402 | M173: 2414 | N173: =_xlfn.XLOOKUP(B173,'Chainsaws & Polesaws'!$F$13:$F$59,'Chainsaws & Polesaws'!$X$13:$X$59) -> 0 | O173: 20240501 | P173: 2418 | Q173: =_xlfn.XLOOKUP(B173,'Chainsaws & Polesaws'!$F$13:$F$59,'Chainsaws & Polesaws'!$Y$13:$Y$59) -> 0 | R173: 20240603 | S173: 2423 | T173: =_xlfn.XLOOKUP(B173,'Chainsaws & Polesaws'!$F$13:$F$59,'Chainsaws & Polesaws'!$Z$13:$Z$59) -> 0 | U173: =_xlfn.XLOOKUP(B173,'Chainsaws & Polesaws'!$F$17:$F$59,'Chainsaws & Polesaws'!$L$17:$L$59) -> 627.7895
A174: Chainsaws & Polesaws | B174: 970518214 | C174: 20240103 | D174: 2401 | E174: =_xlfn.XLOOKUP(B174,'Chainsaws & Polesaws'!$F$13:$F$59,'Chainsaws & Polesaws'!$U$13:$U$59) -> 0 | F174: 20240201 | G174: 2405 | H174: =_xlfn.XLOOKUP(B174,'Chainsaws & Polesaws'!$F$13:$F$59,'Chainsaws & Polesaws'!$V$13:$V$59) -> 0 | I174: 20240301 | J174: 2409 | K174: =_xlfn.XLOOKUP(B174,'Chainsaws & Polesaws'!$F$13:$F$59,'Chainsaws & Polesaws'!$W$13:$W$59) -> 0 | L174: 20240402 | M174: 2414 | N174: =_xlfn.XLOOKUP(B174,'Chainsaws & Polesaws'!$F$13:$F$59,'Chainsaws & Polesaws'!$X$13:$X$59) -> 0 | O174: 20240501 | P174: 2418 | Q174: =_xlfn.XLOOKUP(B174,'Chainsaws & Polesaws'!$F$13:$F$59,'Chainsaws & Polesaws'!$Y$13:$Y$59) -> 0 | R174: 20240603 | S174: 2423 | T174: =_xlfn.XLOOKUP(B174,'Chainsaws & Polesaws'!$F$13:$F$59,'Chainsaws & Polesaws'!$Z$13:$Z$59) -> 0 | U174: =_xlfn.XLOOKUP(B174,'Chainsaws & Polesaws'!$F$17:$F$59,'Chainsaws & Polesaws'!$L$17:$L$59) -> 454.4605
A175: Chainsaws & Polesaws | B175: 970663518 | C175: 20240103 | D175: 2401 | E175: =_xlfn.XLOOKUP(B175,'Chainsaws & Polesaws'!$F$13:$F$59,'Chainsaws & Polesaws'!$U$13:$U$59) -> 2 | F175: 20240201 | G175: 2405 | H175: =_xlfn.XLOOKUP(B175,'Chainsaws & Polesaws'!$F$13:$F$59,'Chainsaws & Polesaws'!$V$13:$V$59) -> 2 | I175: 20240301 | J175: 2409 | K175: =_xlfn.XLOOKUP(B175,'Chainsaws & Polesaws'!$F$13:$F$59,'Chainsaws & Polesaws'!$W$13:$W$59) -> 2 | L175: 20240402 | M175: 2414 | N175: =_xlfn.XLOOKUP(B175,'Chainsaws & Polesaws'!$F$13:$F$59,'Chainsaws & Polesaws'!$X$13:$X$59) -> 0 | O175: 20240501 | P175: 2418 | Q175: =_xlfn.XLOOKUP(B175,'Chainsaws & Polesaws'!$F$13:$F$59,'Chainsaws & Polesaws'!$Y$13:$Y$59) -> 0 | R175: 20240603 | S175: 2423 | T175: =_xlfn.XLOOKUP(B175,'Chainsaws & Polesaws'!$F$13:$F$59,'Chainsaws & Polesaws'!$Z$13:$Z$59) -> 0 | U175: =_xlfn.XLOOKUP(B175,'Chainsaws & Polesaws'!$F$17:$F$59,'Chainsaws & Polesaws'!$L$17:$L$59) -> 627.7895
A176: Chainsaws & Polesaws | B176: 970663618 | C176: 20240103 | D176: 2401 | E176: =_xlfn.XLOOKUP(B176,'Chainsaws & Polesaws'!$F$13:$F$59,'Chainsaws & Polesaws'!$U$13:$U$59) -> 0 | F176: 20240201 | G176: 2405 | H176: =_xlfn.XLOOKUP(B176,'Chainsaws & Polesaws'!$F$13:$F$59,'Chainsaws & Polesaws'!$V$13:$V$59) -> 0 | I176: 20240301 | J176: 2409 | K176: =_xlfn.XLOOKUP(B176,'Chainsaws & Polesaws'!$F$13:$F$59,'Chainsaws & Polesaws'!$W$13:$W$59) -> 0 | L176: 20240402 | M176: 2414 | N176: =_xlfn.XLOOKUP(B176,'Chainsaws & Polesaws'!$F$13:$F$59,'Chainsaws & Polesaws'!$X$13:$X$59) -> 0 | O176: 20240501 | P176: 2418 | Q176: =_xlfn.XLOOKUP(B176,'Chainsaws & Polesaws'!$F$13:$F$59,'Chainsaws & Polesaws'!$Y$13:$Y$59) -> 0 | R176: 20240603 | S176: 2423 | T176: =_xlfn.XLOOKUP(B176,'Chainsaws & Polesaws'!$F$13:$F$59,'Chainsaws & Polesaws'!$Z$13:$Z$59) -> 0 | U176: =_xlfn.XLOOKUP(B176,'Chainsaws & Polesaws'!$F$17:$F$59,'Chainsaws & Polesaws'!$L$17:$L$59) -> 654.875
A177: Chainsaws & Polesaws | B177: 970613718 | C177: 20240103 | D177: 2401 | E177: =_xlfn.XLOOKUP(B177,'Chainsaws & Polesaws'!$F$13:$F$59,'Chainsaws & Polesaws'!$U$13:$U$59) -> 0 | F177: 20240201 | G177: 2405 | H177: =_xlfn.XLOOKUP(B177,'Chainsaws & Polesaws'!$F$13:$F$59,'Chainsaws & Polesaws'!$V$13:$V$59) -> 0 | I177: 20240301 | J177: 2409 | K177: =_xlfn.XLOOKUP(B177,'Chainsaws & Polesaws'!$F$13:$F$59,'Chainsaws & Polesaws'!$W$13:$W$59) -> 0 | L177: 20240402 | M177: 2414 | N177: =_xlfn.XLOOKUP(B177,'Chainsaws & Polesaws'!$F$13:$F$59,'Chainsaws & Polesaws'!$X$13:$X$59) -> 0 | O177: 20240501 | P177: 2418 | Q177: =_xlfn.XLOOKUP(B177,'Chainsaws & Polesaws'!$F$13:$F$59,'Chainsaws & Polesaws'!$Y$13:$Y$59) -> 0 | R177: 20240603 | S177: 2423 | T177: =_xlfn.XLOOKUP(B177,'Chainsaws & Polesaws'!$F$13:$F$59,'Chainsaws & Polesaws'!$Z$13:$Z$59) -> 0 | U177: =_xlfn.XLOOKUP(B177,'Chainsaws & Polesaws'!$F$17:$F$59,'Chainsaws & Polesaws'!$L$17:$L$59) -> 378.625
A178: Chainsaws & Polesaws | B178: 970559735 | C178: 20240103 | D178: 2401 | E178: =_xlfn.XLOOKUP(B178,'Chainsaws & Polesaws'!$F$13:$F$59,'Chainsaws & Polesaws'!$U$13:$U$59) -> 10 | F178: 20240201 | G178: 2405 | H178: =_xlfn.XLOOKUP(B178,'Chainsaws & Polesaws'!$F$13:$F$59,'Chainsaws & Polesaws'!$V$13:$V$59) -> 0 | I178: 20240301 | J178: 2409 | K178: =_xlfn.XLOOKUP(B178,'Chainsaws & Polesaws'!$F$13:$F$59,'Chainsaws & Polesaws'!$W$13:$W$59) -> 10 | L178: 20240402 | M178: 2414 | N178: =_xlfn.XLOOKUP(B178,'Chainsaws & Polesaws'!$F$13:$F$59,'Chainsaws & Polesaws'!$X$13:$X$59) -> 2 | O178: 20240501 | P178: 2418 | Q178: =_xlfn.XLOOKUP(B178,'Chainsaws & Polesaws'!$F$13:$F$59,'Chainsaws & Polesaws'!$Y$13:$Y$59) -> 2 | R178: 20240603 | S178: 2423 | T178: =_xlfn.XLOOKUP(B178,'Chainsaws & Polesaws'!$F$13:$F$59,'Chainsaws & Polesaws'!$Z$13:$Z$59) -> 2 | U178: =_xlfn.XLOOKUP(B178,'Chainsaws & Polesaws'!$F$17:$F$59,'Chainsaws & Polesaws'!$L$17:$L$59) -> 270.2895
A179: Chainsaws & Polesaws | B179: 970560035 | C179: 20240103 | D179: 2401 | E179: =_xlfn.XLOOKUP(B179,'Chainsaws & Polesaws'!$F$13:$F$59,'Chainsaws & Polesaws'!$U$13:$U$59) -> 4 | F179: 20240201 | G179: 2405 | H179: =_xlfn.XLOOKUP(B179,'Chainsaws & Polesaws'!$F$13:$F$59,'Chainsaws & Polesaws'!$V$13:$V$59) -> 4 | I179: 20240301 | J179: 2409 | K179: =_xlfn.XLOOKUP(B179,'Chainsaws & Polesaws'!$F$13:$F$59,'Chainsaws & Polesaws'!$W$13:$W$59) -> 2 | L179: 20240402 | M179: 2414 | N179: =_xlfn.XLOOKUP(B179,'Chainsaws & Polesaws'!$F$13:$F$59,'Chainsaws & Polesaws'!$X$13:$X$59) -> 0 | O179: 20240501 | P179: 2418 | Q179: =_xlfn.XLOOKUP(B179,'Chainsaws & Polesaws'!$F$13:$F$59,'Chainsaws & Polesaws'!$Y$13:$Y$59) -> 0 | R179: 20240603 | S179: 2423 | T179: =_xlfn.XLOOKUP(B179,'Chainsaws & Polesaws'!$F$13:$F$59,'Chainsaws & Polesaws'!$Z$13:$Z$59) -> 0 | U179: =_xlfn.XLOOKUP(B179,'Chainsaws & Polesaws'!$F$17:$F$59,'Chainsaws & Polesaws'!$L$17:$L$59) -> 297.375
A180: Chainsaws & Polesaws | B180: 970558738 | C180: 20240103 | D180: 2401 | E180: =_xlfn.XLOOKUP(B180,'Chainsaws & Polesaws'!$F$13:$F$59,'Chainsaws & Polesaws'!$U$13:$U$59) -> 6 | F180: 20240201 | G180: 2405 | H180: =_xlfn.XLOOKUP(B180,'Chainsaws & Polesaws'!$F$13:$F$59,'Chainsaws & Polesaws'!$V$13:$V$59) -> 2 | I180: 20240301 | J180: 2409 | K180: =_xlfn.XLOOKUP(B180,'Chainsaws & Polesaws'!$F$13:$F$59,'Chainsaws & Polesaws'!$W$13:$W$59) -> 2 | L180: 20240402 | M180: 2414 | N180: =_xlfn.XLOOKUP(B180,'Chainsaws & Polesaws'!$F$13:$F$59,'Chainsaws & Polesaws'!$X$13:$X$59) -> 0 | O180: 20240501 | P180: 2418 | Q180: =_xlfn.XLOOKUP(B180,'Chainsaws & Polesaws'!$F$13:$F$59,'Chainsaws & Polesaws'!$Y$13:$Y$59) -> 0 | R180: 20240603 | S180: 2423 | T180: =_xlfn.XLOOKUP(B180,'Chainsaws & Polesaws'!$F$13:$F$59,'Chainsaws & Polesaws'!$Z$13:$Z$59) -> 0 | U180: =_xlfn.XLOOKUP(B180,'Chainsaws & Polesaws'!$F$17:$F$59,'Chainsaws & Polesaws'!$L$17:$L$59) -> 324.4605
A181: Chainsaws & Polesaws | B181: 970559338 | C181: 20240103 | D181: 2401 | E181: =_xlfn.XLOOKUP(B181,'Chainsaws & Polesaws'!$F$13:$F$59,'Chainsaws & Polesaws'!$U$13:$U$59) -> 4 | F181: 20240201 | G181: 2405 | H181: =_xlfn.XLOOKUP(B181,'Chainsaws & Polesaws'!$F$13:$F$59,'Chainsaws & Polesaws'!$V$13:$V$59) -> 4 | I181: 20240301 | J181: 2409 | K181: =_xlfn.XLOOKUP(B181,'Chainsaws & Polesaws'!$F$13:$F$59,'Chainsaws & Polesaws'!$W$13:$W$59) -> 0 | L181: 20240402 | M181: 2414 | N181: =_xlfn.XLOOKUP(B181,'Chainsaws & Polesaws'!$F$13:$F$59,'Chainsaws & Polesaws'!$X$13:$X$59) -> 0 | O181: 20240501 | P181: 2418 | Q181: =_xlfn.XLOOKUP(B181,'Chainsaws & Polesaws'!$F$13:$F$59,'Chainsaws & Polesaws'!$Y$13:$Y$59) -> 0 | R181: 20240603 | S181: 2423 | T181: =_xlfn.XLOOKUP(B181,'Chainsaws & Polesaws'!$F$13:$F$59,'Chainsaws & Polesaws'!$Z$13:$Z$59) -> 0 | U181: =_xlfn.XLOOKUP(B181,'Chainsaws & Polesaws'!$F$17:$F$59,'Chainsaws & Polesaws'!$L$17:$L$59) -> 337.47792
A182: Chainsaws & Polesaws | B182: 970493020 | C182: 20240103 | D182: 2401 | E182: =_xlfn.XLOOKUP(B182,'Chainsaws & Polesaws'!$F$13:$F$59,'Chainsaws & Polesaws'!$U$13:$U$59) -> 0 | F182: 20240201 | G182: 2405 | H182: =_xlfn.XLOOKUP(B182,'Chainsaws & Polesaws'!$F$13:$F$59,'Chainsaws & Polesaws'!$V$13:$V$59) -> 0 | I182: 20240301 | J182: 2409 | K182: =_xlfn.XLOOKUP(B182,'Chainsaws & Polesaws'!$F$13:$F$59,'Chainsaws & Polesaws'!$W$13:$W$59) -> 0 | L182: 20240402 | M182: 2414 | N182: =_xlfn.XLOOKUP(B182,'Chainsaws & Polesaws'!$F$13:$F$59,'Chainsaws & Polesaws'!$X$13:$X$59) -> 0 | O182: 20240501 | P182: 2418 | Q182: =_xlfn.XLOOKUP(B182,'Chainsaws & Polesaws'!$F$13:$F$59,'Chainsaws & Polesaws'!$Y$13:$Y$59) -> 0 | R182: 20240603 | S182: 2423 | T182: =_xlfn.XLOOKUP(B182,'Chainsaws & Polesaws'!$F$13:$F$59,'Chainsaws & Polesaws'!$Z$13:$Z$59) -> 0 | U182: =_xlfn.XLOOKUP(B182,'Chainsaws & Polesaws'!$F$17:$F$59,'Chainsaws & Polesaws'!$L$17:$L$59) -> 763.2105
A183: Chainsaws & Polesaws | B183: 970493024 | C183: 20240103 | D183: 2401 | E183: =_xlfn.XLOOKUP(B183,'Chainsaws & Polesaws'!$F$13:$F$59,'Chainsaws & Polesaws'!$U$13:$U$59) -> 0 | F183: 20240201 | G183: 2405 | H183: =_xlfn.XLOOKUP(B183,'Chainsaws & Polesaws'!$F$13:$F$59,'Chainsaws & Polesaws'!$V$13:$V$59) -> 0 | I183: 20240301 | J183: 2409 | K183: =_xlfn.XLOOKUP(B183,'Chainsaws & Polesaws'!$F$13:$F$59,'Chainsaws & Polesaws'!$W$13:$W$59) -> 0 | L183: 20240402 | M183: 2414 | N183: =_xlfn.XLOOKUP(B183,'Chainsaws & Polesaws'!$F$13:$F$59,'Chainsaws & Polesaws'!$X$13:$X$59) -> 0 | O183: 20240501 | P183: 2418 | Q183: =_xlfn.XLOOKUP(B183,'Chainsaws & Polesaws'!$F$13:$F$59,'Chainsaws & Polesaws'!$Y$13:$Y$59) -> 0 | R183: 20240603 | S183: 2423 | T183: =_xlfn.XLOOKUP(B183,'Chainsaws & Polesaws'!$F$13:$F$59,'Chainsaws & Polesaws'!$Z$13:$Z$59) -> 0 | U183: =_xlfn.XLOOKUP(B183,'Chainsaws & Polesaws'!$F$17:$F$59,'Chainsaws & Polesaws'!$L$17:$L$59) -> 774.0395
A184: Chainsaws & Polesaws | B184: 970493028 | C184: 20240103 | D184: 2401 | E184: =_xlfn.XLOOKUP(B184,'Chainsaws & Polesaws'!$F$13:$F$59,'Chainsaws & Polesaws'!$U$13:$U$59) -> 0 | F184: 20240201 | G184: 2405 | H184: =_xlfn.XLOOKUP(B184,'Chainsaws & Polesaws'!$F$13:$F$59,'Chainsaws & Polesaws'!$V$13:$V$59) -> 0 | I184: 20240301 | J184: 2409 | K184: =_xlfn.XLOOKUP(B184,'Chainsaws & Polesaws'!$F$13:$F$59,'Chainsaws & Polesaws'!$W$13:$W$59) -> 0 | L184: 20240402 | M184: 2414 | N184: =_xlfn.XLOOKUP(B184,'Chainsaws & Polesaws'!$F$13:$F$59,'Chainsaws & Polesaws'!$X$13:$X$59) -> 0 | O184: 20240501 | P184: 2418 | Q184: =_xlfn.XLOOKUP(B184,'Chainsaws & Polesaws'!$F$13:$F$59,'Chainsaws & Polesaws'!$Y$13:$Y$59) -> 0 | R184: 20240603 | S184: 2423 | T184: =_xlfn.XLOOKUP(B184,'Chainsaws & Polesaws'!$F$13:$F$59,'Chainsaws & Polesaws'!$Z$13:$Z$59) -> 0 | U184: =_xlfn.XLOOKUP(B184,'Chainsaws & Polesaws'!$F$17:$F$59,'Chainsaws & Polesaws'!$L$17:$L$59) -> 784.875
A185: Chainsaws & Polesaws | B185: 970493032 | C185: 20240103 | D185: 2401 | E185: =_xlfn.XLOOKUP(B185,'Chainsaws & Polesaws'!$F$13:$F$59,'Chainsaws & Polesaws'!$U$13:$U$59) -> 0 | F185: 20240201 | G185: 2405 | H185: =_xlfn.XLOOKUP(B185,'Chainsaws & Polesaws'!$F$13:$F$59,'Chainsaws & Polesaws'!$V$13:$V$59) -> 0 | I185: 20240301 | J185: 2409 | K185: =_xlfn.XLOOKUP(B185,'Chainsaws & Polesaws'!$F$13:$F$59,'Chainsaws & Polesaws'!$W$13:$W$59) -> 0 | L185: 20240402 | M185: 2414 | N185: =_xlfn.XLOOKUP(B185,'Chainsaws & Polesaws'!$F$13:$F$59,'Chainsaws & Polesaws'!$X$13:$X$59) -> 0 | O185: 20240501 | P185: 2418 | Q185: =_xlfn.XLOOKUP(B185,'Chainsaws & Polesaws'!$F$13:$F$59,'Chainsaws & Polesaws'!$Y$13:$Y$59) -> 0 | R185: 20240603 | S185: 2423 | T185: =_xlfn.XLOOKUP(B185,'Chainsaws & Polesaws'!$F$13:$F$59,'Chainsaws & Polesaws'!$Z$13:$Z$59) -> 0 | U185: =_xlfn.XLOOKUP(B185,'Chainsaws & Polesaws'!$F$17:$F$59,'Chainsaws & Polesaws'!$L$17:$L$59) -> 795.7105
A186: Chainsaws & Polesaws | B186: 970493130 | C186: 20240103 | D186: 2401 | E186: =_xlfn.XLOOKUP(B186,'Chainsaws & Polesaws'!$F$13:$F$59,'Chainsaws & Polesaws'!$U$13:$U$59) -> 0 | F186: 20240201 | G186: 2405 | H186: =_xlfn.XLOOKUP(B186,'Chainsaws & Polesaws'!$F$13:$F$59,'Chainsaws & Polesaws'!$V$13:$V$59) -> 0 | I186: 20240301 | J186: 2409 | K186: =_xlfn.XLOOKUP(B186,'Chainsaws & Polesaws'!$F$13:$F$59,'Chainsaws & Polesaws'!$W$13:$W$59) -> 0 | L186: 20240402 | M186: 2414 | N186: =_xlfn.XLOOKUP(B186,'Chainsaws & Polesaws'!$F$13:$F$59,'Chainsaws & Polesaws'!$X$13:$X$59) -> 0 | O186: 20240501 | P186: 2418 | Q186: =_xlfn.XLOOKUP(B186,'Chainsaws & Polesaws'!$F$13:$F$59,'Chainsaws & Polesaws'!$Y$13:$Y$59) -> 0 | R186: 20240603 | S186: 2423 | T186: =_xlfn.XLOOKUP(B186,'Chainsaws & Polesaws'!$F$13:$F$59,'Chainsaws & Polesaws'!$Z$13:$Z$59) -> 0 | U186: =_xlfn.XLOOKUP(B186,'Chainsaws & Polesaws'!$F$17:$F$59,'Chainsaws & Polesaws'!$L$17:$L$59) -> 866.125
A187: Chainsaws & Polesaws | B187: 970493124 | C187: 20240103 | D187: 2401 | E187: =_xlfn.XLOOKUP(B187,'Chainsaws & Polesaws'!$F$13:$F$59,'Chainsaws & Polesaws'!$U$13:$U$59) -> 2 | F187: 20240201 | G187: 2405 | H187: =_xlfn.XLOOKUP(B187,'Chainsaws & Polesaws'!$F$13:$F$59,'Chainsaws & Polesaws'!$V$13:$V$59) -> 1 | I187: 20240301 | J187: 2409 | K187: =_xlfn.XLOOKUP(B187,'Chainsaws & Polesaws'!$F$13:$F$59,'Chainsaws & Polesaws'!$W$13:$W$59) -> 1 | L187: 20240402 | M187: 2414 | N187: =_xlfn.XLOOKUP(B187,'Chainsaws & Polesaws'!$F$13:$F$59,'Chainsaws & Polesaws'!$X$13:$X$59) -> 0 | O187: 20240501 | P187: 2418 | Q187: =_xlfn.XLOOKUP(B187,'Chainsaws & Polesaws'!$F$13:$F$59,'Chainsaws & Polesaws'!$Y$13:$Y$59) -> 1 | R187: 20240603 | S187: 2423 | T187: =_xlfn.XLOOKUP(B187,'Chainsaws & Polesaws'!$F$13:$F$59,'Chainsaws & Polesaws'!$Z$13:$Z$59) -> 0 | U187: =_xlfn.XLOOKUP(B187,'Chainsaws & Polesaws'!$F$17:$F$59,'Chainsaws & Polesaws'!$L$17:$L$59) -> 876.9605
A188: Chainsaws & Polesaws | B188: 970493128 | C188: 20240103 | D188: 2401 | E188: =_xlfn.XLOOKUP(B188,'Chainsaws & Polesaws'!$F$13:$F$59,'Chainsaws & Polesaws'!$U$13:$U$59) -> 1 | F188: 20240201 | G188: 2405 | H188: =_xlfn.XLOOKUP(B188,'Chainsaws & Polesaws'!$F$13:$F$59,'Chainsaws & Polesaws'!$V$13:$V$59) -> 0 | I188: 20240301 | J188: 2409 | K188: =_xlfn.XLOOKUP(B188,'Chainsaws & Polesaws'!$F$13:$F$59,'Chainsaws & Polesaws'!$W$13:$W$59) -> 1 | L188: 20240402 | M188: 2414 | N188: =_xlfn.XLOOKUP(B188,'Chainsaws & Polesaws'!$F$13:$F$59,'Chainsaws & Polesaws'!$X$13:$X$59) -> 1 | O188: 20240501 | P188: 2418 | Q188: =_xlfn.XLOOKUP(B188,'Chainsaws & Polesaws'!$F$13:$F$59,'Chainsaws & Polesaws'!$Y$13:$Y$59) -> 0 | R188: 20240603 | S188: 2423 | T188: =_xlfn.XLOOKUP(B188,'Chainsaws & Polesaws'!$F$13:$F$59,'Chainsaws & Polesaws'!$Z$13:$Z$59) -> 0 | U188: =_xlfn.XLOOKUP(B188,'Chainsaws & Polesaws'!$F$17:$F$59,'Chainsaws & Polesaws'!$L$17:$L$59) -> 882.375
A189: Chainsaws & Polesaws | B189: 970493458 | C189: 20240103 | D189: 2401 | E189: =_xlfn.XLOOKUP(B189,'Chainsaws & Polesaws'!$F$13:$F$59,'Chainsaws & Polesaws'!$U$13:$U$59) -> 0 | F189: 20240201 | G189: 2405 | H189: =_xlfn.XLOOKUP(B189,'Chainsaws & Polesaws'!$F$13:$F$59,'Chainsaws & Polesaws'!$V$13:$V$59) -> 0 | I189: 20240301 | J189: 2409 | K189: =_xlfn.XLOOKUP(B189,'Chainsaws & Polesaws'!$F$13:$F$59,'Chainsaws & Polesaws'!$W$13:$W$59) -> 0 | L189: 20240402 | M189: 2414 | N189: =_xlfn.XLOOKUP(B189,'Chainsaws & Polesaws'!$F$13:$F$59,'Chainsaws & Polesaws'!$X$13:$X$59) -> 0 | O189: 20240501 | P189: 2418 | Q189: =_xlfn.XLOOKUP(B189,'Chainsaws & Polesaws'!$F$13:$F$59,'Chainsaws & Polesaws'!$Y$13:$Y$59) -> 0 | R189: 20240603 | S189: 2423 | T189: =_xlfn.XLOOKUP(B189,'Chainsaws & Polesaws'!$F$13:$F$59,'Chainsaws & Polesaws'!$Z$13:$Z$59) -> 0 | U189: =_xlfn.XLOOKUP(B189,'Chainsaws & Polesaws'!$F$17:$F$59,'Chainsaws & Polesaws'!$L$17:$L$59) -> 920.2895
A190: Chainsaws & Polesaws | B190: 970501218 | C190: 20240103 | D190: 2401 | E190: =_xlfn.XLOOKUP(B190,'Chainsaws & Polesaws'!$F$13:$F$59,'Chainsaws & Polesaws'!$U$13:$U$59) -> 0 | F190: 20240201 | G190: 2405 | H190: =_xlfn.XLOOKUP(B190,'Chainsaws & Polesaws'!$F$13:$F$59,'Chainsaws & Polesaws'!$V$13:$V$59) -> 0 | I190: 20240301 | J190: 2409 | K190: =_xlfn.XLOOKUP(B190,'Chainsaws & Polesaws'!$F$13:$F$59,'Chainsaws & Polesaws'!$W$13:$W$59) -> 0 | L190: 20240402 | M190: 2414 | N190: =_xlfn.XLOOKUP(B190,'Chainsaws & Polesaws'!$F$13:$F$59,'Chainsaws & Polesaws'!$X$13:$X$59) -> 0 | O190: 20240501 | P190: 2418 | Q190: =_xlfn.XLOOKUP(B190,'Chainsaws & Polesaws'!$F$13:$F$59,'Chainsaws & Polesaws'!$Y$13:$Y$59) -> 0 | R190: 20240603 | S190: 2423 | T190: =_xlfn.XLOOKUP(B190,'Chainsaws & Polesaws'!$F$13:$F$59,'Chainsaws & Polesaws'!$Z$13:$Z$59) -> 0 | U190: =_xlfn.XLOOKUP(B190,'Chainsaws & Polesaws'!$F$17:$F$59,'Chainsaws & Polesaws'!$L$17:$L$59) -> 573.625
A191: Chainsaws & Polesaws | B191: 967690615 | C191: 20240103 | D191: 2401 | E191: =_xlfn.XLOOKUP(B191,'Chainsaws & Polesaws'!$F$13:$F$59,'Chainsaws & Polesaws'!$U$13:$U$59) -> 0 | F191: 20240201 | G191: 2405 | H191: =_xlfn.XLOOKUP(B191,'Chainsaws & Polesaws'!$F$13:$F$59,'Chainsaws & Polesaws'!$V$13:$V$59) -> 0 | I191: 20240301 | J191: 2409 | K191: =_xlfn.XLOOKUP(B191,'Chainsaws & Polesaws'!$F$13:$F$59,'Chainsaws & Polesaws'!$W$13:$W$59) -> 0 | L191: 20240402 | M191: 2414 | N191: =_xlfn.XLOOKUP(B191,'Chainsaws & Polesaws'!$F$13:$F$59,'Chainsaws & Polesaws'!$X$13:$X$59) -> 0 | O191: 20240501 | P191: 2418 | Q191: =_xlfn.XLOOKUP(B191,'Chainsaws & Polesaws'!$F$13:$F$59,'Chainsaws & Polesaws'!$Y$13:$Y$59) -> 0 | R191: 20240603 | S191: 2423 | T191: =_xlfn.XLOOKUP(B191,'Chainsaws & Polesaws'!$F$13:$F$59,'Chainsaws & Polesaws'!$Z$13:$Z$59) -> 0 | U191: =_xlfn.XLOOKUP(B191,'Chainsaws & Polesaws'!$F$17:$F$59,'Chainsaws & Polesaws'!$L$17:$L$59) -> 470.7105
A192: Chainsaws & Polesaws | B192: 967690815 | C192: 20240103 | D192: 2401 | E192: =_xlfn.XLOOKUP(B192,'Chainsaws & Polesaws'!$F$13:$F$59,'Chainsaws & Polesaws'!$U$13:$U$59) -> 30 | F192: 20240201 | G192: 2405 | H192: =_xlfn.XLOOKUP(B192,'Chainsaws & Polesaws'!$F$13:$F$59,'Chainsaws & Polesaws'!$V$13:$V$59) -> 30 | I192: 20240301 | J192: 2409 | K192: =_xlfn.XLOOKUP(B192,'Chainsaws & Polesaws'!$F$13:$F$59,'Chainsaws & Polesaws'!$W$13:$W$59) -> 20 | L192: 20240402 | M192: 2414 | N192: =_xlfn.XLOOKUP(B192,'Chainsaws & Polesaws'!$F$13:$F$59,'Chainsaws & Polesaws'!$X$13:$X$59) -> 20 | O192: 20240501 | P192: 2418 | Q192: =_xlfn.XLOOKUP(B192,'Chainsaws & Polesaws'!$F$13:$F$59,'Chainsaws & Polesaws'!$Y$13:$Y$59) -> 20 | R192: 20240603 | S192: 2423 | T192: =_xlfn.XLOOKUP(B192,'Chainsaws & Polesaws'!$F$13:$F$59,'Chainsaws & Polesaws'!$Z$13:$Z$59) -> 20 | U192: =_xlfn.XLOOKUP(B192,'Chainsaws & Polesaws'!$F$17:$F$59,'Chainsaws & Polesaws'!$L$17:$L$59) -> 498.68208
A193: Chainsaws & Polesaws | B193: 967690818 | C193: 20240103 | D193: 2401 | E193: =_xlfn.XLOOKUP(B193,'Chainsaws & Polesaws'!$F$13:$F$59,'Chainsaws & Polesaws'!$U$13:$U$59) -> 0 | F193: 20240201 | G193: 2405 | H193: =_xlfn.XLOOKUP(B193,'Chainsaws & Polesaws'!$F$13:$F$59,'Chainsaws & Polesaws'!$V$13:$V$59) -> 0 | I193: 20240301 | J193: 2409 | K193: =_xlfn.XLOOKUP(B193,'Chainsaws & Polesaws'!$F$13:$F$59,'Chainsaws & Polesaws'!$W$13:$W$59) -> 0 | L193: 20240402 | M193: 2414 | N193: =_xlfn.XLOOKUP(B193,'Chainsaws & Polesaws'!$F$13:$F$59,'Chainsaws & Polesaws'!$X$13:$X$59) -> 0 | O193: 20240501 | P193: 2418 | Q193: =_xlfn.XLOOKUP(B193,'Chainsaws & Polesaws'!$F$13:$F$59,'Chainsaws & Polesaws'!$Y$13:$Y$59) -> 0 | R193: 20240603 | S193: 2423 | T193: =_xlfn.XLOOKUP(B193,'Chainsaws & Polesaws'!$F$13:$F$59,'Chainsaws & Polesaws'!$Z$13:$Z$59) -> 0 | U193: =_xlfn.XLOOKUP(B193,'Chainsaws & Polesaws'!$F$17:$F$59,'Chainsaws & Polesaws'!$L$17:$L$59) -> 524.875
A194: Chainsaws & Polesaws | B194: 967690915 | C194: 20240103 | D194: 2401 | E194: =_xlfn.XLOOKUP(B194,'Chainsaws & Polesaws'!$F$13:$F$59,'Chainsaws & Polesaws'!$U$13:$U$59) -> 2 | F194: 20240201 | G194: 2405 | H194: =_xlfn.XLOOKUP(B194,'Chainsaws & Polesaws'!$F$13:$F$59,'Chainsaws & Polesaws'!$V$13:$V$59) -> 4 | I194: 20240301 | J194: 2409 | K194: =_xlfn.XLOOKUP(B194,'Chainsaws & Polesaws'!$F$13:$F$59,'Chainsaws & Polesaws'!$W$13:$W$59) -> 2 | L194: 20240402 | M194: 2414 | N194: =_xlfn.XLOOKUP(B194,'Chainsaws & Polesaws'!$F$13:$F$59,'Chainsaws & Polesaws'!$X$13:$X$59) -> 2 | O194: 20240501 | P194: 2418 | Q194: =_xlfn.XLOOKUP(B194,'Chainsaws & Polesaws'!$F$13:$F$59,'Chainsaws & Polesaws'!$Y$13:$Y$59) -> 0 | R194: 20240603 | S194: 2423 | T194: =_xlfn.XLOOKUP(B194,'Chainsaws & Polesaws'!$F$13:$F$59,'Chainsaws & Polesaws'!$Z$13:$Z$59) -> 0 | U194: =_xlfn.XLOOKUP(B194,'Chainsaws & Polesaws'!$F$17:$F$59,'Chainsaws & Polesaws'!$L$17:$L$59) -> 557.375
A195: Chainsaws & Polesaws | B195: 967690918 | C195: 20240103 | D195: 2401 | E195: =_xlfn.XLOOKUP(B195,'Chainsaws & Polesaws'!$F$13:$F$59,'Chainsaws & Polesaws'!$U$13:$U$59) -> 0 | F195: 20240201 | G195: 2405 | H195: =_xlfn.XLOOKUP(B195,'Chainsaws & Polesaws'!$F$13:$F$59,'Chainsaws & Polesaws'!$V$13:$V$59) -> 0 | I195: 20240301 | J195: 2409 | K195: =_xlfn.XLOOKUP(B195,'Chainsaws & Polesaws'!$F$13:$F$59,'Chainsaws & Polesaws'!$W$13:$W$59) -> 0 | L195: 20240402 | M195: 2414 | N195: =_xlfn.XLOOKUP(B195,'Chainsaws & Polesaws'!$F$13:$F$59,'Chainsaws & Polesaws'!$X$13:$X$59) -> 0 | O195: 20240501 | P195: 2418 | Q195: =_xlfn.XLOOKUP(B195,'Chainsaws & Polesaws'!$F$13:$F$59,'Chainsaws & Polesaws'!$Y$13:$Y$59) -> 0 | R195: 20240603 | S195: 2423 | T195: =_xlfn.XLOOKUP(B195,'Chainsaws & Polesaws'!$F$13:$F$59,'Chainsaws & Polesaws'!$Z$13:$Z$59) -> 0 | U195: =_xlfn.XLOOKUP(B195,'Chainsaws & Polesaws'!$F$17:$F$59,'Chainsaws & Polesaws'!$L$17:$L$59) -> 562.7895
A196: Chainsaws & Polesaws | B196: 967108401 | C196: 20240103 | D196: 2401 | E196: =_xlfn.XLOOKUP(B196,'Chainsaws & Polesaws'!$F$13:$F$59,'Chainsaws & Polesaws'!$U$13:$U$59) -> 10 | F196: 20240201 | G196: 2405 | H196: =_xlfn.XLOOKUP(B196,'Chainsaws & Polesaws'!$F$13:$F$59,'Chainsaws & Polesaws'!$V$13:$V$59) -> 10 | I196: 20240301 | J196: 2409 | K196: =_xlfn.XLOOKUP(B196,'Chainsaws & Polesaws'!$F$13:$F$59,'Chainsaws & Polesaws'!$W$13:$W$59) -> 0 | L196: 20240402 | M196: 2414 | N196: =_xlfn.XLOOKUP(B196,'Chainsaws & Polesaws'!$F$13:$F$59,'Chainsaws & Polesaws'!$X$13:$X$59) -> 10 | O196: 20240501 | P196: 2418 | Q196: =_xlfn.XLOOKUP(B196,'Chainsaws & Polesaws'!$F$13:$F$59,'Chainsaws & Polesaws'!$Y$13:$Y$59) -> 0 | R196: 20240603 | S196: 2423 | T196: =_xlfn.XLOOKUP(B196,'Chainsaws & Polesaws'!$F$13:$F$59,'Chainsaws & Polesaws'!$Z$13:$Z$59) -> 0 | U196: =_xlfn.XLOOKUP(B196,'Chainsaws & Polesaws'!$F$13:$F$59,'Chainsaws & Polesaws'!$L$13:$L$59) -> 134.875
A197: Chainsaws & Polesaws | B197: 967861814 | C197: 20240103 | D197: 2401 | E197: =_xlfn.XLOOKUP(B197,'Chainsaws & Polesaws'!$F$13:$F$59,'Chainsaws & Polesaws'!$U$13:$U$59) -> 20 | F197: 20240201 | G197: 2405 | H197: =_xlfn.XLOOKUP(B197,'Chainsaws & Polesaws'!$F$13:$F$59,'Chainsaws & Polesaws'!$V$13:$V$59) -> 0 | I197: 20240301 | J197: 2409 | K197: =_xlfn.XLOOKUP(B197,'Chainsaws & Polesaws'!$F$13:$F$59,'Chainsaws & Polesaws'!$W$13:$W$59) -> 10 | L197: 20240402 | M197: 2414 | N197: =_xlfn.XLOOKUP(B197,'Chainsaws & Polesaws'!$F$13:$F$59,'Chainsaws & Polesaws'!$X$13:$X$59) -> 0 | O197: 20240501 | P197: 2418 | Q197: =_xlfn.XLOOKUP(B197,'Chainsaws & Polesaws'!$F$13:$F$59,'Chainsaws & Polesaws'!$Y$13:$Y$59) -> 0 | R197: 20240603 | S197: 2423 | T197: =_xlfn.XLOOKUP(B197,'Chainsaws & Polesaws'!$F$13:$F$59,'Chainsaws & Polesaws'!$Z$13:$Z$59) -> 0 | U197: =_xlfn.XLOOKUP(B197,'Chainsaws & Polesaws'!$F$13:$F$59,'Chainsaws & Polesaws'!$L$13:$L$59) -> 178.2105
A198: Chainsaws & Polesaws | B198: 967861903 | C198: 20240103 | D198: 2401 | E198: =_xlfn.XLOOKUP(B198,'Chainsaws & Polesaws'!$F$13:$F$59,'Chainsaws & Polesaws'!$U$13:$U$59) -> 30 | F198: 20240201 | G198: 2405 | H198: =_xlfn.XLOOKUP(B198,'Chainsaws & Polesaws'!$F$13:$F$59,'Chainsaws & Polesaws'!$V$13:$V$59) -> 20 | I198: 20240301 | J198: 2409 | K198: =_xlfn.XLOOKUP(B198,'Chainsaws & Polesaws'!$F$13:$F$59,'Chainsaws & Polesaws'!$W$13:$W$59) -> 20 | L198: 20240402 | M198: 2414 | N198: =_xlfn.XLOOKUP(B198,'Chainsaws & Polesaws'!$F$13:$F$59,'Chainsaws & Polesaws'!$X$13:$X$59) -> 10 | O198: 20240501 | P198: 2418 | Q198: =_xlfn.XLOOKUP(B198,'Chainsaws & Polesaws'!$F$13:$F$59,'Chainsaws & Polesaws'!$Y$13:$Y$59) -> 0 | R198: 20240603 | S198: 2423 | T198: =_xlfn.XLOOKUP(B198,'Chainsaws & Polesaws'!$F$13:$F$59,'Chainsaws & Polesaws'!$Z$13:$Z$59) -> 0 | U198: =_xlfn.XLOOKUP(B198,'Chainsaws & Polesaws'!$F$13:$F$59,'Chainsaws & Polesaws'!$L$13:$L$59) -> 108.329
A199: Chainsaws & Polesaws | B199: 966733148 | C199: 20240103 | D199: 2401 | E199: =_xlfn.XLOOKUP(B199,'Chainsaws & Polesaws'!$F$17:$F$59,'Chainsaws & Polesaws'!$U$17:$U$59) -> 0 | F199: 20240201 | G199: 2405 | H199: =_xlfn.XLOOKUP(B199,'Chainsaws & Polesaws'!$F$17:$F$59,'Chainsaws & Polesaws'!$V$17:$V$59) -> 0 | I199: 20240301 | J199: 2409 | K199: =_xlfn.XLOOKUP(B199,'Chainsaws & Polesaws'!$F$17:$F$59,'Chainsaws & Polesaws'!$W$17:$W$59) -> 0 | L199: 20240402 | M199: 2414 | N199: =_xlfn.XLOOKUP(B199,'Chainsaws & Polesaws'!$F$17:$F$59,'Chainsaws & Polesaws'!$X$17:$X$59) -> 0 | O199: 20240501 | P199: 2418 | Q199: =_xlfn.XLOOKUP(B199,'Chainsaws & Polesaws'!$F$17:$F$59,'Chainsaws & Polesaws'!$Y$17:$Y$59) -> 0 | R199: 20240603 | S199: 2423 | T199: =_xlfn.XLOOKUP(B199,'Chainsaws & Polesaws'!$F$17:$F$59,'Chainsaws & Polesaws'!$Z$17:$Z$59) -> 0 | U199: =_xlfn.XLOOKUP(B199,'Chainsaws & Polesaws'!$F$17:$F$59,'Chainsaws & Polesaws'!$L$17:$L$59) -> 779.4605
A200: Chainsaws & Polesaws | B200: 966733444 | C200: 20240103 | D200: 2401 | E200: =_xlfn.XLOOKUP(B200,'Chainsaws & Polesaws'!$F$17:$F$59,'Chainsaws & Polesaws'!$U$17:$U$59) -> 0 | F200: 20240201 | G200: 2405 | H200: =_xlfn.XLOOKUP(B200,'Chainsaws & Polesaws'!$F$17:$F$59,'Chainsaws & Polesaws'!$V$17:$V$59) -> 0 | I200: 20240301 | J200: 2409 | K200: =_xlfn.XLOOKUP(B200,'Chainsaws & Polesaws'!$F$17:$F$59,'Chainsaws & Polesaws'!$W$17:$W$59) -> 0 | L200: 20240402 | M200: 2414 | N200: =_xlfn.XLOOKUP(B200,'Chainsaws & Polesaws'!$F$17:$F$59,'Chainsaws & Polesaws'!$X$17:$X$59) -> 0 | O200: 20240501 | P200: 2418 | Q200: =_xlfn.XLOOKUP(B200,'Chainsaws & Polesaws'!$F$17:$F$59,'Chainsaws & Polesaws'!$Y$17:$Y$59) -> 0 | R200: 20240603 | S200: 2423 | T200: =_xlfn.XLOOKUP(B200,'Chainsaws & Polesaws'!$F$17:$F$59,'Chainsaws & Polesaws'!$Z$17:$Z$59) -> 0 | U200: =_xlfn.XLOOKUP(B200,'Chainsaws & Polesaws'!$F$17:$F$59,'Chainsaws & Polesaws'!$L$17:$L$59) -> 806.5395
... 234 more rows

Sheet Acc Master Data
C1: PSO JAN ACC | F1: PSO FEB ACC | I1: PSO MAR ACC | L1: PSO APR ACC | O1: PSO MAY ACC | R1: PSO JUN ACC
A2: Product Group | B2: Part Number | C2: Delivery date | D2: Delivery week | E2: Qty | F2: Delivery date2 | G2: Delivery week3 | H2: Qty4 | I2: Delivery date5 | J2: Delivery week6 | K2: Qty7 | L2: Delivery date8 | M2: Delivery week9 | N2: Qty10 | O2: Delivery date11 | P2: Delivery week12 | Q2: Qty13 | R2: Delivery date14 | S2: Delivery week15 | T2: Qty16 | U2: Price | AF2: BNPF
A3: Arborist Accessories | B3: 598035701 | C3: 20240103 | D3: 2401 | E3: =_xlfn.XLOOKUP(B3,'Arborist Accessories'!$F$13:$F$45,'Arborist Accessories'!$N$13:$N$45) -> 0 | F3: 20240201 | G3: 2405 | H3: =_xlfn.XLOOKUP(B3,'Arborist Accessories'!$F$13:$F$45,'Arborist Accessories'!$O$13:$O$45) -> 0 | I3: 20240301 | J3: 2409 | K3: =_xlfn.XLOOKUP(B3,'Arborist Accessories'!$F$13:$F$45,'Arborist Accessories'!$P$13:$P$45) -> 0 | L3: 20240402 | M3: 2414 | N3: =_xlfn.XLOOKUP(B3,'Arborist Accessories'!$F$13:$F$45,'Arborist Accessories'!$Q$13:$Q$45) -> 0 | O3: 20240501 | P3: 2418 | Q3: =_xlfn.XLOOKUP(B3,'Arborist Accessories'!$F$13:$F$45,'Arborist Accessories'!$R$13:$R$45) -> 0 | R3: 20240603 | S3: 2423 | T3: =_xlfn.XLOOKUP(B3,'Arborist Accessories'!$F$13:$F$45,'Arborist Accessories'!$S$13:$S$45) -> 0 | U3: =_xlfn.XLOOKUP(B3,'Arborist Accessories'!$F$13:$F$45,'Arborist Accessories'!$L$13:$L$45) -> 5.83
A4: Arborist Accessories | B4: 596936311 | C4: 20240103 | D4: 2401 | E4: =_xlfn.XLOOKUP(B4,'Arborist Accessories'!$F$13:$F$45,'Arborist Accessories'!$N$13:$N$45) -> 0 | F4: 20240201 | G4: 2405 | H4: =_xlfn.XLOOKUP(B4,'Arborist Accessories'!$F$13:$F$45,'Arborist Accessories'!$O$13:$O$45) -> 0 | I4: 20240301 | J4: 2409 | K4: =_xlfn.XLOOKUP(B4,'Arborist Accessories'!$F$13:$F$45,'Arborist Accessories'!$P$13:$P$45) -> 0 | L4: 20240402 | M4: 2414 | N4: =_xlfn.XLOOKUP(B4,'Arborist Accessories'!$F$13:$F$45,'Arborist Accessories'!$Q$13:$Q$45) -> 0 | O4: 20240501 | P4: 2418 | Q4: =_xlfn.XLOOKUP(B4,'Arborist Accessories'!$F$13:$F$45,'Arborist Accessories'!$R$13:$R$45) -> 0 | R4: 20240603 | S4: 2423 | T4: =_xlfn.XLOOKUP(B4,'Arborist Accessories'!$F$13:$F$45,'Arborist Accessories'!$S$13:$S$45) -> 0 | U4: =_xlfn.XLOOKUP(B4,'Arborist Accessories'!$F$13:$F$45,'Arborist Accessories'!$L$13:$L$45) -> 25.415
A5: Arborist Accessories | B5: 596936213 | C5: 20240103 | D5: 2401 | E5: =_xlfn.XLOOKUP(B5,'Arborist Accessories'!$F$13:$F$45,'Arborist Accessories'!$N$13:$N$45) -> 0 | F5: 20240201 | G5: 2405 | H5: =_xlfn.XLOOKUP(B5,'Arborist Accessories'!$F$13:$F$45,'Arborist Accessories'!$O$13:$O$45) -> 0 | I5: 20240301 | J5: 2409 | K5: =_xlfn.XLOOKUP(B5,'Arborist Accessories'!$F$13:$F$45,'Arborist Accessories'!$P$13:$P$45) -> 0 | L5: 20240402 | M5: 2414 | N5: =_xlfn.XLOOKUP(B5,'Arborist Accessories'!$F$13:$F$45,'Arborist Accessories'!$Q$13:$Q$45) -> 0 | O5: 20240501 | P5: 2418 | Q5: =_xlfn.XLOOKUP(B5,'Arborist Accessories'!$F$13:$F$45,'Arborist Accessories'!$R$13:$R$45) -> 0 | R5: 20240603 | S5: 2423 | T5: =_xlfn.XLOOKUP(B5,'Arborist Accessories'!$F$13:$F$45,'Arborist Accessories'!$S$13:$S$45) -> 0 | U5: =_xlfn.XLOOKUP(B5,'Arborist Accessories'!$F$13:$F$45,'Arborist Accessories'!$L$13:$L$45) -> 9.995
A6: Arborist Accessories | B6: 596936212 | C6: 20240103 | D6: 2401 | E6: =_xlfn.XLOOKUP(B6,'Arborist Accessories'!$F$13:$F$45,'Arborist Accessories'!$N$13:$N$45) -> 0 | F6: 20240201 | G6: 2405 | H6: =_xlfn.XLOOKUP(B6,'Arborist Accessories'!$F$13:$F$45,'Arborist Accessories'!$O$13:$O$45) -> 0 | I6: 20240301 | J6: 2409 | K6: =_xlfn.XLOOKUP(B6,'Arborist Accessories'!$F$13:$F$45,'Arborist Accessories'!$P$13:$P$45) -> 0 | L6: 20240402 | M6: 2414 | N6: =_xlfn.XLOOKUP(B6,'Arborist Accessories'!$F$13:$F$45,'Arborist Accessories'!$Q$13:$Q$45) -> 0 | O6: 20240501 | P6: 2418 | Q6: =_xlfn.XLOOKUP(B6,'Arborist Accessories'!$F$13:$F$45,'Arborist Accessories'!$R$13:$R$45) -> 0 | R6: 20240603 | S6: 2423 | T6: =_xlfn.XLOOKUP(B6,'Arborist Accessories'!$F$13:$F$45,'Arborist Accessories'!$S$13:$S$45) -> 0 | U6: =_xlfn.XLOOKUP(B6,'Arborist Accessories'!$F$13:$F$45,'Arborist Accessories'!$L$13:$L$45) -> 9.995
A7: Arborist Accessories | B7: 596936211 | C7: 20240103 | D7: 2401 | E7: =_xlfn.XLOOKUP(B7,'Arborist Accessories'!$F$13:$F$45,'Arborist Accessories'!$N$13:$N$45) -> 0 | F7: 20240201 | G7: 2405 | H7: =_xlfn.XLOOKUP(B7,'Arborist Accessories'!$F$13:$F$45,'Arborist Accessories'!$O$13:$O$45) -> 0 | I7: 20240301 | J7: 2409 | K7: =_xlfn.XLOOKUP(B7,'Arborist Accessories'!$F$13:$F$45,'Arborist Accessories'!$P$13:$P$45) -> 0 | L7: 20240402 | M7: 2414 | N7: =_xlfn.XLOOKUP(B7,'Arborist Accessories'!$F$13:$F$45,'Arborist Accessories'!$Q$13:$Q$45) -> 0 | O7: 20240501 | P7: 2418 | Q7: =_xlfn.XLOOKUP(B7,'Arborist Accessories'!$F$13:$F$45,'Arborist Accessories'!$R$13:$R$45) -> 0 | R7: 20240603 | S7: 2423 | T7: =_xlfn.XLOOKUP(B7,'Arborist Accessories'!$F$13:$F$45,'Arborist Accessories'!$S$13:$S$45) -> 0 | U7: =_xlfn.XLOOKUP(B7,'Arborist Accessories'!$F$13:$F$45,'Arborist Accessories'!$L$13:$L$45) -> 10.415
A8: Arborist Accessories | B8: 596936011 | C8: 20240103 | D8: 2401 | E8: =_xlfn.XLOOKUP(B8,'Arborist Accessories'!$F$13:$F$45,'Arborist Accessories'!$N$13:$N$45) -> 0 | F8: 20240201 | G8: 2405 | H8: =_xlfn.XLOOKUP(B8,'Arborist Accessories'!$F$13:$F$45,'Arborist Accessories'!$O$13:$O$45) -> 0 | I8: 20240301 | J8: 2409 | K8: =_xlfn.XLOOKUP(B8,'Arborist Accessories'!$F$13:$F$45,'Arborist Accessories'!$P$13:$P$45) -> 0 | L8: 20240402 | M8: 2414 | N8: =_xlfn.XLOOKUP(B8,'Arborist Accessories'!$F$13:$F$45,'Arborist Accessories'!$Q$13:$Q$45) -> 0 | O8: 20240501 | P8: 2418 | Q8: =_xlfn.XLOOKUP(B8,'Arborist Accessories'!$F$13:$F$45,'Arborist Accessories'!$R$13:$R$45) -> 0 | R8: 20240603 | S8: 2423 | T8: =_xlfn.XLOOKUP(B8,'Arborist Accessories'!$F$13:$F$45,'Arborist Accessories'!$S$13:$S$45) -> 0 | U8: =_xlfn.XLOOKUP(B8,'Arborist Accessories'!$F$13:$F$45,'Arborist Accessories'!$L$13:$L$45) -> 28.745
A9: Arborist Accessories | B9: 596935911 | C9: 20240103 | D9: 2401 | E9: =_xlfn.XLOOKUP(B9,'Arborist Accessories'!$F$13:$F$45,'Arborist Accessories'!$N$13:$N$45) -> 0 | F9: 20240201 | G9: 2405 | H9: =_xlfn.XLOOKUP(B9,'Arborist Accessories'!$F$13:$F$45,'Arborist Accessories'!$O$13:$O$45) -> 0 | I9: 20240301 | J9: 2409 | K9: =_xlfn.XLOOKUP(B9,'Arborist Accessories'!$F$13:$F$45,'Arborist Accessories'!$P$13:$P$45) -> 0 | L9: 20240402 | M9: 2414 | N9: =_xlfn.XLOOKUP(B9,'Arborist Accessories'!$F$13:$F$45,'Arborist Accessories'!$Q$13:$Q$45) -> 0 | O9: 20240501 | P9: 2418 | Q9: =_xlfn.XLOOKUP(B9,'Arborist Accessories'!$F$13:$F$45,'Arborist Accessories'!$R$13:$R$45) -> 0 | R9: 20240603 | S9: 2423 | T9: =_xlfn.XLOOKUP(B9,'Arborist Accessories'!$F$13:$F$45,'Arborist Accessories'!$S$13:$S$45) -> 0 | U9: =_xlfn.XLOOKUP(B9,'Arborist Accessories'!$F$13:$F$45,'Arborist Accessories'!$L$13:$L$45) -> 19.995
A10: Arborist Accessories | B10: 596935814 | C10: 20240103 | D10: 2401 | E10: =_xlfn.XLOOKUP(B10,'Arborist Accessories'!$F$13:$F$45,'Arborist Accessories'!$N$13:$N$45) -> 0 | F10: 20240201 | G10: 2405 | H10: =_xlfn.XLOOKUP(B10,'Arborist Accessories'!$F$13:$F$45,'Arborist Accessories'!$O$13:$O$45) -> 0 | I10: 20240301 | J10: 2409 | K10: =_xlfn.XLOOKUP(B10,'Arborist Accessories'!$F$13:$F$45,'Arborist Accessories'!$P$13:$P$45) -> 0 | L10: 20240402 | M10: 2414 | N10: =_xlfn.XLOOKUP(B10,'Arborist Accessories'!$F$13:$F$45,'Arborist Accessories'!$Q$13:$Q$45) -> 0 | O10: 20240501 | P10: 2418 | Q10: =_xlfn.XLOOKUP(B10,'Arborist Accessories'!$F$13:$F$45,'Arborist Accessories'!$R$13:$R$45) -> 0 | R10: 20240603 | S10: 2423 | T10: =_xlfn.XLOOKUP(B10,'Arborist Accessories'!$F$13:$F$45,'Arborist Accessories'!$S$13:$S$45) -> 0 | U10: =_xlfn.XLOOKUP(B10,'Arborist Accessories'!$F$13:$F$45,'Arborist Accessories'!$L$13:$L$45) -> 10.415
A11: Arborist Accessories | B11: 596935813 | C11: 20240103 | D11: 2401 | E11: =_xlfn.XLOOKUP(B11,'Arborist Accessories'!$F$13:$F$45,'Arborist Accessories'!$N$13:$N$45) -> 0 | F11: 20240201 | G11: 2405 | H11: =_xlfn.XLOOKUP(B11,'Arborist Accessories'!$F$13:$F$45,'Arborist Accessories'!$O$13:$O$45) -> 0 | I11: 20240301 | J11: 2409 | K11: =_xlfn.XLOOKUP(B11,'Arborist Accessories'!$F$13:$F$45,'Arborist Accessories'!$P$13:$P$45) -> 0 | L11: 20240402 | M11: 2414 | N11: =_xlfn.XLOOKUP(B11,'Arborist Accessories'!$F$13:$F$45,'Arborist Accessories'!$Q$13:$Q$45) -> 0 | O11: 20240501 | P11: 2418 | Q11: =_xlfn.XLOOKUP(B11,'Arborist Accessories'!$F$13:$F$45,'Arborist Accessories'!$R$13:$R$45) -> 0 | R11: 20240603 | S11: 2423 | T11: =_xlfn.XLOOKUP(B11,'Arborist Accessories'!$F$13:$F$45,'Arborist Accessories'!$S$13:$S$45) -> 0 | U11: =_xlfn.XLOOKUP(B11,'Arborist Accessories'!$F$13:$F$45,'Arborist Accessories'!$L$13:$L$45) -> 10.415
A12: Arborist Accessories | B12: 596935812 | C12: 20240103 | D12: 2401 | E12: =_xlfn.XLOOKUP(B12,'Arborist Accessories'!$F$13:$F$45,'Arborist Accessories'!$N$13:$N$45) -> 0 | F12: 20240201 | G12: 2405 | H12: =_xlfn.XLOOKUP(B12,'Arborist Accessories'!$F$13:$F$45,'Arborist Accessories'!$O$13:$O$45) -> 0 | I12: 20240301 | J12: 2409 | K12: =_xlfn.XLOOKUP(B12,'Arborist Accessories'!$F$13:$F$45,'Arborist Accessories'!$P$13:$P$45) -> 0 | L12: 20240402 | M12: 2414 | N12: =_xlfn.XLOOKUP(B12,'Arborist Accessories'!$F$13:$F$45,'Arborist Accessories'!$Q$13:$Q$45) -> 0 | O12: 20240501 | P12: 2418 | Q12: =_xlfn.XLOOKUP(B12,'Arborist Accessories'!$F$13:$F$45,'Arborist Accessories'!$R$13:$R$45) -> 0 | R12: 20240603 | S12: 2423 | T12: =_xlfn.XLOOKUP(B12,'Arborist Accessories'!$F$13:$F$45,'Arborist Accessories'!$S$13:$S$45) -> 0 | U12: =_xlfn.XLOOKUP(B12,'Arborist Accessories'!$F$13:$F$45,'Arborist Accessories'!$L$13:$L$45) -> 10.415
A13: Arborist Accessories | B13: 596935811 | C13: 20240103 | D13: 2401 | E13: =_xlfn.XLOOKUP(B13,'Arborist Accessories'!$F$13:$F$45,'Arborist Accessories'!$N$13:$N$45) -> 0 | F13: 20240201 | G13: 2405 | H13: =_xlfn.XLOOKUP(B13,'Arborist Accessories'!$F$13:$F$45,'Arborist Accessories'!$O$13:$O$45) -> 0 | I13: 20240301 | J13: 2409 | K13: =_xlfn.XLOOKUP(B13,'Arborist Accessories'!$F$13:$F$45,'Arborist Accessories'!$P$13:$P$45) -> 0 | L13: 20240402 | M13: 2414 | N13: =_xlfn.XLOOKUP(B13,'Arborist Accessories'!$F$13:$F$45,'Arborist Accessories'!$Q$13:$Q$45) -> 0 | O13: 20240501 | P13: 2418 | Q13: =_xlfn.XLOOKUP(B13,'Arborist Accessories'!$F$13:$F$45,'Arborist Accessories'!$R$13:$R$45) -> 0 | R13: 20240603 | S13: 2423 | T13: =_xlfn.XLOOKUP(B13,'Arborist Accessories'!$F$13:$F$45,'Arborist Accessories'!$S$13:$S$45) -> 0 | U13: =_xlfn.XLOOKUP(B13,'Arborist Accessories'!$F$13:$F$45,'Arborist Accessories'!$L$13:$L$45) -> 10.415
A14: Arborist Accessories | B14: 546027301 | C14: 20240103 | D14: 2401 | E14: =_xlfn.XLOOKUP(B14,'Arborist Accessories'!$F$13:$F$45,'Arborist Accessories'!$N$13:$N$45) -> 0 | F14: 20240201 | G14: 2405 | H14: =_xlfn.XLOOKUP(B14,'Arborist Accessories'!$F$13:$F$45,'Arborist Accessories'!$O$13:$O$45) -> 0 | I14: 20240301 | J14: 2409 | K14: =_xlfn.XLOOKUP(B14,'Arborist Accessories'!$F$13:$F$45,'Arborist Accessories'!$P$13:$P$45) -> 0 | L14: 20240402 | M14: 2414 | N14: =_xlfn.XLOOKUP(B14,'Arborist Accessories'!$F$13:$F$45,'Arborist Accessories'!$Q$13:$Q$45) -> 0 | O14: 20240501 | P14: 2418 | Q14: =_xlfn.XLOOKUP(B14,'Arborist Accessories'!$F$13:$F$45,'Arborist Accessories'!$R$13:$R$45) -> 0 | R14: 20240603 | S14: 2423 | T14: =_xlfn.XLOOKUP(B14,'Arborist Accessories'!$F$13:$F$45,'Arborist Accessories'!$S$13:$S$45) -> 0 | U14: =_xlfn.XLOOKUP(B14,'Arborist Accessories'!$F$13:$F$45,'Arborist Accessories'!$L$13:$L$45) -> 22.915
A15: Arborist Accessories | B15: 536176301 | C15: 20240103 | D15: 2401 | E15: =_xlfn.XLOOKUP(B15,'Arborist Accessories'!$F$13:$F$45,'Arborist Accessories'!$N$13:$N$45) -> 0 | F15: 20240201 | G15: 2405 | H15: =_xlfn.XLOOKUP(B15,'Arborist Accessories'!$F$13:$F$45,'Arborist Accessories'!$O$13:$O$45) -> 0 | I15: 20240301 | J15: 2409 | K15: =_xlfn.XLOOKUP(B15,'Arborist Accessories'!$F$13:$F$45,'Arborist Accessories'!$P$13:$P$45) -> 0 | L15: 20240402 | M15: 2414 | N15: =_xlfn.XLOOKUP(B15,'Arborist Accessories'!$F$13:$F$45,'Arborist Accessories'!$Q$13:$Q$45) -> 0 | O15: 20240501 | P15: 2418 | Q15: =_xlfn.XLOOKUP(B15,'Arborist Accessories'!$F$13:$F$45,'Arborist Accessories'!$R$13:$R$45) -> 0 | R15: 20240603 | S15: 2423 | T15: =_xlfn.XLOOKUP(B15,'Arborist Accessories'!$F$13:$F$45,'Arborist Accessories'!$S$13:$S$45) -> 0 | U15: =_xlfn.XLOOKUP(B15,'Arborist Accessories'!$F$13:$F$45,'Arborist Accessories'!$L$13:$L$45) -> 14.58
A16: Arborist Accessories | B16: 534101801 | C16: 20240103 | D16: 2401 | E16: =_xlfn.XLOOKUP(B16,'Arborist Accessories'!$F$13:$F$45,'Arborist Accessories'!$N$13:$N$45) -> 0 | F16: 20240201 | G16: 2405 | H16: =_xlfn.XLOOKUP(B16,'Arborist Accessories'!$F$13:$F$45,'Arborist Accessories'!$O$13:$O$45) -> 0 | I16: 20240301 | J16: 2409 | K16: =_xlfn.XLOOKUP(B16,'Arborist Accessories'!$F$13:$F$45,'Arborist Accessories'!$P$13:$P$45) -> 0 | L16: 20240402 | M16: 2414 | N16: =_xlfn.XLOOKUP(B16,'Arborist Accessories'!$F$13:$F$45,'Arborist Accessories'!$Q$13:$Q$45) -> 0 | O16: 20240501 | P16: 2418 | Q16: =_xlfn.XLOOKUP(B16,'Arborist Accessories'!$F$13:$F$45,'Arborist Accessories'!$R$13:$R$45) -> 0 | R16: 20240603 | S16: 2423 | T16: =_xlfn.XLOOKUP(B16,'Arborist Accessories'!$F$13:$F$45,'Arborist Accessories'!$S$13:$S$45) -> 0 | U16: =_xlfn.XLOOKUP(B16,'Arborist Accessories'!$F$13:$F$45,'Arborist Accessories'!$L$13:$L$45) -> 103.75
A17: Arborist Accessories | B17: 534100801 | C17: 20240103 | D17: 2401 | E17: =_xlfn.XLOOKUP(B17,'Arborist Accessories'!$F$13:$F$45,'Arborist Accessories'!$N$13:$N$45) -> 0 | F17: 20240201 | G17: 2405 | H17: =_xlfn.XLOOKUP(B17,'Arborist Accessories'!$F$13:$F$45,'Arborist Accessories'!$O$13:$O$45) -> 0 | I17: 20240301 | J17: 2409 | K17: =_xlfn.XLOOKUP(B17,'Arborist Accessories'!$F$13:$F$45,'Arborist Accessories'!$P$13:$P$45) -> 0 | L17: 20240402 | M17: 2414 | N17: =_xlfn.XLOOKUP(B17,'Arborist Accessories'!$F$13:$F$45,'Arborist Accessories'!$Q$13:$Q$45) -> 0 | O17: 20240501 | P17: 2418 | Q17: =_xlfn.XLOOKUP(B17,'Arborist Accessories'!$F$13:$F$45,'Arborist Accessories'!$R$13:$R$45) -> 0 | R17: 20240603 | S17: 2423 | T17: =_xlfn.XLOOKUP(B17,'Arborist Accessories'!$F$13:$F$45,'Arborist Accessories'!$S$13:$S$45) -> 0 | U17: =_xlfn.XLOOKUP(B17,'Arborist Accessories'!$F$13:$F$45,'Arborist Accessories'!$L$13:$L$45) -> 27.915
A18: Arborist Accessories | B18: 534099902 | C18: 20240103 | D18: 2401 | E18: =_xlfn.XLOOKUP(B18,'Arborist Accessories'!$F$13:$F$45,'Arborist Accessories'!$N$13:$N$45) -> 0 | F18: 20240201 | G18: 2405 | H18: =_xlfn.XLOOKUP(B18,'Arborist Accessories'!$F$13:$F$45,'Arborist Accessories'!$O$13:$O$45) -> 0 | I18: 20240301 | J18: 2409 | K18: =_xlfn.XLOOKUP(B18,'Arborist Accessories'!$F$13:$F$45,'Arborist Accessories'!$P$13:$P$45) -> 0 | L18: 20240402 | M18: 2414 | N18: =_xlfn.XLOOKUP(B18,'Arborist Accessories'!$F$13:$F$45,'Arborist Accessories'!$Q$13:$Q$45) -> 0 | O18: 20240501 | P18: 2418 | Q18: =_xlfn.XLOOKUP(B18,'Arborist Accessories'!$F$13:$F$45,'Arborist Accessories'!$R$13:$R$45) -> 0 | R18: 20240603 | S18: 2423 | T18: =_xlfn.XLOOKUP(B18,'Arborist Accessories'!$F$13:$F$45,'Arborist Accessories'!$S$13:$S$45) -> 0 | U18: =_xlfn.XLOOKUP(B18,'Arborist Accessories'!$F$13:$F$45,'Arborist Accessories'!$L$13:$L$45) -> 12.495
A19: Arborist Accessories | B19: 534099901 | C19: 20240103 | D19: 2401 | E19: =_xlfn.XLOOKUP(B19,'Arborist Accessories'!$F$13:$F$45,'Arborist Accessories'!$N$13:$N$45) -> 0 | F19: 20240201 | G19: 2405 | H19: =_xlfn.XLOOKUP(B19,'Arborist Accessories'!$F$13:$F$45,'Arborist Accessories'!$O$13:$O$45) -> 0 | I19: 20240301 | J19: 2409 | K19: =_xlfn.XLOOKUP(B19,'Arborist Accessories'!$F$13:$F$45,'Arborist Accessories'!$P$13:$P$45) -> 0 | L19: 20240402 | M19: 2414 | N19: =_xlfn.XLOOKUP(B19,'Arborist Accessories'!$F$13:$F$45,'Arborist Accessories'!$Q$13:$Q$45) -> 0 | O19: 20240501 | P19: 2418 | Q19: =_xlfn.XLOOKUP(B19,'Arborist Accessories'!$F$13:$F$45,'Arborist Accessories'!$R$13:$R$45) -> 0 | R19: 20240603 | S19: 2423 | T19: =_xlfn.XLOOKUP(B19,'Arborist Accessories'!$F$13:$F$45,'Arborist Accessories'!$S$13:$S$45) -> 0 | U19: =_xlfn.XLOOKUP(B19,'Arborist Accessories'!$F$13:$F$45,'Arborist Accessories'!$L$13:$L$45) -> 12.495
A20: Arborist Accessories | B20: 534099802 | C20: 20240103 | D20: 2401 | E20: =_xlfn.XLOOKUP(B20,'Arborist Accessories'!$F$13:$F$45,'Arborist Accessories'!$N$13:$N$45) -> 0 | F20: 20240201 | G20: 2405 | H20: =_xlfn.XLOOKUP(B20,'Arborist Accessories'!$F$13:$F$45,'Arborist Accessories'!$O$13:$O$45) -> 0 | I20: 20240301 | J20: 2409 | K20: =_xlfn.XLOOKUP(B20,'Arborist Accessories'!$F$13:$F$45,'Arborist Accessories'!$P$13:$P$45) -> 0 | L20: 20240402 | M20: 2414 | N20: =_xlfn.XLOOKUP(B20,'Arborist Accessories'!$F$13:$F$45,'Arborist Accessories'!$Q$13:$Q$45) -> 0 | O20: 20240501 | P20: 2418 | Q20: =_xlfn.XLOOKUP(B20,'Arborist Accessories'!$F$13:$F$45,'Arborist Accessories'!$R$13:$R$45) -> 0 | R20: 20240603 | S20: 2423 | T20: =_xlfn.XLOOKUP(B20,'Arborist Accessories'!$F$13:$F$45,'Arborist Accessories'!$S$13:$S$45) -> 0 | U20: =_xlfn.XLOOKUP(B20,'Arborist Accessories'!$F$13:$F$45,'Arborist Accessories'!$L$13:$L$45) -> 116.25
A21: Arborist Accessories | B21: 534099801 | C21: 20240103 | D21: 2401 | E21: =_xlfn.XLOOKUP(B21,'Arborist Accessories'!$F$13:$F$45,'Arborist Accessories'!$N$13:$N$45) -> 0 | F21: 20240201 | G21: 2405 | H21: =_xlfn.XLOOKUP(B21,'Arborist Accessories'!$F$13:$F$45,'Arborist Accessories'!$O$13:$O$45) -> 0 | I21: 20240301 | J21: 2409 | K21: =_xlfn.XLOOKUP(B21,'Arborist Accessories'!$F$13:$F$45,'Arborist Accessories'!$P$13:$P$45) -> 0 | L21: 20240402 | M21: 2414 | N21: =_xlfn.XLOOKUP(B21,'Arborist Accessories'!$F$13:$F$45,'Arborist Accessories'!$Q$13:$Q$45) -> 0 | O21: 20240501 | P21: 2418 | Q21: =_xlfn.XLOOKUP(B21,'Arborist Accessories'!$F$13:$F$45,'Arborist Accessories'!$R$13:$R$45) -> 0 | R21: 20240603 | S21: 2423 | T21: =_xlfn.XLOOKUP(B21,'Arborist Accessories'!$F$13:$F$45,'Arborist Accessories'!$S$13:$S$45) -> 0 | U21: =_xlfn.XLOOKUP(B21,'Arborist Accessories'!$F$13:$F$45,'Arborist Accessories'!$L$13:$L$45) -> 112.085
A22: Arborist Accessories | B22: 534099701 | C22: 20240103 | D22: 2401 | E22: =_xlfn.XLOOKUP(B22,'Arborist Accessories'!$F$13:$F$45,'Arborist Accessories'!$N$13:$N$45) -> 0 | F22: 20240201 | G22: 2405 | H22: =_xlfn.XLOOKUP(B22,'Arborist Accessories'!$F$13:$F$45,'Arborist Accessories'!$O$13:$O$45) -> 0 | I22: 20240301 | J22: 2409 | K22: =_xlfn.XLOOKUP(B22,'Arborist Accessories'!$F$13:$F$45,'Arborist Accessories'!$P$13:$P$45) -> 0 | L22: 20240402 | M22: 2414 | N22: =_xlfn.XLOOKUP(B22,'Arborist Accessories'!$F$13:$F$45,'Arborist Accessories'!$Q$13:$Q$45) -> 0 | O22: 20240501 | P22: 2418 | Q22: =_xlfn.XLOOKUP(B22,'Arborist Accessories'!$F$13:$F$45,'Arborist Accessories'!$R$13:$R$45) -> 0 | R22: 20240603 | S22: 2423 | T22: =_xlfn.XLOOKUP(B22,'Arborist Accessories'!$F$13:$F$45,'Arborist Accessories'!$S$13:$S$45) -> 0 | U22: =_xlfn.XLOOKUP(B22,'Arborist Accessories'!$F$13:$F$45,'Arborist Accessories'!$L$13:$L$45) -> 28.33
A23: Arborist Accessories | B23: 534099201 | C23: 20240103 | D23: 2401 | E23: =_xlfn.XLOOKUP(B23,'Arborist Accessories'!$F$13:$F$45,'Arborist Accessories'!$N$13:$N$45) -> 0 | F23: 20240201 | G23: 2405 | H23: =_xlfn.XLOOKUP(B23,'Arborist Accessories'!$F$13:$F$45,'Arborist Accessories'!$O$13:$O$45) -> 0 | I23: 20240301 | J23: 2409 | K23: =_xlfn.XLOOKUP(B23,'Arborist Accessories'!$F$13:$F$45,'Arborist Accessories'!$P$13:$P$45) -> 0 | L23: 20240402 | M23: 2414 | N23: =_xlfn.XLOOKUP(B23,'Arborist Accessories'!$F$13:$F$45,'Arborist Accessories'!$Q$13:$Q$45) -> 0 | O23: 20240501 | P23: 2418 | Q23: =_xlfn.XLOOKUP(B23,'Arborist Accessories'!$F$13:$F$45,'Arborist Accessories'!$R$13:$R$45) -> 0 | R23: 20240603 | S23: 2423 | T23: =_xlfn.XLOOKUP(B23,'Arborist Accessories'!$F$13:$F$45,'Arborist Accessories'!$S$13:$S$45) -> 0 | U23: =_xlfn.XLOOKUP(B23,'Arborist Accessories'!$F$13:$F$45,'Arborist Accessories'!$L$13:$L$45) -> 45.83
A24: Arborist Accessories | B24: 534098901 | C24: 20240103 | D24: 2401 | E24: =_xlfn.XLOOKUP(B24,'Arborist Accessories'!$F$13:$F$45,'Arborist Accessories'!$N$13:$N$45) -> 0 | F24: 20240201 | G24: 2405 | H24: =_xlfn.XLOOKUP(B24,'Arborist Accessories'!$F$13:$F$45,'Arborist Accessories'!$O$13:$O$45) -> 0 | I24: 20240301 | J24: 2409 | K24: =_xlfn.XLOOKUP(B24,'Arborist Accessories'!$F$13:$F$45,'Arborist Accessories'!$P$13:$P$45) -> 0 | L24: 20240402 | M24: 2414 | N24: =_xlfn.XLOOKUP(B24,'Arborist Accessories'!$F$13:$F$45,'Arborist Accessories'!$Q$13:$Q$45) -> 0 | O24: 20240501 | P24: 2418 | Q24: =_xlfn.XLOOKUP(B24,'Arborist Accessories'!$F$13:$F$45,'Arborist Accessories'!$R$13:$R$45) -> 0 | R24: 20240603 | S24: 2423 | T24: =_xlfn.XLOOKUP(B24,'Arborist Accessories'!$F$13:$F$45,'Arborist Accessories'!$S$13:$S$45) -> 0 | U24: =_xlfn.XLOOKUP(B24,'Arborist Accessories'!$F$13:$F$45,'Arborist Accessories'!$L$13:$L$45) -> 78.75
A25: Arborist Accessories | B25: 534098812 | C25: 20240103 | D25: 2401 | E25: =_xlfn.XLOOKUP(B25,'Arborist Accessories'!$F$13:$F$45,'Arborist Accessories'!$N$13:$N$45) -> 0 | F25: 20240201 | G25: 2405 | H25: =_xlfn.XLOOKUP(B25,'Arborist Accessories'!$F$13:$F$45,'Arborist Accessories'!$O$13:$O$45) -> 0 | I25: 20240301 | J25: 2409 | K25: =_xlfn.XLOOKUP(B25,'Arborist Accessories'!$F$13:$F$45,'Arborist Accessories'!$P$13:$P$45) -> 0 | L25: 20240402 | M25: 2414 | N25: =_xlfn.XLOOKUP(B25,'Arborist Accessories'!$F$13:$F$45,'Arborist Accessories'!$Q$13:$Q$45) -> 0 | O25: 20240501 | P25: 2418 | Q25: =_xlfn.XLOOKUP(B25,'Arborist Accessories'!$F$13:$F$45,'Arborist Accessories'!$R$13:$R$45) -> 0 | R25: 20240603 | S25: 2423 | T25: =_xlfn.XLOOKUP(B25,'Arborist Accessories'!$F$13:$F$45,'Arborist Accessories'!$S$13:$S$45) -> 0 | U25: =_xlfn.XLOOKUP(B25,'Arborist Accessories'!$F$13:$F$45,'Arborist Accessories'!$L$13:$L$45) -> 112.085
A26: Arborist Accessories | B26: 534098811 | C26: 20240103 | D26: 2401 | E26: =_xlfn.XLOOKUP(B26,'Arborist Accessories'!$F$13:$F$45,'Arborist Accessories'!$N$13:$N$45) -> 0 | F26: 20240201 | G26: 2405 | H26: =_xlfn.XLOOKUP(B26,'Arborist Accessories'!$F$13:$F$45,'Arborist Accessories'!$O$13:$O$45) -> 0 | I26: 20240301 | J26: 2409 | K26: =_xlfn.XLOOKUP(B26,'Arborist Accessories'!$F$13:$F$45,'Arborist Accessories'!$P$13:$P$45) -> 0 | L26: 20240402 | M26: 2414 | N26: =_xlfn.XLOOKUP(B26,'Arborist Accessories'!$F$13:$F$45,'Arborist Accessories'!$Q$13:$Q$45) -> 0 | O26: 20240501 | P26: 2418 | Q26: =_xlfn.XLOOKUP(B26,'Arborist Accessories'!$F$13:$F$45,'Arborist Accessories'!$R$13:$R$45) -> 0 | R26: 20240603 | S26: 2423 | T26: =_xlfn.XLOOKUP(B26,'Arborist Accessories'!$F$13:$F$45,'Arborist Accessories'!$S$13:$S$45) -> 0 | U26: =_xlfn.XLOOKUP(B26,'Arborist Accessories'!$F$13:$F$45,'Arborist Accessories'!$L$13:$L$45) -> 82.915
A27: Arborist Accessories | B27: 534098802 | C27: 20240103 | D27: 2401 | E27: =_xlfn.XLOOKUP(B27,'Arborist Accessories'!$F$13:$F$45,'Arborist Accessories'!$N$13:$N$45) -> 0 | F27: 20240201 | G27: 2405 | H27: =_xlfn.XLOOKUP(B27,'Arborist Accessories'!$F$13:$F$45,'Arborist Accessories'!$O$13:$O$45) -> 0 | I27: 20240301 | J27: 2409 | K27: =_xlfn.XLOOKUP(B27,'Arborist Accessories'!$F$13:$F$45,'Arborist Accessories'!$P$13:$P$45) -> 0 | L27: 20240402 | M27: 2414 | N27: =_xlfn.XLOOKUP(B27,'Arborist Accessories'!$F$13:$F$45,'Arborist Accessories'!$Q$13:$Q$45) -> 0 | O27: 20240501 | P27: 2418 | Q27: =_xlfn.XLOOKUP(B27,'Arborist Accessories'!$F$13:$F$45,'Arborist Accessories'!$R$13:$R$45) -> 0 | R27: 20240603 | S27: 2423 | T27: =_xlfn.XLOOKUP(B27,'Arborist Accessories'!$F$13:$F$45,'Arborist Accessories'!$S$13:$S$45) -> 0 | U27: =_xlfn.XLOOKUP(B27,'Arborist Accessories'!$F$13:$F$45,'Arborist Accessories'!$L$13:$L$45) -> 112.085
A28: Arborist Accessories | B28: 534098801 | C28: 20240103 | D28: 2401 | E28: =_xlfn.XLOOKUP(B28,'Arborist Accessories'!$F$13:$F$45,'Arborist Accessories'!$N$13:$N$45) -> 0 | F28: 20240201 | G28: 2405 | H28: =_xlfn.XLOOKUP(B28,'Arborist Accessories'!$F$13:$F$45,'Arborist Accessories'!$O$13:$O$45) -> 0 | I28: 20240301 | J28: 2409 | K28: =_xlfn.XLOOKUP(B28,'Arborist Accessories'!$F$13:$F$45,'Arborist Accessories'!$P$13:$P$45) -> 0 | L28: 20240402 | M28: 2414 | N28: =_xlfn.XLOOKUP(B28,'Arborist Accessories'!$F$13:$F$45,'Arborist Accessories'!$Q$13:$Q$45) -> 0 | O28: 20240501 | P28: 2418 | Q28: =_xlfn.XLOOKUP(B28,'Arborist Accessories'!$F$13:$F$45,'Arborist Accessories'!$R$13:$R$45) -> 0 | R28: 20240603 | S28: 2423 | T28: =_xlfn.XLOOKUP(B28,'Arborist Accessories'!$F$13:$F$45,'Arborist Accessories'!$S$13:$S$45) -> 0 | U28: =_xlfn.XLOOKUP(B28,'Arborist Accessories'!$F$13:$F$45,'Arborist Accessories'!$L$13:$L$45) -> 82.915
A29: Arborist Accessories | B29: 534098712 | C29: 20240103 | D29: 2401 | E29: =_xlfn.XLOOKUP(B29,'Arborist Accessories'!$F$13:$F$45,'Arborist Accessories'!$N$13:$N$45) -> 0 | F29: 20240201 | G29: 2405 | H29: =_xlfn.XLOOKUP(B29,'Arborist Accessories'!$F$13:$F$45,'Arborist Accessories'!$O$13:$O$45) -> 0 | I29: 20240301 | J29: 2409 | K29: =_xlfn.XLOOKUP(B29,'Arborist Accessories'!$F$13:$F$45,'Arborist Accessories'!$P$13:$P$45) -> 0 | L29: 20240402 | M29: 2414 | N29: =_xlfn.XLOOKUP(B29,'Arborist Accessories'!$F$13:$F$45,'Arborist Accessories'!$Q$13:$Q$45) -> 0 | O29: 20240501 | P29: 2418 | Q29: =_xlfn.XLOOKUP(B29,'Arborist Accessories'!$F$13:$F$45,'Arborist Accessories'!$R$13:$R$45) -> 0 | R29: 20240603 | S29: 2423 | T29: =_xlfn.XLOOKUP(B29,'Arborist Accessories'!$F$13:$F$45,'Arborist Accessories'!$S$13:$S$45) -> 0 | U29: =_xlfn.XLOOKUP(B29,'Arborist Accessories'!$F$13:$F$45,'Arborist Accessories'!$L$13:$L$45) -> 157.915
A30: Arborist Accessories | B30: 534098711 | C30: 20240103 | D30: 2401 | E30: =_xlfn.XLOOKUP(B30,'Arborist Accessories'!$F$13:$F$45,'Arborist Accessories'!$N$13:$N$45) -> 0 | F30: 20240201 | G30: 2405 | H30: =_xlfn.XLOOKUP(B30,'Arborist Accessories'!$F$13:$F$45,'Arborist Accessories'!$O$13:$O$45) -> 0 | I30: 20240301 | J30: 2409 | K30: =_xlfn.XLOOKUP(B30,'Arborist Accessories'!$F$13:$F$45,'Arborist Accessories'!$P$13:$P$45) -> 0 | L30: 20240402 | M30: 2414 | N30: =_xlfn.XLOOKUP(B30,'Arborist Accessories'!$F$13:$F$45,'Arborist Accessories'!$Q$13:$Q$45) -> 0 | O30: 20240501 | P30: 2418 | Q30: =_xlfn.XLOOKUP(B30,'Arborist Accessories'!$F$13:$F$45,'Arborist Accessories'!$R$13:$R$45) -> 0 | R30: 20240603 | S30: 2423 | T30: =_xlfn.XLOOKUP(B30,'Arborist Accessories'!$F$13:$F$45,'Arborist Accessories'!$S$13:$S$45) -> 0 | U30: =_xlfn.XLOOKUP(B30,'Arborist Accessories'!$F$13:$F$45,'Arborist Accessories'!$L$13:$L$45) -> 116.25
A31: Arborist Accessories | B31: 534098702 | C31: 20240103 | D31: 2401 | E31: =_xlfn.XLOOKUP(B31,'Arborist Accessories'!$F$13:$F$45,'Arborist Accessories'!$N$13:$N$45) -> 0 | F31: 20240201 | G31: 2405 | H31: =_xlfn.XLOOKUP(B31,'Arborist Accessories'!$F$13:$F$45,'Arborist Accessories'!$O$13:$O$45) -> 0 | I31: 20240301 | J31: 2409 | K31: =_xlfn.XLOOKUP(B31,'Arborist Accessories'!$F$13:$F$45,'Arborist Accessories'!$P$13:$P$45) -> 0 | L31: 20240402 | M31: 2414 | N31: =_xlfn.XLOOKUP(B31,'Arborist Accessories'!$F$13:$F$45,'Arborist Accessories'!$Q$13:$Q$45) -> 0 | O31: 20240501 | P31: 2418 | Q31: =_xlfn.XLOOKUP(B31,'Arborist Accessories'!$F$13:$F$45,'Arborist Accessories'!$R$13:$R$45) -> 0 | R31: 20240603 | S31: 2423 | T31: =_xlfn.XLOOKUP(B31,'Arborist Accessories'!$F$13:$F$45,'Arborist Accessories'!$S$13:$S$45) -> 0 | U31: =_xlfn.XLOOKUP(B31,'Arborist Accessories'!$F$13:$F$45,'Arborist Accessories'!$L$13:$L$45) -> 157.915
A32: Arborist Accessories | B32: 534098701 | C32: 20240103 | D32: 2401 | E32: =_xlfn.XLOOKUP(B32,'Arborist Accessories'!$F$13:$F$45,'Arborist Accessories'!$N$13:$N$45) -> 0 | F32: 20240201 | G32: 2405 | H32: =_xlfn.XLOOKUP(B32,'Arborist Accessories'!$F$13:$F$45,'Arborist Accessories'!$O$13:$O$45) -> 0 | I32: 20240301 | J32: 2409 | K32: =_xlfn.XLOOKUP(B32,'Arborist Accessories'!$F$13:$F$45,'Arborist Accessories'!$P$13:$P$45) -> 0 | L32: 20240402 | M32: 2414 | N32: =_xlfn.XLOOKUP(B32,'Arborist Accessories'!$F$13:$F$45,'Arborist Accessories'!$Q$13:$Q$45) -> 0 | O32: 20240501 | P32: 2418 | Q32: =_xlfn.XLOOKUP(B32,'Arborist Accessories'!$F$13:$F$45,'Arborist Accessories'!$R$13:$R$45) -> 0 | R32: 20240603 | S32: 2423 | T32: =_xlfn.XLOOKUP(B32,'Arborist Accessories'!$F$13:$F$45,'Arborist Accessories'!$S$13:$S$45) -> 0 | U32: =_xlfn.XLOOKUP(B32,'Arborist Accessories'!$F$13:$F$45,'Arborist Accessories'!$L$13:$L$45) -> 116.25
A33: Arborist Accessories | B33: 534098601 | C33: 20240103 | D33: 2401 | E33: =_xlfn.XLOOKUP(B33,'Arborist Accessories'!$F$13:$F$45,'Arborist Accessories'!$N$13:$N$45) -> 0 | F33: 20240201 | G33: 2405 | H33: =_xlfn.XLOOKUP(B33,'Arborist Accessories'!$F$13:$F$45,'Arborist Accessories'!$O$13:$O$45) -> 0 | I33: 20240301 | J33: 2409 | K33: =_xlfn.XLOOKUP(B33,'Arborist Accessories'!$F$13:$F$45,'Arborist Accessories'!$P$13:$P$45) -> 0 | L33: 20240402 | M33: 2414 | N33: =_xlfn.XLOOKUP(B33,'Arborist Accessories'!$F$13:$F$45,'Arborist Accessories'!$Q$13:$Q$45) -> 0 | O33: 20240501 | P33: 2418 | Q33: =_xlfn.XLOOKUP(B33,'Arborist Accessories'!$F$13:$F$45,'Arborist Accessories'!$R$13:$R$45) -> 0 | R33: 20240603 | S33: 2423 | T33: =_xlfn.XLOOKUP(B33,'Arborist Accessories'!$F$13:$F$45,'Arborist Accessories'!$S$13:$S$45) -> 0 | U33: =_xlfn.XLOOKUP(B33,'Arborist Accessories'!$F$13:$F$45,'Arborist Accessories'!$L$13:$L$45) -> 249.585
A34: Aspire Accessory | B34: 536655701 | C34: 20240103 | D34: 2401 | E34: =_xlfn.XLOOKUP(B34,Aspire!$F$28:$F$30,Aspire!U28:U30) -> 0 | F34: 20240201 | G34: 2405 | H34: =_xlfn.XLOOKUP(B34,Aspire!$F$28:$F$30,Aspire!V28:V30) -> 0 | I34: 20240301 | J34: 2409 | K34: =_xlfn.XLOOKUP(B34,Aspire!$F$28:$F$30,Aspire!W28:W30) -> 0 | L34: 20240402 | M34: 2414 | N34: =_xlfn.XLOOKUP(B34,Aspire!$F$28:$F$30,Aspire!X28:X30) -> 0 | O34: 20240501 | P34: 2418 | Q34: =_xlfn.XLOOKUP(B34,Aspire!$F$28:$F$30,Aspire!Y28:Y30) -> 0 | R34: 20240603 | S34: 2423 | T34: =_xlfn.XLOOKUP(B34,Aspire!$F$28:$F$30,Aspire!Z28:Z30) -> 0 | U34: =_xlfn.XLOOKUP(B34,Aspire!$F$28:$F$30,Aspire!$L$28:$L$30) -> 15.3318
A35: Automower Accessory | B35: 599801701 | C35: 20240103 | D35: 2401 | E35: =_xlfn.XLOOKUP(B35,'Automower Accessories'!$F$13:$F$50,'Automower Accessories'!$N$13:$N$50) -> 0 | F35: 20240201 | G35: 2405 | H35: =_xlfn.XLOOKUP(B35,'Automower Accessories'!$F$13:$F$50,'Automower Accessories'!$O$13:$O$50) -> 0 | I35: 20240301 | J35: 2409 | K35: =_xlfn.XLOOKUP(B35,'Automower Accessories'!$F$13:$F$50,'Automower Accessories'!$P$13:$P$50) -> 0 | L35: 20240402 | M35: 2414 | N35: =_xlfn.XLOOKUP(B35,'Automower Accessories'!$F$13:$F$50,'Automower Accessories'!$Q$13:$Q$50) -> 0 | O35: 20240501 | P35: 2418 | Q35: =_xlfn.XLOOKUP(B35,'Automower Accessories'!$F$13:$F$50,'Automower Accessories'!$R$13:$R$50) -> 0 | R35: 20240603 | S35: 2423 | T35: =_xlfn.XLOOKUP(B35,'Automower Accessories'!$F$13:$F$50,'Automower Accessories'!$S$13:$S$50) -> 0 | U35: =_xlfn.XLOOKUP(B35,'Automower Accessories'!$F$13:$F$50,'Automower Accessories'!$L$13:$L$50) -> 5.3707
A36: Automower Accessory | B36: 598896001 | C36: 20240103 | D36: 2401 | E36: =_xlfn.XLOOKUP(B36,'Automower Accessories'!$F$13:$F$50,'Automower Accessories'!$N$13:$N$50) -> 0 | F36: 20240201 | G36: 2405 | H36: =_xlfn.XLOOKUP(B36,'Automower Accessories'!$F$13:$F$50,'Automower Accessories'!$O$13:$O$50) -> 0 | I36: 20240301 | J36: 2409 | K36: =_xlfn.XLOOKUP(B36,'Automower Accessories'!$F$13:$F$50,'Automower Accessories'!$P$13:$P$50) -> 0 | L36: 20240402 | M36: 2414 | N36: =_xlfn.XLOOKUP(B36,'Automower Accessories'!$F$13:$F$50,'Automower Accessories'!$Q$13:$Q$50) -> 0 | O36: 20240501 | P36: 2418 | Q36: =_xlfn.XLOOKUP(B36,'Automower Accessories'!$F$13:$F$50,'Automower Accessories'!$R$13:$R$50) -> 0 | R36: 20240603 | S36: 2423 | T36: =_xlfn.XLOOKUP(B36,'Automower Accessories'!$F$13:$F$50,'Automower Accessories'!$S$13:$S$50) -> 0 | U36: =_xlfn.XLOOKUP(B36,'Automower Accessories'!$F$13:$F$50,'Automower Accessories'!$L$13:$L$50) -> 14.3319
A37: Automower Accessory | B37: 597987001 | C37: 20240103 | D37: 2401 | E37: =_xlfn.XLOOKUP(B37,'Automower Accessories'!$F$13:$F$50,'Automower Accessories'!$N$13:$N$50) -> 0 | F37: 20240201 | G37: 2405 | H37: =_xlfn.XLOOKUP(B37,'Automower Accessories'!$F$13:$F$50,'Automower Accessories'!$O$13:$O$50) -> 0 | I37: 20240301 | J37: 2409 | K37: =_xlfn.XLOOKUP(B37,'Automower Accessories'!$F$13:$F$50,'Automower Accessories'!$P$13:$P$50) -> 0 | L37: 20240402 | M37: 2414 | N37: =_xlfn.XLOOKUP(B37,'Automower Accessories'!$F$13:$F$50,'Automower Accessories'!$Q$13:$Q$50) -> 0 | O37: 20240501 | P37: 2418 | Q37: =_xlfn.XLOOKUP(B37,'Automower Accessories'!$F$13:$F$50,'Automower Accessories'!$R$13:$R$50) -> 0 | R37: 20240603 | S37: 2423 | T37: =_xlfn.XLOOKUP(B37,'Automower Accessories'!$F$13:$F$50,'Automower Accessories'!$S$13:$S$50) -> 0 | U37: =_xlfn.XLOOKUP(B37,'Automower Accessories'!$F$13:$F$50,'Automower Accessories'!$L$13:$L$50) -> 16.1207
A38: Automower Accessory | B38: 597703601 | C38: 20240103 | D38: 2401 | E38: =_xlfn.XLOOKUP(B38,'Automower Accessories'!$F$13:$F$50,'Automower Accessories'!$N$13:$N$50) -> 0 | F38: 20240201 | G38: 2405 | H38: =_xlfn.XLOOKUP(B38,'Automower Accessories'!$F$13:$F$50,'Automower Accessories'!$O$13:$O$50) -> 0 | I38: 20240301 | J38: 2409 | K38: =_xlfn.XLOOKUP(B38,'Automower Accessories'!$F$13:$F$50,'Automower Accessories'!$P$13:$P$50) -> 0 | L38: 20240402 | M38: 2414 | N38: =_xlfn.XLOOKUP(B38,'Automower Accessories'!$F$13:$F$50,'Automower Accessories'!$Q$13:$Q$50) -> 0 | O38: 20240501 | P38: 2418 | Q38: =_xlfn.XLOOKUP(B38,'Automower Accessories'!$F$13:$F$50,'Automower Accessories'!$R$13:$R$50) -> 0 | R38: 20240603 | S38: 2423 | T38: =_xlfn.XLOOKUP(B38,'Automower Accessories'!$F$13:$F$50,'Automower Accessories'!$S$13:$S$50) -> 0 | U38: =_xlfn.XLOOKUP(B38,'Automower Accessories'!$F$13:$F$50,'Automower Accessories'!$L$13:$L$50) -> 23.2888
A39: Automower Accessory | B39: 597539501 | C39: 20240103 | D39: 2401 | E39: =_xlfn.XLOOKUP(B39,'Automower Accessories'!$F$13:$F$50,'Automower Accessories'!$N$13:$N$50) -> 0 | F39: 20240201 | G39: 2405 | H39: =_xlfn.XLOOKUP(B39,'Automower Accessories'!$F$13:$F$50,'Automower Accessories'!$O$13:$O$50) -> 0 | I39: 20240301 | J39: 2409 | K39: =_xlfn.XLOOKUP(B39,'Automower Accessories'!$F$13:$F$50,'Automower Accessories'!$P$13:$P$50) -> 0 | L39: 20240402 | M39: 2414 | N39: =_xlfn.XLOOKUP(B39,'Automower Accessories'!$F$13:$F$50,'Automower Accessories'!$Q$13:$Q$50) -> 0 | O39: 20240501 | P39: 2418 | Q39: =_xlfn.XLOOKUP(B39,'Automower Accessories'!$F$13:$F$50,'Automower Accessories'!$R$13:$R$50) -> 0 | R39: 20240603 | S39: 2423 | T39: =_xlfn.XLOOKUP(B39,'Automower Accessories'!$F$13:$F$50,'Automower Accessories'!$S$13:$S$50) -> 0 | U39: =_xlfn.XLOOKUP(B39,'Automower Accessories'!$F$13:$F$50,'Automower Accessories'!$L$13:$L$50) -> 7.1638
A40: Automower Accessory | B40: 597237802 | C40: 20240103 | D40: 2401 | E40: =_xlfn.XLOOKUP(B40,'Automower Accessories'!$F$13:$F$50,'Automower Accessories'!$N$13:$N$50) -> 0 | F40: 20240201 | G40: 2405 | H40: =_xlfn.XLOOKUP(B40,'Automower Accessories'!$F$13:$F$50,'Automower Accessories'!$O$13:$O$50) -> 0 | I40: 20240301 | J40: 2409 | K40: =_xlfn.XLOOKUP(B40,'Automower Accessories'!$F$13:$F$50,'Automower Accessories'!$P$13:$P$50) -> 0 | L40: 20240402 | M40: 2414 | N40: =_xlfn.XLOOKUP(B40,'Automower Accessories'!$F$13:$F$50,'Automower Accessories'!$Q$13:$Q$50) -> 0 | O40: 20240501 | P40: 2418 | Q40: =_xlfn.XLOOKUP(B40,'Automower Accessories'!$F$13:$F$50,'Automower Accessories'!$R$13:$R$50) -> 0 | R40: 20240603 | S40: 2423 | T40: =_xlfn.XLOOKUP(B40,'Automower Accessories'!$F$13:$F$50,'Automower Accessories'!$S$13:$S$50) -> 0 | U40: =_xlfn.XLOOKUP(B40,'Automower Accessories'!$F$13:$F$50,'Automower Accessories'!$L$13:$L$50) -> 14.3319
A41: Automower Accessory | B41: 597237801 | C41: 20240103 | D41: 2401 | E41: =_xlfn.XLOOKUP(B41,'Automower Accessories'!$F$13:$F$50,'Automower Accessories'!$N$13:$N$50) -> 0 | F41: 20240201 | G41: 2405 | H41: =_xlfn.XLOOKUP(B41,'Automower Accessories'!$F$13:$F$50,'Automower Accessories'!$O$13:$O$50) -> 0 | I41: 20240301 | J41: 2409 | K41: =_xlfn.XLOOKUP(B41,'Automower Accessories'!$F$13:$F$50,'Automower Accessories'!$P$13:$P$50) -> 0 | L41: 20240402 | M41: 2414 | N41: =_xlfn.XLOOKUP(B41,'Automower Accessories'!$F$13:$F$50,'Automower Accessories'!$Q$13:$Q$50) -> 0 | O41: 20240501 | P41: 2418 | Q41: =_xlfn.XLOOKUP(B41,'Automower Accessories'!$F$13:$F$50,'Automower Accessories'!$R$13:$R$50) -> 0 | R41: 20240603 | S41: 2423 | T41: =_xlfn.XLOOKUP(B41,'Automower Accessories'!$F$13:$F$50,'Automower Accessories'!$S$13:$S$50) -> 0 | U41: =_xlfn.XLOOKUP(B41,'Automower Accessories'!$F$13:$F$50,'Automower Accessories'!$L$13:$L$50) -> 32.2457
A42: Automower Accessory | B42: 596512502 | C42: 20240103 | D42: 2401 | E42: =_xlfn.XLOOKUP(B42,'Automower Accessories'!$F$13:$F$50,'Automower Accessories'!$N$13:$N$50) -> 0 | F42: 20240201 | G42: 2405 | H42: =_xlfn.XLOOKUP(B42,'Automower Accessories'!$F$13:$F$50,'Automower Accessories'!$O$13:$O$50) -> 0 | I42: 20240301 | J42: 2409 | K42: =_xlfn.XLOOKUP(B42,'Automower Accessories'!$F$13:$F$50,'Automower Accessories'!$P$13:$P$50) -> 0 | L42: 20240402 | M42: 2414 | N42: =_xlfn.XLOOKUP(B42,'Automower Accessories'!$F$13:$F$50,'Automower Accessories'!$Q$13:$Q$50) -> 0 | O42: 20240501 | P42: 2418 | Q42: =_xlfn.XLOOKUP(B42,'Automower Accessories'!$F$13:$F$50,'Automower Accessories'!$R$13:$R$50) -> 0 | R42: 20240603 | S42: 2423 | T42: =_xlfn.XLOOKUP(B42,'Automower Accessories'!$F$13:$F$50,'Automower Accessories'!$S$13:$S$50) -> 0 | U42: =_xlfn.XLOOKUP(B42,'Automower Accessories'!$F$13:$F$50,'Automower Accessories'!$L$13:$L$50) -> 20.4207
A43: Automower Accessory | B43: 593967901 | C43: 20240103 | D43: 2401 | E43: =_xlfn.XLOOKUP(B43,'Automower Accessories'!$F$13:$F$50,'Automower Accessories'!$N$13:$N$50) -> 0 | F43: 20240201 | G43: 2405 | H43: =_xlfn.XLOOKUP(B43,'Automower Accessories'!$F$13:$F$50,'Automower Accessories'!$O$13:$O$50) -> 0 | I43: 20240301 | J43: 2409 | K43: =_xlfn.XLOOKUP(B43,'Automower Accessories'!$F$13:$F$50,'Automower Accessories'!$P$13:$P$50) -> 0 | L43: 20240402 | M43: 2414 | N43: =_xlfn.XLOOKUP(B43,'Automower Accessories'!$F$13:$F$50,'Automower Accessories'!$Q$13:$Q$50) -> 0 | O43: 20240501 | P43: 2418 | Q43: =_xlfn.XLOOKUP(B43,'Automower Accessories'!$F$13:$F$50,'Automower Accessories'!$R$13:$R$50) -> 0 | R43: 20240603 | S43: 2423 | T43: =_xlfn.XLOOKUP(B43,'Automower Accessories'!$F$13:$F$50,'Automower Accessories'!$S$13:$S$50) -> 0 | U43: =_xlfn.XLOOKUP(B43,'Automower Accessories'!$F$13:$F$50,'Automower Accessories'!$L$13:$L$50) -> 5.3707
A44: Automower Accessory | B44: 593297702 | C44: 20240103 | D44: 2401 | E44: =_xlfn.XLOOKUP(B44,'Automower Accessories'!$F$13:$F$50,'Automower Accessories'!$N$13:$N$50) -> 0 | F44: 20240201 | G44: 2405 | H44: =_xlfn.XLOOKUP(B44,'Automower Accessories'!$F$13:$F$50,'Automower Accessories'!$O$13:$O$50) -> 0 | I44: 20240301 | J44: 2409 | K44: =_xlfn.XLOOKUP(B44,'Automower Accessories'!$F$13:$F$50,'Automower Accessories'!$P$13:$P$50) -> 0 | L44: 20240402 | M44: 2414 | N44: =_xlfn.XLOOKUP(B44,'Automower Accessories'!$F$13:$F$50,'Automower Accessories'!$Q$13:$Q$50) -> 0 | O44: 20240501 | P44: 2418 | Q44: =_xlfn.XLOOKUP(B44,'Automower Accessories'!$F$13:$F$50,'Automower Accessories'!$R$13:$R$50) -> 0 | R44: 20240603 | S44: 2423 | T44: =_xlfn.XLOOKUP(B44,'Automower Accessories'!$F$13:$F$50,'Automower Accessories'!$S$13:$S$50) -> 0 | U44: =_xlfn.XLOOKUP(B44,'Automower Accessories'!$F$13:$F$50,'Automower Accessories'!$L$13:$L$50) -> 107.1431
A45: Automower Accessory | B45: 590855101 | C45: 20240103 | D45: 2401 | E45: =_xlfn.XLOOKUP(B45,'Automower Accessories'!$F$13:$F$50,'Automower Accessories'!$N$13:$N$50) -> 0 | F45: 20240201 | G45: 2405 | H45: =_xlfn.XLOOKUP(B45,'Automower Accessories'!$F$13:$F$50,'Automower Accessories'!$O$13:$O$50) -> 0 | I45: 20240301 | J45: 2409 | K45: =_xlfn.XLOOKUP(B45,'Automower Accessories'!$F$13:$F$50,'Automower Accessories'!$P$13:$P$50) -> 0 | L45: 20240402 | M45: 2414 | N45: =_xlfn.XLOOKUP(B45,'Automower Accessories'!$F$13:$F$50,'Automower Accessories'!$Q$13:$Q$50) -> 0 | O45: 20240501 | P45: 2418 | Q45: =_xlfn.XLOOKUP(B45,'Automower Accessories'!$F$13:$F$50,'Automower Accessories'!$R$13:$R$50) -> 0 | R45: 20240603 | S45: 2423 | T45: =_xlfn.XLOOKUP(B45,'Automower Accessories'!$F$13:$F$50,'Automower Accessories'!$S$13:$S$50) -> 0 | U45: =_xlfn.XLOOKUP(B45,'Automower Accessories'!$F$13:$F$50,'Automower Accessories'!$L$13:$L$50) -> 14.3319
A46: Automower Accessory | B46: 588408402 | C46: 20240103 | D46: 2401 | E46: =_xlfn.XLOOKUP(B46,'Automower Accessories'!$F$13:$F$50,'Automower Accessories'!$N$13:$N$50) -> 0 | F46: 20240201 | G46: 2405 | H46: =_xlfn.XLOOKUP(B46,'Automower Accessories'!$F$13:$F$50,'Automower Accessories'!$O$13:$O$50) -> 0 | I46: 20240301 | J46: 2409 | K46: =_xlfn.XLOOKUP(B46,'Automower Accessories'!$F$13:$F$50,'Automower Accessories'!$P$13:$P$50) -> 0 | L46: 20240402 | M46: 2414 | N46: =_xlfn.XLOOKUP(B46,'Automower Accessories'!$F$13:$F$50,'Automower Accessories'!$Q$13:$Q$50) -> 0 | O46: 20240501 | P46: 2418 | Q46: =_xlfn.XLOOKUP(B46,'Automower Accessories'!$F$13:$F$50,'Automower Accessories'!$R$13:$R$50) -> 0 | R46: 20240603 | S46: 2423 | T46: =_xlfn.XLOOKUP(B46,'Automower Accessories'!$F$13:$F$50,'Automower Accessories'!$S$13:$S$50) -> 0 | U46: =_xlfn.XLOOKUP(B46,'Automower Accessories'!$F$13:$F$50,'Automower Accessories'!$L$13:$L$50) -> 64.4957
A47: Automower Accessory | B47: 587224001 | C47: 20240103 | D47: 2401 | E47: =_xlfn.XLOOKUP(B47,'Automower Accessories'!$F$13:$F$50,'Automower Accessories'!$N$13:$N$50) -> 0 | F47: 20240201 | G47: 2405 | H47: =_xlfn.XLOOKUP(B47,'Automower Accessories'!$F$13:$F$50,'Automower Accessories'!$O$13:$O$50) -> 0 | I47: 20240301 | J47: 2409 | K47: =_xlfn.XLOOKUP(B47,'Automower Accessories'!$F$13:$F$50,'Automower Accessories'!$P$13:$P$50) -> 0 | L47: 20240402 | M47: 2414 | N47: =_xlfn.XLOOKUP(B47,'Automower Accessories'!$F$13:$F$50,'Automower Accessories'!$Q$13:$Q$50) -> 0 | O47: 20240501 | P47: 2418 | Q47: =_xlfn.XLOOKUP(B47,'Automower Accessories'!$F$13:$F$50,'Automower Accessories'!$R$13:$R$50) -> 0 | R47: 20240603 | S47: 2423 | T47: =_xlfn.XLOOKUP(B47,'Automower Accessories'!$F$13:$F$50,'Automower Accessories'!$S$13:$S$50) -> 0 | U47: =_xlfn.XLOOKUP(B47,'Automower Accessories'!$F$13:$F$50,'Automower Accessories'!$L$13:$L$50) -> 23.2888
A48: Automower Accessory | B48: 586662313 | C48: 20240103 | D48: 2401 | E48: =_xlfn.XLOOKUP(B48,'Automower Accessories'!$F$13:$F$50,'Automower Accessories'!$N$13:$N$50) -> 0 | F48: 20240201 | G48: 2405 | H48: =_xlfn.XLOOKUP(B48,'Automower Accessories'!$F$13:$F$50,'Automower Accessories'!$O$13:$O$50) -> 0 | I48: 20240301 | J48: 2409 | K48: =_xlfn.XLOOKUP(B48,'Automower Accessories'!$F$13:$F$50,'Automower Accessories'!$P$13:$P$50) -> 0 | L48: 20240402 | M48: 2414 | N48: =_xlfn.XLOOKUP(B48,'Automower Accessories'!$F$13:$F$50,'Automower Accessories'!$Q$13:$Q$50) -> 0 | O48: 20240501 | P48: 2418 | Q48: =_xlfn.XLOOKUP(B48,'Automower Accessories'!$F$13:$F$50,'Automower Accessories'!$R$13:$R$50) -> 0 | R48: 20240603 | S48: 2423 | T48: =_xlfn.XLOOKUP(B48,'Automower Accessories'!$F$13:$F$50,'Automower Accessories'!$S$13:$S$50) -> 0 | U48: =_xlfn.XLOOKUP(B48,'Automower Accessories'!$F$13:$F$50,'Automower Accessories'!$L$13:$L$50) -> 107.1431
A49: Automower Accessory | B49: 580662009 | C49: 20240103 | D49: 2401 | E49: =_xlfn.XLOOKUP(B49,'Automower Accessories'!$F$13:$F$50,'Automower Accessories'!$N$13:$N$50) -> 0 | F49: 20240201 | G49: 2405 | H49: =_xlfn.XLOOKUP(B49,'Automower Accessories'!$F$13:$F$50,'Automower Accessories'!$O$13:$O$50) -> 0 | I49: 20240301 | J49: 2409 | K49: =_xlfn.XLOOKUP(B49,'Automower Accessories'!$F$13:$F$50,'Automower Accessories'!$P$13:$P$50) -> 0 | L49: 20240402 | M49: 2414 | N49: =_xlfn.XLOOKUP(B49,'Automower Accessories'!$F$13:$F$50,'Automower Accessories'!$Q$13:$Q$50) -> 0 | O49: 20240501 | P49: 2418 | Q49: =_xlfn.XLOOKUP(B49,'Automower Accessories'!$F$13:$F$50,'Automower Accessories'!$R$13:$R$50) -> 0 | R49: 20240603 | S49: 2423 | T49: =_xlfn.XLOOKUP(B49,'Automower Accessories'!$F$13:$F$50,'Automower Accessories'!$S$13:$S$50) -> 0 | U49: =_xlfn.XLOOKUP(B49,'Automower Accessories'!$F$13:$F$50,'Automower Accessories'!$L$13:$L$50) -> 142.975
A50: Automower Accessory | B50: 580662006 | C50: 20240103 | D50: 2401 | E50: =_xlfn.XLOOKUP(B50,'Automower Accessories'!$F$13:$F$50,'Automower Accessories'!$N$13:$N$50) -> 0 | F50: 20240201 | G50: 2405 | H50: =_xlfn.XLOOKUP(B50,'Automower Accessories'!$F$13:$F$50,'Automower Accessories'!$O$13:$O$50) -> 0 | I50: 20240301 | J50: 2409 | K50: =_xlfn.XLOOKUP(B50,'Automower Accessories'!$F$13:$F$50,'Automower Accessories'!$P$13:$P$50) -> 0 | L50: 20240402 | M50: 2414 | N50: =_xlfn.XLOOKUP(B50,'Automower Accessories'!$F$13:$F$50,'Automower Accessories'!$Q$13:$Q$50) -> 0 | O50: 20240501 | P50: 2418 | Q50: =_xlfn.XLOOKUP(B50,'Automower Accessories'!$F$13:$F$50,'Automower Accessories'!$R$13:$R$50) -> 0 | R50: 20240603 | S50: 2423 | T50: =_xlfn.XLOOKUP(B50,'Automower Accessories'!$F$13:$F$50,'Automower Accessories'!$S$13:$S$50) -> 0 | U50: =_xlfn.XLOOKUP(B50,'Automower Accessories'!$F$13:$F$50,'Automower Accessories'!$L$13:$L$50) -> 53.7457
A51: Automower Accessory | B51: 577864801 | C51: 20240103 | D51: 2401 | E51: =_xlfn.XLOOKUP(B51,'Automower Accessories'!$F$13:$F$50,'Automower Accessories'!$N$13:$N$50) -> 0 | F51: 20240201 | G51: 2405 | H51: =_xlfn.XLOOKUP(B51,'Automower Accessories'!$F$13:$F$50,'Automower Accessories'!$O$13:$O$50) -> 0 | I51: 20240301 | J51: 2409 | K51: =_xlfn.XLOOKUP(B51,'Automower Accessories'!$F$13:$F$50,'Automower Accessories'!$P$13:$P$50) -> 0 | L51: 20240402 | M51: 2414 | N51: =_xlfn.XLOOKUP(B51,'Automower Accessories'!$F$13:$F$50,'Automower Accessories'!$Q$13:$Q$50) -> 0 | O51: 20240501 | P51: 2418 | Q51: =_xlfn.XLOOKUP(B51,'Automower Accessories'!$F$13:$F$50,'Automower Accessories'!$R$13:$R$50) -> 0 | R51: 20240603 | S51: 2423 | T51: =_xlfn.XLOOKUP(B51,'Automower Accessories'!$F$13:$F$50,'Automower Accessories'!$S$13:$S$50) -> 0 | U51: =_xlfn.XLOOKUP(B51,'Automower Accessories'!$F$13:$F$50,'Automower Accessories'!$L$13:$L$50) -> 5.3707
A52: Automower Accessory | B52: 577864701 | C52: 20240103 | D52: 2401 | E52: =_xlfn.XLOOKUP(B52,'Automower Accessories'!$F$13:$F$50,'Automower Accessories'!$N$13:$N$50) -> 0 | F52: 20240201 | G52: 2405 | H52: =_xlfn.XLOOKUP(B52,'Automower Accessories'!$F$13:$F$50,'Automower Accessories'!$O$13:$O$50) -> 0 | I52: 20240301 | J52: 2409 | K52: =_xlfn.XLOOKUP(B52,'Automower Accessories'!$F$13:$F$50,'Automower Accessories'!$P$13:$P$50) -> 0 | L52: 20240402 | M52: 2414 | N52: =_xlfn.XLOOKUP(B52,'Automower Accessories'!$F$13:$F$50,'Automower Accessories'!$Q$13:$Q$50) -> 0 | O52: 20240501 | P52: 2418 | Q52: =_xlfn.XLOOKUP(B52,'Automower Accessories'!$F$13:$F$50,'Automower Accessories'!$R$13:$R$50) -> 0 | R52: 20240603 | S52: 2423 | T52: =_xlfn.XLOOKUP(B52,'Automower Accessories'!$F$13:$F$50,'Automower Accessories'!$S$13:$S$50) -> 0 | U52: =_xlfn.XLOOKUP(B52,'Automower Accessories'!$F$13:$F$50,'Automower Accessories'!$L$13:$L$50) -> 3.5819
A53: Automower Accessory | B53: 577864603 | C53: 20240103 | D53: 2401 | E53: =_xlfn.XLOOKUP(B53,'Automower Accessories'!$F$13:$F$50,'Automower Accessories'!$N$13:$N$50) -> 20 | F53: 20240201 | G53: 2405 | H53: =_xlfn.XLOOKUP(B53,'Automower Accessories'!$F$13:$F$50,'Automower Accessories'!$O$13:$O$50) -> 10 | I53: 20240301 | J53: 2409 | K53: =_xlfn.XLOOKUP(B53,'Automower Accessories'!$F$13:$F$50,'Automower Accessories'!$P$13:$P$50) -> 10 | L53: 20240402 | M53: 2414 | N53: =_xlfn.XLOOKUP(B53,'Automower Accessories'!$F$13:$F$50,'Automower Accessories'!$Q$13:$Q$50) -> 5 | O53: 20240501 | P53: 2418 | Q53: =_xlfn.XLOOKUP(B53,'Automower Accessories'!$F$13:$F$50,'Automower Accessories'!$R$13:$R$50) -> 5 | R53: 20240603 | S53: 2423 | T53: =_xlfn.XLOOKUP(B53,'Automower Accessories'!$F$13:$F$50,'Automower Accessories'!$S$13:$S$50) -> 5 | U53: =_xlfn.XLOOKUP(B53,'Automower Accessories'!$F$13:$F$50,'Automower Accessories'!$L$13:$L$50) -> 7.1638
A54: Automower Accessory | B54: 577864201 | C54: 20240103 | D54: 2401 | E54: =_xlfn.XLOOKUP(B54,'Automower Accessories'!$F$13:$F$50,'Automower Accessories'!$N$13:$N$50) -> 0 | F54: 20240201 | G54: 2405 | H54: =_xlfn.XLOOKUP(B54,'Automower Accessories'!$F$13:$F$50,'Automower Accessories'!$O$13:$O$50) -> 0 | I54: 20240301 | J54: 2409 | K54: =_xlfn.XLOOKUP(B54,'Automower Accessories'!$F$13:$F$50,'Automower Accessories'!$P$13:$P$50) -> 0 | L54: 20240402 | M54: 2414 | N54: =_xlfn.XLOOKUP(B54,'Automower Accessories'!$F$13:$F$50,'Automower Accessories'!$Q$13:$Q$50) -> 0 | O54: 20240501 | P54: 2418 | Q54: =_xlfn.XLOOKUP(B54,'Automower Accessories'!$F$13:$F$50,'Automower Accessories'!$R$13:$R$50) -> 0 | R54: 20240603 | S54: 2423 | T54: =_xlfn.XLOOKUP(B54,'Automower Accessories'!$F$13:$F$50,'Automower Accessories'!$S$13:$S$50) -> 0 | U54: =_xlfn.XLOOKUP(B54,'Automower Accessories'!$F$13:$F$50,'Automower Accessories'!$L$13:$L$50) -> 7.1638
A55: Automower Accessory | B55: 536930901 | C55: 20240103 | D55: 2401 | E55: =_xlfn.XLOOKUP(B55,'Automower Accessories'!$F$13:$F$50,'Automower Accessories'!$N$13:$N$50) -> 0 | F55: 20240201 | G55: 2405 | H55: =_xlfn.XLOOKUP(B55,'Automower Accessories'!$F$13:$F$50,'Automower Accessories'!$O$13:$O$50) -> 0 | I55: 20240301 | J55: 2409 | K55: =_xlfn.XLOOKUP(B55,'Automower Accessories'!$F$13:$F$50,'Automower Accessories'!$P$13:$P$50) -> 0 | L55: 20240402 | M55: 2414 | N55: =_xlfn.XLOOKUP(B55,'Automower Accessories'!$F$13:$F$50,'Automower Accessories'!$Q$13:$Q$50) -> 0 | O55: 20240501 | P55: 2418 | Q55: =_xlfn.XLOOKUP(B55,'Automower Accessories'!$F$13:$F$50,'Automower Accessories'!$R$13:$R$50) -> 0 | R55: 20240603 | S55: 2423 | T55: =_xlfn.XLOOKUP(B55,'Automower Accessories'!$F$13:$F$50,'Automower Accessories'!$S$13:$S$50) -> 0 | U55: =_xlfn.XLOOKUP(B55,'Automower Accessories'!$F$13:$F$50,'Automower Accessories'!$L$13:$L$50) -> 56.975
A56: Automower Accessory | B56: 536849201 | C56: 20240103 | D56: 2401 | E56: =_xlfn.XLOOKUP(B56,'Automower Accessories'!$F$13:$F$50,'Automower Accessories'!$N$13:$N$50) -> 0 | F56: 20240201 | G56: 2405 | H56: =_xlfn.XLOOKUP(B56,'Automower Accessories'!$F$13:$F$50,'Automower Accessories'!$O$13:$O$50) -> 0 | I56: 20240301 | J56: 2409 | K56: =_xlfn.XLOOKUP(B56,'Automower Accessories'!$F$13:$F$50,'Automower Accessories'!$P$13:$P$50) -> 0 | L56: 20240402 | M56: 2414 | N56: =_xlfn.XLOOKUP(B56,'Automower Accessories'!$F$13:$F$50,'Automower Accessories'!$Q$13:$Q$50) -> 0 | O56: 20240501 | P56: 2418 | Q56: =_xlfn.XLOOKUP(B56,'Automower Accessories'!$F$13:$F$50,'Automower Accessories'!$R$13:$R$50) -> 0 | R56: 20240603 | S56: 2423 | T56: =_xlfn.XLOOKUP(B56,'Automower Accessories'!$F$13:$F$50,'Automower Accessories'!$S$13:$S$50) -> 0 | U56: =_xlfn.XLOOKUP(B56,'Automower Accessories'!$F$13:$F$50,'Automower Accessories'!$L$13:$L$50) -> 34.0388
A57: Automower Accessory | B57: 536326201 | C57: 20240103 | D57: 2401 | E57: =_xlfn.XLOOKUP(B57,'Automower Accessories'!$F$13:$F$50,'Automower Accessories'!$N$13:$N$50) -> 0 | F57: 20240201 | G57: 2405 | H57: =_xlfn.XLOOKUP(B57,'Automower Accessories'!$F$13:$F$50,'Automower Accessories'!$O$13:$O$50) -> 0 | I57: 20240301 | J57: 2409 | K57: =_xlfn.XLOOKUP(B57,'Automower Accessories'!$F$13:$F$50,'Automower Accessories'!$P$13:$P$50) -> 0 | L57: 20240402 | M57: 2414 | N57: =_xlfn.XLOOKUP(B57,'Automower Accessories'!$F$13:$F$50,'Automower Accessories'!$Q$13:$Q$50) -> 0 | O57: 20240501 | P57: 2418 | Q57: =_xlfn.XLOOKUP(B57,'Automower Accessories'!$F$13:$F$50,'Automower Accessories'!$R$13:$R$50) -> 0 | R57: 20240603 | S57: 2423 | T57: =_xlfn.XLOOKUP(B57,'Automower Accessories'!$F$13:$F$50,'Automower Accessories'!$S$13:$S$50) -> 0 | U57: =_xlfn.XLOOKUP(B57,'Automower Accessories'!$F$13:$F$50,'Automower Accessories'!$L$13:$L$50) -> 44.7888
A58: Automower Accessory | B58: 535129002 | C58: 20240103 | D58: 2401 | E58: =_xlfn.XLOOKUP(B58,'Automower Accessories'!$F$13:$F$50,'Automower Accessories'!$N$13:$N$50) -> 0 | F58: 20240201 | G58: 2405 | H58: =_xlfn.XLOOKUP(B58,'Automower Accessories'!$F$13:$F$50,'Automower Accessories'!$O$13:$O$50) -> 0 | I58: 20240301 | J58: 2409 | K58: =_xlfn.XLOOKUP(B58,'Automower Accessories'!$F$13:$F$50,'Automower Accessories'!$P$13:$P$50) -> 0 | L58: 20240402 | M58: 2414 | N58: =_xlfn.XLOOKUP(B58,'Automower Accessories'!$F$13:$F$50,'Automower Accessories'!$Q$13:$Q$50) -> 0 | O58: 20240501 | P58: 2418 | Q58: =_xlfn.XLOOKUP(B58,'Automower Accessories'!$F$13:$F$50,'Automower Accessories'!$R$13:$R$50) -> 0 | R58: 20240603 | S58: 2423 | T58: =_xlfn.XLOOKUP(B58,'Automower Accessories'!$F$13:$F$50,'Automower Accessories'!$S$13:$S$50) -> 0 | U58: =_xlfn.XLOOKUP(B58,'Automower Accessories'!$F$13:$F$50,'Automower Accessories'!$L$13:$L$50) -> 28.6638
A59: Automower Accessory | B59: 534971901 | C59: 20240103 | D59: 2401 | E59: =_xlfn.XLOOKUP(B59,'Automower Accessories'!$F$13:$F$50,'Automower Accessories'!$N$13:$N$50) -> 2 | F59: 20240201 | G59: 2405 | H59: =_xlfn.XLOOKUP(B59,'Automower Accessories'!$F$13:$F$50,'Automower Accessories'!$O$13:$O$50) -> 0 | I59: 20240301 | J59: 2409 | K59: =_xlfn.XLOOKUP(B59,'Automower Accessories'!$F$13:$F$50,'Automower Accessories'!$P$13:$P$50) -> 0 | L59: 20240402 | M59: 2414 | N59: =_xlfn.XLOOKUP(B59,'Automower Accessories'!$F$13:$F$50,'Automower Accessories'!$Q$13:$Q$50) -> 0 | O59: 20240501 | P59: 2418 | Q59: =_xlfn.XLOOKUP(B59,'Automower Accessories'!$F$13:$F$50,'Automower Accessories'!$R$13:$R$50) -> 0 | R59: 20240603 | S59: 2423 | T59: =_xlfn.XLOOKUP(B59,'Automower Accessories'!$F$13:$F$50,'Automower Accessories'!$S$13:$S$50) -> 0 | U59: =_xlfn.XLOOKUP(B59,'Automower Accessories'!$F$13:$F$50,'Automower Accessories'!$L$13:$L$50) -> 10.7457
A60: Automower Accessory | B60: 529880501 | C60: 20240103 | D60: 2401 | E60: =_xlfn.XLOOKUP(B60,'Automower Accessories'!$F$13:$F$50,'Automower Accessories'!$N$13:$N$50) -> 0 | F60: 20240201 | G60: 2405 | H60: =_xlfn.XLOOKUP(B60,'Automower Accessories'!$F$13:$F$50,'Automower Accessories'!$O$13:$O$50) -> 0 | I60: 20240301 | J60: 2409 | K60: =_xlfn.XLOOKUP(B60,'Automower Accessories'!$F$13:$F$50,'Automower Accessories'!$P$13:$P$50) -> 0 | L60: 20240402 | M60: 2414 | N60: =_xlfn.XLOOKUP(B60,'Automower Accessories'!$F$13:$F$50,'Automower Accessories'!$Q$13:$Q$50) -> 0 | O60: 20240501 | P60: 2418 | Q60: =_xlfn.XLOOKUP(B60,'Automower Accessories'!$F$13:$F$50,'Automower Accessories'!$R$13:$R$50) -> 0 | R60: 20240603 | S60: 2423 | T60: =_xlfn.XLOOKUP(B60,'Automower Accessories'!$F$13:$F$50,'Automower Accessories'!$S$13:$S$50) -> 0 | U60: =_xlfn.XLOOKUP(B60,'Automower Accessories'!$F$13:$F$50,'Automower Accessories'!$L$13:$L$50) -> 50.1638
A61: Automower Accessory | B61: 529459701 | C61: 20240103 | D61: 2401 | E61: =_xlfn.XLOOKUP(B61,'Automower Accessories'!$F$13:$F$50,'Automower Accessories'!$N$13:$N$50) -> 0 | F61: 20240201 | G61: 2405 | H61: =_xlfn.XLOOKUP(B61,'Automower Accessories'!$F$13:$F$50,'Automower Accessories'!$O$13:$O$50) -> 0 | I61: 20240301 | J61: 2409 | K61: =_xlfn.XLOOKUP(B61,'Automower Accessories'!$F$13:$F$50,'Automower Accessories'!$P$13:$P$50) -> 0 | L61: 20240402 | M61: 2414 | N61: =_xlfn.XLOOKUP(B61,'Automower Accessories'!$F$13:$F$50,'Automower Accessories'!$Q$13:$Q$50) -> 0 | O61: 20240501 | P61: 2418 | Q61: =_xlfn.XLOOKUP(B61,'Automower Accessories'!$F$13:$F$50,'Automower Accessories'!$R$13:$R$50) -> 0 | R61: 20240603 | S61: 2423 | T61: =_xlfn.XLOOKUP(B61,'Automower Accessories'!$F$13:$F$50,'Automower Accessories'!$S$13:$S$50) -> 0 | U61: =_xlfn.XLOOKUP(B61,'Automower Accessories'!$F$13:$F$50,'Automower Accessories'!$L$13:$L$50) -> 12.5388
A62: Automower Accessory | B62: 529318801 | C62: 20240103 | D62: 2401 | E62: =_xlfn.XLOOKUP(B62,'Automower Accessories'!$F$13:$F$50,'Automower Accessories'!$N$13:$N$50) -> 0 | F62: 20240201 | G62: 2405 | H62: =_xlfn.XLOOKUP(B62,'Automower Accessories'!$F$13:$F$50,'Automower Accessories'!$O$13:$O$50) -> 0 | I62: 20240301 | J62: 2409 | K62: =_xlfn.XLOOKUP(B62,'Automower Accessories'!$F$13:$F$50,'Automower Accessories'!$P$13:$P$50) -> 0 | L62: 20240402 | M62: 2414 | N62: =_xlfn.XLOOKUP(B62,'Automower Accessories'!$F$13:$F$50,'Automower Accessories'!$Q$13:$Q$50) -> 0 | O62: 20240501 | P62: 2418 | Q62: =_xlfn.XLOOKUP(B62,'Automower Accessories'!$F$13:$F$50,'Automower Accessories'!$R$13:$R$50) -> 0 | R62: 20240603 | S62: 2423 | T62: =_xlfn.XLOOKUP(B62,'Automower Accessories'!$F$13:$F$50,'Automower Accessories'!$S$13:$S$50) -> 0 | U62: =_xlfn.XLOOKUP(B62,'Automower Accessories'!$F$13:$F$50,'Automower Accessories'!$L$13:$L$50) -> 42.6431
